Workbook

Sheet LDC Info
Z3: 1 | AA3: Alectra Utilities Corporation-Brampton Rate Zone
Z4: 2 | AA4: Alectra Utilities Corporation-Enersource Rate Zone
Z5: 3 | AA5: Alectra Utilities Corporation-Horizon Utilities Rate Zone
Z6: 4 | AA6: Alectra Utilities Corporation-PowerStream Rate Zone
Z7: 5 | AA7: Alectra Utilities Corporation-Guelph Rate Zone
Z8: 6 | AA8: Algoma Power Inc.
Z9: 7 | AA9: Atikokan Hydro Inc.
Z10: 8 | AA10: Bluewater Power Distribution Corporation
Z11: 9 | AA11: Brantford Power Inc.
Z12: 10 | AA12: Burlington Hydro Inc.
Z13: 11 | AA13: Canadian Niagara Power Inc.
D14: Utility Name | E14: Kingston Hydro Corporation | Z14: 12 | AA14: Centre Wellington Hydro Ltd.
Z15: 13 | AA15: Chapleau Public Utilities Corporation
D16: Assigned EB Number | E16: EB-2022-0044 | Z16: 14 | AA16: Cooperative Hydro Embrun Inc.
Z17: 15 | AA17: E.L.K. Energy Inc.
D18: Name of Contact and Title | E18: Sherry Gibson, Senior Advisor Rates & Regulatory Affairs | Z18: 16 | AA18: Elexicon Energy Inc.-Whitby Rate Zone
Z19: 17 | AA19: Elexicon Energy Inc.-Veridian Rate Zone
D20: Phone Number | E20: 613-546-1181 ext 2383 | Z20: 18 | AA20: Energy+ Inc.
Z21: 19 | AA21: Entegrus Powerlines Inc.-For Entegrus-Main Rate Zone
D22: Email Address | E22: sgibson@kingstonhydro.com | Z22: 20 | AA22: Entegrus Powerlines Inc.-For Former St. Thomas Energy Rate Zone
Z23: 21 | AA23: ENWIN Utilities Ltd.
D24: Test Year | E24: 2023 | Z24: 22 | AA24: EPCOR Electricity Distribution Ontario Inc.
Z25: 23 | AA25: ERTH Power Corporation - ERTH Power Main Rate Zone
D26: Bridge Year | E26: =IF(ISBLANK(E24), "", E24-1) -> 2022 | Z26: 24 | AA26: ERTH POWER CORPORATION – GODERICH RATE ZONE
Z27: 25 | AA27: Essex Powerlines Corporation
D28: Last Rebasing Year | E28: 2016 | H28: Kingston Hydro Custom IR (2016 yr 1, 2017 yr 2, 2018 yr 3, 2019 yr 4, 2020 yr 5) Kingston Hydro has selected its first rebasing year from the dropdown list in this model to allow other sheets to accommodate Kingston Hydro historical evidence. | Z28: 26 | AA28: Festival Hydro Inc.
Z29: 27 | AA29: Fort Frances Power Corporation
A30: Identify the accounting standard used for the test year | Z30: 28 | AA30: Greater Sudbury Hydro Inc.
E31: MIFRS | Z31: 29 | AA31: Grimsby Power Incorporated
Z32: 30 | AA32: Halton Hills Hydro Inc.
A33: ="Did "& E14 &" update its depreciation and capitalization policies?" -> Did Kingston Hydro Corporation update its depreciation and capitalization policies? | Z33: 31 | AA33: Hearst Power Distribution Co. Ltd.
E34: No | Z34: 32 | AA34: Hydro 2000 Inc.
Z35: 33 | AA35: Hydro Hawkesbury Inc.
A36: If "yes" to cell E34, were the changes in policies reflected in a prior rebasing application? | Z36: 34 | AA36: Hydro One Networks Inc.
E37: N/A | Z37: 35 | AA37: Hydro One Networks Inc.-Former Haldimand County Hydro Inc. Service Area
Z38: 36 | AA38: Hydro One Networks Inc.-Former Norfolk Power Distribution Inc. Service Area
A39: ="When did "&E14&" update its actual depreciation and capitalization policies?" -> When did Kingston Hydro Corporation update its actual depreciation and capitalization policies? | Z39: 37 | AA39: Hydro One Networks Inc.-Former Woodstock Hydro Services Inc. Service Area
E40: 2001-01-01 | Z40: 38 | AA40: Hydro One Remote Communites Inc.
Z41: 39 | AA41: Hydro Ottawa Limited
A42: Identify the year the applicant adopted IFRS for financial reporting purposes | Z42: 40 | AA42: InnPower Corporation
E43: 2015 | Z43: 41 | AA43: Kingston Hydro Corporation
Z44: 42 | AA44: Kitchener-Wilmot Hydro Inc.
Z45: 43 | AA45: Lakefront Utilities Inc.
A46: ="Is " & E14 & " applying for cost recovery for the test and/or future year(s) for Green Energy initiatives?" -> Is Kingston Hydro Corporation applying for cost recovery for the test and/or future year(s) for Green Energy initiatives? | Z46: 44 | AA46: Lakeland Power Distribution Ltd.
E47: No | Z47: 45 | AA47: Lakeland Power Distribution Ltd.-Parry Sound Service Area
Z48: 46 | AA48: London Hydro Inc.
A49: ="Is " & E14 & " an embedded distributor?" -> Is Kingston Hydro Corporation an embedded distributor? | E49: Partial | Z49: 47 | AA49: Milton Hydro Distribution Inc.
Z50: 48 | AA50: Newmarket-Tay Power Distribution Ltd.-For Former Midland Power Utility Rate Zone
Z51: 49 | AA51: Newmarket-Tay Power Distribution Ltd.-For Newmarket-Tay Power Main Rate Zone
B52: Notes | Z52: 50 | AA52: Niagara Peninsula Energy Inc.
Z53: 51 | AA53: Niagara-on-the-Lake Hydro Inc.
C54: Pale green cells represent input cells. | Z54: 52 | AA54: North Bay Hydro Distribution Limited - Espanola service territory
Z55: 53 | AA55: North Bay Hydro Distribution Limited - North Bay service territory
C56: Pale blue cells represent drop-down lists. The applicant should select the appropriate item from the drop-down list. | Z56: 54 | AA56: Northern Ontario Wires Inc.
Z57: 55 | AA57: Oakville Hydro Electricity Distribution Inc.
C58: White cells contain fixed values, automatically generated values or formulae. | N58: =IF(LEN($G58)>1, (SUMPRODUCT(--($C$81:$C$1003=$C58),--($A$81:$A$1003=$D58), --($B$81:$B$1003=$B58&"_TOTAL"), $L$1:$L$889)), "") ->  | O58: =IF(LEN($G58)>1, (SUMPRODUCT(--($C$81:$C$1003=$C58),--($A$81:$A$1003=$D58), --($B$81:$B$1003=$B58&"_TOTAL"), $M$1:$M$889)), "") ->  | Z58: 56 | AA58: Orangeville Hydro Limited
Z59: 57 | AA59: Orillia Power Distribution Corporation
Z60: 58 | AA60: Oshawa PUC Networks Inc.
Z61: 59 | AA61: Ottawa River Power Corporation
Z62: 60 | AA62: Peterborough Distribution Incorporated
Z63: 61 | AA63: PUC Distribution Inc.
Z64: 62 | AA64: Renfrew Hydro Inc.
Z65: 63 | AA65: Rideau St. Lawrence Distribution Inc.
Z66: 64 | AA66: Sioux Lookout Hydro Inc.
Z67: 65 | AA67: Synergy North Corporation-Kenora Rate Zone
Z68: 66 | AA68: Synergy North Corporation-Thunder Bay Rate Zone
Z69: 67 | AA69: Tillsonburg Hydro Inc.
Z70: 68 | AA70: Toronto Hydro-Electric System Limited
Z71: 69 | AA71: Wasaga Distribution Inc.
Z72: 70 | AA72: Waterloo North Hydro Inc.
Z73: 71 | AA73: Welland Hydro-Electric System Corp.
Z74: 72 | AA74: Wellington North Power Inc.
Z75: 73 | AA75: Westario Power Inc.

Sheet Index
A15: 1 | B15: LDC Information Sheet | E15: 20 | F15: App.2-G: Service Reliability Indicators
A16: 2 | B16: Index | E16: 21 | F16: App.2-H: Other Operating Revenue (TO BE UPDATED AT THE DRAFT RATE ORDER STAGE)
A17: 3 | B17: Cost of Service Application Flowchart | E17: 22 | F17: App.2-I: Load Forecast CDM Adjustment Workform
A18: 4 | B18: List of Key References | E18: 23 | F18: App.2-IA: Load Forecast Data Instructions
A19: 5 | B19: App.2-A: List of Requested Approvals | E19: 24 | F19: App.2-IB: Actual and Forecast Load and Customer Data
A20: 6 | B20: App.2-AA: Capital Projects Table | E20: 25 | F20: App.2-JA: OM&A Summary Analysis (TO BE UPDATED AT THE DRAFT RATE ORDER STAGE)
A21: 7 | B21: App.2-AB: Capital Expenditures (TO BE UPDATED AT THE DRAFT RATE ORDER STAGE) | E21: 26 | F21: App.2-JB: Recoverable OM&A Cost Driver Table
A22: 8 | B22: App. 2-AC: Customer Engagement Worksheet | E22: 27 | F22: App.2-JC: OM&A Programs Table
A23: 9 | B23: App.2-B: General Accounting Instructions Relating to MIFRS Transition - CONTACT OEB STAFF IF TAB REQUIRED | E23: 28 | F23: App.2-JD: OM&A Programs Table
A24: 10 | B24: App.2-BA: Fixed Asset Continuity Schedule | E24: 29 | F24: App.2-L: Recoverable OM&A Cost per Customer and per FTE
A25: 11 | B25: Appendix 2-BB: Service Life Comparison | E25: 30 | F25: App.2-M: Regulatory Costs Schedule (TO BE UPDATED AT THE DRAFT RATE ORDER STAGE)
A26: 12 | B26: App.2-C_DepExp: Depreciation and Amortization Expense | E26: 31 | F26: App.2-N: Shared Services and Corporate Cost Allocation
A27: 13 | B27: App.2-D: Overhead Expenses | E27: 32 | F27: App.2-OA: Capital Structure and Cost of Capital
A28: 14 | B28: App.2-EA: Account 1575 PP&E Deferral Account (2015 IFRS Adopters) - CONTACT OEB STAFF IF TAB REQUIRED | E28: 33 | F28: App.2-OB: Debt Instruments
A29: 15 | B29: App.2-EB: Account 1576 - Accounting Changes Under CGAAP (2012 Changes) - CONTACT OEB STAFF IF TAB REQUIRED | E29: 34 | F29: App.2-Q: Cost of Serving Embedded Distributor(s)
A30: 16 | B30: App.2-EC: Account 1576 - Accounting Changes Under CGAAP (2013 Changes) - CONTACT OEB STAFF IF TAB REQUIRED | E30: 35 | F30: App.2-R: Loss Factors
A31: 17 | B31: App.2-FA: Renewable Generation Connection Investment Summary (TO BE UPDATED AT THE DRAFT RATE ORDER STAGE) | E31: 36 | F31: App.2-S: Stranded Meter Treatment- CONTACT OEB STAFF IF TAB REQUIRED
A32: 18 | B32: App.2-FB: Calculation of Renewable Generation Connection Direct Benefits/Provincial Amount: Renewable Enabling Improvement Investments (TO BE UPDATED AT THE DRAFT RATE ORDER STAGE) | E32: 37 | F32: App.2-Y: Transition to MIFRS Summary Impact - CONTACT OEB STAFF IF TAB REQUIRED
A33: 19 | B33: App.2-FC: Calculation of Renewable Generation Connection Direct Benefits/Provincial Amount: Renewable Expansion Investments (TO BE UPDATED AT THE DRAFT RATE ORDER STAGE) | E33: 38 | F33: App.2-YA: One-Time Incremental IFRS Transition Costs - CONTACT OEB STAFF IF TAB REQUIRED
E34: 39 | F34: App.2-ZA: Commodity Expense
E35: 40 | F35: App.2-ZB: Cost of Power
A42: Note: | B42: Appendices for the Tariff of Rates and Charges at Current and Proposed Rates, and for the Bill Impacts are now in a separate spreadsheet model. These appendices were formerly 2-Z and 2-W.

Sheet COS Flowchart
B4: Cost of Service Rate Application Schematic
B6: The Cost of Service Rate Application Schematic is a flowchart that is included as a guide for the components of an application. The schematic demonstrates how demand and costs interrelate to derive the revenue requirement and how the revenue requirement is allocated between classes and through fixed/variable splits to derive rates that will be compensatory for the annual revenue requirement, based on the the forecasted demand. There is no form to be filled out; therefore, this Schedule is not required to be filed.

Sheet List of Key References
A1: Cost of Service Applications – Key References
A3: The references listed below are key to interpreting these Filing Requirements.
A5: Report of the Board on Transition to International Financial Reporting Standards (EB-2008-0408) - July 28, 2009, outlined in section 2.3.5 below
A7: Addendum to Report of the Board EB-2008-0408 - Implementing International Financial Reporting Standards in an Incentive Rate Mechanism Environment - June 13, 2011
A9: The OEB’s Accounting Procedures Handbook (APH) and Uniform System of Accounts (USoA), any subsequent updates and Frequently Asked Questions
A11: Report of the Board on Electricity Distributors' Deferral and Variance Account Review Initiative (EDDVAR) - July 31, 2009
A13: Asset Depreciation Study for Use by Electricity Distributors (EB-2010-0178), (the Kinectrics Report), July 8, 2010
A15: Board letter of June 25, 2013, providing accounting policy changes for Accounts 1575 and 1576 effective in the 2014 cost of service rate application and subsequent rate years;
A17: Report of the Board - Performance Measurement for Electricity Distributors: A Scorecard Approach - March 5, 2014
A19: Report of the Board: Rate Setting Parameters and Benchmarking under the Renewed Regulatory Framework for Ontario's Electricity Distributors - corrected December 4, 2013
A21: Report of the Ontario Energy Board on Regulatory Treatment of Pension and Other Post-employment Benefits (OPEBs) Costs (EB-2015-0040), September 14, 2017
A23: Accounting Guidance related to Accounts 1588 RSVA Power, and 1589 RSVA Global Adjustment
A25: Capital Funding Options:
A26: Report of the Board: New Policy Options for the Funding of Capital Investments: The Advanced Capital Module (EB-2014-0219), September 18, 2014
A28: Report of the OEB: New Policy Options for the Funding of Capital Investments: Supplemental Report – January 22, 2016
A30: Cost of Capital:
A32: Report of the Board on the Cost of Capital for Ontario's Regulated Utilities - December 11, 2009 and any subsequent updates.
A34: OEB Staff Report on the Review of the Cost of Capital of Ontario’s Regulated Utilities (EB-2009-0084) and OEB Covering letter, January 14, 2016
A36: Green Energy:
A37: Framework for Determining the Direct Benefits Accruing to Customers of a Distributor under Ontario Regulation 330/09 (EB-2009-0349); Report of the Board June 18, 2010 (Revised and Re-issued March 28, 2013)
A39: Miscellaneous Rates and Charges:
A40: Report of the Ontario Energy Board on Wireline Pole Attachment Charges, March 22, 2018
A42: Accounting Guidance for Wireline Pole Attachment Charges and EB-2021-0302, Decision and Order, Wireline Pole Attachment Charge, December 16, 2021
A44: Regulatory Framework:
A45: Report of the Board: Renewed Regulatory Framework for Electricity Distributors: A Performance-Based Approach - October 18, 2012
A47: Handbook for Utility Rate Applications (the Rate Handbook), October 13, 2016
A49: Retail Transmission Rates:
A50: Guideline (G-2008-0001) on Retail Transmission Service Rates - October 22, 2008 (Revision 3.0 June 22, 2011 and any subsequent updates)
A53: Working Capital:
A54: Allowance for Working Capital for Electricity Distribution Rate Applications, June 3, 2015
A57: CDM Guidelines:
A58: Conservation and Demand Management Guidelines for Electricity Distributors, December 20, 2021

Sheet App.2-A_Requested_Approvals
G1: File Number: | H1: =EBNUMBER -> EB-2022-0044
G2: Exhibit: | H2: See Exhibit 1
G3: Tab: | H3: 3
G4: Schedule: | H4: 14
G5: Page: | H5: requested approvals
G7: Date: | H7: 2022-Oct-28
B9: Appendix 2-A
B10: List of Requested Approvals
B12: The distributor must fill out the following sheet with the complete list of specific approvals requested and relevant section(s) of the legislation must be provided. All approvals, including accounting orders (deferral and variance accounts) new rate classes, revised specific service charges or retail service charges which the applicant is seeking, must be separately identified, as well being clearly documented in the appropriate sections of the application.
B14: Additional requests may be added by copying and pasting blank input rows, as needed.
B16: If additional requests arise, or requested approvals are removed, during the processing of the application, the distributor should update this list.
B18: =CONCATENATE('LDC Info'!E14," is seeking the following approvals in this application:") -> Kingston Hydro Corporation is seeking the following approvals in this application:
B20: 1

Sheet App.2-AA_Capital Projects
K1: File Number: | L1: =EBNUMBER -> EB-2022-0044
K2: Exhibit: | L2: 2
K3: Tab: | L3: 4
K4: Schedule: | L4: 1
K5: Page: | L5: DSP 219-223
K7: Date: | L7: ='App.2-A_Requested_Approvals'!H7 -> 2022-Oct-28
A9: Appendix 2-AA
A10: Capital Projects Table
A13: Projects | B13: =C13-1 -> 2014 | C13: 2015 | D13: 2016 | E13: 2017 | F13: 2018 | G13: 2019 | H13: 2020 | I13: =BridgeYear - 1 -> 2021 | J13: =BridgeYear & CHAR(10) & "Bridge Year" -> 2022 Bridge Year | K13: =TestYear & CHAR(10) & "Test Year" -> 2023 Test Year
A14: Reporting Basis
A15: System Access
A16: Regulatory Meter Replacements/Seal Updates | D16: 240850 | E16: 327265 | F16: 223061 | G16: 307811 | H16: 361140 | I16: 162042 | J16: 414126 | K16: 375000
A17: New Development | D17: - | E17: - | F17: - | G17: - | H17: - | I17: - | J17: 300000 | K17: 300000
A18: New Transformers/Connections funded by Capital Contributions | D18: - | E18: - | F18: - | G18: - | H18: - | I18: - | J18: 150000 | K18: 150000
A19: 13.8kV voltage conversion | D19: - | E19: - | F19: - | G19: - | H19: - | I19: - | J19: - | K19: 120000
A20: Removal of Transformers containing PCBs | D20: - | E20: - | F20: - | G20: - | H20: - | I20: - | J20: 87500 | K20: 87500
A21: New 13.8kV Feeder From MS16 across CN on Rigney St to JCB | D21: - | E21: - | F21: - | G21: - | H21: - | I21: - | J21: 115000 | K21: -
A22: Williamsville new development 575 Princess St | D22: - | E22: - | F22: - | G22: - | H22: - | I22: - | J22: 78000 | K22: -
A23: UK-KHC-Binnington Crt-Cable Upgrade-SK4 to LBC106 | D23: - | E23: - | F23: - | G23: - | H23: - | I23: 86276 | J23: - | K23: -
A24: UK-KHC-Victoria Street-OH to UG Reconfig | D24: - | E24: - | F24: - | G24: - | H24: 100270 | I24: 65029 | J24: - | K24: -
A25: UK-KHC-Frontenac St-Pole Line Rebuild | D25: - | E25: - | F25: - | G25: - | H25: 142358 | I25: 56842 | J25: - | K25: -
A26: Services-Overhead & Undergrnd | D26: 96758 | E26: 113000 | F26: 105567 | G26: 77671 | H26: 49418 | I26: 42705 | J26: - | K26: -
A27: Elect Cap-40 Cliff Cres | D27: 74809 | E27: - | F27: - | G27: - | H27: 87205 | I27: 15356 | J27: - | K27: -
A28: UK-KHC-RNI Upgrades | D28: - | E28: - | F28: - | G28: 196355 | H28: - | I28: - | J28: - | K28: -
A29: ECap-Rigney St Pole Line | D29: 168210 | E29: - | F29: - | G29: - | H29: - | I29: - | J29: - | K29: -
A30: University Ave Rebuild | D30: 112926 | E30: - | F30: - | G30: - | H30: - | I30: - | J30: - | K30: -
A31: Sub-Total | B31: =SUM(B16:B30) -> 0 | C31: 0 | D31: 693553 | E31: 440265 | F31: 328628 | G31: 581837 | H31: 740391 | I31: 428250 | J31: 1144626 | K31: 1032500
A32: System Service
A33: Frontenac TS-MS1 Pilot Wire Upgrades (1M43 & 1M56 Protection) | D33: - | E33: - | F33: - | G33: - | H33: - | I33: - | J33: 140000 | K33: -
A34: UK-KHC-Leroy Grant Dr. - Pole Line Rebuild-Design&Inspect | D34: - | E34: - | F34: - | G34: - | H34: - | I34: 201349 | J34: - | K34: -
A35: UK-KHC-Leroy Grant Dr. - JCB to MS13-Design&Inspect | D35: - | E35: - | F35: - | G35: - | H35: - | I35: 147524 | J35: - | K35: -
A36: UK-KHC-MS16-New Feeder-Substation Work | D36: - | E36: - | F36: - | G36: 82669 | H36: - | I36: - | J36: - | K36: -
A37: UK-KHC-MS4 Transformer Upgrade-Design Inspection | D37: - | E37: - | F37: 403845 | G37: - | H37: - | I37: - | J37: - | K37: -
A38: Sub-Total | B38: =SUM(B33:B37) -> 0 | C38: =SUM(C33:C37) -> 0 | D38: =SUM(D33:D37) -> 0 | E38: =SUM(E33:E37) -> 0 | F38: =SUM(F33:F37) -> 403845 | G38: 82669 | H38: 0 | I38: 348873 | J38: 140000 | K38: 0
A39: General Plant
A40: UK-KHC-Vehicles & Vehicle Modifications | D40: 86243 | E40: 440994 | F40: 168349 | G40: 236624 | H40: - | I40: 206623 | J40: - | K40: 450000
A41: Non CIS systems (TTS, HRMS, etc.) | D41: - | E41: - | F41: - | G41: - | H41: - | I41: - | J41: 140000 | K41: 129000
A42: CIS/Work Management/Customer Engagement | D42: - | E42: - | F42: - | G42: - | H42: - | I42: - | J42: 46000 | K42: 92000
A43: UK-KHC-IS&T Expenditures from City | D43: - | E43: - | F43: - | G43: 85601 | H43: 66163 | I43: 109260 | J43: - | K43: -
A44: UK-KHC-CRM-Computer Software | D44: - | E44: 38993 | F44: 86543 | G44: 21801 | H44: 56732 | I44: 36044 | J44: - | K44: -
A45: Tools & Equipment | D45: 223147 | E45: 21062 | F45: 84314 | G45: 32207 | H45: 26219 | I45: 31311 | J45: - | K45: -
A46: FMS | D46: 75770 | E46: -49922 | F46: 18163 | G46: 17048 | H46: 801 | I46: 13134 | J46: - | K46: -
A47: Substation structures | D47: - | E47: - | F47: 18889 | G47: 143834 | H47: 8649 | I47: - | J47: - | K47: -
A48: UK-KHC-Outage Management System-Computer Software | D48: - | E48: - | F48: 75332 | G48: 14935 | H48: - | I48: - | J48: - | K48: -
A49: Sub-Total | B49: =SUM(B40:B48) -> 0 | C49: 0 | D49: 385160 | E49: 451127 | F49: 451590 | G49: 552050 | H49: 158564 | I49: 396372 | J49: 186000 | K49: 671000
A50: System Renewal
A51: Queen St - King St to Wellington St - Replace 5kV Ducts&Cables | D51: - | E51: - | F51: - | G51: - | H51: - | I51: - | J51: - | K51: 540000
A52: Princess st Reconstruction – Division to Alfred | D52: - | E52: - | F52: - | G52: - | H52: - | I52: - | J52: - | K52: 350000
A53: Annual Deteriorated Pole Replacement - spot replacements | D53: 1108368 | E53: 568031 | F53: 344179 | G53: 243443 | H53: 252540 | I53: 143871 | J53: 180000 | K53: 110000
A54: Bagot St - Upgrade 5kV distribution from MS8 to Russell St | D54: - | E54: - | F54: - | G54: - | H54: - | I54: - | J54: - | K54: 150000
A55: 44KV & 5KV pole replacement SJA from Union St towards Johnson | D55: - | E55: - | F55: - | G55: - | H55: - | I55: - | J55: - | K55: 100000
A56: MS5 Rebuild - Install New Transformer, control hut | D56: - | E56: - | F56: - | G56: - | H56: - | I56: - | J56: 560000 | K56: -
A57: MS6 Structural Rehabilitation and Roof Membrane | D57: - | E57: - | F57: - | G57: - | H57: - | I57: - | J57: 350000 | K57: -
A58: TV18 - Transformer Vault Upgrade | D58: - | E58: - | F58: - | G58: - | H58: - | I58: - | J58: 275000 | K58: -
A59: TV4 - Transformer Vault Upgrade | D59: - | E59: - | F59: - | G59: - | H59: - | I59: - | J59: 215000 | K59: -
A60: MS9 900 CCT - Overhead Rebuild of Barrie St -from King St to north of Court St | D60: - | E60: - | F60: - | G60: - | H60: - | I60: - | J60: 130000 | K60: -
A61: UK-KHC-Pole Replacement-CFB Kingston Hwy2-Design & Recon | D61: - | E61: - | F61: - | G61: 664 | H61: 17082 | I61: 128778 | J61: 115000 | K61: -
A62: MS2 Roof Replacement | D62: - | E62: - | F62: - | G62: - | H62: - | I62: - | J62: 80000 | K62: -
A63: Ruskin St - 1303 CCT 3-ph backyard pole line reconstruction, Possibly relocate Primary to front yard. | D63: - | E63: - | F63: - | G63: - | H63: - | I63: - | J63: 75000 | K63: -
A64: Substn MS1 Rebuild-Stage 3 | D64: 171973 | E64: 266911 | F64: 331911 | G64: 958515 | H64: 1627801 | I64: 1263386 | J64: - | K64: -
A65: UK-KHC-King St. W 608-609 Cable Replacement-Design&Recon | D65: - | E65: - | F65: - | G65: - | H65: - | I65: 408654 | J65: - | K65: -
A66: UK-KHC-TV3 Rebuild | D66: - | E66: - | F66: - | G66: - | H66: 609 | I66: 231065 | J66: - | K66: -
A67: UK-KHC-MS2-203 CCT-PILC Cable Replacement-Design&Recon | D67: - | E67: - | F67: - | G67: - | H67: - | I67: 164720 | J67: - | K67: -
A68: Transformer Installations | D68: 56671 | E68: 154526 | F68: 103346 | G68: 196543 | H68: 142819 | I68: 145681 | J68: - | K68: -
A69: UK-KHC-EM36 Rebuild - King St W at Beverley St-Design&Inspec | D69: - | E69: - | F69: - | G69: - | H69: - | I69: 140520 | J69: - | K69: -
A70: UK-KHC-Pole Replacement-Railway St-Design&Inspect | D70: - | E70: - | F70: - | G70: - | H70: - | I70: 133209 | J70: - | K70: -
A71: UK-KHC-Weller Ave-Pole Replacement-Montreal to Baker-P&F | D71: - | E71: - | F71: - | G71: - | H71: - | I71: 82735 | J71: - | K71: -
A72: UK-KHC-Pole Line-MacDonnell-207 CCT | D72: - | E72: - | F72: - | G72: - | H72: 212890 | I72: 76936 | J72: - | K72: -
A73: UK-KHC-Pole Replacement-Bath Rd Gren to Arm | D73: - | E73: - | F73: - | G73: - | H73: 147340 | I73: 71929 | J73: - | K73: -
A74: UK-KHC-Johnson Backyard Poles-Design | D74: - | E74: - | F74: - | G74: 1151 | H74: 88378 | I74: 20783 | J74: - | K74: -
A75: UK-KHC-Pole Replacement MS16 & 17-Dalton Ave | D75: - | E75: - | F75: - | G75: - | H75: 190064 | I75: 1843 | J75: - | K75: -
A76: UK-KHC-MS#4 5KV Switchgear Replacement Design-Design | D76: - | E76: - | F76: 12457 | G76: 859780 | H76: 106349 | I76: - | J76: - | K76: -
A77: UK-KHC-Pole Replacement-Patrick & Railway-Design & Recon | D77: - | E77: - | F77: 1591 | G77: 158677 | H77: 6329 | I77: - | J77: - | K77: -
A78: UK-KHC-Pole Replacement-Russel & Patrick-Design & Insp | D78: - | E78: - | F78: 35040 | G78: 130078 | H78: 1873 | I78: - | J78: - | K78: -
A79: UK-KHC-Pole Replacement-Victoria, Mack to Princess-Design | D79: - | E79: - | F79: 1360 | G79: 169412 | H79: - | I79: - | J79: - | K79: -
A80: UK-KHC-Pole Replacement-Francis & Churchill | D80: - | E80: - | F80: 29381 | G80: 142597 | H80: - | I80: - | J80: - | K80: -
A81: UK-KHC-TV85(TV38 Replacement)-Dsg/Insp/Adv | D81: - | E81: - | F81: 315490 | G81: 134095 | H81: - | I81: - | J81: - | K81: -
A82: Princess St Recon Phase 3 | D82: 1902032 | E82: - | F82: - | G82: 37296 | H82: - | I82: - | J82: - | K82: -
A83: UK-KHC-Barriefield,Regent & Drummond-Tx | D83: - | E83: 225913 | F83: 19289 | G83: 22327 | H83: - | I83: - | J83: - | K83: -
A84: UK-KHC-Princess St Reconstruction Phase 4-Design & Recon | D84: - | E84: 68077 | F84: 1208066 | G84: - | H84: - | I84: - | J84: - | K84: -
A85: UK-KHC-Bagot & Cataraqui Pole Line- OHD Line | D85: - | E85: 14273 | F85: 337760 | G85: - | H85: - | I85: - | J85: - | K85: -
A86: UK-KHC-Pole Replacement - McMichael St | D86: - | E86: 163 | F86: 197761 | G86: - | H86: - | I86: - | J86: - | K86: -
A87: UK-KHC-Pole Replacement-Victoria-Johnson to Union-Design&Ins | D87: - | E87: - | F87: 111858 | G87: - | H87: - | I87: - | J87: - | K87: -
A88: UK-KHC-MS#12-Design Inspection | D88: - | E88: 4953 | F88: 78886 | G88: - | H88: - | I88: - | J88: - | K88: -
A89: UK-KHC-TV29 Oil Switch & 2ndry Breaker | D89: - | E89: 210902 | F89: 58011 | G89: - | H89: - | I89: - | J89: - | K89: -
A90: CAP-Division-Hamilton-Colborne | D90: 67392 | E90: 154618 | F90: 26776 | G90: - | H90: - | I90: - | J90: - | K90: -
A91: ECAP-Division-York-Chatham | D91: 42404 | E91: 270938 | F91: 19700 | G91: - | H91: - | I91: - | J91: - | K91: -
A92: ECAP-Division-Adelaide-Stanley | D92: 62904 | E92: 347841 | F92: 12365 | G92: - | H92: - | I92: - | J92: - | K92: -
A93: Duct Work Princess - Mac & Vic | D93: 426827 | E93: 202038 | F93: 1113 | G93: - | H93: - | I93: - | J93: - | K93: -
A94: UK-KHC-Durham St Pole Line- OHD Line | D94: - | E94: 126490 | F94: 94 | G94: - | H94: - | I94: - | J94: - | K94: -
A95: Pole Iine-Wellington, Barrack | D95: 67331 | E95: 117505 | F95: - | G95: - | H95: - | I95: - | J95: - | K95: -
A96: Pole Line-Hickson Ave | D96: 132269 | E96: 108520 | F96: - | G96: - | H96: - | I96: - | J96: - | K96: -
A97: Drayton Ave Pole Line Reconst | D97: 18593 | E97: 88867 | F97: - | G97: - | H97: - | I97: - | J97: - | K97: -
A98: Grosvenor Court-Pole Replace | D98: 41741 | E98: 71385 | F98: - | G98: - | H98: - | I98: - | J98: - | K98: -
A99: Assoro Cr and Sicily Drive | D99: 135498 | E99: - | F99: - | G99: - | H99: - | I99: - | J99: - | K99: -
A100: Portsmouth Ave-Howard to Valle | D100: 117561 | E100: - | F100: - | G100: - | H100: - | I100: - | J100: - | K100: -
A101: Roof Replacem SubStation MS#1 | D101: 115930 | E101: - | F101: - | G101: - | H101: - | I101: - | J101: - | K101: -
A102: TV37-Princess at Drayton | D102: 100837 | E102: - | F102: - | G102: - | H102: - | I102: - | J102: - | K102: -
A103: Transformers - unallocated | D103: 160397 | E103: -76320 | F103: 110899 | G103: 93515 | H103: -16576 | I103: -71961 | J103: - | K103: -
A104: Robert Wallace Mackenzie Campb | D104: 73290 | E104: - | F104: - | G104: - | H104: - | I104: - | J104: - | K104: -
A105: Sub-Total | B105: =SUM(B51:B104) -> 0 | C105: 0 | D105: 4802018 | E105: 2925631 | F105: 3357333 | G105: 3148093 | H105: 2777498 | I105: 2942149 | J105: 1980000 | K105: 1250000
A106: Miscellaneous | D106: 188410 | E106: 366410 | F106: 533226 | G106: 461210 | H106: 385075 | I106: 544202 | J106: 546000 | K106: 406000
A107: Total | B107: =SUMPRODUCT(--($A15:$A106="Sub-Total"), B$15:B$106)+B106 -> 0 | C107: 0 | D107: 6069141 | E107: 4183433 | F107: 5074622 | G107: 4825859 | H107: 4061528 | I107: 4659846 | J107: 3996626 | K107: 3359500
A108: Less Renewable Generation Facility Assets and Other Non-Rate-Regulated Utility Assets (input as negative)
A109: Total | B109: =B107+B108 -> 0 | C109: =C107+C108 -> 0 | D109: =D107+D108 -> 6069141 | E109: =E107+E108 -> 4183433 | F109: =F107+F108 -> 5074622 | G109: 4825859 | H109: 4061528 | I109: 4659846 | J109: 3996626 | K109: 3359500
A111: Notes:
A113: 1 Please provide a breakdown of the major components of each capital project undertaken in each year. Please ensure that all projects below the materiality threshold are included in the miscellaneous line. Add more projects as required.
A114: 2 The applicant should group projects appropriately and avoid presentations that result in classification of significant components of the capital budget in the miscellaneous category.

Sheet App.2-AB_Capital Expenditures
AE1: File Number: | AG1: =EBNUMBER -> EB-2022-0044
AE2: Exhibit: | AG2: 2
AE3: Tab: | AG3: 4
AE4: Schedule: | AG4: 1
A5: TO BE UPDATED AT THE DRAFT RATE ORDER STAGE | AE5: Page: | AG5: DSP 191, 204
AE7: Date: | AG7: ='App.2-A_Requested_Approvals'!H7 -> 2022-Oct-28
A9: Appendix 2-AB
A10: Table 2 - Capital Expenditure Summary from Chapter 5 Consolidated Distribution System Plan Filing Requirements
A11: First year of Forecast Period:
A12: =TestYear -> 2023
A13: CATEGORY | B13: Historical Period (previous plan1 & actual) | AC13: Forecast Period (planned)
B14: =E14-1 -> 2014 | E14: =H14-1 -> 2015 | H14: =K14-1 -> 2016 | K14: =N14-1 -> 2017 | N14: =Q14-1 -> 2018 | Q14: =T14-1 -> 2019 | T14: =W14-1 -> 2020 | W14: =Z14-1 -> 2021 | Z14: =AC14-1 -> 2022 | AC14: =A12 -> 2023 | AD14: =AC14+1 -> 2024 | AE14: =AD14+1 -> 2025 | AF14: =AE14+1 -> 2026 | AG14: =AF14+1 -> 2027
B15: Plan | C15: Actual | D15: Var | E15: Plan | F15: Actual | G15: Var | H15: Plan | I15: Actual | J15: Var | K15: Plan | L15: Actual | M15: Var | N15: Plan | O15: Actual | P15: Var | Q15: Plan | R15: Actual | S15: Var | T15: Plan | U15: Actual | V15: Var | W15: Plan | X15: Actual | Y15: Var | Z15: Plan | AA15: Actual2 | AB15: Var
B16: $ '000 | D16: % | E16: $ '000 | G16: % | H16: $ '000 | J16: % | K16: $ '000 | M16: % | N16: $ '000 | P16: % | Q16: $ '000 | S16: % | T16: $ '000 | V16: % | W16: $ '000 | Y16: % | Z16: $ '000 | AB16: % | AC16: $ '000
A17: System Access | D17: =IF(ISERROR((C17-B17)/B17),"--",(C17-B17)/B17) -> -- | G17: =IF(ISERROR((F17-E17)/E17),"--",(F17-E17)/E17) -> -- | H17: 494.7987752 | I17: 750.002 | J17: =IF(ISERROR((I17-H17)/H17),"--",(I17-H17)/H17) -> 0.5157717391 | K17: 414.6605956 | L17: 576.33797 | M17: =IF(ISERROR((L17-K17)/K17),"--",(L17-K17)/K17) -> 0.3899029136 | N17: 582.8531272 | O17: 339 | P17: =IF(ISERROR((O17-N17)/N17),"--",(O17-N17)/N17) -> -0.4183783458 | Q17: 395.1428571 | R17: 589.73321 | S17: =IF(ISERROR((R17-Q17)/Q17),"--",(R17-Q17)/Q17) -> 0.4924557014 | T17: 364.238 | U17: 751.4916 | V17: =IF(ISERROR((U17-T17)/T17),"--",(U17-T17)/T17) -> 1.063188355 | W17: 833.388 | X17: 700.26103 | Y17: =IF(ISERROR((X17-W17)/W17),"--",(X17-W17)/W17) -> -0.1597418849 | Z17: 1194.626 | AA17: 114.34014 | AB17: =IF(ISERROR((AA17-Z17)/Z17),"--",(AA17-Z17)/Z17) -> -0.9042879194 | AC17: 1082.5 | AD17: 1287.5 | AE17: 1252.5 | AF17: 1100 | AG17: 1125
A18: System Renewal | D18: =IF(ISERROR((C18-B18)/B18),"--",(C18-B18)/B18) -> -- | G18: =IF(ISERROR((F18-E18)/E18),"--",(F18-E18)/E18) -> -- | H18: 4041.173843 | I18: 4738.15939 | J18: =IF(ISERROR((I18-H18)/H18),"--",(I18-H18)/H18) -> 0.1724710626 | K18: 2102.785727 | L18: 6726.2632 | M18: =IF(ISERROR((L18-K18)/K18),"--",(L18-K18)/K18) -> 2.198739232 | N18: 3098.165847 | O18: 3931 | P18: =IF(ISERROR((O18-N18)/N18),"--",(O18-N18)/N18) -> 0.2688152263 | Q18: 3312.285 | R18: 3437.92706 | S18: =IF(ISERROR((R18-Q18)/Q18),"--",(R18-Q18)/Q18) -> 0.0379321405 | T18: 3054.209964 | U18: 3222.59648 | V18: =IF(ISERROR((U18-T18)/T18),"--",(U18-T18)/T18) -> 0.05513259327 | W18: 3457 | X18: 3192.0854 | Y18: =IF(ISERROR((X18-W18)/W18),"--",(X18-W18)/W18) -> -0.07663135667 | Z18: 2257.5 | AA18: 311.50091 | AB18: =IF(ISERROR((AA18-Z18)/Z18),"--",(AA18-Z18)/Z18) -> -0.8620151008 | AC18: =1420 -> 1420 | AD18: 1380 | AE18: 1540 | AF18: 1325 | AG18: 1685
A19: System Service | D19: -- | G19: -- | H19: 19.03072212 | I19: 15.85074 | J19: -0.1670972916 | K19: 76.08451296 | L19: 69.07553 | M19: -0.0921210202 | N19: 200.983837 | O19: 462 | P19: 1.298692308 | Q19: 19.75714286 | R19: 112.85124 | S19: 4.711921041 | T19: 185.8357143 | U19: 25.04 | V19: -0.8652573317 | W19: 15 | X19: 379.94695 | Y19: 24.32979667 | Z19: 247.5 | AA19: 37.0738 | AB19: -0.8502068687 | AC19: 75 | AD19: 200 | AE19: 75 | AF19: 357 | AG19: 80
A20: General Plant | D20: -- | G20: -- | H20: 821.1756596 | I20: 330.53117 | J20: -0.5974902981 | K20: 306.2401646 | L20: 800.35208 | M20: 1.61347848 | N20: 407.997189 | O20: 556 | P20: 0.3627544869 | Q20: 421.815 | R20: 603.84757 | S20: 0.4315459858 | T20: 298.2663214 | U20: 168.42268 | V20: -0.4353278667 | W20: 707 | X20: 466.91765 | Y20: -0.3395789958 | Z20: 297 | AA20: 3.20551 | AB20: -0.989207037 | AC20: 782 | AD20: 717 | AE20: 434.5 | AF20: 456 | AG20: 433.75
A21: TOTAL EXPENDITURE | B21: =SUM(B17:B20) -> 0 | C21: =SUM(C17:C20) -> 0 | D21: -- | E21: =SUM(E17:E20) -> 0 | F21: =SUM(F17:F20) -> 0 | G21: -- | H21: =SUM(H17:H20) -> 5376.179 | I21: =SUM(I17:I20) -> 5834.5433 | J21: 0.08525837774 | K21: =SUM(K17:K20) -> 2899.771 | L21: =SUM(L17:L20) -> 8172.02878 | M21: 1.818163496 | N21: =SUM(N17:N20) -> 4290 | O21: =SUM(O17:O20) -> 5288 | P21: 0.2326340326 | Q21: 4149 | R21: 4744.35908 | S21: 0.1434945963 | T21: 3902.55 | U21: 4167.55076 | V21: 0.06790451372 | W21: 5012.388 | X21: 4739.21103 | Y21: -0.0545003639 | Z21: 3996.626 | AA21: 466.12036 | AB21: -0.8833715339 | AC21: 3359.5 | AD21: 3584.5 | AE21: 3302 | AF21: 3238 | AG21: =SUM(AG17:AG20) -> 3323.75
A22: Capital Contributions | D22: -- | G22: -- | H22: 0 | I22: 592.673 | J22: -- | K22: 0 | L22: 4742.51515 | M22: -- | N22: 0 | O22: 251.769 | P22: -- | Q22: 0 | R22: 217.20975 | S22: -- | T22: 0 | U22: 246.76695 | V22: -- | W22: 0 | X22: 133 | Y22: -- | Z22: 200 | AA22: 117.11367 | AB22: -0.41443165 | AC22: 270 | AD22: 200 | AE22: 200 | AF22: 200 | AG22: 200
A23: Net Capital Expenditures | D23: -- | G23: -- | H23: 5376.179 | I23: 5241.8703 | J23: -0.0249821853 | K23: 2899.771 | L23: 3429.51363 | M23: 0.1826842982 | N23: 4290 | O23: 5037 | P23: 0.1741258741 | Q23: 4149 | R23: 4527.14933 | S23: 0.09114228248 | T23: 3902.55 | U23: 3920.78381 | V23: 0.004672280945 | W23: 5012.388 | X23: 4606 | Y23: -0.08107672431 | Z23: 3796.626 | AA23: 349.00669 | AB23: -0.9080745141 | AC23: 3089.5 | AD23: 3385 | AE23: 3102 | AF23: 3038 | AG23: 3123.75
A24: System O&M | C24: =IFERROR(VLOOKUP('LDC Info'!$E$14 & " Total",'2.1.7 - System OM (2-AB)'!$A:$L,C26,FALSE),) -> 3051336 | D24: -- | F24: =IFERROR(VLOOKUP('LDC Info'!$E$14 & " Total",'2.1.7 - System OM (2-AB)'!$A:$L,F26,FALSE),) -> 3249478 | G24: -- | H24: 3215.36144 | I24: =IFERROR(VLOOKUP('LDC Info'!$E$14 & " Total",'2.1.7 - System OM (2-AB)'!$A:$L,I26,FALSE)/1000,) -> 3614.994 | J24: 0.1242885341 | K24: 3212.04709 | L24: =IFERROR(VLOOKUP('LDC Info'!$E$14 & " Total",'2.1.7 - System OM (2-AB)'!$A:$L,L26,FALSE)/1000,) -> 3364.657 | M24: 0.04751172873 | N24: 3357.25538 | O24: =IFERROR(VLOOKUP('LDC Info'!$E$14 & " Total",'2.1.7 - System OM (2-AB)'!$A:$L,O26,FALSE)/1000,) -> 3912.288 | P24: 0.1653233243 | Q24: 3352.70576 | R24: =IFERROR(VLOOKUP('LDC Info'!$E$14 & " Total",'2.1.7 - System OM (2-AB)'!$A:$L,R26,FALSE)/1000,) -> 3468.92968 | S24: 0.03466570833 | T24: 3448.98638 | U24: =IFERROR(VLOOKUP('LDC Info'!$E$14 & " Total",'2.1.7 - System OM (2-AB)'!$A:$L,U26,FALSE)/1000,) -> 3508.1079 | V24: 0.01714170875 | W24: 3483.92934 | X24: 3466.60705 | Y24: -0.00497205549 | Z24: 3580.01451 | AA24: 1200.65012 | AB24: -0.6646242308 | AC24: 3688.62768 | AD24: 3762.400234 | AE24: 3837.648238 | AF24: 3914.401203 | AG24: 3992.689227
A28: Notes to the Table:
A29: 1. Historical “previous plan” data is not required unless a plan has previously been filed. However, use the last OEB-approved, at least on a Total (Capital) Expenditure basis for the last cost of service rebasing year, and the applicant should include their planned budget in each subsequent historical year up to and including the Bridge Year.
A30: 2. Indicate the number of months of 'actual' data included in the last year of the Historical Period (normally a 'bridge' year):
A32: 3. System O&M contains the following accounts: 5005, 5010, 5012, 5014, 5015, 5016, 5017, 5020, 5025, 5030, 5035, 5040, 5045, 5050, 5055, 5060, 5065, 5070, 5075, 5085, 5090, 5095, 5096, 5105, 5110, 5112, 5114, 5120, 5125, 5130, 5135, 5145, 5150, 5155, 5160, 5165, 5170, 5172, 5175, 5178, 5195
A35: Explanatory Notes on Variances (complete only if applicable)
A36: Notes on shifts in forecast vs. historical budgets by category
A39: Notes on year over year Plan vs. Actual variances for Total Expenditures
A42: Notes on Plan vs. Actual variance trends for individual expenditure categories

Sheet 2.1.7 - System OM (2-AB) (hidden)
A1: Company Name (Merged or Current) | B1: Company Name | C1: Account Number | D1: Account Description | E1: 2013 | F1: 2014 | G1: 2015 | H1: 2016 | I1: 2017 | J1: 2018 | K1: 2019 | L1: 2020
A2: Alectra Utilities Corporation Total | E2: 97570295.53 | F2: 101496871.2 | G2: 104411832 | H2: 107952313 | I2: 89629193.15 | J2: 95478329.67 | K2: 117288658.9 | L2: 110899324.1
A3: Algoma Power Inc. Total | E3: 5775463.08 | F3: 5690960.61 | G3: 6296428.09 | H3: 6361486.58 | I3: 6715383.01 | J3: 6711639.9 | K3: 6624444.88 | L3: 7077818.21
A4: Atikokan Hydro Inc. Total | E4: 366451.33 | F4: 312495.42 | G4: 435572.93 | H4: 492459.13 | I4: 544224.56 | J4: 506484.62 | K4: 495431.71 | L4: 516780.61
A5: Bluewater Power Distribution Corporation Total | E5: 3696814 | F5: 3717730 | G5: 3971687 | H5: 3997115.24 | I5: 4113437.7 | J5: 4620985 | K5: 4151739 | L5: 4137002
A6: Brantford Power Inc. Total | E6: 3343071.28 | F6: 3237714.47 | G6: 3117227.09 | H6: 3500829.46 | I6: 3088031.52 | J6: 3238908.55 | K6: 3594030.74 | L6: 3533358.98
A7: Burlington Hydro Inc. Total | E7: 8902472.75 | F7: 8729582.93 | G7: 9021616.72 | H7: 9336893.35 | I7: 9060748.82 | J7: 9395430.23 | K7: 9532931.43 | L7: 10303885.61
A8: Canadian Niagara Power Inc. Total | E8: 3472965.59 | F8: 3620493.3 | G8: 3615555.81 | H8: 3595819.84 | I8: 3927407.43 | J8: 3966534.67 | K8: 3979884.47 | L8: 4215659.17
A9: Centre Wellington Hydro Ltd. Total | E9: 591288.295 | F9: 576794.08 | G9: 633071.19 | H9: 666954.78 | I9: 746061.06 | J9: 771841.02 | K9: 850992.88 | L9: 776992.56
A10: Chapleau Public Utilities Corporation Total | E10: 220412.01 | F10: 223210.54 | G10: 208239.31 | H10: 236332.09 | I10: 237909.06 | J10: 169802 | K10: 181339.38 | L10: 212012.46
A11: Cooperative Hydro Embrun Inc. Total | E11: 56969.14 | F11: 73505.84 | G11: 66014.49 | H11: 80431.59 | I11: 80388.7 | J11: 89782.19 | K11: 82775.02 | L11: 111374.44
A12: Cornwall Street Railway Light and Power Company Limited Total | L12: 0
A13: E.L.K. Energy Inc. Total | E13: 725312.83 | F13: 806466.17 | G13: 1202296.02 | H13: 931334.11 | I13: 910677.57 | J13: 969521.92 | K13: 1085808.67 | L13: 863699.02
A14: ENWIN Utilities Ltd. Total | E14: 3994760.8 | F14: 4164019.26 | G14: 4114704.375 | H14: 4474411.25 | I14: 9757094.91 | J14: 9686100.4 | K14: 9605275.14 | L14: 11400256.41
A15: EPCOR Electricity Distribution Ontario Inc. Total | E15: 2053457.35 | F15: 2169112.56 | G15: 2388712.47 | H15: 2482131.14 | I15: 2189893.99 | J15: 2310043.22 | K15: 2258487.07 | L15: 2785865.35
A16: ERTH Power Corporation Total | E16: 1234927.8 | F16: 1163108.11 | G16: 979158.17 | H16: 812005.58 | I16: 1697315.55 | J16: 1947733.37 | K16: 2275237.48 | L16: 2624743
A17: Elexicon Energy Inc. Total | E17: 13252810.68 | F17: 13800626.87 | G17: 14465052.63 | H17: 14985526.24 | I17: 15025340.34 | J17: 15969678.61 | K17: 12110521.81 | L17: 14261716.02
A18: Energy Plus Inc. Total | E18: 5947608.49 | F18: 5857482.74 | G18: 5635904.92 | H18: 5605598.37 | I18: 5746681.36 | J18: 6167980.73 | K18: 6171424.85 | L18: 6730820.21
A19: Entegrus Powerlines Inc. Total | E19: 3573060.97 | F19: 3746558.81 | G19: 4194533.34 | H19: 4157748.93 | I19: 3630462.78 | J19: 4040132.68 | K19: 4340665.98 | L19: 3963185.54
A20: Espanola Regional Hydro Distribution Corporation Total | E20: 585983.12 | F20: 542473.74 | G20: 553741.73 | H20: 647082.63 | I20: 585991.25 | J20: 641112.71 | K20: 720985.94 | L20: 715364.31
A21: Essex Powerlines Corporation Total | E21: 2263874.76 | F21: 2573945.51 | G21: 2768874.17 | H21: 2489996.053 | I21: 2297987.43 | J21: 2500110.42 | K21: 2636905.6 | L21: 2647175.83
A22: Festival Hydro Inc. Total | E22: 2028047.33 | F22: 2151888.49 | G22: 2195604.55 | H22: 2133070.47 | I22: 2268785.21 | J22: 2602004.96 | K22: 2407611.29 | L22: 2569301.05
A23: Fort Frances Power Corporation Total | E23: 421113.83 | F23: 502550.76 | G23: 724619.32 | H23: 822112.82 | I23: 742097.25 | J23: 704339.32 | K23: 765050.08 | L23: 712923.88
A24: Greater Sudbury Hydro Inc. Total | E24: 7871323.78 | F24: 7251196.42 | G24: 8005776.26 | H24: 8116436.99 | I24: 8598531.58 | J24: 7912948.17 | K24: 8121039.35 | L24: 8340432.53
A25: Grimsby Power Incorporated Total | E25: 1042506.12 | F25: 1030993.27 | G25: 1154762.71 | H25: 1447522.47 | I25: 1298393.45 | J25: 1501500.12 | K25: 1471853.74 | L25: 1583698.16
A26: Halton Hills Hydro Inc. Total | E26: 1543014 | F26: 1406841 | G26: 1742209.79 | H26: 1904895.51 | I26: 1705773 | J26: 1635677.89 | K26: 1569890.45 | L26: 1656917.78
A27: Hearst Power Distribution Company Limited Total | E27: 473027.42 | F27: 469167.86 | G27: 597852.82 | H27: 411467.06 | I27: 438157.26 | J27: 482949.79 | K27: 474760 | L27: 446038.28
A28: Hydro 2000 Inc. Total | E28: 24135.81 | F28: 13917.88 | G28: 47279.3 | H28: 42454.07 | I28: 79107.33 | J28: 44938.36 | K28: 41542.71 | L28: 59793.98
A29: Hydro Hawkesbury Inc. Total | E29: 302571.24 | F29: 232855.01 | G29: 235939.54 | H29: 236870.72 | I29: 321677.44 | J29: 260393.57 | K29: 176254.78 | L29: 280643.81
A30: Hydro One Networks Inc. Total | E30: 367973011.7 | F30: 385393076.2 | G30: 322237850.6 | H30: 347125851.5 | I30: 317508746 | J30: 333665382.2 | K30: 361610301.8 | L30: 336646566
A31: Hydro One Remote Communities Inc. Total | E31: 1462853.08 | F31: 1878283.1 | G31: 2413779.2 | H31: 1990434.89 | I31: 1626460.34 | J31: 1757441.68 | K31: 2077279.8 | L31: 3075534.47
A32: Hydro Ottawa Limited Total | E32: 25218976.28 | F32: 27308186.58 | G32: 26859658.68 | H32: 28055171.53 | I32: 29071625.6 | J32: 30002532.18 | K32: 28556152.02 | L32: 31765228.94
A33: Innpower Corporation Total | E33: 1787149.81 | F33: 1814455.44 | G33: 1805094.2 | H33: 2083333.27 | I33: 2216885.66 | J33: 2049829.52 | K33: 1966463.89 | L33: 1866971.04
A34: Kingston Hydro Corporation Total | E34: 3888079 | F34: 3051336 | G34: 3249478 | H34: 3614994 | I34: 3364657 | J34: 3912288 | K34: 3468929.68 | L34: 3508107.9
A35: Kitchener-Wilmot Hydro Inc. Total | E35: 10485191.59 | F35: 10116642 | G35: 9320191.89 | H35: 9498132.84 | I35: 10624622.39 | J35: 11810578.74 | K35: 11711588.81 | L35: 11590508.53
A36: Lakefront Utilities Inc. Total | E36: 897562.02 | F36: 815731.64 | G36: 683339.98 | H36: 821235.03 | I36: 835476.57 | J36: 990592.35 | K36: 985681.15 | L36: 1057286.62
A37: Lakeland Power Distribution Ltd. Total | E37: 1096357.34 | F37: 1688882.15 | G37: 1655886.65 | H37: 1632510.16 | I37: 1671419.55 | J37: 1878921.36 | K37: 1710654.52 | L37: 2131993.03
A38: London Hydro Inc. Total | E38: 15326455.93 | F38: 15425858.55 | G38: 16722869.7 | H38: 17075155.84 | I38: 17979761.27 | J38: 19229587.7 | K38: 19145421.16 | L38: 19705430.82
A39: Milton Hydro Distribution Inc. Total | E39: 3550969 | F39: 3001625 | G39: 3710175 | H39: 3797345 | I39: 3334905 | J39: 3772972 | K39: 3973401 | L39: 3880811
A40: Newmarket-Tay Power Distribution Ltd. Total | E40: 3510166.95 | F40: 3938538.44 | G40: 3660833.8 | H40: 4049399 | I40: 3947547.82 | J40: 3719744.78 | K40: 4485338.62 | L40: 4070082.21
A41: Niagara Peninsula Energy Inc. Total | E41: 6280725.45 | F41: 6720234.13 | G41: 6656262.7 | H41: 6614440.13 | I41: 7392390.41 | J41: 7047399.38 | K41: 7664250.6 | L41: 7726004.34
A42: Niagara-on-the-Lake Hydro Inc. Total | E42: 982932.11 | F42: 903658.46 | G42: 1000117.9 | H42: 1130568.07 | I42: 1088603.86 | J42: 1095545.67 | K42: 1144745.57 | L42: 1127523.96
A43: North Bay Hydro Distribution Limited Total | E43: 2162247.31 | F43: 2267196.16 | G43: 2368931.38 | H43: 2499939.37 | I43: 2369875.09 | J43: 2297927.74 | K43: 2755008.47 | L43: 2867200.491
A44: Northern Ontario Wires Inc. Total | E44: 1144527.64 | F44: 1144807.25 | G44: 1035203.95 | H44: 1118643.06 | I44: 1229818.44 | J44: 1379185.34 | K44: 1415941.43 | L44: 1491667.33
A45: Oakville Hydro Electricity Distribution Inc. Total | E45: 10454323.58 | F45: 9570865.64 | G45: 9822840.23 | H45: 9249370.27 | I45: 9317939.57 | J45: 9504885.77 | K45: 8686684 | L45: 9486293.94
A46: Orangeville Hydro Limited Total | E46: 1023020.03 | F46: 919266.47 | G46: 961518.22 | H46: 907298.71 | I46: 989431.14 | J46: 754877.76 | K46: 958990.97 | L46: 807988.36
A47: Oshawa PUC Networks Inc. Total | E47: 2233111.72 | F47: 2471148 | G47: 2796639.57 | H47: 3017329.08 | I47: 2724865.49 | J47: 3154342 | K47: 3014863 | L47: 2224458.96
A48: Ottawa River Power Corporation Total | E48: 1436420.42 | F48: 1296794.46 | G48: 1207295.13 | H48: 1243809.8 | I48: 1257805.47 | J48: 984635.65 | K48: 1158894.5 | L48: 1286976.37
A49: PUC Distribution Inc. Total | E49: 5948286.69 | F49: 5734787.1 | G49: 5936642.52 | H49: 5927489.83 | I49: 5865377.85 | J49: 5961063.64 | K49: 6291431.78 | L49: 6421329.41
A50: Parry Sound Power Corporation Total | E50: 436000.06
A51: Renfrew Hydro Inc. Total | E51: 418497.32 | F51: 462926.31 | G51: 482537.48 | H51: 453475.02 | I51: 393487.87 | J51: 466864.74 | K51: 422555.38 | L51: 453049.14
A52: Rideau St. Lawrence Distribution Inc. Total | E52: 615417.74 | F52: 579818.08 | G52: 682766.81 | H52: 677541.35 | I52: 814158.61 | J52: 752902.12 | K52: 805811.44 | L52: 741972.73
A53: Sioux Lookout Hydro Inc. Total | E53: 750205.98 | F53: 772525.51 | G53: 686231.39 | H53: 769028.69 | I53: 747312.05 | J53: 703013.16 | K53: 720400.13 | L53: 730095.43
A54: Synergy North Corporation Total | E54: 7411515.09 | F54: 7982893.28 | G54: 8310795.59 | H54: 9094943.55 | I54: 8788122.38 | J54: 9145985.71 | K54: 8883652.64 | L54: 8319679.67
A55: Tillsonburg Hydro Inc. Total | E55: 1358136.97 | F55: 1018714.56 | G55: 789105.99 | H55: 677226.09 | I55: 682686.75 | J55: 958038.81 | K55: 854900.77 | L55: 858668.33
A56: Toronto Hydro-Electric System Limited Total | E56: 126359838.5 | F56: 112536365 | G56: 115678008.8 | H56: 119959240 | I56: 119309588.1 | J56: 131699815.2 | K56: 112023971.9 | L56: 117104150.9
A57: Wasaga Distribution Inc. Total | E57: 776445 | F57: 776677.85 | G57: 774936 | H57: 830351.39 | I57: 842686.77 | J57: 889170.51 | K57: 893726.47 | L57: 766222.38
A58: Waterloo North Hydro Inc. Total | E58: 7406564 | F58: 8092236 | G58: 7830452 | H58: 7362820 | I58: 7558307 | J58: 7985118 | K58: 7766704 | L58: 7372703
A59: Welland Hydro-Electric System Corp. Total | E59: 2886152.46 | F59: 2926723.52 | G59: 3154558 | H59: 3276681.16 | I59: 3378582.84 | J59: 3397712.74 | K59: 3600836.72 | L59: 3520178.91
A60: Wellington North Power Inc. Total | E60: 587973.76 | F60: 567949.1 | G60: 612203.41 | H60: 661117 | I60: 666581.56 | J60: 637798.22 | K60: 621325.46 | L60: 623748.56
A61: Westario Power Inc. Total | E61: 2150390 | F61: 1853021 | G61: 1662955 | H61: 2111080 | I61: 2299662 | J61: 1949372.05 | K61: 2135074.04 | L61: 2255004.2

Sheet Hidden_CAPEX (hidden)
A1: Utility Name | B1: EB Number | C1: Test Year | D1: Bridge Year | E1: Last Rebasing Year | F1: Category | G1: Year | H1: Plan | I1: Actual
A2: ='LDC Info'!$E$14 -> Kingston Hydro Corporation | B2: =EBNUMBER -> EB-2022-0044 | C2: =TestYear -> 2023 | D2: =BridgeYear -> 2022 | E2: =RebaseYear -> 2016 | F2: System Access | G2: ='App.2-AB_Capital Expenditures'!B14 -> 2014 | H2: ='App.2-AB_Capital Expenditures'!B17 -> 0 | I2: ='App.2-AB_Capital Expenditures'!C17 -> 0
A3: ='LDC Info'!$E$14 -> Kingston Hydro Corporation | B3: EB-2022-0044 | C3: 2023 | D3: 2022 | E3: 2016 | F3: System Renewal | G3: ='App.2-AB_Capital Expenditures'!B14 -> 2014 | H3: ='App.2-AB_Capital Expenditures'!B18 -> 0 | I3: ='App.2-AB_Capital Expenditures'!C18 -> 0
A4: ='LDC Info'!$E$14 -> Kingston Hydro Corporation | B4: EB-2022-0044 | C4: 2023 | D4: 2022 | E4: 2016 | F4: System Service | G4: ='App.2-AB_Capital Expenditures'!B14 -> 2014 | H4: ='App.2-AB_Capital Expenditures'!B19 -> 0 | I4: ='App.2-AB_Capital Expenditures'!C19 -> 0
A5: ='LDC Info'!$E$14 -> Kingston Hydro Corporation | B5: EB-2022-0044 | C5: 2023 | D5: 2022 | E5: 2016 | F5: General Plant | G5: ='App.2-AB_Capital Expenditures'!B14 -> 2014 | H5: ='App.2-AB_Capital Expenditures'!B20 -> 0 | I5: ='App.2-AB_Capital Expenditures'!C20 -> 0
A6: ='LDC Info'!$E$14 -> Kingston Hydro Corporation | B6: EB-2022-0044 | C6: 2023 | D6: 2022 | E6: 2016 | F6: Total Expenditure | G6: ='App.2-AB_Capital Expenditures'!B14 -> 2014 | H6: ='App.2-AB_Capital Expenditures'!B21 -> 0 | I6: ='App.2-AB_Capital Expenditures'!C21 -> 0
A7: ='LDC Info'!$E$14 -> Kingston Hydro Corporation | B7: EB-2022-0044 | C7: 2023 | D7: 2022 | E7: 2016 | F7: Capital Contributions | G7: ='App.2-AB_Capital Expenditures'!B14 -> 2014 | H7: ='App.2-AB_Capital Expenditures'!B22 -> 0 | I7: ='App.2-AB_Capital Expenditures'!C22 -> 0
A8: ='LDC Info'!$E$14 -> Kingston Hydro Corporation | B8: EB-2022-0044 | C8: 2023 | D8: 2022 | E8: 2016 | F8: Net Capital Expenditures | G8: ='App.2-AB_Capital Expenditures'!B14 -> 2014 | H8: ='App.2-AB_Capital Expenditures'!B23 -> 0 | I8: ='App.2-AB_Capital Expenditures'!C23 -> 0
A9: ='LDC Info'!$E$14 -> Kingston Hydro Corporation | B9: EB-2022-0044 | C9: 2023 | D9: 2022 | E9: 2016 | F9: System O&M | G9: ='App.2-AB_Capital Expenditures'!B14 -> 2014 | H9: ='App.2-AB_Capital Expenditures'!B24 -> 0 | I9: ='App.2-AB_Capital Expenditures'!C24 -> 3051336
A10: ='LDC Info'!$E$14 -> Kingston Hydro Corporation | B10: EB-2022-0044 | C10: 2023 | D10: 2022 | E10: 2016 | F10: System Access | G10: ='App.2-AB_Capital Expenditures'!E14 -> 2015 | H10: ='App.2-AB_Capital Expenditures'!E17 -> 0 | I10: ='App.2-AB_Capital Expenditures'!F17 -> 0
A11: ='LDC Info'!$E$14 -> Kingston Hydro Corporation | B11: EB-2022-0044 | C11: 2023 | D11: 2022 | E11: 2016 | F11: System Renewal | G11: ='App.2-AB_Capital Expenditures'!E14 -> 2015 | H11: ='App.2-AB_Capital Expenditures'!E18 -> 0 | I11: ='App.2-AB_Capital Expenditures'!F18 -> 0
A12: ='LDC Info'!$E$14 -> Kingston Hydro Corporation | B12: EB-2022-0044 | C12: 2023 | D12: 2022 | E12: 2016 | F12: System Service | G12: ='App.2-AB_Capital Expenditures'!E14 -> 2015 | H12: ='App.2-AB_Capital Expenditures'!E19 -> 0 | I12: ='App.2-AB_Capital Expenditures'!F19 -> 0
A13: ='LDC Info'!$E$14 -> Kingston Hydro Corporation | B13: EB-2022-0044 | C13: 2023 | D13: 2022 | E13: 2016 | F13: General Plant | G13: ='App.2-AB_Capital Expenditures'!E14 -> 2015 | H13: ='App.2-AB_Capital Expenditures'!E20 -> 0 | I13: ='App.2-AB_Capital Expenditures'!F20 -> 0
A14: ='LDC Info'!$E$14 -> Kingston Hydro Corporation | B14: EB-2022-0044 | C14: 2023 | D14: 2022 | E14: 2016 | F14: Total Expenditure | G14: ='App.2-AB_Capital Expenditures'!E14 -> 2015 | H14: ='App.2-AB_Capital Expenditures'!E21 -> 0 | I14: ='App.2-AB_Capital Expenditures'!F21 -> 0
A15: ='LDC Info'!$E$14 -> Kingston Hydro Corporation | B15: EB-2022-0044 | C15: 2023 | D15: 2022 | E15: 2016 | F15: Capital Contributions | G15: ='App.2-AB_Capital Expenditures'!E14 -> 2015 | H15: ='App.2-AB_Capital Expenditures'!E22 -> 0 | I15: ='App.2-AB_Capital Expenditures'!F22 -> 0
A16: ='LDC Info'!$E$14 -> Kingston Hydro Corporation | B16: EB-2022-0044 | C16: 2023 | D16: 2022 | E16: 2016 | F16: Net Capital Expenditures | G16: ='App.2-AB_Capital Expenditures'!E14 -> 2015 | H16: ='App.2-AB_Capital Expenditures'!E23 -> 0 | I16: ='App.2-AB_Capital Expenditures'!F23 -> 0
A17: ='LDC Info'!$E$14 -> Kingston Hydro Corporation | B17: EB-2022-0044 | C17: 2023 | D17: 2022 | E17: 2016 | F17: System O&M | G17: ='App.2-AB_Capital Expenditures'!E14 -> 2015 | H17: ='App.2-AB_Capital Expenditures'!E24 -> 0 | I17: ='App.2-AB_Capital Expenditures'!F24 -> 3249478
A18: ='LDC Info'!$E$14 -> Kingston Hydro Corporation | B18: EB-2022-0044 | C18: 2023 | D18: 2022 | E18: 2016 | F18: System Access | G18: ='App.2-AB_Capital Expenditures'!H14 -> 2016 | H18: ='App.2-AB_Capital Expenditures'!H17 -> 494.7987752 | I18: ='App.2-AB_Capital Expenditures'!I17 -> 750.002
A19: ='LDC Info'!$E$14 -> Kingston Hydro Corporation | B19: EB-2022-0044 | C19: 2023 | D19: 2022 | E19: 2016 | F19: System Renewal | G19: ='App.2-AB_Capital Expenditures'!H14 -> 2016 | H19: ='App.2-AB_Capital Expenditures'!H18 -> 4041.173843 | I19: ='App.2-AB_Capital Expenditures'!I18 -> 4738.15939
A20: ='LDC Info'!$E$14 -> Kingston Hydro Corporation | B20: EB-2022-0044 | C20: 2023 | D20: 2022 | E20: 2016 | F20: System Service | G20: ='App.2-AB_Capital Expenditures'!H14 -> 2016 | H20: ='App.2-AB_Capital Expenditures'!H19 -> 19.03072212 | I20: ='App.2-AB_Capital Expenditures'!I19 -> 15.85074
A21: ='LDC Info'!$E$14 -> Kingston Hydro Corporation | B21: EB-2022-0044 | C21: 2023 | D21: 2022 | E21: 2016 | F21: General Plant | G21: ='App.2-AB_Capital Expenditures'!H14 -> 2016 | H21: ='App.2-AB_Capital Expenditures'!H20 -> 821.1756596 | I21: ='App.2-AB_Capital Expenditures'!I20 -> 330.53117
A22: ='LDC Info'!$E$14 -> Kingston Hydro Corporation | B22: EB-2022-0044 | C22: 2023 | D22: 2022 | E22: 2016 | F22: Total Expenditure | G22: ='App.2-AB_Capital Expenditures'!H14 -> 2016 | H22: ='App.2-AB_Capital Expenditures'!H21 -> 5376.179 | I22: ='App.2-AB_Capital Expenditures'!I21 -> 5834.5433
A23: ='LDC Info'!$E$14 -> Kingston Hydro Corporation | B23: EB-2022-0044 | C23: 2023 | D23: 2022 | E23: 2016 | F23: Capital Contributions | G23: ='App.2-AB_Capital Expenditures'!H14 -> 2016 | H23: ='App.2-AB_Capital Expenditures'!H22 -> 0 | I23: ='App.2-AB_Capital Expenditures'!I22 -> 592.673
A24: ='LDC Info'!$E$14 -> Kingston Hydro Corporation | B24: EB-2022-0044 | C24: 2023 | D24: 2022 | E24: 2016 | F24: Net Capital Expenditures | G24: ='App.2-AB_Capital Expenditures'!H14 -> 2016 | H24: ='App.2-AB_Capital Expenditures'!H23 -> 5376.179 | I24: ='App.2-AB_Capital Expenditures'!I23 -> 5241.8703
A25: ='LDC Info'!$E$14 -> Kingston Hydro Corporation | B25: EB-2022-0044 | C25: 2023 | D25: 2022 | E25: 2016 | F25: System O&M | G25: ='App.2-AB_Capital Expenditures'!H14 -> 2016 | H25: ='App.2-AB_Capital Expenditures'!H24 -> 3215.36144 | I25: ='App.2-AB_Capital Expenditures'!I24 -> 3614.994
A26: ='LDC Info'!$E$14 -> Kingston Hydro Corporation | B26: EB-2022-0044 | C26: 2023 | D26: 2022 | E26: 2016 | F26: System Access | G26: ='App.2-AB_Capital Expenditures'!K14 -> 2017 | H26: ='App.2-AB_Capital Expenditures'!K17 -> 414.6605956 | I26: ='App.2-AB_Capital Expenditures'!L17 -> 576.33797
A27: ='LDC Info'!$E$14 -> Kingston Hydro Corporation | B27: EB-2022-0044 | C27: 2023 | D27: 2022 | E27: 2016 | F27: System Renewal | G27: ='App.2-AB_Capital Expenditures'!K14 -> 2017 | H27: ='App.2-AB_Capital Expenditures'!K18 -> 2102.785727 | I27: ='App.2-AB_Capital Expenditures'!L18 -> 6726.2632
A28: ='LDC Info'!$E$14 -> Kingston Hydro Corporation | B28: EB-2022-0044 | C28: 2023 | D28: 2022 | E28: 2016 | F28: System Service | G28: ='App.2-AB_Capital Expenditures'!K14 -> 2017 | H28: ='App.2-AB_Capital Expenditures'!K19 -> 76.08451296 | I28: ='App.2-AB_Capital Expenditures'!L19 -> 69.07553
A29: ='LDC Info'!$E$14 -> Kingston Hydro Corporation | B29: EB-2022-0044 | C29: 2023 | D29: 2022 | E29: 2016 | F29: General Plant | G29: ='App.2-AB_Capital Expenditures'!K14 -> 2017 | H29: ='App.2-AB_Capital Expenditures'!K20 -> 306.2401646 | I29: ='App.2-AB_Capital Expenditures'!L20 -> 800.35208
A30: ='LDC Info'!$E$14 -> Kingston Hydro Corporation | B30: EB-2022-0044 | C30: 2023 | D30: 2022 | E30: 2016 | F30: Total Expenditure | G30: ='App.2-AB_Capital Expenditures'!K14 -> 2017 | H30: ='App.2-AB_Capital Expenditures'!K21 -> 2899.771 | I30: ='App.2-AB_Capital Expenditures'!L21 -> 8172.02878
A31: ='LDC Info'!$E$14 -> Kingston Hydro Corporation | B31: EB-2022-0044 | C31: 2023 | D31: 2022 | E31: 2016 | F31: Capital Contributions | G31: ='App.2-AB_Capital Expenditures'!K14 -> 2017 | H31: ='App.2-AB_Capital Expenditures'!K22 -> 0 | I31: ='App.2-AB_Capital Expenditures'!L22 -> 4742.51515
A32: ='LDC Info'!$E$14 -> Kingston Hydro Corporation | B32: EB-2022-0044 | C32: 2023 | D32: 2022 | E32: 2016 | F32: Net Capital Expenditures | G32: ='App.2-AB_Capital Expenditures'!K14 -> 2017 | H32: ='App.2-AB_Capital Expenditures'!K23 -> 2899.771 | I32: ='App.2-AB_Capital Expenditures'!L23 -> 3429.51363
A33: ='LDC Info'!$E$14 -> Kingston Hydro Corporation | B33: EB-2022-0044 | C33: 2023 | D33: 2022 | E33: 2016 | F33: System O&M | G33: ='App.2-AB_Capital Expenditures'!K14 -> 2017 | H33: ='App.2-AB_Capital Expenditures'!K24 -> 3212.04709 | I33: ='App.2-AB_Capital Expenditures'!L24 -> 3364.657
A34: ='LDC Info'!$E$14 -> Kingston Hydro Corporation | B34: =EBNUMBER -> EB-2022-0044 | C34: =TestYear -> 2023 | D34: =BridgeYear -> 2022 | E34: =RebaseYear -> 2016 | F34: System Access | G34: ='App.2-AB_Capital Expenditures'!N14 -> 2018 | H34: ='App.2-AB_Capital Expenditures'!N17 -> 582.8531272 | I34: ='App.2-AB_Capital Expenditures'!O17 -> 339
A35: ='LDC Info'!$E$14 -> Kingston Hydro Corporation | B35: EB-2022-0044 | C35: 2023 | D35: 2022 | E35: 2016 | F35: System Renewal | G35: ='App.2-AB_Capital Expenditures'!N14 -> 2018 | H35: ='App.2-AB_Capital Expenditures'!N18 -> 3098.165847 | I35: ='App.2-AB_Capital Expenditures'!O18 -> 3931
A36: ='LDC Info'!$E$14 -> Kingston Hydro Corporation | B36: EB-2022-0044 | C36: 2023 | D36: 2022 | E36: 2016 | F36: System Service | G36: ='App.2-AB_Capital Expenditures'!N14 -> 2018 | H36: ='App.2-AB_Capital Expenditures'!N19 -> 200.983837 | I36: ='App.2-AB_Capital Expenditures'!O19 -> 462
A37: ='LDC Info'!$E$14 -> Kingston Hydro Corporation | B37: EB-2022-0044 | C37: 2023 | D37: 2022 | E37: 2016 | F37: General Plant | G37: ='App.2-AB_Capital Expenditures'!N14 -> 2018 | H37: ='App.2-AB_Capital Expenditures'!N20 -> 407.997189 | I37: ='App.2-AB_Capital Expenditures'!O20 -> 556
A38: ='LDC Info'!$E$14 -> Kingston Hydro Corporation | B38: EB-2022-0044 | C38: 2023 | D38: 2022 | E38: 2016 | F38: Total Expenditure | G38: ='App.2-AB_Capital Expenditures'!N14 -> 2018 | H38: ='App.2-AB_Capital Expenditures'!N21 -> 4290 | I38: ='App.2-AB_Capital Expenditures'!O21 -> 5288
A39: ='LDC Info'!$E$14 -> Kingston Hydro Corporation | B39: EB-2022-0044 | C39: 2023 | D39: 2022 | E39: 2016 | F39: Capital Contributions | G39: ='App.2-AB_Capital Expenditures'!N14 -> 2018 | H39: ='App.2-AB_Capital Expenditures'!N22 -> 0 | I39: ='App.2-AB_Capital Expenditures'!O22 -> 251.769
A40: ='LDC Info'!$E$14 -> Kingston Hydro Corporation | B40: EB-2022-0044 | C40: 2023 | D40: 2022 | E40: 2016 | F40: Net Capital Expenditures | G40: ='App.2-AB_Capital Expenditures'!N14 -> 2018 | H40: ='App.2-AB_Capital Expenditures'!N23 -> 4290 | I40: ='App.2-AB_Capital Expenditures'!O23 -> 5037
A41: ='LDC Info'!$E$14 -> Kingston Hydro Corporation | B41: EB-2022-0044 | C41: 2023 | D41: 2022 | E41: 2016 | F41: System O&M | G41: ='App.2-AB_Capital Expenditures'!N14 -> 2018 | H41: ='App.2-AB_Capital Expenditures'!N24 -> 3357.25538 | I41: ='App.2-AB_Capital Expenditures'!O24 -> 3912.288
A42: ='LDC Info'!$E$14 -> Kingston Hydro Corporation | B42: EB-2022-0044 | C42: 2023 | D42: 2022 | E42: 2016 | F42: System Access | G42: ='App.2-AB_Capital Expenditures'!Q14 -> 2019 | H42: ='App.2-AB_Capital Expenditures'!Q17 -> 395.1428571 | I42: ='App.2-AB_Capital Expenditures'!R17 -> 589.73321
A43: ='LDC Info'!$E$14 -> Kingston Hydro Corporation | B43: EB-2022-0044 | C43: 2023 | D43: 2022 | E43: 2016 | F43: System Renewal | G43: ='App.2-AB_Capital Expenditures'!Q14 -> 2019 | H43: ='App.2-AB_Capital Expenditures'!Q18 -> 3312.285 | I43: ='App.2-AB_Capital Expenditures'!R18 -> 3437.92706
A44: ='LDC Info'!$E$14 -> Kingston Hydro Corporation | B44: EB-2022-0044 | C44: 2023 | D44: 2022 | E44: 2016 | F44: System Service | G44: ='App.2-AB_Capital Expenditures'!Q14 -> 2019 | H44: ='App.2-AB_Capital Expenditures'!Q19 -> 19.75714286 | I44: ='App.2-AB_Capital Expenditures'!R19 -> 112.85124
A45: ='LDC Info'!$E$14 -> Kingston Hydro Corporation | B45: EB-2022-0044 | C45: 2023 | D45: 2022 | E45: 2016 | F45: General Plant | G45: ='App.2-AB_Capital Expenditures'!Q14 -> 2019 | H45: ='App.2-AB_Capital Expenditures'!Q20 -> 421.815 | I45: ='App.2-AB_Capital Expenditures'!R20 -> 603.84757
A46: ='LDC Info'!$E$14 -> Kingston Hydro Corporation | B46: EB-2022-0044 | C46: 2023 | D46: 2022 | E46: 2016 | F46: Total Expenditure | G46: ='App.2-AB_Capital Expenditures'!Q14 -> 2019 | H46: ='App.2-AB_Capital Expenditures'!Q21 -> 4149 | I46: ='App.2-AB_Capital Expenditures'!R21 -> 4744.35908
A47: ='LDC Info'!$E$14 -> Kingston Hydro Corporation | B47: EB-2022-0044 | C47: 2023 | D47: 2022 | E47: 2016 | F47: Capital Contributions | G47: ='App.2-AB_Capital Expenditures'!Q14 -> 2019 | H47: ='App.2-AB_Capital Expenditures'!Q22 -> 0 | I47: ='App.2-AB_Capital Expenditures'!R22 -> 217.20975
A48: ='LDC Info'!$E$14 -> Kingston Hydro Corporation | B48: EB-2022-0044 | C48: 2023 | D48: 2022 | E48: 2016 | F48: Net Capital Expenditures | G48: ='App.2-AB_Capital Expenditures'!Q14 -> 2019 | H48: ='App.2-AB_Capital Expenditures'!Q23 -> 4149 | I48: ='App.2-AB_Capital Expenditures'!R23 -> 4527.14933
A49: ='LDC Info'!$E$14 -> Kingston Hydro Corporation | B49: EB-2022-0044 | C49: 2023 | D49: 2022 | E49: 2016 | F49: System O&M | G49: ='App.2-AB_Capital Expenditures'!Q14 -> 2019 | H49: ='App.2-AB_Capital Expenditures'!Q24 -> 3352.70576 | I49: ='App.2-AB_Capital Expenditures'!R24 -> 3468.92968
A50: ='LDC Info'!$E$14 -> Kingston Hydro Corporation | B50: EB-2022-0044 | C50: 2023 | D50: 2022 | E50: 2016 | F50: System Access | G50: ='App.2-AB_Capital Expenditures'!T14 -> 2020 | H50: ='App.2-AB_Capital Expenditures'!T17 -> 364.238 | I50: ='App.2-AB_Capital Expenditures'!U17 -> 751.4916
A51: ='LDC Info'!$E$14 -> Kingston Hydro Corporation | B51: EB-2022-0044 | C51: 2023 | D51: 2022 | E51: 2016 | F51: System Renewal | G51: ='App.2-AB_Capital Expenditures'!T14 -> 2020 | H51: ='App.2-AB_Capital Expenditures'!T18 -> 3054.209964 | I51: ='App.2-AB_Capital Expenditures'!U18 -> 3222.59648
A52: ='LDC Info'!$E$14 -> Kingston Hydro Corporation | B52: EB-2022-0044 | C52: 2023 | D52: 2022 | E52: 2016 | F52: System Service | G52: ='App.2-AB_Capital Expenditures'!T14 -> 2020 | H52: ='App.2-AB_Capital Expenditures'!T19 -> 185.8357143 | I52: ='App.2-AB_Capital Expenditures'!U19 -> 25.04
A53: ='LDC Info'!$E$14 -> Kingston Hydro Corporation | B53: EB-2022-0044 | C53: 2023 | D53: 2022 | E53: 2016 | F53: General Plant | G53: ='App.2-AB_Capital Expenditures'!T14 -> 2020 | H53: ='App.2-AB_Capital Expenditures'!T20 -> 298.2663214 | I53: ='App.2-AB_Capital Expenditures'!U20 -> 168.42268
A54: ='LDC Info'!$E$14 -> Kingston Hydro Corporation | B54: EB-2022-0044 | C54: 2023 | D54: 2022 | E54: 2016 | F54: Total Expenditure | G54: ='App.2-AB_Capital Expenditures'!T14 -> 2020 | H54: ='App.2-AB_Capital Expenditures'!T21 -> 3902.55 | I54: ='App.2-AB_Capital Expenditures'!U21 -> 4167.55076
A55: ='LDC Info'!$E$14 -> Kingston Hydro Corporation | B55: EB-2022-0044 | C55: 2023 | D55: 2022 | E55: 2016 | F55: Capital Contributions | G55: ='App.2-AB_Capital Expenditures'!T14 -> 2020 | H55: ='App.2-AB_Capital Expenditures'!T22 -> 0 | I55: ='App.2-AB_Capital Expenditures'!U22 -> 246.76695
A56: ='LDC Info'!$E$14 -> Kingston Hydro Corporation | B56: EB-2022-0044 | C56: 2023 | D56: 2022 | E56: 2016 | F56: Net Capital Expenditures | G56: ='App.2-AB_Capital Expenditures'!T14 -> 2020 | H56: ='App.2-AB_Capital Expenditures'!T23 -> 3902.55 | I56: ='App.2-AB_Capital Expenditures'!U23 -> 3920.78381
A57: ='LDC Info'!$E$14 -> Kingston Hydro Corporation | B57: EB-2022-0044 | C57: 2023 | D57: 2022 | E57: 2016 | F57: System O&M | G57: ='App.2-AB_Capital Expenditures'!T14 -> 2020 | H57: ='App.2-AB_Capital Expenditures'!T24 -> 3448.98638 | I57: ='App.2-AB_Capital Expenditures'!U24 -> 3508.1079
A58: ='LDC Info'!$E$14 -> Kingston Hydro Corporation | B58: EB-2022-0044 | C58: 2023 | D58: 2022 | E58: 2016 | F58: System Access | G58: ='App.2-AB_Capital Expenditures'!W14 -> 2021 | H58: ='App.2-AB_Capital Expenditures'!W17 -> 833.388 | I58: ='App.2-AB_Capital Expenditures'!X17 -> 700.26103
A59: ='LDC Info'!$E$14 -> Kingston Hydro Corporation | B59: EB-2022-0044 | C59: 2023 | D59: 2022 | E59: 2016 | F59: System Renewal | G59: ='App.2-AB_Capital Expenditures'!W14 -> 2021 | H59: ='App.2-AB_Capital Expenditures'!W18 -> 3457 | I59: ='App.2-AB_Capital Expenditures'!X18 -> 3192.0854
A60: ='LDC Info'!$E$14 -> Kingston Hydro Corporation | B60: EB-2022-0044 | C60: 2023 | D60: 2022 | E60: 2016 | F60: System Service | G60: ='App.2-AB_Capital Expenditures'!W14 -> 2021 | H60: ='App.2-AB_Capital Expenditures'!W19 -> 15 | I60: ='App.2-AB_Capital Expenditures'!X19 -> 379.94695
A61: ='LDC Info'!$E$14 -> Kingston Hydro Corporation | B61: EB-2022-0044 | C61: 2023 | D61: 2022 | E61: 2016 | F61: General Plant | G61: ='App.2-AB_Capital Expenditures'!W14 -> 2021 | H61: ='App.2-AB_Capital Expenditures'!W20 -> 707 | I61: ='App.2-AB_Capital Expenditures'!X20 -> 466.91765
A62: ='LDC Info'!$E$14 -> Kingston Hydro Corporation | B62: EB-2022-0044 | C62: 2023 | D62: 2022 | E62: 2016 | F62: Total Expenditure | G62: ='App.2-AB_Capital Expenditures'!W14 -> 2021 | H62: ='App.2-AB_Capital Expenditures'!W21 -> 5012.388 | I62: ='App.2-AB_Capital Expenditures'!X21 -> 4739.21103
A63: ='LDC Info'!$E$14 -> Kingston Hydro Corporation | B63: EB-2022-0044 | C63: 2023 | D63: 2022 | E63: 2016 | F63: Capital Contributions | G63: ='App.2-AB_Capital Expenditures'!W14 -> 2021 | H63: ='App.2-AB_Capital Expenditures'!W22 -> 0 | I63: ='App.2-AB_Capital Expenditures'!X22 -> 133
A64: ='LDC Info'!$E$14 -> Kingston Hydro Corporation | B64: EB-2022-0044 | C64: 2023 | D64: 2022 | E64: 2016 | F64: Net Capital Expenditures | G64: ='App.2-AB_Capital Expenditures'!W14 -> 2021 | H64: ='App.2-AB_Capital Expenditures'!W23 -> 5012.388 | I64: ='App.2-AB_Capital Expenditures'!X23 -> 4606
A65: ='LDC Info'!$E$14 -> Kingston Hydro Corporation | B65: EB-2022-0044 | C65: 2023 | D65: 2022 | E65: 2016 | F65: System O&M | G65: ='App.2-AB_Capital Expenditures'!W14 -> 2021 | H65: ='App.2-AB_Capital Expenditures'!W24 -> 3483.92934 | I65: ='App.2-AB_Capital Expenditures'!X24 -> 3466.60705
A66: ='LDC Info'!$E$14 -> Kingston Hydro Corporation | B66: =EBNUMBER -> EB-2022-0044 | C66: =TestYear -> 2023 | D66: =BridgeYear -> 2022 | E66: =RebaseYear -> 2016 | F66: System Access | G66: ='App.2-AB_Capital Expenditures'!Z14 -> 2022 | H66: ='App.2-AB_Capital Expenditures'!Z17 -> 1194.626 | I66: ='App.2-AB_Capital Expenditures'!AA17 -> 114.34014
A67: ='LDC Info'!$E$14 -> Kingston Hydro Corporation | B67: EB-2022-0044 | C67: 2023 | D67: 2022 | E67: 2016 | F67: System Renewal | G67: ='App.2-AB_Capital Expenditures'!Z14 -> 2022 | H67: ='App.2-AB_Capital Expenditures'!Z18 -> 2257.5 | I67: ='App.2-AB_Capital Expenditures'!AA18 -> 311.50091
A68: ='LDC Info'!$E$14 -> Kingston Hydro Corporation | B68: EB-2022-0044 | C68: 2023 | D68: 2022 | E68: 2016 | F68: System Service | G68: ='App.2-AB_Capital Expenditures'!Z14 -> 2022 | H68: ='App.2-AB_Capital Expenditures'!Z19 -> 247.5 | I68: ='App.2-AB_Capital Expenditures'!AA19 -> 37.0738
A69: ='LDC Info'!$E$14 -> Kingston Hydro Corporation | B69: EB-2022-0044 | C69: 2023 | D69: 2022 | E69: 2016 | F69: General Plant | G69: ='App.2-AB_Capital Expenditures'!Z14 -> 2022 | H69: ='App.2-AB_Capital Expenditures'!Z20 -> 297 | I69: ='App.2-AB_Capital Expenditures'!AA20 -> 3.20551
A70: ='LDC Info'!$E$14 -> Kingston Hydro Corporation | B70: EB-2022-0044 | C70: 2023 | D70: 2022 | E70: 2016 | F70: Total Expenditure | G70: ='App.2-AB_Capital Expenditures'!Z14 -> 2022 | H70: ='App.2-AB_Capital Expenditures'!Z21 -> 3996.626 | I70: ='App.2-AB_Capital Expenditures'!AA21 -> 466.12036
A71: ='LDC Info'!$E$14 -> Kingston Hydro Corporation | B71: EB-2022-0044 | C71: 2023 | D71: 2022 | E71: 2016 | F71: Capital Contributions | G71: ='App.2-AB_Capital Expenditures'!Z14 -> 2022 | H71: ='App.2-AB_Capital Expenditures'!Z22 -> 200 | I71: ='App.2-AB_Capital Expenditures'!AA22 -> 117.11367
A72: ='LDC Info'!$E$14 -> Kingston Hydro Corporation | B72: EB-2022-0044 | C72: 2023 | D72: 2022 | E72: 2016 | F72: Net Capital Expenditures | G72: ='App.2-AB_Capital Expenditures'!Z14 -> 2022 | H72: ='App.2-AB_Capital Expenditures'!Z23 -> 3796.626 | I72: ='App.2-AB_Capital Expenditures'!AA23 -> 349.00669
A73: ='LDC Info'!$E$14 -> Kingston Hydro Corporation | B73: EB-2022-0044 | C73: 2023 | D73: 2022 | E73: 2016 | F73: System O&M | G73: ='App.2-AB_Capital Expenditures'!Z14 -> 2022 | H73: ='App.2-AB_Capital Expenditures'!Z24 -> 3580.01451 | I73: ='App.2-AB_Capital Expenditures'!AA24 -> 1200.65012
A74: ='LDC Info'!$E$14 -> Kingston Hydro Corporation | B74: EB-2022-0044 | C74: 2023 | D74: 2022 | E74: 2016 | F74: System Access | G74: ='App.2-AB_Capital Expenditures'!AC14 -> 2023 | H74: ='App.2-AB_Capital Expenditures'!AC17 -> 1082.5
A75: ='LDC Info'!$E$14 -> Kingston Hydro Corporation | B75: EB-2022-0044 | C75: 2023 | D75: 2022 | E75: 2016 | F75: System Renewal | G75: ='App.2-AB_Capital Expenditures'!AC14 -> 2023 | H75: ='App.2-AB_Capital Expenditures'!AC18 -> 1420
A76: ='LDC Info'!$E$14 -> Kingston Hydro Corporation | B76: EB-2022-0044 | C76: 2023 | D76: 2022 | E76: 2016 | F76: System Service | G76: ='App.2-AB_Capital Expenditures'!AC14 -> 2023 | H76: ='App.2-AB_Capital Expenditures'!AC19 -> 75
A77: ='LDC Info'!$E$14 -> Kingston Hydro Corporation | B77: EB-2022-0044 | C77: 2023 | D77: 2022 | E77: 2016 | F77: General Plant | G77: ='App.2-AB_Capital Expenditures'!AC14 -> 2023 | H77: ='App.2-AB_Capital Expenditures'!AC20 -> 782
A78: ='LDC Info'!$E$14 -> Kingston Hydro Corporation | B78: EB-2022-0044 | C78: 2023 | D78: 2022 | E78: 2016 | F78: Total Expenditure | G78: ='App.2-AB_Capital Expenditures'!AC14 -> 2023 | H78: ='App.2-AB_Capital Expenditures'!AC21 -> 3359.5
A79: ='LDC Info'!$E$14 -> Kingston Hydro Corporation | B79: EB-2022-0044 | C79: 2023 | D79: 2022 | E79: 2016 | F79: Capital Contributions | G79: ='App.2-AB_Capital Expenditures'!AC14 -> 2023 | H79: ='App.2-AB_Capital Expenditures'!AC22 -> 270
A80: ='LDC Info'!$E$14 -> Kingston Hydro Corporation | B80: EB-2022-0044 | C80: 2023 | D80: 2022 | E80: 2016 | F80: Net Capital Expenditures | G80: ='App.2-AB_Capital Expenditures'!AC14 -> 2023 | H80: ='App.2-AB_Capital Expenditures'!AC23 -> 3089.5
A81: ='LDC Info'!$E$14 -> Kingston Hydro Corporation | B81: EB-2022-0044 | C81: 2023 | D81: 2022 | E81: 2016 | F81: System O&M | G81: ='App.2-AB_Capital Expenditures'!AC14 -> 2023 | H81: ='App.2-AB_Capital Expenditures'!AC24 -> 3688.62768
A82: ='LDC Info'!$E$14 -> Kingston Hydro Corporation | B82: EB-2022-0044 | C82: 2023 | D82: 2022 | E82: 2016 | F82: System Access | G82: ='App.2-AB_Capital Expenditures'!AD14 -> 2024 | H82: ='App.2-AB_Capital Expenditures'!AD17 -> 1287.5
A83: ='LDC Info'!$E$14 -> Kingston Hydro Corporation | B83: EB-2022-0044 | C83: 2023 | D83: 2022 | E83: 2016 | F83: System Renewal | G83: ='App.2-AB_Capital Expenditures'!AD14 -> 2024 | H83: ='App.2-AB_Capital Expenditures'!AD18 -> 1380
A84: ='LDC Info'!$E$14 -> Kingston Hydro Corporation | B84: EB-2022-0044 | C84: 2023 | D84: 2022 | E84: 2016 | F84: System Service | G84: ='App.2-AB_Capital Expenditures'!AD14 -> 2024 | H84: ='App.2-AB_Capital Expenditures'!AD19 -> 200
A85: ='LDC Info'!$E$14 -> Kingston Hydro Corporation | B85: EB-2022-0044 | C85: 2023 | D85: 2022 | E85: 2016 | F85: General Plant | G85: ='App.2-AB_Capital Expenditures'!AD14 -> 2024 | H85: ='App.2-AB_Capital Expenditures'!AD20 -> 717
A86: ='LDC Info'!$E$14 -> Kingston Hydro Corporation | B86: EB-2022-0044 | C86: 2023 | D86: 2022 | E86: 2016 | F86: Total Expenditure | G86: ='App.2-AB_Capital Expenditures'!AD14 -> 2024 | H86: ='App.2-AB_Capital Expenditures'!AD21 -> 3584.5
A87: ='LDC Info'!$E$14 -> Kingston Hydro Corporation | B87: EB-2022-0044 | C87: 2023 | D87: 2022 | E87: 2016 | F87: Capital Contributions | G87: ='App.2-AB_Capital Expenditures'!AD14 -> 2024 | H87: ='App.2-AB_Capital Expenditures'!AD22 -> 200
A88: ='LDC Info'!$E$14 -> Kingston Hydro Corporation | B88: EB-2022-0044 | C88: 2023 | D88: 2022 | E88: 2016 | F88: Net Capital Expenditures | G88: ='App.2-AB_Capital Expenditures'!AD14 -> 2024 | H88: ='App.2-AB_Capital Expenditures'!AD23 -> 3385
A89: ='LDC Info'!$E$14 -> Kingston Hydro Corporation | B89: EB-2022-0044 | C89: 2023 | D89: 2022 | E89: 2016 | F89: System O&M | G89: ='App.2-AB_Capital Expenditures'!AD14 -> 2024 | H89: ='App.2-AB_Capital Expenditures'!AD24 -> 3762.400234
A90: ='LDC Info'!$E$14 -> Kingston Hydro Corporation | B90: EB-2022-0044 | C90: 2023 | D90: 2022 | E90: 2016 | F90: System Access | G90: ='App.2-AB_Capital Expenditures'!AE14 -> 2025 | H90: ='App.2-AB_Capital Expenditures'!AE17 -> 1252.5
A91: ='LDC Info'!$E$14 -> Kingston Hydro Corporation | B91: EB-2022-0044 | C91: 2023 | D91: 2022 | E91: 2016 | F91: System Renewal | G91: ='App.2-AB_Capital Expenditures'!AE14 -> 2025 | H91: ='App.2-AB_Capital Expenditures'!AE18 -> 1540
A92: ='LDC Info'!$E$14 -> Kingston Hydro Corporation | B92: EB-2022-0044 | C92: 2023 | D92: 2022 | E92: 2016 | F92: System Service | G92: ='App.2-AB_Capital Expenditures'!AE14 -> 2025 | H92: ='App.2-AB_Capital Expenditures'!AE19 -> 75
A93: ='LDC Info'!$E$14 -> Kingston Hydro Corporation | B93: EB-2022-0044 | C93: 2023 | D93: 2022 | E93: 2016 | F93: General Plant | G93: ='App.2-AB_Capital Expenditures'!AE14 -> 2025 | H93: ='App.2-AB_Capital Expenditures'!AE20 -> 434.5
A94: ='LDC Info'!$E$14 -> Kingston Hydro Corporation | B94: EB-2022-0044 | C94: 2023 | D94: 2022 | E94: 2016 | F94: Total Expenditure | G94: ='App.2-AB_Capital Expenditures'!AE14 -> 2025 | H94: ='App.2-AB_Capital Expenditures'!AE21 -> 3302
A95: ='LDC Info'!$E$14 -> Kingston Hydro Corporation | B95: EB-2022-0044 | C95: 2023 | D95: 2022 | E95: 2016 | F95: Capital Contributions | G95: ='App.2-AB_Capital Expenditures'!AE14 -> 2025 | H95: ='App.2-AB_Capital Expenditures'!AE22 -> 200
A96: ='LDC Info'!$E$14 -> Kingston Hydro Corporation | B96: EB-2022-0044 | C96: 2023 | D96: 2022 | E96: 2016 | F96: Net Capital Expenditures | G96: ='App.2-AB_Capital Expenditures'!AE14 -> 2025 | H96: ='App.2-AB_Capital Expenditures'!AE23 -> 3102
A97: ='LDC Info'!$E$14 -> Kingston Hydro Corporation | B97: EB-2022-0044 | C97: 2023 | D97: 2022 | E97: 2016 | F97: System O&M | G97: ='App.2-AB_Capital Expenditures'!AE14 -> 2025 | H97: ='App.2-AB_Capital Expenditures'!AE24 -> 3837.648238
A98: ='LDC Info'!$E$14 -> Kingston Hydro Corporation | B98: =EBNUMBER -> EB-2022-0044 | C98: =TestYear -> 2023 | D98: =BridgeYear -> 2022 | E98: =RebaseYear -> 2016 | F98: System Access | G98: ='App.2-AB_Capital Expenditures'!AF14 -> 2026 | H98: ='App.2-AB_Capital Expenditures'!AF17 -> 1100
A99: ='LDC Info'!$E$14 -> Kingston Hydro Corporation | B99: EB-2022-0044 | C99: 2023 | D99: 2022 | E99: 2016 | F99: System Renewal | G99: ='App.2-AB_Capital Expenditures'!AF14 -> 2026 | H99: ='App.2-AB_Capital Expenditures'!AF18 -> 1325
A100: ='LDC Info'!$E$14 -> Kingston Hydro Corporation | B100: EB-2022-0044 | C100: 2023 | D100: 2022 | E100: 2016 | F100: System Service | G100: ='App.2-AB_Capital Expenditures'!AF14 -> 2026 | H100: ='App.2-AB_Capital Expenditures'!AF19 -> 357
A101: ='LDC Info'!$E$14 -> Kingston Hydro Corporation | B101: EB-2022-0044 | C101: 2023 | D101: 2022 | E101: 2016 | F101: General Plant | G101: ='App.2-AB_Capital Expenditures'!AF14 -> 2026 | H101: ='App.2-AB_Capital Expenditures'!AF20 -> 456
A102: ='LDC Info'!$E$14 -> Kingston Hydro Corporation | B102: EB-2022-0044 | C102: 2023 | D102: 2022 | E102: 2016 | F102: Total Expenditure | G102: ='App.2-AB_Capital Expenditures'!AF14 -> 2026 | H102: ='App.2-AB_Capital Expenditures'!AF21 -> 3238
A103: ='LDC Info'!$E$14 -> Kingston Hydro Corporation | B103: EB-2022-0044 | C103: 2023 | D103: 2022 | E103: 2016 | F103: Capital Contributions | G103: ='App.2-AB_Capital Expenditures'!AF14 -> 2026 | H103: ='App.2-AB_Capital Expenditures'!AF22 -> 200
A104: ='LDC Info'!$E$14 -> Kingston Hydro Corporation | B104: EB-2022-0044 | C104: 2023 | D104: 2022 | E104: 2016 | F104: Net Capital Expenditures | G104: ='App.2-AB_Capital Expenditures'!AF14 -> 2026 | H104: ='App.2-AB_Capital Expenditures'!AF23 -> 3038
A105: ='LDC Info'!$E$14 -> Kingston Hydro Corporation | B105: EB-2022-0044 | C105: 2023 | D105: 2022 | E105: 2016 | F105: System O&M | G105: ='App.2-AB_Capital Expenditures'!AF14 -> 2026 | H105: ='App.2-AB_Capital Expenditures'!AF24 -> 3914.401203
A106: ='LDC Info'!$E$14 -> Kingston Hydro Corporation | B106: EB-2022-0044 | C106: 2023 | D106: 2022 | E106: 2016 | F106: System Access | G106: ='App.2-AB_Capital Expenditures'!AG14 -> 2027 | H106: ='App.2-AB_Capital Expenditures'!AG17 -> 1125
A107: ='LDC Info'!$E$14 -> Kingston Hydro Corporation | B107: EB-2022-0044 | C107: 2023 | D107: 2022 | E107: 2016 | F107: System Renewal | G107: ='App.2-AB_Capital Expenditures'!AG14 -> 2027 | H107: ='App.2-AB_Capital Expenditures'!AG18 -> 1685
A108: ='LDC Info'!$E$14 -> Kingston Hydro Corporation | B108: EB-2022-0044 | C108: 2023 | D108: 2022 | E108: 2016 | F108: System Service | G108: ='App.2-AB_Capital Expenditures'!AG14 -> 2027 | H108: ='App.2-AB_Capital Expenditures'!AG19 -> 80
A109: ='LDC Info'!$E$14 -> Kingston Hydro Corporation | B109: EB-2022-0044 | C109: 2023 | D109: 2022 | E109: 2016 | F109: General Plant | G109: ='App.2-AB_Capital Expenditures'!AG14 -> 2027 | H109: ='App.2-AB_Capital Expenditures'!AG20 -> 433.75
A110: ='LDC Info'!$E$14 -> Kingston Hydro Corporation | B110: EB-2022-0044 | C110: 2023 | D110: 2022 | E110: 2016 | F110: Total Expenditure | G110: ='App.2-AB_Capital Expenditures'!AG14 -> 2027 | H110: ='App.2-AB_Capital Expenditures'!AG21 -> 3323.75
A111: ='LDC Info'!$E$14 -> Kingston Hydro Corporation | B111: EB-2022-0044 | C111: 2023 | D111: 2022 | E111: 2016 | F111: Capital Contributions | G111: ='App.2-AB_Capital Expenditures'!AG14 -> 2027 | H111: ='App.2-AB_Capital Expenditures'!AG22 -> 200
A112: ='LDC Info'!$E$14 -> Kingston Hydro Corporation | B112: EB-2022-0044 | C112: 2023 | D112: 2022 | E112: 2016 | F112: Net Capital Expenditures | G112: ='App.2-AB_Capital Expenditures'!AG14 -> 2027 | H112: ='App.2-AB_Capital Expenditures'!AG23 -> 3123.75
A113: ='LDC Info'!$E$14 -> Kingston Hydro Corporation | B113: EB-2022-0044 | C113: 2023 | D113: 2022 | E113: 2016 | F113: System O&M | G113: ='App.2-AB_Capital Expenditures'!AG14 -> 2027 | H113: ='App.2-AB_Capital Expenditures'!AG24 -> 3992.689227

Sheet App.2-AC_Customer Engagement
B1: File Number: | C1: =EBNUMBER -> EB-2022-0044
B2: Exhibit: | C2: 1
B3: Tab: | C3: 5
B4: Schedule: | C4: 1
B5: Page: | C5: 126-184
B7: Date: | C7: ='App.2-A_Requested_Approvals'!H7 -> 2022-Oct-28
A9: Appendix 2-AC
A10: Customer Engagement Activities Summary
A12: Provide a list of customer engagement activities | B12: Provide a list of customer needs and preferences identified through each engagement activity | C12: Actions taken to respond to identified needs and preferences. If no action was taken, explain why.
A13: Public Meeting - Customer Meetings | B13: Cost of Electricity - Keeping rates low Reliability System maintenance and upgrades Capital improvements that improve reliability Maintaining levels of customer service, including the one bill for all utiltiies. | C13: Senior leaders and engineering staff held public meetings to inform customers of our plans and address questions they may have. Some group and one-on-one discussions occured where we were able to hear support from our customers on our upcoming plans. Once available, we emailed meeting participants the online survey link to participate. We also provided them information after the meeting on our "Smart Thermostat program" as requested.
A14: Targeted Customer Meetings - Large Customer Meetings | B14: System Reliability Provide a reasonable balance between rates and reliability Continued focus on collaboration of projects | C14: Attendees appreciated they were provided the opportunity to collaborate and provide input into upcoming projects and answer questions.
A15: Online Survey - Residential and Small Commercial Customers | B15: Reliability of services Low Cost Proactive approach to renewing infrastructure | C15: There were no needs idenitifed from the online survey. We used this as an opportunity to inform and engage.
A16: 2019 Cusotmer Satisfaction Survey | B16: Cost of Electricity Reliability Safety | C16: Althougth customers continue to be concerned with the cost of electricity, customers view Kingston Hydro as trustworthy and capable. The overall customer experience performance rating was 89 per cent, which was slightly higher than provincial and national averages
A17: 2021 Customer Satisfaction Survey | B17: Cost of Electricity Reliability Safety | C17: The COVID-19 pandemic was top of mind for customers, and our customer satisfaction results remained high. The overall customer experience performance rating increased to 90 per cent which is an improvement over the 2019 results and higher than the 2021 national and provincial averages.
A18: Bill Inserts | B18: Invite customers to " have their say"and provide input in Kingston Hydro's Distribution System Plan at a Public Meeting | C18: Including bill inserts with public meeting information will ensure the details reach all of our customers and allow for the opportunity to participate.
A19: Print & Radio Advertising | B19: Invite customers to " have their say"and provide input in Kingston Hydro's DIstribution System Plan at a Public Meeting | C19: Connecting with our customers via radio advertising will ensure the details reach all of our customers and allow for the opportunity to participate.
A20: Media Release | B20: A Media Release is an effective communication tool to inform our customers of our plans. Our local media outlets do an effective job at sharing the information with their listeners/readers. We used this outlet to inform and invite customers to " have their say"and provide input in Kingston Hydro's Distribution System Plan at a Public meeting | C20: There were no needs identified from the media release. The intention was to share the meeting details to a large audience and ensure they had an opportunity to participate.
A21: Social Media Campaign | B21: Twitter Conversation: Customers were invited to join the convertaion and give your feedback to our electricity plans from June 3-7 on twitter, but following @utilitieskngstn and the #ygkHaveYourSay hashtag Facebook was also used to inform customer and provide meeting details. | C21: No needs identified
A22: Updated Website | B22: Our website is an important communiation tool. We used our website to share our news release, upcoming public meetings, surveys etc. | C22: No needs identified
A23: Informative video | B23: A short video was created to update our customers on the major projects we have recently completed and inform them on our future planning with an overview of the rate application process. | C23: No needs identified.
A45: Note: Use "ALT-ENTER" to go to the next line within a cell

Sheet App.2-B_Acctg Instructions (hidden)
A1: General Instructions to MIFRS Appendices
A2: Types of Schedules to File
A4: The purpose of this tab is to provide general instructions. The specific instructions to each appendix are listed in footnotes of each appendix.
A6: The typical applicant is expected to have made capitalization and depreciation policy changes under CGAAP as permitted by the OEB on January 1, 2012 or mandated by the OEB by January 1, 2013, and adopted IFRS for reporting purposes on January 1, 2015 (transition date January 1, 2014). Most distributors filing for 2021 rates have rebased with these accounting changes reflected in a prior rebasing application. If that is the case, information relating to pre-accounting policy changes is not generally required. Most distributors may have rebased under MIFRS. If that is the case, information related to the accounting standard used prior to IFRS is not generally required. The information to be provided by applicants will depend on when the accounting policy changes were made and when they last rebased. In general, applicants should provide the following information in the appendices:
E9: Reflecting Accounting Policy Changes in Current Application | G9: Reflected Accounting Policy Changes in Prior Application3 | H9: Rebased under MIFRS in Prior Application3
E10: Accounting Policy Changes in 2012 and Adopted IFRS in 2015 | F10: Accounting Policy Changes in 2013 and Adopted IFRS in 2015 | G10: Adopted IFRS in 2015 | H10: IFRS Since 2015
B11: 2021 | C11: Test | E11: MIFRS | F11: MIFRS | G11: MIFRS | H11: MIFRS
A12: Information to be filed in 2019 CoS Application | B12: 2020 | C12: Bridge | E12: MIFRS | F12: MIFRS | G12: MIFRS | H12: MIFRS
B13: 2019 | C13: Bridge | E13: MIFRS | F13: MIFRS | G13: MIFRS | H13: MIFRS
B14: 2018 | C14: Bridge | E14: MIFRS | F14: MIFRS | G14: MIFRS | H14: MIFRS
B15: 2017 | C15: Historical | E15: MIFRS | F15: MIFRS | G15: MIFRS | H15: MIFRS
B16: 2016 | C16: Historical | E16: MIFRS | F16: MIFRS | G16: MIFRS | H16: MIFRS
B17: 2015 | C17: Historical | E17: MIFRS and Revised CGAAP1 | F17: MIFRS and Revised CGAAP1 | G17: MIFRS and Revised CGAAP1 | H17: N/A
B18: 2014 | C18: Historical | E18: Revised CGAAP | F18: CGAAP and Revised CGAAP2 | G18: N/A | H18: N/A
B19: 2013 | C19: Historical | E19: CGAAP and Revised CGAAP2 | F19: N/A | G19: N/A | H19: N/A
A21: 1) For the transition year (2014), the applicant may file two appendices, one under Revised CGAAP and one under MIFRS, depending on the materiality of impacts. See the specific instructions under each appendix below for further details.
A22: 2) For applicants that are reflecting accounting policy changes for the first time in a rebasing application, the applicant must file two appendices in the year that the applicant implemented changes to its capitalization and depreciation policies (2012 or 2013), one before and one after the policy changes.
A23: 3) Applicants should provide CGAAP and Revised CGAAP schedules (i.e. as indicated in the first two columns of the above table) to support balances in Account 1576 if the account has yet to be disposed of.
A26: Appendix 2-BA - Fixed Asset Schedule
A28: Applicants are to provide Appendix 2-BA in accordance with the years and corresponding accounting standards noted in the above table to provide a year over year continuity in fixed assets.
A29: If this is the first application where the applicant is rebasing under MIFRS, the applicant should file two appendices, one under Revised CGAAP and one under MIFRS for the transition year (2014), if the change between Revised CGAAP and MIFRS is material. If the change from the accounting standards is not material, the applicant may choose to only provide one appendix under MIFRS. However, the applicant must also indicate the fixed asset net book value balance under Revised CGAAP, the total dollar value of the change and explain why it is not material.
A33: The applicant must establish the continuity of historical cost for gross assets and accumulated depreciation by asset class by ensuring that the opening balance in the year agrees to the closing balance in the prior year.
A36: Appendix 2-Cx - Depreciation and Amortization
A38: Applicants are to provide Appendix 2-C in accordance with the years and corresponding accounting standards listed in the above table.
A39: Appendix 2-C is to be used under all of the scenarios presented in the table above. In the appendix, the applicant will need to indicate which scenario applies. The appendix is to be duplicated for each year and for each accounting standard required as per the above table.
A40: Depreciation accounting policy changes were mandated by the OEB by January 1, 2013. In general, no further changes to an applicant's depreciation policy (i.e. assets' service lives) are expected after the OEB mandated changes by January 1, 2013, unless a change is determined to be necessary in accordance with the depreciation review required under IFRS. If the applicant has made any changes to its depreciation policy subsequent to the OEB mandated changes, for the year of the change, applicants must quantify the change in depreciation. If there are significant changes to multiple asset classes, the applicant must complete Appendix 2-C before and after the change. Applicants must also explain the nature of the change, the reason for the change, quantify the impact of the change.
A42: Appendix 2-E - Account 1575, IFRS-CGAAP Transitional PP&E Amounts (2-EA), Account 1576, Accounting Changes Under CGAAP (2-EB, 2-EC) CONTACT OEB STAFF IF TAB REQUIRED
A44: 1) For an applicant that has a balance in Account 1576 to dispose:
A45: · | B45: If an applicant changed capitalization and depreciation policies effective January 1, 2012, the applicant must complete Appendix 2-EB
A46: · | B46: If an applicant changed capitalization and depreciation policies effective January 1, 2013, the applicant must complete Appendix 2-EC
A48: 2) For an applicant that has a balance in Account 1575 to dispose:
A49: · | B49: The applicant must complete 2-EA
A50: If the applicant did not make any further PP&E accounting policy changes beyond the capitalization and depreciation policy changes as mandated by the OEB by January 1, 2013 (i.e. no further changes made on transition to IFRS), the applicant must indicate this and does not need to complete Appendix 2-EA.
A54: Appendix 2-Y - Summary of Impacts to Revenue Requirement from Transition to MIFRS CONTACT OEB STAFF IF TAB REQUIRED
A56: Applicants must complete Appendix 2-Y if this is the first rebasing application under MIFRS. An applicant must provide a summary of the dollar impacts of MIFRS to each component of the revenue requirement (e.g. rate base, operating costs, etc.), including the overall impact on the proposed revenue requirement. Accordingly, the applicant must identify financial differences and resulting revenue requirement impacts arising from the adoption of MIFRS as compared to CGAAP. If the applicant is reflecting the changes in capitalization and depreciation policies for the first time in a rebasing application as well, then a comparison between MIFRS and CGAAP before the change in accounting policies should be completed. If the applicant changed capitalization and depreciation policies and reflected these changes in a prior rebasing application, then a comparison between MIFRS and CGAAP after the change in accounting policies should be completed.

Sheet App.2-BA_Fixed Asset Cont
M1: File Number: | N1: =EBNUMBER -> EB-2022-0044
M2: Exhibit: | N2: 2
M3: Tab: | N3: 2
M4: Schedule: | N4: 1
M5: Page:
M7: Date: | N7: ='App.2-A_Requested_Approvals'!H7 -> 2022-Oct-28
A9: Appendix 2-BA
A10: Fixed Asset Continuity Schedule 1
A12: Notes:
A14: 1 | B14: Tables in the format outlined above covering all fixed asset accounts should be submitted for the Test Year, Bridge Year and all relevant historical years. At a minimum , the applicant must provide data for the earlier of: 1) all historical years back to its last rebasing; or 2) at least three years of historical actuals, in addition to Bridge Year and Test Year forecasts. If this is the first application where the applicant is rebasing under MIFRS, contact OEB staff for further guidance on the appropriate fixed asset continuity schedules to complete (i.e. applicable years and accounting standard for each schedule).
A17: 2 | B17: The "CCA Class" for fixed assets should generally agree with the CCA Class used for tax purposes in Tax Returns. Fixed Assets sub-components may be used where the underlying asset components are classified under multiple CCA Classes for tax purposes. If an applicant uses any different classes from those shown in the table, an explanation should be provided. (also see note 3).
A20: 3 | B20: The table may need to be customized for a utility's asset categories or for any new asset accounts announced or authorized by the OEB.
A22: 4 | B22: The additions in column (E) must not include construction work in progress (CWIP).
A24: 5 | B24: Effective on the date of IFRS adoption, customer contributions will no longer be recorded in Account 1995 Contributions & Grants, but will be recorded in Account 2440, Deferred Revenues. Amortization of deferred revenue will be removed from the depreciation expense shown on this fixed asset continuity schedule as it should be included as income in Appendix 2-H Other Revenues.
A26: 6 | B26: The applicant must ensure that all asset disposals have been clearly identified in the Chapter 2 Appendices for all historic, bridge and test years. Where a distributor for general financial reporting purposes under IFRS has accounted for the amount of gain or loss on the retirement of assets in a pool of like assets as a charge or credit to income, for reporting and rate application filings, the distributor shall reclassify such gains and losses as depreciation expense, and disclose the amount separately.
A30: 7 | B30: This account includes the amount recorded under finance leases for plant leased from others and used by the utility in its utility operations.
A32: 8 | B32: The applicant must establish the continuity of historical cost for gross assets and accumulated depreciation by asset class by ensuring that the opening balance in the year agrees to the closing balance in the prior year.
E42: Accounting Standard | F42: MIFRS
E43: Year | F43: =RebaseYear -> 2016
D45: Cost | K45: Accumulated Depreciation
A46: CCA Class 2 | B46: OEB Account 3 | C46: Description 3 | D46: Opening Balance 8 | E46: Additions 4 | F46: Disposals 6 | G46: Closing Balance | H46: RRR DATA | J46: Opening Balance 8 | K46: Additions | L46: Disposals 6 | M46: Closing Balance | N46: Net Book Value
B47: 1609 | C47: Capital Contributions Paid | G47: =D47+E47+F47 -> 0 | H47: =IFERROR(VLOOKUP(R47,'2.1.7 All Accounts'!$D:$M,$H$43,FALSE),0) -> 0 | M47: =J47+K47+L47 -> 0 | N47: =G47+M47 -> 0 | R47: ='LDC Info'!$E$14 & B47 -> Kingston Hydro Corporation1609
B48: 1610 | C48: Misc. Intangilble Plant | D48: 208725 | G48: =D48+E48+F48 -> 208725 | J48: -12122 | K48: -6061 | M48: =J48+K48+L48 -> -18183 | N48: =G48+M48 -> 190542
A49: 12 | B49: 1611 | C49: Computer Software (Formally known as Account 1925) | D49: 61915 | G49: =D49+E49+F49 -> 61915 | H49: =IFERROR(VLOOKUP(R49,'2.1.7 All Accounts'!$D:$M,$H$43,FALSE),0) -> 61916 | J49: -52290 | K49: -7674 | M49: =J49+K49+L49 -> -59964 | N49: =G49+M49 -> 1951 | R49: ='LDC Info'!$E$14 & B49 -> Kingston Hydro Corporation1611
A50: CEC | B50: 1612 | C50: Land Rights (Formally known as Account 1906) | G50: =D50+E50+F50 -> 0 | H50: =IFERROR(VLOOKUP(R50,'2.1.7 All Accounts'!$D:$M,$H$43,FALSE),0) -> 0 | M50: =J50+K50+L50 -> 0 | N50: =G50+M50 -> 0 | R50: ='LDC Info'!$E$14 & B50 -> Kingston Hydro Corporation1612
A51: N/A | B51: 1805 | C51: Land | D51: 197343 | G51: =D51+E51+F51 -> 197343 | H51: =IFERROR(VLOOKUP(R51,'2.1.7 All Accounts'!$D:$M,$H$43,FALSE),0) -> 197343 | M51: =J51+K51+L51 -> 0 | N51: =G51+M51 -> 197343 | R51: ='LDC Info'!$E$14 & B51 -> Kingston Hydro Corporation1805
A52: 47 | B52: 1808 | C52: Buildings | D52: 712118 | E52: 123964 | G52: =D52+E52+F52 -> 836082 | H52: =IFERROR(VLOOKUP(R52,'2.1.7 All Accounts'!$D:$M,$H$43,FALSE),0) -> 836045 | J52: -30751 | K52: -20520 | M52: =J52+K52+L52 -> -51271 | N52: =G52+M52 -> 784811 | R52: ='LDC Info'!$E$14 & B52 -> Kingston Hydro Corporation1808
A53: 13 | B53: 1810 | C53: Leasehold Improvements | G53: 0 | H53: =IFERROR(VLOOKUP(R53,'2.1.7 All Accounts'!$D:$M,$H$43,FALSE),0) -> 0 | M53: 0 | N53: 0 | R53: ='LDC Info'!$E$14 & B53 -> Kingston Hydro Corporation1810
A54: 47 | B54: 1815 | C54: Transformer Station Equipment >50 kV | G54: 0 | H54: =IFERROR(VLOOKUP(R54,'2.1.7 All Accounts'!$D:$M,$H$43,FALSE),0) -> 0 | M54: 0 | N54: 0 | R54: ='LDC Info'!$E$14 & B54 -> Kingston Hydro Corporation1815
A55: 47 | B55: 1820 | C55: Distribution Station Equipment <50 kV | D55: 7242821 | E55: 569258 | G55: 7812079 | H55: =IFERROR(VLOOKUP(R55,'2.1.7 All Accounts'!$D:$M,$H$43,FALSE),0) -> 7812078 | J55: -405289 | K55: -275332 | M55: -680621 | N55: 7131458 | R55: ='LDC Info'!$E$14 & B55 -> Kingston Hydro Corporation1820
A56: 47 | B56: 1825 | C56: Storage Battery Equipment | G56: 0 | H56: =IFERROR(VLOOKUP(R56,'2.1.7 All Accounts'!$D:$M,$H$43,FALSE),0) -> 0 | M56: 0 | N56: 0 | R56: ='LDC Info'!$E$14 & B56 -> Kingston Hydro Corporation1825
A57: 47 | B57: 1830 | C57: Poles, Towers & Fixtures | D57: 9939462 | E57: 1842288 | G57: 11781750 | H57: =IFERROR(VLOOKUP(R57,'2.1.7 All Accounts'!$D:$M,$H$43,FALSE),0) -> 11781749 | J57: -495818 | K57: -287882 | M57: -783700 | N57: 10998050 | R57: ='LDC Info'!$E$14 & B57 -> Kingston Hydro Corporation1830
A58: 47 | B58: 1835 | C58: Overhead Conductors & Devices | D58: 3678981 | E58: 55172 | G58: 3734153 | H58: =IFERROR(VLOOKUP(R58,'2.1.7 All Accounts'!$D:$M,$H$43,FALSE),0) -> 3734153 | J58: -153128 | K58: -78391 | M58: -231519 | N58: 3502634 | R58: ='LDC Info'!$E$14 & B58 -> Kingston Hydro Corporation1835
A59: 47 | B59: 1840 | C59: Underground Conduit | D59: 7998341 | E59: 3233706 | G59: 11232047 | H59: =IFERROR(VLOOKUP(R59,'2.1.7 All Accounts'!$D:$M,$H$43,FALSE),0) -> 11232047 | J59: -295101 | K59: -271166 | M59: -566267 | N59: 10665780 | R59: ='LDC Info'!$E$14 & B59 -> Kingston Hydro Corporation1840
A60: 47 | B60: 1845 | C60: Underground Conductors & Devices | D60: 5564907 | E60: 1692708 | G60: 7257615 | H60: =IFERROR(VLOOKUP(R60,'2.1.7 All Accounts'!$D:$M,$H$43,FALSE),0) -> 7257615 | J60: -231216 | K60: -231654 | M60: -462870 | N60: 6794745 | R60: ='LDC Info'!$E$14 & B60 -> Kingston Hydro Corporation1845
A61: 47 | B61: 1850 | C61: Line Transformers | D61: 2825369 | E61: 398228 | G61: 3223597 | H61: =IFERROR(VLOOKUP(R61,'2.1.7 All Accounts'!$D:$M,$H$43,FALSE),0) -> 3223598 | J61: -159729 | K61: -100144 | M61: -259873 | N61: 2963724 | R61: ='LDC Info'!$E$14 & B61 -> Kingston Hydro Corporation1850
A62: 47 | B62: 1855 | C62: Services (Overhead & Underground) | D62: 966008 | E62: 138869 | G62: 1104877 | H62: =IFERROR(VLOOKUP(R62,'2.1.7 All Accounts'!$D:$M,$H$43,FALSE),0) -> 1104878 | J62: -33781 | K62: -19484 | M62: -53265 | N62: 1051612 | R62: ='LDC Info'!$E$14 & B62 -> Kingston Hydro Corporation1855
A63: 47 | B63: 1860 | C63: Meters | D63: 658742 | E63: 7815 | G63: 666557 | H63: =IFERROR(VLOOKUP(R63,'2.1.7 All Accounts'!$D:$M,$H$43,FALSE),0) -> 4976456 | J63: -37803 | K63: -19225 | M63: -57028 | N63: 609529 | R63: ='LDC Info'!$E$14 & B63 -> Kingston Hydro Corporation1860
A64: 47 | B64: 1860 | C64: Meters (Smart Meters) | D64: 3996399 | E64: 313500 | G64: 4309899 | H64: =IFERROR(VLOOKUP(R64,'2.1.7 All Accounts'!$D:$M,$H$43,FALSE),0) -> 4976456 | J64: -656544 | K64: -349713 | M64: -1006257 | N64: 3303642 | R64: ='LDC Info'!$E$14 & B64 -> Kingston Hydro Corporation1860
A65: N/A | B65: 1905 | C65: Land | G65: 0 | H65: =IFERROR(VLOOKUP(R65,'2.1.7 All Accounts'!$D:$M,$H$43,FALSE),0) -> 0 | M65: 0 | N65: 0 | R65: ='LDC Info'!$E$14 & B65 -> Kingston Hydro Corporation1905
A66: 47 | B66: 1908 | C66: Buildings & Fixtures | G66: 0 | H66: =IFERROR(VLOOKUP(R66,'2.1.7 All Accounts'!$D:$M,$H$43,FALSE),0) -> 0 | M66: 0 | N66: 0 | R66: ='LDC Info'!$E$14 & B66 -> Kingston Hydro Corporation1908
A67: 13 | B67: 1910 | C67: Leasehold Improvements | D67: 108995 | G67: 108995 | H67: =IFERROR(VLOOKUP(R67,'2.1.7 All Accounts'!$D:$M,$H$43,FALSE),0) -> 108995 | J67: -16228 | K67: -8114 | M67: -24342 | N67: 84653 | R67: ='LDC Info'!$E$14 & B67 -> Kingston Hydro Corporation1910
A68: 8 | B68: 1915 | C68: Office Furniture & Equipment (10 years) | D68: 21481 | G68: 21481 | H68: =IFERROR(VLOOKUP(R68,'2.1.7 All Accounts'!$D:$M,$H$43,FALSE),0) -> 21481 | J68: -5458 | K68: -2729 | M68: -8187 | N68: 13294 | R68: ='LDC Info'!$E$14 & B68 -> Kingston Hydro Corporation1915
A69: 8 | B69: 1915 | C69: Office Furniture & Equipment (5 years) | G69: 0 | H69: =IFERROR(VLOOKUP(R69,'2.1.7 All Accounts'!$D:$M,$H$43,FALSE),0) -> 21481 | M69: 0 | N69: 0 | R69: ='LDC Info'!$E$14 & B69 -> Kingston Hydro Corporation1915
A70: 10 | B70: 1920 | C70: Computer Equipment - Hardware | D70: 178233 | G70: 178233 | H70: =IFERROR(VLOOKUP(R70,'2.1.7 All Accounts'!$D:$M,$H$43,FALSE),0) -> 178232 | J70: -95647 | K70: -28948 | M70: -124595 | N70: 53638 | R70: ='LDC Info'!$E$14 & B70 -> Kingston Hydro Corporation1920
A71: 45 | B71: 1920 | C71: Computer Equip.-Hardware(Post Mar. 22/04) | G71: 0 | H71: =IFERROR(VLOOKUP(R71,'2.1.7 All Accounts'!$D:$M,$H$43,FALSE),0) -> 178232 | M71: 0 | N71: 0 | R71: ='LDC Info'!$E$14 & B71 -> Kingston Hydro Corporation1920
A72: 50 | B72: 1920 | C72: Computer Equip.-Hardware(Post Mar. 19/07) | G72: 0 | H72: =IFERROR(VLOOKUP(R72,'2.1.7 All Accounts'!$D:$M,$H$43,FALSE),0) -> 178232 | M72: 0 | N72: 0 | R72: ='LDC Info'!$E$14 & B72 -> Kingston Hydro Corporation1920
A73: 10 | B73: 1930 | C73: Transportation Equipment | D73: 1511344 | E73: 86243 | G73: 1597587 | H73: =IFERROR(VLOOKUP(R73,'2.1.7 All Accounts'!$D:$M,$H$43,FALSE),0) -> 1597587 | J73: -381498 | K73: -199171 | M73: -580669 | N73: 1016918 | R73: ='LDC Info'!$E$14 & B73 -> Kingston Hydro Corporation1930
A74: 8 | B74: 1935 | C74: Stores Equipment | D74: 31776 | E74: 45000 | G74: 76776 | H74: =IFERROR(VLOOKUP(R74,'2.1.7 All Accounts'!$D:$M,$H$43,FALSE),0) -> 76776 | J74: -12220 | K74: -8360 | M74: -20580 | N74: 56196 | R74: ='LDC Info'!$E$14 & B74 -> Kingston Hydro Corporation1935
A75: 8 | B75: 1940 | C75: Tools, Shop & Garage Equipment | D75: 373459 | E75: 85263 | G75: 458722 | H75: =IFERROR(VLOOKUP(R75,'2.1.7 All Accounts'!$D:$M,$H$43,FALSE),0) -> 458722 | J75: -107564 | K75: -50630 | M75: -158194 | N75: 300528 | R75: ='LDC Info'!$E$14 & B75 -> Kingston Hydro Corporation1940
A76: 8 | B76: 1945 | C76: Measurement & Testing Equipment | D76: 70178 | E76: 1178 | G76: 71356 | H76: =IFERROR(VLOOKUP(R76,'2.1.7 All Accounts'!$D:$M,$H$43,FALSE),0) -> 71356 | J76: -14360 | K76: -9766 | M76: -24126 | N76: 47230 | R76: ='LDC Info'!$E$14 & B76 -> Kingston Hydro Corporation1945
A77: 8 | B77: 1950 | C77: Power Operated Equipment | G77: 0 | H77: =IFERROR(VLOOKUP(R77,'2.1.7 All Accounts'!$D:$M,$H$43,FALSE),0) -> 0 | M77: 0 | N77: 0 | R77: ='LDC Info'!$E$14 & B77 -> Kingston Hydro Corporation1950
A78: 8 | B78: 1955 | C78: Communications Equipment | D78: 96717 | E78: 104813 | G78: 201530 | H78: =IFERROR(VLOOKUP(R78,'2.1.7 All Accounts'!$D:$M,$H$43,FALSE),0) -> 201530 | J78: -49381 | K78: -25709 | M78: -75090 | N78: 126440 | R78: ='LDC Info'!$E$14 & B78 -> Kingston Hydro Corporation1955
A79: 8 | B79: 1955 | C79: Communication Equipment (Smart Meters) | G79: 0 | H79: =IFERROR(VLOOKUP(R79,'2.1.7 All Accounts'!$D:$M,$H$43,FALSE),0) -> 201530 | M79: 0 | N79: 0 | R79: ='LDC Info'!$E$14 & B79 -> Kingston Hydro Corporation1955
A80: 8 | B80: 1960 | C80: Miscellaneous Equipment | G80: 0 | H80: =IFERROR(VLOOKUP(R80,'2.1.7 All Accounts'!$D:$M,$H$43,FALSE),0) -> 0 | M80: 0 | N80: 0 | R80: ='LDC Info'!$E$14 & B80 -> Kingston Hydro Corporation1960
A81: 47 | B81: 1970 | C81: Load Management Controls Customer Premises | G81: 0 | H81: =IFERROR(VLOOKUP(R81,'2.1.7 All Accounts'!$D:$M,$H$43,FALSE),0) -> 0 | M81: 0 | N81: 0 | R81: ='LDC Info'!$E$14 & B81 -> Kingston Hydro Corporation1970
A82: 47 | B82: 1975 | C82: Load Management Controls Utility Premises | G82: 0 | H82: =IFERROR(VLOOKUP(R82,'2.1.7 All Accounts'!$D:$M,$H$43,FALSE),0) -> 0 | M82: 0 | N82: 0 | R82: ='LDC Info'!$E$14 & B82 -> Kingston Hydro Corporation1975
A83: 47 | B83: 1980 | C83: System Supervisor Equipment | D83: 820498 | E83: 18418 | G83: 838916 | H83: =IFERROR(VLOOKUP(R83,'2.1.7 All Accounts'!$D:$M,$H$43,FALSE),0) -> 838917 | J83: -121134 | K83: -62756 | M83: -183890 | N83: 655026 | R83: ='LDC Info'!$E$14 & B83 -> Kingston Hydro Corporation1980
A84: 47 | B84: 1985 | C84: Miscellaneous Fixed Assets | G84: 0 | H84: =IFERROR(VLOOKUP(R84,'2.1.7 All Accounts'!$D:$M,$H$43,FALSE),0) -> 0 | M84: 0 | N84: 0 | R84: ='LDC Info'!$E$14 & B84 -> Kingston Hydro Corporation1985
A85: 47 | B85: 1990 | C85: Other Tangible Property | G85: 0 | H85: =IFERROR(VLOOKUP(R85,'2.1.7 All Accounts'!$D:$M,$H$43,FALSE),0) -> 0 | M85: 0 | N85: 0 | R85: ='LDC Info'!$E$14 & B85 -> Kingston Hydro Corporation1990
A86: 47 | B86: 1995 | C86: Contributions & Grants | D86: -2418367 | G86: -2418367 | H86: =IFERROR(VLOOKUP(R86,'2.1.7 All Accounts'!$D:$M,$H$43,FALSE),0) -> -2418366 | J86: 60312 | K86: 60312 | M86: 120624 | N86: -2297743 | R86: ='LDC Info'!$E$14 & B86 -> Kingston Hydro Corporation1995
A87: 47 | B87: 2440 | C87: Deferred Revenue5 | D87: -231206 | E87: -592673 | G87: -823879 | H87: =IFERROR(VLOOKUP(R87,'2.1.7 All Accounts'!$D:$M,$H$43,FALSE),0) -> -801226 | J87: 8083 | K87: 14570 | M87: 22653 | N87: -801226 | R87: ='LDC Info'!$E$14 & B87 -> Kingston Hydro Corporation2440
B88: 2005 | C88: Property Under Finance Lease7 | G88: 0 | H88: =IFERROR(VLOOKUP(R88,'2.1.7 All Accounts'!$D:$M,$H$43,FALSE),0) -> 0 | M88: 0 | N88: 0 | R88: ='LDC Info'!$E$14 & B88 -> Kingston Hydro Corporation2005
C89: Sub-Total | D89: =SUM(D47:D88) -> 44614239 | E89: =SUM(E47:E88) -> 8123750 | F89: =SUM(F47:F88) -> 0 | G89: =SUM(G47:G88) -> 52737989 | H89: =SUM(H47:H88) -> 58107813 | J89: =SUM(J47:J88) -> -3298667 | K89: =SUM(K47:K88) -> -1988547 | L89: =SUM(L47:L88) -> 0 | M89: =SUM(M47:M88) -> -5287214 | N89: =SUM(N47:N88) -> 47450775
C90: Less Socialized Renewable Energy Generation Investments (input as negative) | G90: =D90+E90+F90 -> 0 | M90: =J90+K90+L90 -> 0 | N90: =G90+M90 -> 0
C91: Less Other Non Rate-Regulated Utility Assets (input as negative) | G91: =D91+E91+F91 -> 0 | M91: =J91+K91+L91 -> 0 | N91: =G91+M91 -> 0
C92: Total PP&E | D92: =SUM(D89:D91) -> 44614239 | E92: =SUM(E89:E91) -> 8123750 | F92: =SUM(F89:F91) -> 0 | G92: =SUM(G89:G91) -> 52737989 | J92: =SUM(J89:J91) -> -3298667 | K92: =SUM(K89:K91) -> -1988547 | L92: =SUM(L89:L91) -> 0 | M92: =SUM(M89:M91) -> -5287214 | N92: =SUM(N89:N91) -> 47450775
C93: Depreciation Expense adj. from gain or loss on the retirement of assets (pool of like assets), if applicable6
C94: Total | K94: =K92+K93 -> -1988547
J96: Less: Fully Allocated Depreciation
A97: 10 | C97: Transportation | J97: Transportation
A98: 8 | C98: Stores Equipment | J98: Stores Equipment
A99: 47 | C99: Deferred Revenue | J99: Deferred Revenue | L99: 14570
J100: Net Depreciation | L100: =K94-L97-L98-L99 -> -2003117
E104: Accounting Standard | F104: MIFRS
E105: Year | F105: =RebaseYear+1 -> 2017
D107: Cost | K107: Accumulated Depreciation
A108: CCA Class 2 | B108: OEB Account 3 | C108: Description 3 | D108: Opening Balance 8 | E108: Additions 4 | F108: Disposals 6 | G108: Closing Balance | H108: RRR DATA | J108: Opening Balance 8 | K108: Additions | L108: Disposals 6 | M108: Closing Balance | N108: Net Book Value
B109: 1609 | C109: Capital Contributions Paid | D109: =G47 -> 0 | G109: =D109+E109+F109 -> 0 | H109: =IFERROR(VLOOKUP(R109,'2.1.7 All Accounts'!$D:$M,$H$105,FALSE),0) -> 0 | J109: =M47 -> 0 | M109: =J109+K109+L109 -> 0 | N109: =G109+M109 -> 0 | R109: ='LDC Info'!$E$14 & B109 -> Kingston Hydro Corporation1609
B110: 1610 | C110: Misc. Intangilble Plant | D110: =G48 -> 208725 | F110: -208725 | G110: =D110+E110+F110 -> 0 | J110: =M48 -> -18183 | L110: 18183 | M110: =J110+K110+L110 -> 0 | N110: =G110+M110 -> 0
A111: 12 | B111: 1611 | C111: Computer Software (Formally known as Account 1925) | D111: =G49 -> 61915 | E111: 2852 | G111: =D111+E111+F111 -> 64767 | H111: =IFERROR(VLOOKUP(R111,'2.1.7 All Accounts'!$D:$M,$H$105,FALSE),0) -> 64768 | J111: =M49 -> -59964 | K111: -2238 | M111: =J111+K111+L111 -> -62202 | N111: =G111+M111 -> 2565 | R111: ='LDC Info'!$E$14 & B111 -> Kingston Hydro Corporation1611
A112: CEC | B112: 1612 | C112: Land Rights (Formally known as Account 1906) | D112: 0 | G112: =D112+E112+F112 -> 0 | H112: =IFERROR(VLOOKUP(R112,'2.1.7 All Accounts'!$D:$M,$H$105,FALSE),0) -> 0 | J112: 0 | M112: =J112+K112+L112 -> 0 | N112: =G112+M112 -> 0 | R112: ='LDC Info'!$E$14 & B112 -> Kingston Hydro Corporation1612
A113: N/A | B113: 1805 | C113: Land | D113: 197343 | G113: =D113+E113+F113 -> 197343 | H113: =IFERROR(VLOOKUP(R113,'2.1.7 All Accounts'!$D:$M,$H$105,FALSE),0) -> 197343 | J113: 0 | M113: =J113+K113+L113 -> 0 | N113: =G113+M113 -> 197343 | R113: ='LDC Info'!$E$14 & B113 -> Kingston Hydro Corporation1805
A114: 47 | B114: 1808 | C114: Buildings | D114: 836082 | E114: 62356 | G114: =D114+E114+F114 -> 898438 | H114: =IFERROR(VLOOKUP(R114,'2.1.7 All Accounts'!$D:$M,$H$105,FALSE),0) -> 898401 | J114: -51271 | K114: -23106 | M114: =J114+K114+L114 -> -74377 | N114: =G114+M114 -> 824061 | R114: ='LDC Info'!$E$14 & B114 -> Kingston Hydro Corporation1808
A115: 13 | B115: 1810 | C115: Leasehold Improvements | D115: 0 | G115: 0 | H115: =IFERROR(VLOOKUP(R115,'2.1.7 All Accounts'!$D:$M,$H$105,FALSE),0) -> 0 | J115: 0 | M115: 0 | N115: 0 | R115: ='LDC Info'!$E$14 & B115 -> Kingston Hydro Corporation1810
A116: 47 | B116: 1815 | C116: Transformer Station Equipment >50 kV | D116: 0 | G116: 0 | H116: =IFERROR(VLOOKUP(R116,'2.1.7 All Accounts'!$D:$M,$H$105,FALSE),0) -> 0 | J116: 0 | M116: 0 | N116: 0 | R116: ='LDC Info'!$E$14 & B116 -> Kingston Hydro Corporation1815
A117: 47 | B117: 1820 | C117: Distribution Station Equipment <50 kV | D117: 7812079 | E117: 323485 | G117: 8135564 | H117: =IFERROR(VLOOKUP(R117,'2.1.7 All Accounts'!$D:$M,$H$105,FALSE),0) -> 8135564 | J117: -680621 | K117: -236273 | M117: -916894 | N117: 7218670 | R117: ='LDC Info'!$E$14 & B117 -> Kingston Hydro Corporation1820
A118: 47 | B118: 1825 | C118: Storage Battery Equipment | D118: 0 | G118: 0 | H118: =IFERROR(VLOOKUP(R118,'2.1.7 All Accounts'!$D:$M,$H$105,FALSE),0) -> 0 | J118: 0 | M118: 0 | N118: 0 | R118: ='LDC Info'!$E$14 & B118 -> Kingston Hydro Corporation1825
A119: 47 | B119: 1830 | C119: Poles, Towers & Fixtures | D119: 11781750 | E119: 4561687 | G119: 16343437 | H119: =IFERROR(VLOOKUP(R119,'2.1.7 All Accounts'!$D:$M,$H$105,FALSE),0) -> 16343436 | J119: -783700 | K119: -450349 | M119: -1234049 | N119: 15109388 | R119: ='LDC Info'!$E$14 & B119 -> Kingston Hydro Corporation1830
A120: 47 | B120: 1835 | C120: Overhead Conductors & Devices | D120: 3734153 | E120: 888623 | G120: 4622776 | H120: =IFERROR(VLOOKUP(R120,'2.1.7 All Accounts'!$D:$M,$H$105,FALSE),0) -> 4622776 | J120: -231519 | K120: -108938 | M120: -340457 | N120: 4282319 | R120: ='LDC Info'!$E$14 & B120 -> Kingston Hydro Corporation1835
A121: 47 | B121: 1840 | C121: Underground Conduit | D121: 11232047 | E121: 317041 | G121: 11549088 | H121: =IFERROR(VLOOKUP(R121,'2.1.7 All Accounts'!$D:$M,$H$105,FALSE),0) -> 11549088 | J121: -566267 | K121: -216001 | M121: -782268 | N121: 10766820 | R121: ='LDC Info'!$E$14 & B121 -> Kingston Hydro Corporation1840
A122: 47 | B122: 1845 | C122: Underground Conductors & Devices | D122: 7257615 | E122: 267068 | G122: 7524683 | H122: =IFERROR(VLOOKUP(R122,'2.1.7 All Accounts'!$D:$M,$H$105,FALSE),0) -> 7524683 | J122: -462870 | K122: -163074 | M122: -625944 | N122: 6898739 | R122: ='LDC Info'!$E$14 & B122 -> Kingston Hydro Corporation1845
A123: 47 | B123: 1850 | C123: Line Transformers | D123: 3223597 | E123: 348173 | G123: 3571770 | H123: =IFERROR(VLOOKUP(R123,'2.1.7 All Accounts'!$D:$M,$H$105,FALSE),0) -> 3571771 | J123: -259873 | K123: -102633 | M123: -362506 | N123: 3209264 | R123: ='LDC Info'!$E$14 & B123 -> Kingston Hydro Corporation1850
A124: 47 | B124: 1855 | C124: Services (Overhead & Underground) | D124: 1104877 | E124: 392668 | G124: 1497545 | H124: =IFERROR(VLOOKUP(R124,'2.1.7 All Accounts'!$D:$M,$H$105,FALSE),0) -> 1497546 | J124: -53265 | K124: -23914 | M124: -77179 | N124: 1420366 | R124: ='LDC Info'!$E$14 & B124 -> Kingston Hydro Corporation1855
A125: 47 | B125: 1860 | C125: Meters | D125: 666557 | E125: 17021 | G125: 683578 | H125: =IFERROR(VLOOKUP(R125,'2.1.7 All Accounts'!$D:$M,$H$105,FALSE),0) -> 5287041 | J125: -57028 | K125: -19536 | M125: -76564 | N125: 607014 | R125: ='LDC Info'!$E$14 & B125 -> Kingston Hydro Corporation1860
A126: 47 | B126: 1860 | C126: Meters (Smart Meters) | D126: 4309899 | E126: 293564 | G126: 4603463 | H126: =IFERROR(VLOOKUP(R126,'2.1.7 All Accounts'!$D:$M,$H$105,FALSE),0) -> 5287041 | J126: -1006257 | K126: -369604 | M126: -1375861 | N126: 3227602 | R126: ='LDC Info'!$E$14 & B126 -> Kingston Hydro Corporation1860
A127: N/A | B127: 1905 | C127: Land | D127: 0 | G127: 0 | H127: =IFERROR(VLOOKUP(R127,'2.1.7 All Accounts'!$D:$M,$H$105,FALSE),0) -> 0 | J127: 0 | M127: 0 | N127: 0 | R127: ='LDC Info'!$E$14 & B127 -> Kingston Hydro Corporation1905
A128: 47 | B128: 1908 | C128: Buildings & Fixtures | D128: 0 | G128: 0 | H128: =IFERROR(VLOOKUP(R128,'2.1.7 All Accounts'!$D:$M,$H$105,FALSE),0) -> 0 | J128: 0 | M128: 0 | N128: 0 | R128: ='LDC Info'!$E$14 & B128 -> Kingston Hydro Corporation1908
A129: 13 | B129: 1910 | C129: Leasehold Improvements | D129: 108995 | G129: 108995 | H129: =IFERROR(VLOOKUP(R129,'2.1.7 All Accounts'!$D:$M,$H$105,FALSE),0) -> 108995 | J129: -24342 | K129: -8114 | M129: -32456 | N129: 76539 | R129: ='LDC Info'!$E$14 & B129 -> Kingston Hydro Corporation1910
A130: 8 | B130: 1915 | C130: Office Furniture & Equipment (10 years) | D130: 21481 | G130: 21481 | H130: =IFERROR(VLOOKUP(R130,'2.1.7 All Accounts'!$D:$M,$H$105,FALSE),0) -> 21481 | J130: -8187 | K130: -2729 | M130: -10916 | N130: 10565 | R130: ='LDC Info'!$E$14 & B130 -> Kingston Hydro Corporation1915
A131: 8 | B131: 1915 | C131: Office Furniture & Equipment (5 years) | D131: 0 | G131: 0 | H131: =IFERROR(VLOOKUP(R131,'2.1.7 All Accounts'!$D:$M,$H$105,FALSE),0) -> 21481 | J131: 0 | M131: 0 | N131: 0 | R131: ='LDC Info'!$E$14 & B131 -> Kingston Hydro Corporation1915
A132: 10 | B132: 1920 | C132: Computer Equipment - Hardware | D132: 178233 | E132: 211487 | G132: 389720 | H132: =IFERROR(VLOOKUP(R132,'2.1.7 All Accounts'!$D:$M,$H$105,FALSE),0) -> 389720 | J132: -124595 | K132: -49286 | M132: -173881 | N132: 215839 | R132: ='LDC Info'!$E$14 & B132 -> Kingston Hydro Corporation1920
A133: 45 | B133: 1920 | C133: Computer Equip.-Hardware(Post Mar. 22/04) | D133: 0 | G133: 0 | H133: =IFERROR(VLOOKUP(R133,'2.1.7 All Accounts'!$D:$M,$H$105,FALSE),0) -> 389720 | J133: 0 | M133: 0 | N133: 0 | R133: ='LDC Info'!$E$14 & B133 -> Kingston Hydro Corporation1920
A134: 50 | B134: 1920 | C134: Computer Equip.-Hardware(Post Mar. 19/07) | D134: 0 | G134: 0 | H134: =IFERROR(VLOOKUP(R134,'2.1.7 All Accounts'!$D:$M,$H$105,FALSE),0) -> 389720 | J134: 0 | M134: 0 | N134: 0 | R134: ='LDC Info'!$E$14 & B134 -> Kingston Hydro Corporation1920
A135: 10 | B135: 1930 | C135: Transportation Equipment | D135: 1597587 | E135: 440994 | G135: 2038581 | H135: =IFERROR(VLOOKUP(R135,'2.1.7 All Accounts'!$D:$M,$H$105,FALSE),0) -> 2038581 | J135: -580669 | K135: -205929 | M135: -786598 | N135: 1251983 | R135: ='LDC Info'!$E$14 & B135 -> Kingston Hydro Corporation1930
A136: 8 | B136: 1935 | C136: Stores Equipment | D136: 76776 | G136: 76776 | H136: =IFERROR(VLOOKUP(R136,'2.1.7 All Accounts'!$D:$M,$H$105,FALSE),0) -> 76776 | J136: -20580 | K136: -10610 | M136: -31190 | N136: 45586 | R136: ='LDC Info'!$E$14 & B136 -> Kingston Hydro Corporation1935
A137: 8 | B137: 1940 | C137: Tools, Shop & Garage Equipment | D137: 458722 | E137: 1938 | G137: 460660 | H137: =IFERROR(VLOOKUP(R137,'2.1.7 All Accounts'!$D:$M,$H$105,FALSE),0) -> 460660 | J137: -158194 | K137: -53441 | M137: -211635 | N137: 249025 | R137: ='LDC Info'!$E$14 & B137 -> Kingston Hydro Corporation1940
A138: 8 | B138: 1945 | C138: Measurement & Testing Equipment | D138: 71356 | G138: 71356 | H138: =IFERROR(VLOOKUP(R138,'2.1.7 All Accounts'!$D:$M,$H$105,FALSE),0) -> 71356 | J138: -24126 | K138: -9825 | M138: -33951 | N138: 37405 | R138: ='LDC Info'!$E$14 & B138 -> Kingston Hydro Corporation1945
A139: 8 | B139: 1950 | C139: Power Operated Equipment | D139: 0 | G139: 0 | H139: =IFERROR(VLOOKUP(R139,'2.1.7 All Accounts'!$D:$M,$H$105,FALSE),0) -> 0 | J139: 0 | M139: 0 | N139: 0 | R139: ='LDC Info'!$E$14 & B139 -> Kingston Hydro Corporation1950
A140: 8 | B140: 1955 | C140: Communications Equipment | D140: 201530 | E140: 20572 | G140: 222102 | H140: =IFERROR(VLOOKUP(R140,'2.1.7 All Accounts'!$D:$M,$H$105,FALSE),0) -> 222102 | J140: -75090 | K140: -36355 | M140: -111445 | N140: 110657 | R140: ='LDC Info'!$E$14 & B140 -> Kingston Hydro Corporation1955
A141: 8 | B141: 1955 | C141: Communication Equipment (Smart Meters) | D141: 0 | G141: 0 | H141: =IFERROR(VLOOKUP(R141,'2.1.7 All Accounts'!$D:$M,$H$105,FALSE),0) -> 222102 | J141: 0 | M141: 0 | N141: 0 | R141: ='LDC Info'!$E$14 & B141 -> Kingston Hydro Corporation1955
A142: 8 | B142: 1960 | C142: Miscellaneous Equipment | D142: 0 | G142: 0 | H142: =IFERROR(VLOOKUP(R142,'2.1.7 All Accounts'!$D:$M,$H$105,FALSE),0) -> 0 | J142: 0 | M142: 0 | N142: 0 | R142: ='LDC Info'!$E$14 & B142 -> Kingston Hydro Corporation1960
A143: 47 | B143: 1970 | C143: Load Management Controls Customer Premises | D143: 0 | G143: 0 | H143: =IFERROR(VLOOKUP(R143,'2.1.7 All Accounts'!$D:$M,$H$105,FALSE),0) -> 0 | J143: 0 | M143: 0 | N143: 0 | R143: ='LDC Info'!$E$14 & B143 -> Kingston Hydro Corporation1970
A144: 47 | B144: 1975 | C144: Load Management Controls Utility Premises | D144: 0 | G144: 0 | H144: =IFERROR(VLOOKUP(R144,'2.1.7 All Accounts'!$D:$M,$H$105,FALSE),0) -> 0 | J144: 0 | M144: 0 | N144: 0 | R144: ='LDC Info'!$E$14 & B144 -> Kingston Hydro Corporation1975
A145: 47 | B145: 1980 | C145: System Supervisor Equipment | D145: 838916 | E145: 22497 | G145: 861413 | H145: =IFERROR(VLOOKUP(R145,'2.1.7 All Accounts'!$D:$M,$H$105,FALSE),0) -> 861414 | J145: -183890 | K145: -63238 | M145: -247128 | N145: 614285 | R145: ='LDC Info'!$E$14 & B145 -> Kingston Hydro Corporation1980
A146: 47 | B146: 1985 | C146: Miscellaneous Fixed Assets | D146: 0 | G146: 0 | H146: =IFERROR(VLOOKUP(R146,'2.1.7 All Accounts'!$D:$M,$H$105,FALSE),0) -> 0 | J146: 0 | M146: 0 | N146: 0 | R146: ='LDC Info'!$E$14 & B146 -> Kingston Hydro Corporation1985
A147: 47 | B147: 1990 | C147: Other Tangible Property | D147: 0 | G147: 0 | H147: =IFERROR(VLOOKUP(R147,'2.1.7 All Accounts'!$D:$M,$H$105,FALSE),0) -> 0 | J147: 0 | M147: 0 | N147: 0 | R147: ='LDC Info'!$E$14 & B147 -> Kingston Hydro Corporation1990
A148: 47 | B148: 1995 | C148: Contributions & Grants | D148: -2418367 | G148: -2418367 | H148: =IFERROR(VLOOKUP(R148,'2.1.7 All Accounts'!$D:$M,$H$105,FALSE),0) -> -2418366 | J148: 120624 | K148: 59900 | M148: 180524 | N148: -2237843 | R148: ='LDC Info'!$E$14 & B148 -> Kingston Hydro Corporation1995
A149: 47 | B149: 2440 | C149: Deferred Revenue5 | D149: -823879 | E149: -4742516 | G149: -5566395 | H149: =IFERROR(VLOOKUP(R149,'2.1.7 All Accounts'!$D:$M,$H$105,FALSE),0) -> -5467882 | J149: 22653 | K149: 186741 | M149: 209394 | N149: -5357001 | R149: ='LDC Info'!$E$14 & B149 -> Kingston Hydro Corporation2440
B150: 2005 | C150: Property Under Finance Lease7 | D150: 0 | G150: 0 | H150: =IFERROR(VLOOKUP(R150,'2.1.7 All Accounts'!$D:$M,$H$105,FALSE),0) -> 0 | J150: 0 | M150: 0 | N150: 0 | R150: ='LDC Info'!$E$14 & B150 -> Kingston Hydro Corporation2005
C151: Sub-Total | D151: =SUM(D109:D150) -> 52737989 | E151: =SUM(E109:E150) -> 3429510 | F151: =SUM(F109:F150) -> -208725 | G151: =SUM(G109:G150) -> 55958774 | H151: =SUM(H109:H150) -> 62367318 | J151: =SUM(J109:J150) -> -5287214 | K151: =SUM(K109:K150) -> -1908552 | L151: =SUM(L109:L150) -> 18183 | M151: =SUM(M109:M150) -> -7177583 | N151: =SUM(N109:N150) -> 48781191
C152: Less Socialized Renewable Energy Generation Investments (input as negative) | D152: 0 | G152: =D152+E152+F152 -> 0 | J152: 0 | M152: =J152+K152+L152 -> 0 | N152: =G152+M152 -> 0
C153: Less Other Non Rate-Regulated Utility Assets (input as negative) | D153: 0 | G153: =D153+E153+F153 -> 0 | J153: 0 | M153: =J153+K153+L153 -> 0 | N153: =G153+M153 -> 0
C154: Total PP&E | D154: =SUM(D151:D153) -> 52737989 | E154: =SUM(E151:E153) -> 3429510 | F154: =SUM(F151:F153) -> -208725 | G154: =SUM(G151:G153) -> 55958774 | J154: =SUM(J151:J153) -> -5287214 | K154: =SUM(K151:K153) -> -1908552 | L154: =SUM(L151:L153) -> 18183 | M154: =SUM(M151:M153) -> -7177583 | N154: =SUM(N151:N153) -> 48781191
C155: Depreciation Expense adj. from gain or loss on the retirement of assets (pool of like assets), if applicable6
C156: Total | K156: =K154+K155 -> -1908552
J158: Less: Fully Allocated Depreciation
A159: 10 | C159: Transportation | J159: Transportation
A160: 8 | C160: Stores Equipment | J160: Stores Equipment
A161: 47 | C161: Deferred Revenue | J161: Deferred Revenue | L161: 186741
J162: Net Depreciation | L162: =K156-L159-L160-L161 -> -2095293
E166: Accounting Standard | F166: MIFRS
E167: Year | F167: =RebaseYear+2 -> 2018
D169: Cost | K169: Accumulated Depreciation
A170: CCA Class 2 | B170: OEB Account 3 | C170: Description 3 | D170: Opening Balance 8 | E170: Additions 4 | F170: Disposals 6 | G170: Closing Balance | H170: RRR DATA | J170: Opening Balance 8 | K170: Additions | L170: Disposals 6 | M170: Closing Balance | N170: Net Book Value
B171: 1609 | C171: Capital Contributions Paid | D171: =G109 -> 0 | G171: =D171+E171+F171 -> 0 | H171: =IFERROR(VLOOKUP(R171,'2.1.7 All Accounts'!$D:$M,$H$167,FALSE),0) -> 0 | J171: =M109 -> 0 | M171: =J171+K171+L171 -> 0 | N171: =G171+M171 -> 0 | R171: ='LDC Info'!$E$14 & B171 -> Kingston Hydro Corporation1609
B172: 1610 | C172: Misc. Intangilble Plant | D172: =G110 -> 0 | G172: =D172+E172+F172 -> 0 | H172: =IFERROR(VLOOKUP(R172,'2.1.7 All Accounts'!$D:$M,$H$167,FALSE),0) -> 0 | J172: =M110 -> 0 | M172: =J172+K172+L172 -> 0 | N172: =G172+M172 -> 0
A173: 12 | B173: 1611 | C173: Computer Software (Formally known as Account 1925) | D173: =G111 -> 64767 | E173: 281511 | G173: =D173+E173+F173 -> 346278 | H173: =IFERROR(VLOOKUP(R173,'2.1.7 All Accounts'!$D:$M,$H$167,FALSE),0) -> 346279 | J173: =M111 -> -62202 | K173: -28721 | M173: =J173+K173+L173 -> -90923 | N173: =G173+M173 -> 255355 | R173: ='LDC Info'!$E$14 & B173 -> Kingston Hydro Corporation1611
A174: CEC | B174: 1612 | C174: Land Rights (Formally known as Account 1906) | D174: 0 | G174: =D174+E174+F174 -> 0 | H174: =IFERROR(VLOOKUP(R174,'2.1.7 All Accounts'!$D:$M,$H$167,FALSE),0) -> 0 | J174: 0 | M174: =J174+K174+L174 -> 0 | N174: =G174+M174 -> 0 | R174: ='LDC Info'!$E$14 & B174 -> Kingston Hydro Corporation1612
A175: N/A | B175: 1805 | C175: Land | D175: 197343 | G175: =D175+E175+F175 -> 197343 | H175: =IFERROR(VLOOKUP(R175,'2.1.7 All Accounts'!$D:$M,$H$167,FALSE),0) -> 197343 | J175: 0 | M175: =J175+K175+L175 -> 0 | N175: =G175+M175 -> 197343 | R175: ='LDC Info'!$E$14 & B175 -> Kingston Hydro Corporation1805
A176: 47 | B176: 1808 | C176: Buildings | D176: 898438 | G176: =D176+E176+F176 -> 898438 | H176: =IFERROR(VLOOKUP(R176,'2.1.7 All Accounts'!$D:$M,$H$167,FALSE),0) -> 898401 | J176: -74377 | K176: -23626 | M176: =J176+K176+L176 -> -98003 | N176: =G176+M176 -> 800435 | R176: ='LDC Info'!$E$14 & B176 -> Kingston Hydro Corporation1808
A177: 13 | B177: 1810 | C177: Leasehold Improvements | D177: 0 | G177: 0 | H177: =IFERROR(VLOOKUP(R177,'2.1.7 All Accounts'!$D:$M,$H$167,FALSE),0) -> 0 | J177: 0 | M177: 0 | N177: 0 | R177: ='LDC Info'!$E$14 & B177 -> Kingston Hydro Corporation1810
A178: 47 | B178: 1815 | C178: Transformer Station Equipment >50 kV | D178: 0 | G178: 0 | H178: =IFERROR(VLOOKUP(R178,'2.1.7 All Accounts'!$D:$M,$H$167,FALSE),0) -> 0 | J178: 0 | M178: 0 | N178: 0 | R178: ='LDC Info'!$E$14 & B178 -> Kingston Hydro Corporation1815
A179: 47 | B179: 1820 | C179: Distribution Station Equipment <50 kV | D179: 8135564 | E179: 487461 | G179: 8623025 | H179: =IFERROR(VLOOKUP(R179,'2.1.7 All Accounts'!$D:$M,$H$167,FALSE),0) -> 8623025 | J179: -916894 | K179: -252664 | M179: -1169558 | N179: 7453467 | R179: ='LDC Info'!$E$14 & B179 -> Kingston Hydro Corporation1820
A180: 47 | B180: 1825 | C180: Storage Battery Equipment | D180: 0 | G180: 0 | H180: =IFERROR(VLOOKUP(R180,'2.1.7 All Accounts'!$D:$M,$H$167,FALSE),0) -> 0 | J180: 0 | M180: 0 | N180: 0 | R180: ='LDC Info'!$E$14 & B180 -> Kingston Hydro Corporation1825
A181: 47 | B181: 1830 | C181: Poles, Towers & Fixtures | D181: 16343437 | E181: 1098254 | G181: 17441691 | H181: =IFERROR(VLOOKUP(R181,'2.1.7 All Accounts'!$D:$M,$H$167,FALSE),0) -> 17441690 | J181: -1234049 | K181: -421914 | M181: -1655963 | N181: 15785728 | R181: ='LDC Info'!$E$14 & B181 -> Kingston Hydro Corporation1830
A182: 47 | B182: 1835 | C182: Overhead Conductors & Devices | D182: 4622776 | E182: 408676 | G182: 5031452 | H182: =IFERROR(VLOOKUP(R182,'2.1.7 All Accounts'!$D:$M,$H$167,FALSE),0) -> 5031452 | J182: -340457 | K182: -98874 | M182: -439331 | N182: 4592121 | R182: ='LDC Info'!$E$14 & B182 -> Kingston Hydro Corporation1835
A183: 47 | B183: 1840 | C183: Underground Conduit | D183: 11549088 | E183: 1297419 | G183: 12846507 | H183: =IFERROR(VLOOKUP(R183,'2.1.7 All Accounts'!$D:$M,$H$167,FALSE),0) -> 12846507 | J183: -782268 | K183: -229803 | M183: -1012071 | N183: 11834436 | R183: ='LDC Info'!$E$14 & B183 -> Kingston Hydro Corporation1840
A184: 47 | B184: 1845 | C184: Underground Conductors & Devices | D184: 7524683 | E184: 466324 | G184: 7991007 | H184: =IFERROR(VLOOKUP(R184,'2.1.7 All Accounts'!$D:$M,$H$167,FALSE),0) -> 7991008 | J184: -625944 | K184: -170408 | M184: -796352 | N184: 7194655 | R184: ='LDC Info'!$E$14 & B184 -> Kingston Hydro Corporation1845
A185: 47 | B185: 1850 | C185: Line Transformers | D185: 3571770 | E185: 521012 | G185: 4092782 | H185: =IFERROR(VLOOKUP(R185,'2.1.7 All Accounts'!$D:$M,$H$167,FALSE),0) -> 4092783 | J185: -362506 | K185: -113498 | M185: -476004 | N185: 3616778 | R185: ='LDC Info'!$E$14 & B185 -> Kingston Hydro Corporation1850
A186: 47 | B186: 1855 | C186: Services (Overhead & Underground) | D186: 1497545 | E186: 208824 | G186: 1706369 | H186: =IFERROR(VLOOKUP(R186,'2.1.7 All Accounts'!$D:$M,$H$167,FALSE),0) -> 1706369 | J186: -77179 | K186: -28926 | M186: -106105 | N186: 1600264 | R186: ='LDC Info'!$E$14 & B186 -> Kingston Hydro Corporation1855
A187: 47 | B187: 1860 | C187: Meters | D187: 683578 | G187: 683578 | H187: =IFERROR(VLOOKUP(R187,'2.1.7 All Accounts'!$D:$M,$H$167,FALSE),0) -> 5510105 | J187: -76564 | K187: -19749 | M187: -96313 | N187: 587265 | R187: ='LDC Info'!$E$14 & B187 -> Kingston Hydro Corporation1860
A188: 47 | B188: 1860 | C188: Meters (Smart Meters) | D188: 4603463 | E188: 223061 | G188: 4826524 | H188: =IFERROR(VLOOKUP(R188,'2.1.7 All Accounts'!$D:$M,$H$167,FALSE),0) -> 5510105 | J188: -1375861 | K188: -386041 | M188: -1761902 | N188: 3064622 | R188: ='LDC Info'!$E$14 & B188 -> Kingston Hydro Corporation1860
A189: N/A | B189: 1905 | C189: Land | D189: 0 | G189: 0 | H189: =IFERROR(VLOOKUP(R189,'2.1.7 All Accounts'!$D:$M,$H$167,FALSE),0) -> 0 | J189: 0 | M189: 0 | N189: 0 | R189: ='LDC Info'!$E$14 & B189 -> Kingston Hydro Corporation1905
A190: 47 | B190: 1908 | C190: Buildings & Fixtures | D190: 0 | G190: 0 | H190: =IFERROR(VLOOKUP(R190,'2.1.7 All Accounts'!$D:$M,$H$167,FALSE),0) -> 0 | J190: 0 | M190: 0 | N190: 0 | R190: ='LDC Info'!$E$14 & B190 -> Kingston Hydro Corporation1908
A191: 13 | B191: 1910 | C191: Leasehold Improvements | D191: 108995 | G191: 108995 | H191: =IFERROR(VLOOKUP(R191,'2.1.7 All Accounts'!$D:$M,$H$167,FALSE),0) -> 108995 | J191: -32456 | K191: -8114 | M191: -40570 | N191: 68425 | R191: ='LDC Info'!$E$14 & B191 -> Kingston Hydro Corporation1910
A192: 8 | B192: 1915 | C192: Office Furniture & Equipment (10 years) | D192: 21481 | G192: 21481 | H192: =IFERROR(VLOOKUP(R192,'2.1.7 All Accounts'!$D:$M,$H$167,FALSE),0) -> 21481 | J192: -10916 | K192: -2729 | M192: -13645 | N192: 7836 | R192: ='LDC Info'!$E$14 & B192 -> Kingston Hydro Corporation1915
A193: 8 | B193: 1915 | C193: Office Furniture & Equipment (5 years) | D193: 0 | G193: 0 | H193: =IFERROR(VLOOKUP(R193,'2.1.7 All Accounts'!$D:$M,$H$167,FALSE),0) -> 21481 | J193: 0 | M193: 0 | N193: 0 | R193: ='LDC Info'!$E$14 & B193 -> Kingston Hydro Corporation1915
A194: 10 | B194: 1920 | C194: Computer Equipment - Hardware | D194: 389720 | G194: 389720 | H194: =IFERROR(VLOOKUP(R194,'2.1.7 All Accounts'!$D:$M,$H$167,FALSE),0) -> 389720 | J194: -173881 | K194: -61904 | M194: -235785 | N194: 153935 | R194: ='LDC Info'!$E$14 & B194 -> Kingston Hydro Corporation1920
A195: 45 | B195: 1920 | C195: Computer Equip.-Hardware(Post Mar. 22/04) | D195: 0 | G195: 0 | H195: =IFERROR(VLOOKUP(R195,'2.1.7 All Accounts'!$D:$M,$H$167,FALSE),0) -> 389720 | J195: 0 | M195: 0 | N195: 0 | R195: ='LDC Info'!$E$14 & B195 -> Kingston Hydro Corporation1920
A196: 50 | B196: 1920 | C196: Computer Equip.-Hardware(Post Mar. 19/07) | D196: 0 | G196: 0 | H196: =IFERROR(VLOOKUP(R196,'2.1.7 All Accounts'!$D:$M,$H$167,FALSE),0) -> 389720 | J196: 0 | M196: 0 | N196: 0 | R196: ='LDC Info'!$E$14 & B196 -> Kingston Hydro Corporation1920
A197: 10 | B197: 1930 | C197: Transportation Equipment | D197: 2038581 | E197: 168349 | G197: 2206930 | H197: =IFERROR(VLOOKUP(R197,'2.1.7 All Accounts'!$D:$M,$H$167,FALSE),0) -> 2206930 | J197: -786598 | K197: -228940 | M197: -1015538 | N197: 1191392 | R197: ='LDC Info'!$E$14 & B197 -> Kingston Hydro Corporation1930
A198: 8 | B198: 1935 | C198: Stores Equipment | D198: 76776 | E198: 9000 | G198: 85776 | H198: =IFERROR(VLOOKUP(R198,'2.1.7 All Accounts'!$D:$M,$H$167,FALSE),0) -> 85776 | J198: -31190 | K198: -11060 | M198: -42250 | N198: 43526 | R198: ='LDC Info'!$E$14 & B198 -> Kingston Hydro Corporation1935
A199: 8 | B199: 1940 | C199: Tools, Shop & Garage Equipment | D199: 460660 | E199: 34140 | G199: 494800 | H199: =IFERROR(VLOOKUP(R199,'2.1.7 All Accounts'!$D:$M,$H$167,FALSE),0) -> 494800 | J199: -211635 | K199: -52078 | M199: -263713 | N199: 231087 | R199: ='LDC Info'!$E$14 & B199 -> Kingston Hydro Corporation1940
A200: 8 | B200: 1945 | C200: Measurement & Testing Equipment | D200: 71356 | E200: 10609 | G200: 81965 | H200: =IFERROR(VLOOKUP(R200,'2.1.7 All Accounts'!$D:$M,$H$167,FALSE),0) -> 81965 | J200: -33951 | K200: -10355 | M200: -44306 | N200: 37659 | R200: ='LDC Info'!$E$14 & B200 -> Kingston Hydro Corporation1945
A201: 8 | B201: 1950 | C201: Power Operated Equipment | D201: 0 | E201: 39565 | G201: 39565 | H201: =IFERROR(VLOOKUP(R201,'2.1.7 All Accounts'!$D:$M,$H$167,FALSE),0) -> 39565 | J201: 0 | K201: -1978 | M201: -1978 | N201: 37587 | R201: ='LDC Info'!$E$14 & B201 -> Kingston Hydro Corporation1950
A202: 8 | B202: 1955 | C202: Communications Equipment | D202: 222102 | G202: 222102 | H202: =IFERROR(VLOOKUP(R202,'2.1.7 All Accounts'!$D:$M,$H$167,FALSE),0) -> 222102 | J202: -111445 | K202: -37799 | M202: -149244 | N202: 72858 | R202: ='LDC Info'!$E$14 & B202 -> Kingston Hydro Corporation1955
A203: 8 | B203: 1955 | C203: Communication Equipment (Smart Meters) | D203: 0 | G203: 0 | H203: =IFERROR(VLOOKUP(R203,'2.1.7 All Accounts'!$D:$M,$H$167,FALSE),0) -> 222102 | J203: 0 | M203: 0 | N203: 0 | R203: ='LDC Info'!$E$14 & B203 -> Kingston Hydro Corporation1955
A204: 8 | B204: 1960 | C204: Miscellaneous Equipment | D204: 0 | G204: 0 | H204: =IFERROR(VLOOKUP(R204,'2.1.7 All Accounts'!$D:$M,$H$167,FALSE),0) -> 0 | J204: 0 | M204: 0 | N204: 0 | R204: ='LDC Info'!$E$14 & B204 -> Kingston Hydro Corporation1960
A205: 47 | B205: 1970 | C205: Load Management Controls Customer Premises | D205: 0 | G205: 0 | H205: =IFERROR(VLOOKUP(R205,'2.1.7 All Accounts'!$D:$M,$H$167,FALSE),0) -> 0 | J205: 0 | M205: 0 | N205: 0 | R205: ='LDC Info'!$E$14 & B205 -> Kingston Hydro Corporation1970
A206: 47 | B206: 1975 | C206: Load Management Controls Utility Premises | D206: 0 | G206: 0 | H206: =IFERROR(VLOOKUP(R206,'2.1.7 All Accounts'!$D:$M,$H$167,FALSE),0) -> 0 | J206: 0 | M206: 0 | N206: 0 | R206: ='LDC Info'!$E$14 & B206 -> Kingston Hydro Corporation1975
A207: 47 | B207: 1980 | C207: System Supervisor Equipment | D207: 861413 | E207: 34850 | G207: 896263 | H207: =IFERROR(VLOOKUP(R207,'2.1.7 All Accounts'!$D:$M,$H$167,FALSE),0) -> 896264 | J207: -247128 | K207: -64672 | M207: -311800 | N207: 584463 | R207: ='LDC Info'!$E$14 & B207 -> Kingston Hydro Corporation1980
A208: 47 | B208: 1985 | C208: Miscellaneous Fixed Assets | D208: 0 | G208: 0 | H208: =IFERROR(VLOOKUP(R208,'2.1.7 All Accounts'!$D:$M,$H$167,FALSE),0) -> 0 | J208: 0 | M208: 0 | N208: 0 | R208: ='LDC Info'!$E$14 & B208 -> Kingston Hydro Corporation1985
A209: 47 | B209: 1990 | C209: Other Tangible Property | D209: 0 | G209: 0 | H209: =IFERROR(VLOOKUP(R209,'2.1.7 All Accounts'!$D:$M,$H$167,FALSE),0) -> 0 | J209: 0 | M209: 0 | N209: 0 | R209: ='LDC Info'!$E$14 & B209 -> Kingston Hydro Corporation1990
A210: 47 | B210: 1995 | C210: Contributions & Grants | D210: -2418367 | G210: -2418367 | H210: =IFERROR(VLOOKUP(R210,'2.1.7 All Accounts'!$D:$M,$H$167,FALSE),0) -> -2418366 | J210: 180524 | K210: 59851 | M210: 240375 | N210: -2177992 | R210: ='LDC Info'!$E$14 & B210 -> Kingston Hydro Corporation1995
A211: 47 | B211: 2440 | C211: Deferred Revenue5 | D211: -5566395 | E211: -251769 | G211: -5818164 | H211: =IFERROR(VLOOKUP(R211,'2.1.7 All Accounts'!$D:$M,$H$167,FALSE),0) -> -5591763 | J211: 209394 | K211: 127889 | M211: 337283 | N211: -5480881 | R211: ='LDC Info'!$E$14 & B211 -> Kingston Hydro Corporation2440
B212: 2005 | C212: Property Under Finance Lease7 | D212: 0 | G212: 0 | H212: =IFERROR(VLOOKUP(R212,'2.1.7 All Accounts'!$D:$M,$H$167,FALSE),0) -> 0 | J212: 0 | M212: 0 | N212: 0 | R212: ='LDC Info'!$E$14 & B212 -> Kingston Hydro Corporation2005
C213: Sub-Total | D213: =SUM(D171:D212) -> 55958774 | E213: =SUM(E171:E212) -> 5037286 | F213: =SUM(F171:F212) -> 0 | G213: =SUM(G171:G212) -> 60996060 | H213: =SUM(H171:H212) -> 67755559 | J213: =SUM(J171:J212) -> -7177583 | K213: =SUM(K171:K212) -> -2066113 | L213: =SUM(L171:L212) -> 0 | M213: =SUM(M171:M212) -> -9243696 | N213: =SUM(N171:N212) -> 51752364
C214: Less Socialized Renewable Energy Generation Investments (input as negative) | G214: =D214+E214+F214 -> 0 | M214: =J214+K214+L214 -> 0 | N214: =G214+M214 -> 0
C215: Less Other Non Rate-Regulated Utility Assets (input as negative) | G215: =D215+E215+F215 -> 0 | M215: =J215+K215+L215 -> 0 | N215: =G215+M215 -> 0
C216: Total PP&E | D216: =SUM(D213:D215) -> 55958774 | E216: =SUM(E213:E215) -> 5037286 | F216: =SUM(F213:F215) -> 0 | G216: =SUM(G213:G215) -> 60996060 | J216: =SUM(J213:J215) -> -7177583 | K216: =SUM(K213:K215) -> -2066113 | L216: =SUM(L213:L215) -> 0 | M216: =SUM(M213:M215) -> -9243696 | N216: =SUM(N213:N215) -> 51752364
C217: Depreciation Expense adj. from gain or loss on the retirement of assets (pool of like assets), if applicable6
C218: Total | K218: =K216+K217 -> -2066113
J220: Less: Fully Allocated Depreciation
A221: 10 | C221: Transportation | J221: Transportation
A222: 8 | C222: Stores Equipment | J222: Stores Equipment
A223: 47 | C223: Deferred Revenue | J223: Deferred Revenue | L223: 127889
J224: Net Depreciation | L224: =K218-L221-L222-L223 -> -2194002
E228: Accounting Standard | F228: MIFRS
E229: Year | F229: =RebaseYear+3 -> 2019
D231: Cost | K231: Accumulated Depreciation
A232: CCA Class 2 | B232: OEB Account 3 | C232: Description 3 | D232: Opening Balance 8 | E232: Additions 4 | F232: Disposals 6 | G232: Closing Balance | H232: RRR DATA | J232: Opening Balance 8 | K232: Additions | L232: Disposals 6 | M232: Closing Balance | N232: Net Book Value
B233: 1609 | C233: Capital Contributions Paid | D233: =G171 -> 0 | G233: =D233+E233+F233 -> 0 | H233: =IFERROR(VLOOKUP(R233,'2.1.7 All Accounts'!$D:$M,$H$229,FALSE),0) -> 0 | J233: =M171 -> 0 | M233: =J233+K233+L233 -> 0 | N233: =G233+M233 -> 0 | R233: ='LDC Info'!$E$14 & B233 -> Kingston Hydro Corporation1609
B234: 1610 | C234: Misc. Intangilble Plant | D234: =G172 -> 0 | G234: =D234+E234+F234 -> 0 | H234: =IFERROR(VLOOKUP(R234,'2.1.7 All Accounts'!$D:$M,$H$229,FALSE),0) -> 0 | J234: =M172 -> 0 | M234: =J234+K234+L234 -> 0 | N234: =G234+M234 -> 0
A235: 12 | B235: 1611 | C235: Computer Software (Formally known as Account 1925) | D235: =G173 -> 346278 | E235: 150402 | G235: =D235+E235+F235 -> 496680 | H235: =IFERROR(VLOOKUP(R235,'2.1.7 All Accounts'!$D:$M,$H$229,FALSE),0) -> 496681.35 | J235: =M173 -> -90923 | K235: -71912 | M235: =J235+K235+L235 -> -162835 | N235: =G235+M235 -> 333845 | R235: ='LDC Info'!$E$14 & B235 -> Kingston Hydro Corporation1611
A236: CEC | B236: 1612 | C236: Land Rights (Formally known as Account 1906) | D236: 0 | G236: =D236+E236+F236 -> 0 | H236: =IFERROR(VLOOKUP(R236,'2.1.7 All Accounts'!$D:$M,$H$229,FALSE),0) -> 0 | J236: 0 | M236: =J236+K236+L236 -> 0 | N236: =G236+M236 -> 0 | R236: ='LDC Info'!$E$14 & B236 -> Kingston Hydro Corporation1612
A237: N/A | B237: 1805 | C237: Land | D237: 197343 | G237: =D237+E237+F237 -> 197343 | H237: =IFERROR(VLOOKUP(R237,'2.1.7 All Accounts'!$D:$M,$H$229,FALSE),0) -> 197343 | J237: 0 | M237: =J237+K237+L237 -> 0 | N237: =G237+M237 -> 197343 | R237: ='LDC Info'!$E$14 & B237 -> Kingston Hydro Corporation1805
A238: 47 | B238: 1808 | C238: Buildings | D238: 898438 | E238: 149496 | G238: =D238+E238+F238 -> 1047934 | H238: =IFERROR(VLOOKUP(R238,'2.1.7 All Accounts'!$D:$M,$H$229,FALSE),0) -> 1047933.43 | J238: -98003 | K238: -26118 | M238: =J238+K238+L238 -> -124121 | N238: =G238+M238 -> 923813 | R238: ='LDC Info'!$E$14 & B238 -> Kingston Hydro Corporation1808
A239: 13 | B239: 1810 | C239: Leasehold Improvements | D239: 0 | G239: 0 | H239: =IFERROR(VLOOKUP(R239,'2.1.7 All Accounts'!$D:$M,$H$229,FALSE),0) -> 0 | J239: 0 | M239: 0 | N239: 0 | R239: ='LDC Info'!$E$14 & B239 -> Kingston Hydro Corporation1810
A240: 47 | B240: 1815 | C240: Transformer Station Equipment >50 kV | D240: 0 | G240: 0 | H240: =IFERROR(VLOOKUP(R240,'2.1.7 All Accounts'!$D:$M,$H$229,FALSE),0) -> 0 | J240: 0 | M240: 0 | N240: 0 | R240: ='LDC Info'!$E$14 & B240 -> Kingston Hydro Corporation1815
... 385 more rows

Sheet 2.1.7 All Accounts (hidden)
A1: 2.1.7: All Accounts (2013-2020) | D1: 1 | E1: 2 | F1: 3 | G1: 4 | H1: 5 | I1: 6 | J1: 7 | K1: 8 | L1: 9 | M1: 10
A3: Company Name (Merged or Current) | B3: Company Name | C3: Account Number | D3: C+D | E3: Account Description | F3: 2013 | G3: 2014 | H3: 2015 | I3: 2016 | J3: 2017 | K3: 2018 | L3: 2019 | M3: 2020
A4: Alectra Utilities Corporation | B4: Alectra Utilities Corporation | C4: 1005 | D4: Alectra Utilities Corporation1005 | E4: Cash | J4: 95979256.85 | K4: -17456286.02 | L4: 19601161.67 | M4: 10282442.31
A5: Alectra Utilities Corporation | B5: Alectra Utilities Corporation | C5: 1010 | D5: Alectra Utilities Corporation1010 | E5: Cash Advances and Working Funds | J5: 2931.93 | K5: 12720.88 | L5: 0 | M5: 0
A6: Alectra Utilities Corporation | B6: Alectra Utilities Corporation | C6: 1015 | D6: Alectra Utilities Corporation1015 | E6: Accounts Receivable for Financial Assistance | M6: 0
A7: Alectra Utilities Corporation | B7: Alectra Utilities Corporation | C7: 1020 | D7: Alectra Utilities Corporation1020 | E7: Interest Special Deposits | J7: 0 | K7: 0 | L7: 0 | M7: 0
A8: Alectra Utilities Corporation | B8: Alectra Utilities Corporation | C8: 1030 | D8: Alectra Utilities Corporation1030 | E8: Dividend Special Deposits | J8: 0 | K8: 0 | L8: 0 | M8: 0
A9: Alectra Utilities Corporation | B9: Alectra Utilities Corporation | C9: 1040 | D9: Alectra Utilities Corporation1040 | E9: Other Special Deposits | J9: 23371234.34 | K9: 24405849.38 | L9: 0 | M9: 0
A10: Alectra Utilities Corporation | B10: Alectra Utilities Corporation | C10: 1060 | D10: Alectra Utilities Corporation1060 | E10: Term Deposits | J10: 0 | K10: 0 | L10: 0 | M10: 0
A11: Alectra Utilities Corporation | B11: Alectra Utilities Corporation | C11: 1070 | D11: Alectra Utilities Corporation1070 | E11: Current Investments | J11: 0 | K11: 0 | L11: 0 | M11: 0
A12: Alectra Utilities Corporation | B12: Alectra Utilities Corporation | C12: 1100 | D12: Alectra Utilities Corporation1100 | E12: Customer Accounts Receivable | J12: 199748577 | K12: 249431268.3 | L12: 236204348.4 | M12: 292427412.6
A13: Alectra Utilities Corporation | B13: Alectra Utilities Corporation | C13: 1102 | D13: Alectra Utilities Corporation1102 | E13: Accounts Receivable - Services | J13: -1505.24 | K13: 680.49 | L13: 0 | M13: 0
A14: Alectra Utilities Corporation | B14: Alectra Utilities Corporation | C14: 1104 | D14: Alectra Utilities Corporation1104 | E14: Accounts Receivable - Recoverable Work | J14: 54824339.79 | K14: 34245982.75 | L14: 29909109.94 | M14: 39162641.44
A15: Alectra Utilities Corporation | B15: Alectra Utilities Corporation | C15: 1105 | D15: Alectra Utilities Corporation1105 | E15: Accounts Receivable - Merchandise Jobbing, etc. | J15: 3963925.12 | K15: 3103540.35 | L15: 0 | M15: 0
A16: Alectra Utilities Corporation | B16: Alectra Utilities Corporation | C16: 1110 | D16: Alectra Utilities Corporation1110 | E16: Other Accounts Receivable | J16: 17366456.07 | K16: 37560286.07 | L16: 37280483.86 | M16: 33990563.88
A17: Alectra Utilities Corporation | B17: Alectra Utilities Corporation | C17: 1120 | D17: Alectra Utilities Corporation1120 | E17: Accrued Utility Revenues | J17: 250287631.1 | K17: 269599032.2 | L17: 247515670.9 | M17: 246921742.5
A18: Alectra Utilities Corporation | B18: Alectra Utilities Corporation | C18: 1130 | D18: Alectra Utilities Corporation1130 | E18: Accumulated Provision for Uncollectible Accounts--Credit | J18: -8306436.4 | K18: -7938839.77 | L18: -30528436.77 | M18: -49082191.13
A19: Alectra Utilities Corporation | B19: Alectra Utilities Corporation | C19: 1140 | D19: Alectra Utilities Corporation1140 | E19: Interest and Dividends Receivable | J19: 0.07 | K19: 255.91 | L19: 92.07 | M19: 0
A20: Alectra Utilities Corporation | B20: Alectra Utilities Corporation | C20: 1150 | D20: Alectra Utilities Corporation1150 | E20: Rents Receivable | J20: 213786.97 | K20: 371990.32 | L20: 4637645.49 | M20: 5898128.21
A21: Alectra Utilities Corporation | B21: Alectra Utilities Corporation | C21: 1170 | D21: Alectra Utilities Corporation1170 | E21: Notes Receivable | J21: 0 | K21: 0 | L21: 0 | M21: 0
A22: Alectra Utilities Corporation | B22: Alectra Utilities Corporation | C22: 1180 | D22: Alectra Utilities Corporation1180 | E22: Prepayments | J22: 7478409.33 | K22: 12970044.96 | L22: 12258742.78 | M22: 16960889.41
A23: Alectra Utilities Corporation | B23: Alectra Utilities Corporation | C23: 1190 | D23: Alectra Utilities Corporation1190 | E23: Miscellaneous Current and Accrued Assets | J23: 0.14 | K23: 0 | L23: 0 | M23: 0
A24: Alectra Utilities Corporation | B24: Alectra Utilities Corporation | C24: 1200 | D24: Alectra Utilities Corporation1200 | E24: Accounts Receivable from Associated Companies | J24: 96149712.55 | K24: 174401037.8 | L24: 15646507.62 | M24: 14066700.46
A25: Alectra Utilities Corporation | B25: Alectra Utilities Corporation | C25: 1210 | D25: Alectra Utilities Corporation1210 | E25: Notes Receivable from Associated Companies | J25: 0 | K25: 0 | L25: 0 | M25: 0
A26: Alectra Utilities Corporation | B26: Alectra Utilities Corporation | C26: 1305 | D26: Alectra Utilities Corporation1305 | E26: Fuel Stock | J26: 108776.21 | K26: 88478.43 | L26: 17467.29 | M26: 8940.88
A27: Alectra Utilities Corporation | B27: Alectra Utilities Corporation | C27: 1330 | D27: Alectra Utilities Corporation1330 | E27: Plant Materials and Operating Supplies | J27: 19909184.57 | K27: 20614160.13 | L27: 26551225.07 | M27: 30857895.92
A28: Alectra Utilities Corporation | B28: Alectra Utilities Corporation | C28: 1340 | D28: Alectra Utilities Corporation1340 | E28: Merchandise | J28: 0 | K28: 0 | L28: 0 | M28: 0
A29: Alectra Utilities Corporation | B29: Alectra Utilities Corporation | C29: 1350 | D29: Alectra Utilities Corporation1350 | E29: Non Rate-Regulated Materials and Supplies | J29: 0 | K29: 0 | L29: 0 | M29: 0
A30: Alectra Utilities Corporation | B30: Alectra Utilities Corporation | C30: 1405 | D30: Alectra Utilities Corporation1405 | E30: Non-Current Investments in Non-Associated Companies | J30: 0 | K30: 0 | L30: 0 | M30: 0
A31: Alectra Utilities Corporation | B31: Alectra Utilities Corporation | C31: 1407 | D31: Alectra Utilities Corporation1407 | E31: Finance Lease Receivable | J31: 0 | K31: 0 | L31: 0 | M31: 0
A32: Alectra Utilities Corporation | B32: Alectra Utilities Corporation | C32: 1408 | D32: Alectra Utilities Corporation1408 | E32: Long Term Receivable - Street Lighting Transfer | J32: 0 | K32: 0 | L32: 0 | M32: 0
A33: Alectra Utilities Corporation | B33: Alectra Utilities Corporation | C33: 1410 | D33: Alectra Utilities Corporation1410 | E33: Other Special or Collateral Funds | J33: 10000 | K33: 22000 | L33: 0 | M33: 0
A34: Alectra Utilities Corporation | B34: Alectra Utilities Corporation | C34: 1415 | D34: Alectra Utilities Corporation1415 | E34: Sinking Funds | J34: 0 | K34: 0 | L34: 0 | M34: 0
A35: Alectra Utilities Corporation | B35: Alectra Utilities Corporation | C35: 1425 | D35: Alectra Utilities Corporation1425 | E35: Unamortized Debt Expense | J35: 0 | K35: 0 | L35: 0 | M35: 0
A36: Alectra Utilities Corporation | B36: Alectra Utilities Corporation | C36: 1445 | D36: Alectra Utilities Corporation1445 | E36: Unamortized Discount on Long-Term Debt--Debit | J36: 0 | K36: 0 | L36: 0 | M36: 0
A37: Alectra Utilities Corporation | B37: Alectra Utilities Corporation | C37: 1455 | D37: Alectra Utilities Corporation1455 | E37: Unamortized Deferred Foreign Currency Translation Gains and Losses | J37: 0 | K37: 0 | L37: 0 | M37: 0
A38: Alectra Utilities Corporation | B38: Alectra Utilities Corporation | C38: 1460 | D38: Alectra Utilities Corporation1460 | E38: Other Non-Current Assets | J38: 0 | K38: 0 | L38: 0 | M38: 0
A39: Alectra Utilities Corporation | B39: Alectra Utilities Corporation | C39: 1480 | D39: Alectra Utilities Corporation1480 | E39: Portfolio Investments - Associated Companies | J39: 0 | K39: 0 | L39: 0 | M39: 0
A40: Alectra Utilities Corporation | B40: Alectra Utilities Corporation | C40: 1481 | D40: Alectra Utilities Corporation1481 | E40: Investment in Equity - Accounted Joint Venture | J40: 0 | K40: 0 | L40: 3962900 | M40: 3962900
A41: Alectra Utilities Corporation | B41: Alectra Utilities Corporation | C41: 1485 | D41: Alectra Utilities Corporation1485 | E41: Investment in Associated Companies - Significant Influence | J41: 0 | K41: 0 | L41: 0 | M41: 0
A42: Alectra Utilities Corporation | B42: Alectra Utilities Corporation | C42: 1490 | D42: Alectra Utilities Corporation1490 | E42: Investment in Subsidiary Companies | J42: 0 | K42: 0 | L42: 0 | M42: 0
A43: Alectra Utilities Corporation | B43: Alectra Utilities Corporation | C43: 1495 | D43: Alectra Utilities Corporation1495 | E43: Deferred Taxes - Non-Current Assets | J43: 0 | K43: 0 | L43: 79223463.18 | M43: 116165364.1
A44: Alectra Utilities Corporation | B44: Alectra Utilities Corporation | C44: 1505 | D44: Alectra Utilities Corporation1505 | E44: Unrecovered Plant and Regulatory Study Costs | J44: 0 | K44: 0 | L44: 0 | M44: 0
A45: Alectra Utilities Corporation | B45: Alectra Utilities Corporation | C45: 1508 | D45: Alectra Utilities Corporation1508 | E45: Other Regulatory Assets | J45: -737770.03 | K45: -3318891.89 | L45: 2848676.78 | M45: -3656851.93
A46: Alectra Utilities Corporation | B46: Alectra Utilities Corporation | C46: 1508 | D46: Alectra Utilities Corporation1508 | E46: Sub-account Accumulated Depreciation | J46: 0 | K46: 0 | L46: 0 | M46: 0
A47: Alectra Utilities Corporation | B47: Alectra Utilities Corporation | C47: 1508 | D47: Alectra Utilities Corporation1508 | E47: Sub-account Customer Choice Initiative Costs | M47: 0
A48: Alectra Utilities Corporation | B48: Alectra Utilities Corporation | C48: 1508 | D48: Alectra Utilities Corporation1508 | E48: Sub-account Deferred IFRS Transition Costs | J48: 0 | K48: 0 | L48: 0 | M48: 0
A49: Alectra Utilities Corporation | B49: Alectra Utilities Corporation | C49: 1508 | D49: Alectra Utilities Corporation1508 | E49: Sub-account Depreciation Expense | J49: 0 | K49: 0 | L49: 0 | M49: 0
A50: Alectra Utilities Corporation | B50: Alectra Utilities Corporation | C50: 1508 | D50: Alectra Utilities Corporation1508 | E50: Sub-account Energy East Consultation Costs | J50: 0 | K50: 0 | L50: 0 | M50: 0
A51: Alectra Utilities Corporation | B51: Alectra Utilities Corporation | C51: 1508 | D51: Alectra Utilities Corporation1508 | E51: Sub-account Financial Assistance Payment and Recovery Variance - OCEB | J51: 0 | K51: 0 | L51: 0 | M51: 0
A52: Alectra Utilities Corporation | B52: Alectra Utilities Corporation | C52: 1508 | D52: Alectra Utilities Corporation1508 | E52: Sub-account IFRS Transition Costs Variance | J52: 0 | K52: 0 | L52: 0 | M52: 0
A53: Alectra Utilities Corporation | B53: Alectra Utilities Corporation | C53: 1508 | D53: Alectra Utilities Corporation1508 | E53: Sub-account Incremental Capital Charges | J53: 0 | K53: 0 | L53: 0 | M53: 0
A54: Alectra Utilities Corporation | B54: Alectra Utilities Corporation | C54: 1508 | D54: Alectra Utilities Corporation1508 | E54: Sub-account Incremental Capital Expenditures | J54: 0 | K54: 0 | L54: 0 | M54: 0
A55: Alectra Utilities Corporation | B55: Alectra Utilities Corporation | C55: 1508 | D55: Alectra Utilities Corporation1508 | E55: Sub-account Incremental Capital Expenditures Rate Rider Revenues | J55: 0 | K55: 0 | L55: 0 | M55: 0
A56: Alectra Utilities Corporation | B56: Alectra Utilities Corporation | C56: 1508 | D56: Alectra Utilities Corporation1508 | E56: Sub-account OEB Cost Assessment Variance | J56: 0 | K56: 0 | L56: 0 | M56: 0
A57: Alectra Utilities Corporation | B57: Alectra Utilities Corporation | C57: 1508 | D57: Alectra Utilities Corporation1508 | E57: Sub-account Pole Attachment Revenue Variance | K57: 0 | L57: 0 | M57: 0
A58: Alectra Utilities Corporation | B58: Alectra Utilities Corporation | C58: 1509 | D58: Alectra Utilities Corporation1509 | E58: Impacts Arising from the COVID-19 Emergency | M58: 0
A59: Alectra Utilities Corporation | B59: Alectra Utilities Corporation | C59: 1509 | D59: Alectra Utilities Corporation1509 | E59: Sub-account Bad Debt | M59: 0
A60: Alectra Utilities Corporation | B60: Alectra Utilities Corporation | C60: 1509 | D60: Alectra Utilities Corporation1509 | E60: Sub-account Costs Associated with Billing & System Changes | M60: 0
A61: Alectra Utilities Corporation | B61: Alectra Utilities Corporation | C61: 1509 | D61: Alectra Utilities Corporation1509 | E61: Sub-account Forgone Revenues from Postponing Rate Implementation | M61: 0
A62: Alectra Utilities Corporation | B62: Alectra Utilities Corporation | C62: 1509 | D62: Alectra Utilities Corporation1509 | E62: Sub-account Lost Revenues | M62: 0
A63: Alectra Utilities Corporation | B63: Alectra Utilities Corporation | C63: 1509 | D63: Alectra Utilities Corporation1509 | E63: Sub-account Other Costs | M63: 0
A64: Alectra Utilities Corporation | B64: Alectra Utilities Corporation | C64: 1510 | D64: Alectra Utilities Corporation1510 | E64: Preliminary Survey and Investigation Charges | J64: 0 | K64: 0 | L64: 0 | M64: 0
A65: Alectra Utilities Corporation | B65: Alectra Utilities Corporation | C65: 1515 | D65: Alectra Utilities Corporation1515 | E65: Emission Allowance Inventory | J65: 0 | K65: 0 | L65: 0 | M65: 0
A66: Alectra Utilities Corporation | B66: Alectra Utilities Corporation | C66: 1516 | D66: Alectra Utilities Corporation1516 | E66: Emission Allowances Withheld | J66: 0 | K66: 0 | L66: 0 | M66: 0
A67: Alectra Utilities Corporation | B67: Alectra Utilities Corporation | C67: 1518 | D67: Alectra Utilities Corporation1518 | E67: RCVARetail | J67: 1280960.52 | K67: 1602664.5 | L67: 1700308.09 | M67: 1529234.6
A68: Alectra Utilities Corporation | B68: Alectra Utilities Corporation | C68: 1521 | D68: Alectra Utilities Corporation1521 | E68: Special Purpose Charge Assessment Variance Account | J68: 0 | K68: 0 | L68: 0 | M68: 0
A69: Alectra Utilities Corporation | B69: Alectra Utilities Corporation | C69: 1522 | D69: Alectra Utilities Corporation1522 | E69: Pension & OPEB Forecast Accrual versus Actual Cash Payment Differential | K69: -110338.44 | L69: -91372 | M69: -161252.03
A70: Alectra Utilities Corporation | B70: Alectra Utilities Corporation | C70: 1525 | D70: Alectra Utilities Corporation1525 | E70: Miscellaneous Deferred Debits | J70: 9105.65 | K70: 4552.82 | L70: 4552.82 | M70: 4552.82
A71: Alectra Utilities Corporation | B71: Alectra Utilities Corporation | C71: 1530 | D71: Alectra Utilities Corporation1530 | E71: Deferred Losses from Disposition of Utility Plant | J71: 0 | K71: 0 | L71: 0 | M71: 0
A72: Alectra Utilities Corporation | B72: Alectra Utilities Corporation | C72: 1531 | D72: Alectra Utilities Corporation1531 | E72: Renewable Connection Capital Deferral Account | J72: 1037382.15 | K72: 1080465.17 | L72: 1451966.77 | M72: 942564.33
A73: Alectra Utilities Corporation | B73: Alectra Utilities Corporation | C73: 1532 | D73: Alectra Utilities Corporation1532 | E73: Renewable Connection OM&A Deferral Account | J73: 501752.91 | K73: 657647.46 | L73: 635453.63 | M73: 710817.25
A74: Alectra Utilities Corporation | B74: Alectra Utilities Corporation | C74: 1533 | D74: Alectra Utilities Corporation1533 | E74: Renewable Generation Connection Funding Adder Deferral Account | J74: -541480.87 | K74: -717451.21 | L74: -635843.3 | M74: -747029.25
A75: Alectra Utilities Corporation | B75: Alectra Utilities Corporation | C75: 1534 | D75: Alectra Utilities Corporation1534 | E75: Smart Grid Capital Deferral Account | J75: 0 | K75: 0 | L75: 0 | M75: 0
A76: Alectra Utilities Corporation | B76: Alectra Utilities Corporation | C76: 1535 | D76: Alectra Utilities Corporation1535 | E76: Smart Grid OM&A Deferral Account | J76: 2789257.41 | K76: 2839750.07 | L76: 2900589.41 | M76: 2937825.65
A77: Alectra Utilities Corporation | B77: Alectra Utilities Corporation | C77: 1536 | D77: Alectra Utilities Corporation1536 | E77: Smart Grid Funding Adder Deferral Account | J77: -6527.85 | K77: -7520.44 | L77: -7130.26 | M77: -6886.18
A78: Alectra Utilities Corporation | B78: Alectra Utilities Corporation | C78: 1540 | D78: Alectra Utilities Corporation1540 | E78: Unamortized Loss on Reacquired Debt | J78: 0 | K78: 0 | L78: 0 | M78: 0
A79: Alectra Utilities Corporation | B79: Alectra Utilities Corporation | C79: 1548 | D79: Alectra Utilities Corporation1548 | E79: RCVASTR | J79: 267438.59 | K79: 303096.58 | L79: 521668.43 | M79: 564138.35
A80: Alectra Utilities Corporation | B80: Alectra Utilities Corporation | C80: 1550 | D80: Alectra Utilities Corporation1550 | E80: LV Variance Account | J80: 12419982.07 | K80: 7677195.01 | L80: 9277459.63 | M80: 16749267.37
A81: Alectra Utilities Corporation | B81: Alectra Utilities Corporation | C81: 1551 | D81: Alectra Utilities Corporation1551 | E81: Smart Metering Entity Charge Variance Account | J81: -888403.29 | K81: -1279234.41 | L81: -996876.52 | M81: -696333.35
A82: Alectra Utilities Corporation | B82: Alectra Utilities Corporation | C82: 1555 | D82: Alectra Utilities Corporation1555 | E82: Smart Meter Capital and Recovery Offset Variance Account | J82: 747214.89 | K82: 530572.55 | L82: 481226.26 | M82: 433596.72
A83: Alectra Utilities Corporation | B83: Alectra Utilities Corporation | C83: 1555 | D83: Alectra Utilities Corporation1555 | E83: Sub-account Stranded Meter Costs | J83: 0 | K83: 0 | L83: 0 | M83: 0
A84: Alectra Utilities Corporation | B84: Alectra Utilities Corporation | C84: 1556 | D84: Alectra Utilities Corporation1556 | E84: Smart Meter OM&A Variance Account | J84: 0 | K84: 0 | L84: 0 | M84: 0
A85: Alectra Utilities Corporation | B85: Alectra Utilities Corporation | C85: 1557 | D85: Alectra Utilities Corporation1557 | E85: Meter Cost Deferral Account | J85: 6793276.54 | K85: 9011090.18 | L85: 7244702.24 | M85: 10045651.58
A86: Alectra Utilities Corporation | B86: Alectra Utilities Corporation | C86: 1567 | D86: Alectra Utilities Corporation1567 | E86: Board-Approval CDM Variance Account | J86: 0 | K86: 0 | L86: 0 | M86: 0
A87: Alectra Utilities Corporation | B87: Alectra Utilities Corporation | C87: 1568 | D87: Alectra Utilities Corporation1568 | E87: LRAM Variance Account | J87: 15684598.08 | K87: 21676891.31 | L87: 24703298.74 | M87: 26814937.09
A88: Alectra Utilities Corporation | B88: Alectra Utilities Corporation | C88: 1572 | D88: Alectra Utilities Corporation1572 | E88: Extraordinary Event Costs | J88: 0 | K88: 0 | L88: 0 | M88: 0
A89: Alectra Utilities Corporation | B89: Alectra Utilities Corporation | C89: 1574 | D89: Alectra Utilities Corporation1574 | E89: Deferred Rate Impact Amounts | J89: 0 | K89: 0 | L89: 0 | M89: 0
A90: Alectra Utilities Corporation | B90: Alectra Utilities Corporation | C90: 1575 | D90: Alectra Utilities Corporation1575 | E90: IFRS-CGAAP Transitional PP&E Amounts | J90: 0 | K90: 0 | L90: 0 | M90: 0
A91: Alectra Utilities Corporation | B91: Alectra Utilities Corporation | C91: 1576 | D91: Alectra Utilities Corporation1576 | E91: CGAAP Accounting Changes | J91: 0.88 | K91: 0.88 | L91: 0 | M91: 0
A92: Alectra Utilities Corporation | B92: Alectra Utilities Corporation | C92: 1580 | D92: Alectra Utilities Corporation1580 | E92: RSVA - Wholesale Market Service Charge | J92: -64500740.41 | K92: -27986029.73 | L92: -11629815.74 | M92: -22839244.23
A93: Alectra Utilities Corporation | B93: Alectra Utilities Corporation | C93: 1580 | D93: Alectra Utilities Corporation1580 | E93: Sub-account CBR class A - Interest | J93: 0 | K93: 0 | L93: 0 | M93: 0
A94: Alectra Utilities Corporation | B94: Alectra Utilities Corporation | C94: 1580 | D94: Alectra Utilities Corporation1580 | E94: Sub-account CBR class A - Principal | J94: 0 | K94: 0 | L94: 0 | M94: 0
A95: Alectra Utilities Corporation | B95: Alectra Utilities Corporation | C95: 1580 | D95: Alectra Utilities Corporation1580 | E95: Sub-account CBR class B - Interest | J95: 0 | K95: 0 | L95: 0 | M95: 0
A96: Alectra Utilities Corporation | B96: Alectra Utilities Corporation | C96: 1580 | D96: Alectra Utilities Corporation1580 | E96: Sub-account CBR class B - Principal | J96: 0 | K96: 0 | L96: 0 | M96: 0
A97: Alectra Utilities Corporation | B97: Alectra Utilities Corporation | C97: 1582 | D97: Alectra Utilities Corporation1582 | E97: RSVAONE-TIME | J97: 0 | K97: 0 | L97: 0 | M97: 0
A98: Alectra Utilities Corporation | B98: Alectra Utilities Corporation | C98: 1584 | D98: Alectra Utilities Corporation1584 | E98: RSVA - Retail Transmission Network Charge | J98: -13129405.9 | K98: -5352992 | L98: 5101259.81 | M98: 7175509.56
A99: Alectra Utilities Corporation | B99: Alectra Utilities Corporation | C99: 1586 | D99: Alectra Utilities Corporation1586 | E99: RSVA - Retail Transmission Connection Charge | J99: 3951327.34 | K99: 8256288.2 | L99: 5452525.91 | M99: -3228245.43
A100: Alectra Utilities Corporation | B100: Alectra Utilities Corporation | C100: 1588 | D100: Alectra Utilities Corporation1588 | E100: RSVA - Power (excluding Global Adjustment) | J100: -2133956.37 | K100: -12135891.19 | L100: -10674530.01 | M100: 5426990.27
A101: Alectra Utilities Corporation | B101: Alectra Utilities Corporation | C101: 1589 | D101: Alectra Utilities Corporation1589 | E101: RSVA - Global Adjustment | J101: -2302695.05 | K101: -10812764.29 | L101: 12721559.71 | M101: 27357055.4
A102: Alectra Utilities Corporation | B102: Alectra Utilities Corporation | C102: 1592 | D102: Alectra Utilities Corporation1592 | E102: PILs and Tax Variance for 2006 and Subsequent Years | J102: 18237.66 | K102: 18587.34 | L102: -9050900.86 | M102: -16111300.74
A103: Alectra Utilities Corporation | B103: Alectra Utilities Corporation | C103: 1595 | D103: Alectra Utilities Corporation1595 | E103: Disposition and Recovery/Refund of Regulatory Balances (2008) | J103: 0 | K103: 0 | L103: 0 | M103: 0
A104: Alectra Utilities Corporation | B104: Alectra Utilities Corporation | C104: 1595 | D104: Alectra Utilities Corporation1595 | E104: Disposition and Recovery/Refund of Regulatory Balances (2009) | J104: 0 | K104: 0 | L104: 0 | M104: 0
A105: Alectra Utilities Corporation | B105: Alectra Utilities Corporation | C105: 1595 | D105: Alectra Utilities Corporation1595 | E105: Disposition and Recovery/Refund of Regulatory Balances (2010) | J105: 0 | K105: 0 | L105: 0 | M105: 0
A106: Alectra Utilities Corporation | B106: Alectra Utilities Corporation | C106: 1595 | D106: Alectra Utilities Corporation1595 | E106: Disposition and Recovery/Refund of Regulatory Balances (2011) | J106: 0 | K106: 0 | L106: 0 | M106: 0
A107: Alectra Utilities Corporation | B107: Alectra Utilities Corporation | C107: 1595 | D107: Alectra Utilities Corporation1595 | E107: Disposition and Recovery/Refund of Regulatory Balances (2012) | J107: 0 | K107: 0 | L107: 0 | M107: 0
A108: Alectra Utilities Corporation | B108: Alectra Utilities Corporation | C108: 1595 | D108: Alectra Utilities Corporation1595 | E108: Disposition and Recovery/Refund of Regulatory Balances (2013) | J108: 0 | K108: 0 | L108: 0 | M108: 0
A109: Alectra Utilities Corporation | B109: Alectra Utilities Corporation | C109: 1595 | D109: Alectra Utilities Corporation1595 | E109: Disposition and Recovery/Refund of Regulatory Balances (2014) | J109: 0 | K109: 0 | L109: 0 | M109: 0
A110: Alectra Utilities Corporation | B110: Alectra Utilities Corporation | C110: 1595 | D110: Alectra Utilities Corporation1595 | E110: Disposition and Recovery/Refund of Regulatory Balances (2015) | J110: 0 | K110: 0 | L110: 0 | M110: 0
A111: Alectra Utilities Corporation | B111: Alectra Utilities Corporation | C111: 1595 | D111: Alectra Utilities Corporation1595 | E111: Disposition and Recovery/Refund of Regulatory Balances (2016) | J111: 0 | K111: 0 | L111: 0 | M111: 0
A112: Alectra Utilities Corporation | B112: Alectra Utilities Corporation | C112: 1595 | D112: Alectra Utilities Corporation1595 | E112: Disposition and Recovery/Refund of Regulatory Balances (2017) | J112: 0 | K112: 0 | L112: 0 | M112: 0
A113: Alectra Utilities Corporation | B113: Alectra Utilities Corporation | C113: 1595 | D113: Alectra Utilities Corporation1595 | E113: Disposition and Recovery/Refund of Regulatory Balances (2018) | K113: 0 | L113: 0 | M113: 0
A114: Alectra Utilities Corporation | B114: Alectra Utilities Corporation | C114: 1595 | D114: Alectra Utilities Corporation1595 | E114: Disposition and Recovery/Refund of Regulatory Balances (2019) | L114: 0 | M114: 0
A115: Alectra Utilities Corporation | B115: Alectra Utilities Corporation | C115: 1595 | D115: Alectra Utilities Corporation1595 | E115: Disposition and Recovery/Refund of Regulatory Balances (2020) | M115: 0
A116: Alectra Utilities Corporation | B116: Alectra Utilities Corporation | C116: 1595 | D116: Alectra Utilities Corporation1595 | E116: Disposition and Recovery/Refund of Regulatory Balances Control Account | J116: 4105146.06 | K116: -11914134.04 | L116: -1471518.59 | M116: -2328613.12
A117: Alectra Utilities Corporation | B117: Alectra Utilities Corporation | C117: 1606 | D117: Alectra Utilities Corporation1606 | E117: Organization | J117: 257674.22 | K117: 257674.22 | L117: 0 | M117: 0
A118: Alectra Utilities Corporation | B118: Alectra Utilities Corporation | C118: 1608 | D118: Alectra Utilities Corporation1608 | E118: Franchises and Consents | J118: 0 | K118: 0 | L118: 0 | M118: 0
A119: Alectra Utilities Corporation | B119: Alectra Utilities Corporation | C119: 1609 | D119: Alectra Utilities Corporation1609 | E119: Capital Contributions Paid | J119: 81605803.64 | K119: 91218849.19 | L119: 100988641.6 | M119: 101439741.6
A120: Alectra Utilities Corporation | B120: Alectra Utilities Corporation | C120: 1610 | D120: Alectra Utilities Corporation1610 | E120: Miscellaneous Intangible Plant | J120: 5919816.92 | K120: 5919816.92 | L120: 750448531.9 | M120: 750448531.9
A121: Alectra Utilities Corporation | B121: Alectra Utilities Corporation | C121: 1611 | D121: Alectra Utilities Corporation1611 | E121: Computer Software | J121: 118002738.2 | K121: 172051334 | L121: 172552758.8 | M121: 167556396.1
A122: Alectra Utilities Corporation | B122: Alectra Utilities Corporation | C122: 1612 | D122: Alectra Utilities Corporation1612 | E122: Land Rights | J122: 3371382.32 | K122: 3471395.75 | L122: 3423662.24 | M122: 3637561.16
A123: Alectra Utilities Corporation | B123: Alectra Utilities Corporation | C123: 1615 | D123: Alectra Utilities Corporation1615 | E123: Land | J123: 0 | K123: 0 | L123: 0 | M123: 0
A124: Alectra Utilities Corporation | B124: Alectra Utilities Corporation | C124: 1616 | D124: Alectra Utilities Corporation1616 | E124: Land Rights | J124: 0 | K124: 0 | L124: 0 | M124: 0
A125: Alectra Utilities Corporation | B125: Alectra Utilities Corporation | C125: 1620 | D125: Alectra Utilities Corporation1620 | E125: Buildings and Fixtures | J125: 0 | K125: 0 | L125: 0 | M125: 0
A126: Alectra Utilities Corporation | B126: Alectra Utilities Corporation | C126: 1630 | D126: Alectra Utilities Corporation1630 | E126: Leasehold Improvements | J126: 0 | K126: 0 | L126: 0 | M126: 0
A127: Alectra Utilities Corporation | B127: Alectra Utilities Corporation | C127: 1635 | D127: Alectra Utilities Corporation1635 | E127: Boiler Plant Equipment | J127: 0 | K127: 0 | L127: 0 | M127: 0
A128: Alectra Utilities Corporation | B128: Alectra Utilities Corporation | C128: 1640 | D128: Alectra Utilities Corporation1640 | E128: Engines and Engine-Driven Generators | J128: 0 | K128: 0 | L128: 0 | M128: 0
A129: Alectra Utilities Corporation | B129: Alectra Utilities Corporation | C129: 1645 | D129: Alectra Utilities Corporation1645 | E129: Turbogenerator Units | J129: 0 | K129: 0 | L129: 0 | M129: 0
A130: Alectra Utilities Corporation | B130: Alectra Utilities Corporation | C130: 1650 | D130: Alectra Utilities Corporation1650 | E130: Reservoirs, Dams and Waterways | J130: 0 | K130: 0 | L130: 0 | M130: 0
A131: Alectra Utilities Corporation | B131: Alectra Utilities Corporation | C131: 1655 | D131: Alectra Utilities Corporation1655 | E131: Water Wheels, Turbines and Generators | J131: 0 | K131: 0 | L131: 0 | M131: 0
A132: Alectra Utilities Corporation | B132: Alectra Utilities Corporation | C132: 1660 | D132: Alectra Utilities Corporation1660 | E132: Roads, Railroads and Bridges | J132: 0 | K132: 0 | L132: 0 | M132: 0
A133: Alectra Utilities Corporation | B133: Alectra Utilities Corporation | C133: 1665 | D133: Alectra Utilities Corporation1665 | E133: Fuel Holders, Producers and Accessories | J133: 0 | K133: 0 | L133: 0 | M133: 0
A134: Alectra Utilities Corporation | B134: Alectra Utilities Corporation | C134: 1670 | D134: Alectra Utilities Corporation1670 | E134: Prime Movers | J134: 0 | K134: 0 | L134: 0 | M134: 0
A135: Alectra Utilities Corporation | B135: Alectra Utilities Corporation | C135: 1675 | D135: Alectra Utilities Corporation1675 | E135: Generators | J135: 0 | K135: 0 | L135: 0 | M135: 0
A136: Alectra Utilities Corporation | B136: Alectra Utilities Corporation | C136: 1680 | D136: Alectra Utilities Corporation1680 | E136: Accessory Electric Equipment | J136: 0 | K136: 0 | L136: 0 | M136: 0
A137: Alectra Utilities Corporation | B137: Alectra Utilities Corporation | C137: 1685 | D137: Alectra Utilities Corporation1685 | E137: Miscellaneous Power Plant Equipment | J137: 0 | K137: 0 | L137: 0 | M137: 0
A138: Alectra Utilities Corporation | B138: Alectra Utilities Corporation | C138: 1705 | D138: Alectra Utilities Corporation1705 | E138: Land | J138: 0 | K138: 0 | L138: 0 | M138: 0
A139: Alectra Utilities Corporation | B139: Alectra Utilities Corporation | C139: 1706 | D139: Alectra Utilities Corporation1706 | E139: Land Rights | J139: 0 | K139: 0 | L139: 0 | M139: 0
A140: Alectra Utilities Corporation | B140: Alectra Utilities Corporation | C140: 1708 | D140: Alectra Utilities Corporation1708 | E140: Buildings and Fixtures | J140: 0 | K140: 0 | L140: 0 | M140: 0
A141: Alectra Utilities Corporation | B141: Alectra Utilities Corporation | C141: 1710 | D141: Alectra Utilities Corporation1710 | E141: Leasehold Improvements | J141: 0 | K141: 0 | L141: 0 | M141: 0
A142: Alectra Utilities Corporation | B142: Alectra Utilities Corporation | C142: 1715 | D142: Alectra Utilities Corporation1715 | E142: Station Equipment | J142: 0 | K142: 0 | L142: 0 | M142: 0
A143: Alectra Utilities Corporation | B143: Alectra Utilities Corporation | C143: 1720 | D143: Alectra Utilities Corporation1720 | E143: Towers and Fixtures | J143: 0 | K143: 0 | L143: 0 | M143: 0
A144: Alectra Utilities Corporation | B144: Alectra Utilities Corporation | C144: 1725 | D144: Alectra Utilities Corporation1725 | E144: Poles and Fixtures | J144: 0 | K144: 0 | L144: 0 | M144: 0
A145: Alectra Utilities Corporation | B145: Alectra Utilities Corporation | C145: 1730 | D145: Alectra Utilities Corporation1730 | E145: Overhead Conductors and Devices | J145: 0 | K145: 0 | L145: 0 | M145: 0
A146: Alectra Utilities Corporation | B146: Alectra Utilities Corporation | C146: 1735 | D146: Alectra Utilities Corporation1735 | E146: Underground Conduit | J146: 0 | K146: 0 | L146: 0 | M146: 0
A147: Alectra Utilities Corporation | B147: Alectra Utilities Corporation | C147: 1740 | D147: Alectra Utilities Corporation1740 | E147: Underground Conductors and Devices | J147: 0 | K147: 0 | L147: 0 | M147: 0
A148: Alectra Utilities Corporation | B148: Alectra Utilities Corporation | C148: 1745 | D148: Alectra Utilities Corporation1745 | E148: Roads and Trails | J148: 0 | K148: 0 | L148: 0 | M148: 0
A149: Alectra Utilities Corporation | B149: Alectra Utilities Corporation | C149: 1805 | D149: Alectra Utilities Corporation1805 | E149: Land | J149: 25216479 | K149: 32626947.34 | L149: 40482250.11 | M149: 32335358.47
A150: Alectra Utilities Corporation | B150: Alectra Utilities Corporation | C150: 1808 | D150: Alectra Utilities Corporation1808 | E150: Buildings and Fixtures | J150: 74663063.89 | K150: 79778775.26 | L150: 48490911.9 | M150: 51818184.12
A151: Alectra Utilities Corporation | B151: Alectra Utilities Corporation | C151: 1810 | D151: Alectra Utilities Corporation1810 | E151: Leasehold Improvements | J151: 12567206.42 | K151: 0 | L151: 0 | M151: 0
A152: Alectra Utilities Corporation | B152: Alectra Utilities Corporation | C152: 1815 | D152: Alectra Utilities Corporation1815 | E152: Transformer Station Equipment - Normally Primary above 50 kV | J152: 146169947.2 | K152: 134283360.4 | L152: 135213498.4 | M152: 136430604.1
A153: Alectra Utilities Corporation | B153: Alectra Utilities Corporation | C153: 1820 | D153: Alectra Utilities Corporation1820 | E153: Distribution Station Equipment - Normally Primary below 50 kV | J153: 147576721.8 | K153: 141231144.6 | L153: 159353548.2 | M153: 164390576.8
A154: Alectra Utilities Corporation | B154: Alectra Utilities Corporation | C154: 1825 | D154: Alectra Utilities Corporation1825 | E154: Storage Battery Equipment | J154: 1209708.12 | K154: 0 | L154: 0 | M154: 0
A155: Alectra Utilities Corporation | B155: Alectra Utilities Corporation | C155: 1830 | D155: Alectra Utilities Corporation1830 | E155: Poles, Towers and Fixtures | J155: 470195130.2 | K155: 505227769.4 | L155: 484846088.6 | M155: 532319393.8
A156: Alectra Utilities Corporation | B156: Alectra Utilities Corporation | C156: 1835 | D156: Alectra Utilities Corporation1835 | E156: Overhead Conductors and Devices | J156: 301975874.9 | K156: 287262443.8 | L156: 437007721.3 | M156: 474248766.4
A157: Alectra Utilities Corporation | B157: Alectra Utilities Corporation | C157: 1840 | D157: Alectra Utilities Corporation1840 | E157: Underground Conduit | J157: 345422381.6 | K157: 362750193 | L157: 440253605.7 | M157: 458971500
A158: Alectra Utilities Corporation | B158: Alectra Utilities Corporation | C158: 1845 | D158: Alectra Utilities Corporation1845 | E158: Underground Conductors and Devices | J158: 900928510 | K158: 914915606 | L158: 859873444.1 | M158: 919675392.4
A159: Alectra Utilities Corporation | B159: Alectra Utilities Corporation | C159: 1850 | D159: Alectra Utilities Corporation1850 | E159: Line Transformers | J159: 438328906.6 | K159: 428311236.6 | L159: 492116417 | M159: 538393161.3
A160: Alectra Utilities Corporation | B160: Alectra Utilities Corporation | C160: 1855 | D160: Alectra Utilities Corporation1855 | E160: Services | J160: 125509939.1 | K160: 113864486.9 | L160: 352723425.1 | M160: 373682242.8
A161: Alectra Utilities Corporation | B161: Alectra Utilities Corporation | C161: 1860 | D161: Alectra Utilities Corporation1860 | E161: Meters | J161: 231072658.4 | K161: 236455940.6 | L161: 276261838.3 | M161: 290792745.1
A162: Alectra Utilities Corporation | B162: Alectra Utilities Corporation | C162: 1865 | D162: Alectra Utilities Corporation1865 | E162: Other Installations on Customer's Premises | J162: 0 | K162: 0 | L162: 0 | M162: 0
A163: Alectra Utilities Corporation | B163: Alectra Utilities Corporation | C163: 1870 | D163: Alectra Utilities Corporation1870 | E163: Leased Property on Customer Premises | J163: 0 | K163: 0 | L163: 0 | M163: 0
A164: Alectra Utilities Corporation | B164: Alectra Utilities Corporation | C164: 1875 | D164: Alectra Utilities Corporation1875 | E164: Street Lighting and Signal Systems | J164: 2118900.58 | K164: 1091911.08 | L164: 1091911.08 | M164: 1091911.08
A165: Alectra Utilities Corporation | B165: Alectra Utilities Corporation | C165: 1905 | D165: Alectra Utilities Corporation1905 | E165: Land | J165: 11020624.23 | K165: 10930137.11 | L165: 0 | M165: 0
A166: Alectra Utilities Corporation | B166: Alectra Utilities Corporation | C166: 1908 | D166: Alectra Utilities Corporation1908 | E166: Buildings and Fixtures | J166: 60787889.34 | K166: 65007580.14 | L166: 145535917.4 | M166: 129183547.4
A167: Alectra Utilities Corporation | B167: Alectra Utilities Corporation | C167: 1910 | D167: Alectra Utilities Corporation1910 | E167: Leasehold Improvements | J167: 20404877.07 | K167: 20404877.07 | L167: 0 | M167: 0
A168: Alectra Utilities Corporation | B168: Alectra Utilities Corporation | C168: 1915 | D168: Alectra Utilities Corporation1915 | E168: Office Furniture and Equipment | J168: 14517475.4 | K168: 15042988 | L168: 10441519.68 | M168: 10638707.33
A169: Alectra Utilities Corporation | B169: Alectra Utilities Corporation | C169: 1920 | D169: Alectra Utilities Corporation1920 | E169: Computer Equipment - Hardware | J169: 25409026.49 | K169: 27416805.39 | L169: 30786250.83 | M169: 22970582.38
A170: Alectra Utilities Corporation | B170: Alectra Utilities Corporation | C170: 1930 | D170: Alectra Utilities Corporation1930 | E170: Transportation Equipment | J170: 50675418.71 | K170: 60207335.78 | L170: 67039546.93 | M170: 78757497.89
A171: Alectra Utilities Corporation | B171: Alectra Utilities Corporation | C171: 1935 | D171: Alectra Utilities Corporation1935 | E171: Stores Equipment | J171: 925210.4 | K171: 925210.4 | L171: 404891.91 | M171: 237981.52
A172: Alectra Utilities Corporation | B172: Alectra Utilities Corporation | C172: 1940 | D172: Alectra Utilities Corporation1940 | E172: Tools, Shop and Garage Equipment | J172: 13117678.43 | K172: 13528530.58 | L172: 12232927.4 | M172: 11216525.59
A173: Alectra Utilities Corporation | B173: Alectra Utilities Corporation | C173: 1945 | D173: Alectra Utilities Corporation1945 | E173: Measurement and Testing Equipment | J173: 1223274.42 | K173: 1479319.69 | L173: 1645477.81 | M173: 1774590.09
A174: Alectra Utilities Corporation | B174: Alectra Utilities Corporation | C174: 1950 | D174: Alectra Utilities Corporation1950 | E174: Power Operated Equipment | J174: 35360.08 | K174: 35360.08 | L174: 0 | M174: 0
A175: Alectra Utilities Corporation | B175: Alectra Utilities Corporation | C175: 1955 | D175: Alectra Utilities Corporation1955 | E175: Communication Equipment | J175: 5890949.66 | K175: 6182523.36 | L175: 6586401.41 | M175: 4416296.32
A176: Alectra Utilities Corporation | B176: Alectra Utilities Corporation | C176: 1960 | D176: Alectra Utilities Corporation1960 | E176: Miscellaneous Equipment | J176: 57637.25 | K176: 57637.25 | L176: 8242057.17 | M176: 8274840.87
A177: Alectra Utilities Corporation | B177: Alectra Utilities Corporation | C177: 1970 | D177: Alectra Utilities Corporation1970 | E177: Load Management Controls - Customer Premises | J177: 312338.08 | K177: 0 | L177: 136371.49 | M177: 136371.49
A178: Alectra Utilities Corporation | B178: Alectra Utilities Corporation | C178: 1975 | D178: Alectra Utilities Corporation1975 | E178: Load Management Controls - Utility Premises | J178: 0 | K178: 0 | L178: 0 | M178: 0
A179: Alectra Utilities Corporation | B179: Alectra Utilities Corporation | C179: 1980 | D179: Alectra Utilities Corporation1980 | E179: System Supervisory Equipment | J179: 38504216.12 | K179: 40393916.27 | L179: 37498174.05 | M179: 39290031.39
A180: Alectra Utilities Corporation | B180: Alectra Utilities Corporation | C180: 1985 | D180: Alectra Utilities Corporation1985 | E180: Sentinel Lighting Rental Units | J180: 0 | K180: 0 | L180: 6157.08 | M180: 6157.08
A181: Alectra Utilities Corporation | B181: Alectra Utilities Corporation | C181: 1990 | D181: Alectra Utilities Corporation1990 | E181: Other Tangible Property | J181: 17989700.32 | K181: 1280607.76 | L181: 0 | M181: 0
A182: Alectra Utilities Corporation | B182: Alectra Utilities Corporation | C182: 1995 | D182: Alectra Utilities Corporation1995 | E182: Contributions and Grants - Credit | J182: -235636702.2 | K182: 0 | L182: -59218194.44 | M182: -60352923.62
A183: Alectra Utilities Corporation | B183: Alectra Utilities Corporation | C183: 2005 | D183: Alectra Utilities Corporation2005 | E183: Property Under Finance Leases | J183: 18832445.66 | K183: 17549082.29 | L183: 13953859.72 | M183: 17470946
A184: Alectra Utilities Corporation | B184: Alectra Utilities Corporation | C184: 2010 | D184: Alectra Utilities Corporation2010 | E184: Electric Plant Purchased or Sold | J184: 0 | K184: 0 | L184: -0.2 | M184: 0
A185: Alectra Utilities Corporation | B185: Alectra Utilities Corporation | C185: 2020 | D185: Alectra Utilities Corporation2020 | E185: Experimental Electric Plant Unclassified | J185: 0 | K185: 0 | L185: 0 | M185: 0
A186: Alectra Utilities Corporation | B186: Alectra Utilities Corporation | C186: 2030 | D186: Alectra Utilities Corporation2030 | E186: Electric Plant and Equipment Leased to Others | J186: 0 | K186: 0 | L186: 0 | M186: 0
A187: Alectra Utilities Corporation | B187: Alectra Utilities Corporation | C187: 2040 | D187: Alectra Utilities Corporation2040 | E187: Electric Plant Held for Future Use | J187: 4731252.23 | K187: 5089270.27 | L187: 0 | M187: 0
A188: Alectra Utilities Corporation | B188: Alectra Utilities Corporation | C188: 2050 | D188: Alectra Utilities Corporation2050 | E188: Completed Construction Not Classified--Electric | J188: 5372396.37 | K188: 10969934 | L188: 0 | M188: 0
A189: Alectra Utilities Corporation | B189: Alectra Utilities Corporation | C189: 2055 | D189: Alectra Utilities Corporation2055 | E189: Construction Work in Progress--Electric | J189: 100460191.9 | K189: 99910074.56 | L189: 123220681.2 | M189: 153817131.6
A190: Alectra Utilities Corporation | B190: Alectra Utilities Corporation | C190: 2060 | D190: Alectra Utilities Corporation2060 | E190: Electric Plant Acquisition Adjustment | J190: 714375893.5 | K190: 715659256.9 | L190: 0 | M190: 0
A191: Alectra Utilities Corporation | B191: Alectra Utilities Corporation | C191: 2065 | D191: Alectra Utilities Corporation2065 | E191: Other Electric Plant Adjustment | J191: 0 | K191: -2191833.41 | L191: 0 | M191: 0
A192: Alectra Utilities Corporation | B192: Alectra Utilities Corporation | C192: 2070 | D192: Alectra Utilities Corporation2070 | E192: Other Utility Plant | J192: 0 | K192: 0 | L192: 398.14 | M192: 398.14
A193: Alectra Utilities Corporation | B193: Alectra Utilities Corporation | C193: 2075 | D193: Alectra Utilities Corporation2075 | E193: Non Rate-Regulated Utility Property Owned or Under Finance Leases | J193: 126934309.2 | K193: 2191833.41 | L193: 4013823.7 | M193: 4013823.7
A194: Alectra Utilities Corporation | B194: Alectra Utilities Corporation | C194: 2075 | D194: Alectra Utilities Corporation2075 | E194: Sub-account Generation Facility Assets | J194: 0 | K194: 0 | L194: 0 | M194: 0
A195: Alectra Utilities Corporation | B195: Alectra Utilities Corporation | C195: 2105 | D195: Alectra Utilities Corporation2105 | E195: Accumulated Depreciation of Electric Utility Plant - Property, Plant and Equipment | J195: -595024584.1 | K195: -703154600.5 | L195: -878742638.7 | M195: -943345221.5
A196: Alectra Utilities Corporation | B196: Alectra Utilities Corporation | C196: 2105 | D196: Alectra Utilities Corporation2105 | E196: Sub-account Accumulated Depreciation for Specifically Identified Asset Accounts | J196: 0 | K196: 0 | L196: 0 | M196: 0
A197: Alectra Utilities Corporation | B197: Alectra Utilities Corporation | C197: 2120 | D197: Alectra Utilities Corporation2120 | E197: Accumulated Amortization of Electric Utility Plant - Intangibles | J197: -55219595.82 | K197: -68187883.59 | L197: -89206330.6 | M197: -80711526.17
A198: Alectra Utilities Corporation | B198: Alectra Utilities Corporation | C198: 2140 | D198: Alectra Utilities Corporation2140 | E198: Accumulated Amortization of Electric Plant Acquisition Adjustment | J198: 0 | K198: 0 | L198: 0 | M198: 0
A199: Alectra Utilities Corporation | B199: Alectra Utilities Corporation | C199: 2160 | D199: Alectra Utilities Corporation2160 | E199: Accumulated Depreciation of Other Utility Plant | J199: 0 | K199: 0 | L199: -398.38 | M199: -398.38
A200: Alectra Utilities Corporation | B200: Alectra Utilities Corporation | C200: 2180 | D200: Alectra Utilities Corporation2180 | E200: Accumulated Depreciation of Non Rate-Regulated Utility Property | J200: -25079745.42 | K200: -1623568.48 | L200: -3290491.22 | M200: -3367204.82
A201: Alectra Utilities Corporation | B201: Alectra Utilities Corporation | C201: 2205 | D201: Alectra Utilities Corporation2205 | E201: Accounts Payable | J201: -178261283 | K201: -161641769.7 | L201: -306635503.3 | M201: -327702620.2
... 4299 more rows

Sheet Appendix 2-BB Service Life
N1: File Number: | P1: EB-2022-0044
N2: Exhibit: | P2: 2
N3: Tab: | P3: 2
N4: Schedule: | P4: 3
N5: Page:
N7: Date: | P7: ='App.2-A_Requested_Approvals'!H7 -> 2022-Oct-28
A9: Appendix 2-BB
A10: Service Life Comparison
A11: Table F-1 from Kinetrics Report1
C15: Asset Details | F15: Useful Life | J15: USoA Account Number | K15: USoA Account Description | L15: Current | N15: Proposed | P15: Outside Range of Min, Max TUL?
A16: Parent* | B16: # | C16: Category| Component | Type | F16: MIN UL | G16: TUL | H16: MAX UL | L16: Years | M16: Rate | N16: Years | O16: Rate | P16: Below Min TUL | Q16: Above Max TUL
A17: OH | B17: 1 | C17: Fully Dressed Wood Poles | D17: Overall | F17: 35 | G17: 45 | H17: 75 | J17: 1830 | K17: Poles, Towers & Fixtures | L17: 45 | M17: =IF(ISERROR(1/L17), "", 1/L17) -> 0.02222222222 | N17: 45 | O17: =IF(ISERROR(1/N17), "", 1/N17) -> 0.02222222222 | P17: =IF(ISBLANK(N17),"",IF(N17<F17,"Yes","No")) -> No | Q17: =IF(ISBLANK(N17),"",IF(N17>H17,"Yes","No")) -> No
D18: Cross Arm | E18: Wood | F18: 20 | G18: 40 | H18: 55 | M18: =IF(ISERROR(1/L18), "", 1/L18) ->  | O18: =IF(ISERROR(1/N18), "", 1/N18) ->  | P18: =IF(ISBLANK(N18),"",IF(N18<F18,"Yes","No")) ->  | Q18: =IF(ISBLANK(N18),"",IF(N18>H18,"Yes","No")) -> 
E19: Steel | F19: 30 | G19: 70 | H19: 95
B20: 2 | C20: Fully Dressed Concrete Poles | D20: Overall | F20: 50 | G20: 60 | H20: 80
D21: Cross Arm | E21: Wood | F21: 20 | G21: 40 | H21: 55
E22: Steel | F22: 30 | G22: 70 | H22: 95
B23: 3 | C23: Fully Dressed Steel Poles | D23: Overall | F23: 60 | G23: 60 | H23: 80
D24: Cross Arm | E24: Wood | F24: 20 | G24: 40 | H24: 55
E25: Steel | F25: 30 | G25: 70 | H25: 95
B26: 4 | C26: OH Line Switch | F26: 30 | G26: 45 | H26: 55 | J26: 1835 | K26: Overhead Conductors & Devices | L26: 45 | M26: 0.02222222222 | N26: 45 | O26: 0.02222222222 | P26: No | Q26: No
B27: 5 | C27: OH Line Switch Motor | F27: 15 | G27: 25 | H27: 25
B28: 6 | C28: OH Line Switch RTU | F28: 15 | G28: 20 | H28: 20
B29: 7 | C29: OH Integral Switches | F29: 35 | G29: 45 | H29: 60
B30: 8 | C30: OH Conductors | F30: 50 | G30: 60 | H30: 75 | J30: 1835 | K30: Overhead Conductors & Devices | L30: 60 | M30: 0.01666666667 | N30: 60 | O30: 0.01666666667 | P30: No | Q30: No
B31: 9 | C31: OH Transformers & Voltage Regulators | F31: 30 | G31: 40 | H31: 60 | J31: 1850 | K31: Line Transformers | L31: 40 | M31: 0.025 | N31: 40 | O31: 0.025 | P31: No | Q31: No
B32: 10 | C32: OH Shunt Capacitor Banks | F32: 25 | G32: 30 | H32: 40
B33: 11 | C33: Reclosers | F33: 25 | G33: 40 | H33: 55
C34: OH Services | F34: 50 | G34: 60 | H34: 75 | J34: 1855 | K34: Services (Overhead & Underground) | L34: 60 | M34: 0.01666666667 | N34: 60 | O34: 0.01666666667 | P34: No | Q34: No | R34: Useful life more in line with conductors. Kinectrics didn't specific useful life for OH services
A35: TS & MS | B35: 12 | C35: Power Transformers | D35: Overall | F35: 30 | G35: 45 | H35: 60 | J35: 1820 | K35: Distribution Station Equipment <50 kV | L35: 50 | M35: 0.02 | N35: 50 | O35: 0.02 | P35: No | Q35: No | R35: Our experience is that we replace the bushing and tap changer when we replace the transformer. Therefore did not componentize the power transformers. Used high end of overall transformer midpoint.
D36: Bushing | F36: 10 | G36: 20 | H36: 30
D37: Tap Changer | F37: 20 | G37: 30 | H37: 60
B38: 13 | C38: Station Service Transformer | F38: 30 | G38: 45 | H38: 55 | J38: 1820 | K38: Distribution Station Equipment <50 kV | L38: 50 | M38: 0.02 | N38: 50 | O38: 0.02 | P38: No | Q38: No
B39: 14 | C39: Station Grounding Transformer | F39: 30 | G39: 40 | H39: 40
B40: Cambridge | C40: Station Grounding System (9) | D40: Ground Grid | F40: 25 | G40: 40 | H40: 50 | J40: 1820 | K40: Distribution Station Equipment <50 kV | L40: 50 | M40: 0.02 | N40: 50 | O40: 0.02 | P40: No | Q40: No
B41: Cambridge | D41: Arresters | F41: 10 | G41: 20 | H41: 30 | J41: 1820 | K41: Distribution Station Equipment <50 kV | L41: 20 | M41: 0.05 | N41: 20 | O41: 0.05 | P41: No | Q41: No
B42: 15 | C42: Station DC System | D42: Overall | F42: 10 | G42: 20 | H42: 30 | J42: 1820 | K42: Distribution Station Equipment <50 kV | L42: 20 | M42: 0.05 | N42: 20 | O42: 0.05 | P42: No | Q42: No | R42: Our experience is that we replace the whole DC system and not by component. Therefore did not componentize Station DC System. Used high end of overall Station DC System midpoint.
D43: Battery Bank | F43: 10 | G43: 15 | H43: 15
D44: Charger | F44: 20 | G44: 20 | H44: 30
B45: 16 | C45: Station Metal Clad Switchgear | D45: Overall | F45: 30 | G45: 40 | H45: 60 | J45: 1820 | K45: Distribution Station Equipment <50 kV | L45: 50 | M45: 0.02 | N45: 50 | O45: 0.02 | P45: No | Q45: No
D46: Removable Breaker | F46: 25 | G46: 40 | H46: 60
B47: 17 | C47: Station Independent Breakers | F47: 35 | G47: 45 | H47: 65 | J47: 1820 | K47: Distribution Station Equipment <50 kV | L47: 50 | M47: 0.02 | N47: 50 | O47: 0.02 | P47: No | Q47: No
B48: 18 | C48: Station Switch | F48: 30 | G48: 50 | H48: 60 | J48: 1820 | K48: Distribution Station Equipment <50 kV | L48: 50 | M48: 0.02 | N48: 50 | O48: 0.02 | P48: No | Q48: No
B49: 19 | C49: Electromechanical Relays | F49: 25 | G49: 35 | H49: 50
B50: 20 | C50: Solid State Relays | F50: 10 | G50: 30 | H50: 45
B51: 21 | C51: Digital & Numeric Relays | F51: 15 | G51: 20 | H51: 20 | J51: 1820 | K51: Distribution Station Equipment <50 kV | L51: 20 | M51: 0.05 | N51: 20 | O51: 0.05 | P51: No | Q51: No
B52: 22 | C52: Rigid Busbars | F52: 30 | G52: 55 | H52: 60 | J52: 1820 | K52: Distribution Station Equipment <50 kV | L52: 50 | M52: 0.02 | N52: 50 | O52: 0.02 | P52: No | Q52: No
B53: 29 | C53: Primary TR XLPE Cables In Duct | F53: 35 | G53: 40 | H53: 55 | J53: 1820 | K53: Distribution Station Equipment <50 kV | L53: 50 | M53: 0.02 | N53: 50 | O53: 0.02 | P53: No | Q53: No | R53: line 29 was on Original Kinetrics report but was not on the appendix template, Leisha conversation with Meghana in 2012, we use TR XLPE cable now
B54: 37 | C54: UG Vaults- Overall | F54: 40 | G54: 60 | H54: 80 | J54: 1820 | K54: Distribution Station Equipment <50 kV | L54: 60 | M54: 0.01666666667 | N54: 60 | O54: 0.01666666667 | P54: No | Q54: No
B55: 41 | C55: Concrete Encased Duct Banks | F55: 35 | G55: 55 | H55: 80 | J55: 1820 | K55: Distribution Station Equipment <50 kV | L55: 60 | M55: 0.01666666667 | N55: 60 | O55: 0.01666666667 | P55: No | Q55: No
B56: 23 | C56: Steel Structure | F56: 35 | G56: 50 | H56: 90
A57: UG | B57: 24 | C57: Primary Paper Insulated Lead Covered (PILC) Cables | F57: 60 | G57: 65 | H57: 75
B58: 25 | C58: Primary Ethylene-Propylene Rubber (EPR) Cables | F58: 20 | G58: 25 | H58: 25
B59: 26 | C59: Primary Non-Tree Retardant (TR) Cross Linked Polyethylene (XLPE) Cables Direct Buried | F59: 20 | G59: 25 | H59: 30
B60: 4 | C60: UG Switches | F60: 30 | G60: 45 | H60: 55 | J60: 1845 | K60: Underground Conductors & Devices | L60: 50 | M60: 0.02 | N60: 50 | O60: 0.02 | P60: No | Q60: No | R60: used the useful life from OH Switches on Kinectrics report
B61: 27 | C61: Primary Non-TR XLPE Cables in Duct | F61: 20 | G61: 25 | H61: 30
B62: 29 | C62: Primary TR XLPE Cables In Duct | F62: 35 | G62: 40 | H62: 55 | J62: 1845 | K62: Underground Conductors & Devices | L62: 50 | M62: 0.02 | N62: 50 | O62: 0.02 | P62: No | Q62: No | R62: line 29 was on Original Kinetrics report but was not on the appendix template, Leisha conversation with Meghana in 2012, we use TR XLPE cable now
C63: UG SERVICES | F63: 50 | G63: 60 | H63: 75 | J63: 1855 | K63: Services (Overhead & Underground) | L63: 60 | M63: 0.01666666667 | N63: 60 | O63: 0.01666666667 | P63: No | Q63: No | R63: Useful life more in line with conductors. Kinectrics didn't specific useful life for OH services
B64: 30 | C64: Secondary PILC Cables | F64: 70 | G64: 75 | H64: 80
B65: 31 | C65: Secondary Cables Direct Buried | F65: 25 | G65: 35 | H65: 40
B66: 32 | C66: Secondary Cables in Duct | F66: 35 | G66: 40 | H66: 60
B67: 33 | C67: Network Tranformers | D67: Overall | F67: 20 | G67: 35 | H67: 50
D68: Protector | F68: 20 | G68: 35 | H68: 40
B69: 34 | C69: Pad-Mounted Transformers | F69: 25 | G69: 40 | H69: 45 | J69: 1850 | K69: Line Transformers | L69: 40 | M69: 0.025 | N69: 40 | O69: 0.025 | P69: No | Q69: No
B70: 35 | C70: Submersible/Vault Transformers | F70: 25 | G70: 35 | H70: 45 | J70: 1850 | K70: Line Transformers | L70: 40 | M70: 0.025 | N70: 40 | O70: 0.025 | P70: No | Q70: No
B71: 36 | C71: UG Foundation | F71: 35 | G71: 55 | H71: 70 | J71: 1840 | K71: Underground Conduit | L71: 40 | M71: 0.025 | N71: 40 | O71: 0.025 | P71: No | Q71: No
B72: 37 | C72: UG Vaults | D72: Overall | F72: 40 | G72: 60 | H72: 80 | J72: 1840 | K72: Underground Conduit | L72: 60 | M72: 0.01666666667 | N72: 60 | O72: 0.01666666667 | P72: No | Q72: No
D73: Roof | F73: 20 | G73: 30 | H73: 45 | J73: 1840 | K73: Underground Conduit | L73: 35 | M73: 0.02857142857 | N73: 35 | O73: 0.02857142857 | P73: No | Q73: No
B74: 38 | C74: UG Vault Switches | F74: 20 | G74: 35 | H74: 50
B75: 39 | C75: Pad-Mounted Switchgear | F75: 20 | G75: 30 | H75: 45
B76: 40 | C76: Ducts | F76: 30 | G76: 50 | H76: 85
B77: 41 | C77: Concrete Encased Duct Banks | F77: 35 | G77: 55 | H77: 80 | J77: 1840 | K77: Underground Conduit | L77: 60 | M77: 0.01666666667 | N77: 60 | O77: 0.01666666667 | P77: No | Q77: No
B78: 42 | C78: Cable Chambers | F78: 50 | G78: 60 | H78: 80 | J78: 1840 | K78: Underground Conduit | L78: 60 | M78: 0.01666666667 | N78: 60 | O78: 0.01666666667 | P78: No | Q78: No
A79: S | B79: 43 | C79: Remote SCADA | F79: 15 | G79: 20 | H79: 30 | J79: 1980 | K79: System Supervisor Equipment | L79: 20 | M79: 0.05 | N79: 20 | O79: 0.05 | P79: No | Q79: No
A82: Table F-2 from Kinetrics Report1
C84: Asset Details | F84: Useful Life Range | J84: USoA Account Number | K84: USoA Account Description | L84: Current | N84: Proposed | P84: Outside Range of Min, Max TUL?
B85: # | C85: Category| Component | Type | L85: Years | M85: Rate | N85: Years | O85: Rate | P85: Below Min Range | Q85: Above Max Range
B86: 1 | C86: Office Equipment | F86: 5 | G86: 15 | J86: 1915 | K86: Office Furniture & Equipment (10 years) | L86: 10 | M86: =IF(ISERROR(1/L86), "", 1/L86) -> 0.1 | N86: 10 | O86: =IF(ISERROR(1/N86), "", 1/N86) -> 0.1 | P86: =IF(ISBLANK(N86),"",IF(N86<F86,"Yes","No")) -> No | Q86: =IF(ISBLANK(N86),"",IF(N86>G86,"Yes","No")) -> No
B87: 2 | C87: Vehicles | D87: Trucks & Buckets | F87: 5 | G87: 15 | J87: 1930 | K87: Transportation Equipment | L87: 12 | M87: =IF(ISERROR(1/L87), "", 1/L87) -> 0.08333333333 | N87: 12 | O87: =IF(ISERROR(1/N87), "", 1/N87) -> 0.08333333333 | P87: =IF(ISBLANK(N87),"",IF(N87<F87,"Yes","No")) -> No | Q87: =IF(ISBLANK(N87),"",IF(N87>G87,"Yes","No")) -> No
D88: Trailers | F88: 5 | G88: 20
D89: Vans (Passenger vehicle) | F89: 5 | G89: 10 | J89: 1930 | K89: Transportation Equipment | L89: 8 | M89: 0.125 | N89: 8 | O89: 0.125 | P89: No | Q89: No
B90: 3 | C90: Administrative Buildings | F90: 50 | G90: 75
B91: 4 | C91: Leasehold Improvements | F91: Lease dependent | J91: 1910 | K91: Leasehold Improvements | L91: 20 | M91: 0.05 | N91: 20 | O91: 0.05
B92: 5 | C92: Station Buildings | D92: Station Buildings | F92: 50 | G92: 75 | J92: 1808 | K92: Buildings | L92: 60 | M92: 0.01666666667 | N92: 60 | O92: 0.01666666667 | P92: No | Q92: No
D93: Parking | F93: 25 | G93: 30 | J93: 1808 | K93: Buildings | L93: 30 | M93: 0.03333333333 | N93: 30 | O93: 0.03333333333 | P93: No | Q93: No
D94: Fence | F94: 25 | G94: 60 | J94: 1808 | K94: Buildings | L94: 30 | M94: 0.03333333333 | N94: 30 | O94: 0.03333333333 | P94: No | Q94: No
D95: Roof | F95: 20 | G95: 30 | J95: 1808 | K95: Buildings | L95: 30 | M95: 0.03333333333 | N95: 30 | O95: 0.03333333333 | P95: No | Q95: No
B96: 6 | C96: Computer Equipment | D96: Hardware | F96: 3 | G96: 5 | J96: 1920 | K96: Computer Equip.-Hardware | L96: 5 | M96: 0.2 | N96: 5 | O96: 0.2 | P96: No | Q96: No
D97: Software | F97: 2 | G97: 5 | J97: 1925 | K97: Computer Software | L97: 5 | M97: 0.2 | N97: 5 | O97: 0.2 | P97: No | Q97: No
B98: 7 | C98: Equipment | D98: Power Operated | F98: 5 | G98: 10 | J98: 1950 | K98: Power Operated Equipment | L98: 10 | M98: 0.1 | N98: 10 | O98: 0.1 | P98: No | Q98: No
D99: Stores | F99: 5 | G99: 10 | J99: 1935 | K99: Stores Equipment | L99: 10 | M99: 0.1 | N99: 10 | O99: 0.1 | P99: No | Q99: No
D100: Tools, Shop, Garage Equipment | F100: 5 | G100: 10 | J100: 1940 | K100: Tools, Shop & Garage Equipment | L100: 10 | M100: 0.1 | N100: 10 | O100: 0.1 | P100: No | Q100: No
D101: Measurement & Testing Equipment | F101: 5 | G101: 10 | J101: 1945 | K101: Measurement & Testing Equipment | L101: 10 | M101: 0.1 | N101: 10 | O101: 0.1 | P101: No | Q101: No
B102: 8 | C102: Communication | D102: Towers | F102: 60 | G102: 70
D103: Wireless | F103: 2 | G103: 10 | J103: 1955 | K103: Communications Equipment | L103: 5 | M103: 0.2 | N103: 5 | O103: 0.2 | P103: No | Q103: No
B104: 9 | C104: Residential Energy Meters | F104: 25 | G104: 35
B105: 10 | C105: Industrial/Commercial Energy Meters | F105: 25 | G105: 35
B106: 11 | C106: Wholesale Energy Meters | F106: 15 | G106: 30 | J106: 1860 | K106: Meters | L106: 15 | M106: 0.06666666667 | N106: 15 | O106: 0.06666666667 | P106: No | Q106: No | R106: Kinectrics Study midpoint for wholesale meters is 25. Seal test is at 10 years for these meters. Intent is to replace meters after 10 years instead of having the seals tested. Use 15 years to be consistent with Smart Meters.
B107: 12 | C107: Current & Potential Transformer (CT & PT) | F107: 35 | G107: 50 | J107: 1820/ 1860 | K107: Distribution Station Equipment <50 kV / Meters | L107: 50 | M107: 0.02 | N107: 50 | O107: 0.02 | P107: No | Q107: No | R107: We have CT's & PT's under substations, and metering, CT & PT's under metering are not located in any stations
B108: 13 | C108: Smart Meters | F108: 5 | G108: 15 | J108: 1860 | K108: Meters (Smart Meters) | L108: 15 | M108: 0.06666666667 | N108: 15 | O108: 0.06666666667 | P108: No | Q108: No | R108: Per OEB, EUL is 15 years. There is an uncertainty of useful life but will go with 15 years until we have historical evidence.
B109: 14 | C109: Repeaters - Smart Metering | F109: 10 | G109: 15
B110: 15 | C110: Data Collectors - Smart Metering | F110: 15 | G110: 20
A113: * TS & MS = Transformer and Municipal Stations UG = Underground Systems S = Monitoring and Control Systems
A115: Note 1: | B115: Tables F-1 and F-2 above are to be used as a reference in order to complete columns J, K, L and N.
B116: See pages 17-19 of Kinetrics Report

Sheet App.2-C_DepExp
H1: File Number: | J1: EB-2022-0044
H2: Exhibit: | J2: 2
A3: ` | H3: Tab: | J3: 2
H4: Schedule: | J4: 3
H5: Page:
H7: Date: | J7: ='App.2-A_Requested_Approvals'!H7 -> 2022-Oct-28
A9: Appendix 2-C
A10: Depreciation and Amortization Expense
A13: General: | B13: This appendix is to assess the reasonability of the depreciation expense that is included in rate base via. accumulated depreciation and the revenue requirement.
B14: Applicants must provide a breakdown of depreciation and amortization expense in the above format for all relevant accounts. Balances presented in the table should exclude asset retirement obligations (AROs) and the related depreciation and accretion expense. These should be disclosed separately.
B15: This appendix must be completed under MIFRS for each year for the earlier of: 1) all historical years back to the Applicant's last rebasing; or 2) at least three years of historical actuals, in addition to Bridge Year and Test Year forecasts. If this is the first application where the Applicant is rebasing under MIFRS, contact OEB staff for further guidance on the appropriate depreciation schedules to complete (i.e. applicable years and accounting standard for each schedule).
A17: Notes:
A18: 1 | B18: This should include assets in column A (excel column C) that become fully depreciated.
A19: 2 | B19: The useful life used should be consistent with the OEB's regulatory accounting policies as set out in the Accounting Procedures Handbook for Electricity Distributors, effective Jan. 1, 2012 and also with the Report of the Board, Transition to International Financial Reporting Standards, EB-2008-0408, and the Kinectrics Report.
A20: 3 | B20: OEB policy of the "half-year" rule - the applicant must ensure that additions in the year attract a half-year depreciation expense in the first year. Deviations from this standard practice must be supported in the application.
A21: 4 | B21: The applicant must provide an explanation of material variances in its evidence.
E23: Year | F23: ='LDC Info'!E28 -> 2016
C25: Book Values | G25: Service Lives | I25: Depreciation Expense
A26: Account | B26: Description | C26: Opening Book Value of Assets | D26: Less Fully Depreciated 1 | E26: Current Year Additions | F26: Net Amount of Assets to be Depreciated | G26: Remaining Life of Assets Existing 2 | H26: Depreciation Rate Assets | I26: Depreciation Expense on Assets 3 | J26: Depreciation Expense per Appendix 2-BA Fixed Assets, Column J | K26: Variance 4
C27: a | D27: b | E27: c | F27: d = a-b+0.5*c | G27: e | H27: f = 1/e | I27: g = d/e | J27: h | K27: q = h-g
A28: 1609 | B28: Capital Contributions Paid | C28: ='App.2-BA_Fixed Asset Cont'!D47 -> 0 | E28: ='App.2-BA_Fixed Asset Cont'!E47 -> 0 | F28: =C28-D28+E28*0.5 -> 0 | H28: =IF(G28=0,0,1/G28) -> 0 | I28: =IF(G28=0,0,+F28/G28) -> 0 | J28: =-'App.2-BA_Fixed Asset Cont'!K47 -> 0 | K28: =IF(ISERROR(+J28-I28), 0, +J28-I28) -> 0
A29: 1610 | B29: Misc. Intangilble Plant | C29: ='App.2-BA_Fixed Asset Cont'!D48 -> 208725 | D29: 0 | E29: ='App.2-BA_Fixed Asset Cont'!E48 -> 0 | F29: =C29-D29+E29*0.5 -> 208725 | G29: 40 | H29: =IF(G29=0,0,1/G29) -> 0.025 | I29: =IF(G29=0,0,+F29/G29) -> 5218.125 | J29: =-'App.2-BA_Fixed Asset Cont'!K48 -> 6061 | K29: =IF(ISERROR(+J29-I29), 0, +J29-I29) -> 842.875
A30: 1611 | B30: Computer Software (Formally known as Account 1925) | C30: ='App.2-BA_Fixed Asset Cont'!D49 -> 61915 | D30: 29399.53 | E30: ='App.2-BA_Fixed Asset Cont'!E49 -> 0 | F30: =C30-D30+E30*0.5 -> 32515.47 | G30: 5 | H30: =IF(G30=0,0,1/G30) -> 0.2 | I30: 6503.094 | J30: =-'App.2-BA_Fixed Asset Cont'!K49 -> 7674 | K30: =IF(ISERROR(+J30-I30), 0, +J30-I30) -> 1170.906
A31: 1612 | B31: Land Rights (Formally known as Account 1906) | C31: ='App.2-BA_Fixed Asset Cont'!D50 -> 0 | E31: ='App.2-BA_Fixed Asset Cont'!E50 -> 0 | F31: =C31-D31+E31*0.5 -> 0 | H31: =IF(G31=0,0,1/G31) -> 0 | I31: 0 | J31: =-'App.2-BA_Fixed Asset Cont'!K50 -> 0 | K31: =IF(ISERROR(+J31-I31), 0, +J31-I31) -> 0
A32: 1805 | B32: Land | C32: ='App.2-BA_Fixed Asset Cont'!D51 -> 197343 | D32: 0 | E32: ='App.2-BA_Fixed Asset Cont'!E51 -> 0 | F32: 197343 | H32: 0 | I32: 0 | J32: =-'App.2-BA_Fixed Asset Cont'!K51 -> 0 | K32: 0
A33: 1808 | B33: Buildings | C33: 583093 | D33: 0 | F33: 583093 | G33: 60 | H33: 0.01666666667 | I33: 9718.216667 | J33: 12417 | K33: 2698.783333
A34: 1808 | B34: Buildings | C34: 129025 | D34: 0 | E34: 123964 | F34: 191007 | G34: 30 | H34: 0.03333333333 | I34: 6366.9 | J34: 8103 | K34: 1736.1
A35: 1808 | B35: Buildings | C35: ='App.2-BA_Fixed Asset Cont'!D52 -> 712118 | E35: ='App.2-BA_Fixed Asset Cont'!E52 -> 123964 | F35: 774100 | H35: 0 | I35: 0 | J35: =-'App.2-BA_Fixed Asset Cont'!K52 -> 20520
A36: 1810 | B36: Leasehold Improvements | C36: ='App.2-BA_Fixed Asset Cont'!D53 -> 0 | E36: ='App.2-BA_Fixed Asset Cont'!E53 -> 0 | F36: 0 | H36: 0 | I36: 0 | J36: =-'App.2-BA_Fixed Asset Cont'!K53 -> 0 | K36: 0
A37: 1815 | B37: Transformer Station Equipment >50 kV | C37: ='App.2-BA_Fixed Asset Cont'!D54 -> 0 | E37: ='App.2-BA_Fixed Asset Cont'!E54 -> 0 | F37: 0 | H37: 0 | I37: 0 | J37: =-'App.2-BA_Fixed Asset Cont'!K54 -> 0 | K37: 0
A38: 1820 | B38: Distribution Station Equipment <50 kV | C38: 189550 | D38: 0 | F38: =C38-D38+E38*0.5 -> 189550 | G38: 60 | H38: =IF(G38=0,0,1/G38) -> 0.01666666667 | I38: =IF(G38=0,0,+F38/G38) -> 3159.166667 | J38: 3503 | K38: 343.8333333
A39: 1820 | B39: Distribution Station Equipment <50 kV | C39: 5976344 | D39: 0 | E39: 336593 | F39: 6144640.5 | G39: 50 | H39: 0.02 | I39: 122892.81 | J39: 167421 | K39: 44528.19 | L39: 29251 | M39: ICM Adjustments filing EB-2015-0083
A40: 1820 | B40: Distribution Station Equipment <50 kV | C40: 1076927 | D40: 0 | E40: 232665 | F40: 1193259.5 | G40: 20 | H40: 0.05 | I40: 59662.975 | J40: 104407 | K40: 44744.025 | L40: 27150 | M40: ICM Adjustments filing EB-2015-0083
A41: 1820 | B41: Distribution Station Equipment <50 kV | C41: ='App.2-BA_Fixed Asset Cont'!D55 -> 7242821 | E41: ='App.2-BA_Fixed Asset Cont'!E55 -> 569258 | F41: 7527450 | H41: 0 | I41: 0 | J41: =-'App.2-BA_Fixed Asset Cont'!K55 -> 275332
A42: 1825 | B42: Storage Battery Equipment | C42: ='App.2-BA_Fixed Asset Cont'!D56 -> 0 | E42: ='App.2-BA_Fixed Asset Cont'!E56 -> 0 | F42: 0 | H42: 0 | I42: 0 | J42: =-'App.2-BA_Fixed Asset Cont'!K56 -> 0 | K42: 0
A43: 1830 | B43: Poles, Towers & Fixtures | C43: ='App.2-BA_Fixed Asset Cont'!D57 -> 9939462 | D43: 0 | E43: ='App.2-BA_Fixed Asset Cont'!E57 -> 1842288 | F43: 10860606 | G43: 45 | H43: 0.02222222222 | I43: 241346.8 | J43: =-'App.2-BA_Fixed Asset Cont'!K57 -> 287882 | K43: 46535.2
A44: 1835 | B44: Overhead Conductors & Devices | C44: 1856462 | D44: 0 | E44: 51730 | F44: 1882327 | G44: 60 | H44: 0.01666666667 | I44: 31372.11667 | J44: 33599 | K44: 2226.883333
A45: 1835 | B45: Overhead Conductors & Devices | C45: 1822519 | D45: 0 | E45: 3442 | F45: 1824240 | G45: 45 | H45: 0.02222222222 | I45: 40538.66667 | J45: 44792 | K45: 4253.333333
A46: 1835 | B46: Overhead Conductors & Devices | C46: ='App.2-BA_Fixed Asset Cont'!D58 -> 3678981 | E46: ='App.2-BA_Fixed Asset Cont'!E58 -> 55172 | F46: 3706567 | H46: 0 | I46: 0 | J46: =-'App.2-BA_Fixed Asset Cont'!K58 -> 78391
A47: 1840 | B47: Underground Conduit | C47: 7365942 | D47: 0 | E47: 3056018 | F47: =C47-D47+E47*0.5 -> 8893951 | G47: 60 | H47: =IF(G47=0,0,1/G47) -> 0.01666666667 | I47: =IF(G47=0,0,+F47/G47) -> 148232.5167 | J47: 244630 | K47: 96397.48333 | L47: 82398 | M47: ICM Adjustments filing EB-2015-0083
A48: 1840 | B48: Underground Conduit | C48: 371526 | D48: 0 | E48: 4118 | F48: 373585 | G48: 40 | H48: 0.025 | I48: 9339.625 | J48: 12392 | K48: 3052.375
A49: 1840 | B49: Underground Conduit | C49: 260873 | D49: 154.55 | E49: 173570 | F49: 347503.45 | G49: 35 | H49: 0.02857142857 | I49: 9928.67 | J49: 14144 | K49: 4215.33 | L49: 3618 | M49: ICM Adjustments filing EB-2015-0083
A50: 1840 | B50: Underground Conduit | C50: ='App.2-BA_Fixed Asset Cont'!D59 -> 7998341 | E50: ='App.2-BA_Fixed Asset Cont'!E59 -> 3233706 | F50: 9615194 | H50: 0 | I50: 0 | J50: =-'App.2-BA_Fixed Asset Cont'!K59 -> 271166
A51: 1845 | B51: Underground Conductors & Devices | C51: ='App.2-BA_Fixed Asset Cont'!D60 -> 5564907 | D51: 0 | E51: ='App.2-BA_Fixed Asset Cont'!E60 -> 1692708 | F51: 6411261 | G51: 50 | H51: 0.02 | I51: 128225.22 | J51: =-'App.2-BA_Fixed Asset Cont'!K60 -> 231654 | K51: 103428.78 | L51: 88177 | M51: ICM Adjustments filing EB-2015-0083
A52: 1850 | B52: Line Transformers | C52: ='App.2-BA_Fixed Asset Cont'!D61 -> 2825369 | D52: 0 | E52: ='App.2-BA_Fixed Asset Cont'!E61 -> 398228 | F52: 3024483 | G52: 40 | H52: 0.025 | I52: 75612.075 | J52: =-'App.2-BA_Fixed Asset Cont'!K61 -> 100144 | K52: 24531.925 | L52: 6842 | M52: ICM Adjustments filing EB-2015-0083
A53: 1855 | B53: Services (Overhead & Underground) | C53: ='App.2-BA_Fixed Asset Cont'!D62 -> 966008 | D53: 0 | E53: ='App.2-BA_Fixed Asset Cont'!E62 -> 138869 | F53: 1035442.5 | G53: 60 | H53: 0.01666666667 | I53: 17257.375 | J53: =-'App.2-BA_Fixed Asset Cont'!K62 -> 19484 | K53: 2226.625
A54: 1860 | B54: Meters | C54: ='App.2-BA_Fixed Asset Cont'!D63 -> 658742 | D54: 0 | E54: ='App.2-BA_Fixed Asset Cont'!E63 -> 7815 | F54: 662649.5 | G54: 40 | H54: 0.025 | I54: 16566.2375 | J54: =-'App.2-BA_Fixed Asset Cont'!K63 -> 19225 | K54: 2658.7625
A55: 1860 | B55: Meters (Smart Meters) | C55: ='App.2-BA_Fixed Asset Cont'!D64 -> 3996399 | D55: 209.12 | E55: ='App.2-BA_Fixed Asset Cont'!E64 -> 313500 | F55: 4152939.88 | G55: 15 | H55: 0.06666666667 | I55: 276862.6587 | J55: =-'App.2-BA_Fixed Asset Cont'!K64 -> 349713 | K55: 72850.34133
A56: 1905 | B56: Land | C56: ='App.2-BA_Fixed Asset Cont'!D65 -> 0 | E56: ='App.2-BA_Fixed Asset Cont'!E65 -> 0 | F56: 0 | H56: 0 | I56: 0 | J56: =-'App.2-BA_Fixed Asset Cont'!K65 -> 0 | K56: 0
A57: 1908 | B57: Buildings & Fixtures | C57: ='App.2-BA_Fixed Asset Cont'!D66 -> 0 | E57: ='App.2-BA_Fixed Asset Cont'!E66 -> 0 | F57: 0 | H57: 0 | I57: 0 | J57: =-'App.2-BA_Fixed Asset Cont'!K66 -> 0 | K57: 0
A58: 1910 | B58: Leasehold Improvements | C58: ='App.2-BA_Fixed Asset Cont'!D67 -> 108995 | D58: 0 | E58: ='App.2-BA_Fixed Asset Cont'!E67 -> 0 | F58: 108995 | G58: 20 | H58: 0.05 | I58: 5449.75 | J58: =-'App.2-BA_Fixed Asset Cont'!K67 -> 8114 | K58: 2664.25
A59: 1915 | B59: Office Furniture & Equipment (10 years) | C59: ='App.2-BA_Fixed Asset Cont'!D68 -> 21481 | D59: 0 | E59: ='App.2-BA_Fixed Asset Cont'!E68 -> 0 | F59: 21481 | G59: 10 | H59: 0.1 | I59: 2148.1 | J59: =-'App.2-BA_Fixed Asset Cont'!K68 -> 2729 | K59: 580.9
A60: 1915 | B60: Office Furniture & Equipment (5 years) | C60: ='App.2-BA_Fixed Asset Cont'!D69 -> 0 | E60: ='App.2-BA_Fixed Asset Cont'!E69 -> 0 | F60: 0 | H60: 0 | I60: 0 | J60: =-'App.2-BA_Fixed Asset Cont'!K69 -> 0 | K60: 0
A61: 1920 | B61: Computer Equipment - Hardware | C61: ='App.2-BA_Fixed Asset Cont'!D70 -> 178233 | D61: 42020.53 | E61: ='App.2-BA_Fixed Asset Cont'!E70 -> 0 | F61: 136212.47 | G61: 5 | H61: 0.2 | I61: 27242.494 | J61: =-'App.2-BA_Fixed Asset Cont'!K70 -> 28948 | K61: 1705.506
A62: 1920 | B62: Computer Equip.-Hardware(Post Mar. 22/04) | C62: ='App.2-BA_Fixed Asset Cont'!D71 -> 0 | E62: ='App.2-BA_Fixed Asset Cont'!E71 -> 0 | F62: 0 | H62: 0 | I62: 0 | J62: =-'App.2-BA_Fixed Asset Cont'!K71 -> 0 | K62: 0
A63: 1920 | B63: Computer Equip.-Hardware(Post Mar. 19/07) | C63: ='App.2-BA_Fixed Asset Cont'!D72 -> 0 | E63: ='App.2-BA_Fixed Asset Cont'!E72 -> 0 | F63: 0 | H63: 0 | I63: 0 | J63: =-'App.2-BA_Fixed Asset Cont'!K72 -> 0 | K63: 0
A64: 1930 | B64: Transportation Equipment | C64: 944841 | D64: 3337.82 | E64: 86243 | F64: 984624.68 | G64: 12 | H64: 0.08333333333 | I64: 82052.05667 | J64: 112658 | K64: 30605.94333
A65: 1930 | B65: Transportation Equipment | C65: 566504 | D65: 6159.23 | F65: 560344.77 | G65: 8 | H65: 0.125 | I65: 70043.09625 | J65: 86513 | K65: 16469.90375
A66: 1930 | B66: Transportation Equipment | C66: ='App.2-BA_Fixed Asset Cont'!D73 -> 1511344 | E66: ='App.2-BA_Fixed Asset Cont'!E73 -> 86243 | F66: 1554465.5 | H66: 0 | I66: 0 | J66: =-'App.2-BA_Fixed Asset Cont'!K73 -> 199171
A67: 1935 | B67: Stores Equipment | C67: ='App.2-BA_Fixed Asset Cont'!D74 -> 31776 | D67: 0 | E67: ='App.2-BA_Fixed Asset Cont'!E74 -> 45000 | F67: 54276 | G67: 10 | H67: 0.1 | I67: 5427.6 | J67: =-'App.2-BA_Fixed Asset Cont'!K74 -> 8360 | K67: 2932.4
A68: 1940 | B68: Tools, Shop & Garage Equipment | C68: ='App.2-BA_Fixed Asset Cont'!D75 -> 373459 | D68: 25548.73 | E68: ='App.2-BA_Fixed Asset Cont'!E75 -> 85263 | F68: 390541.77 | G68: 10 | H68: 0.1 | I68: 39054.177 | J68: =-'App.2-BA_Fixed Asset Cont'!K75 -> 50630 | K68: 11575.823
A69: 1945 | B69: Measurement & Testing Equipment | C69: ='App.2-BA_Fixed Asset Cont'!D76 -> 70178 | D69: 0 | E69: ='App.2-BA_Fixed Asset Cont'!E76 -> 1178 | F69: 70767 | G69: 10 | H69: 0.1 | I69: 7076.7 | J69: =-'App.2-BA_Fixed Asset Cont'!K76 -> 9766 | K69: 2689.3
A70: 1950 | B70: Power Operated Equipment | C70: ='App.2-BA_Fixed Asset Cont'!D77 -> 0 | D70: 0 | E70: ='App.2-BA_Fixed Asset Cont'!E77 -> 0 | F70: 0 | G70: 10 | H70: 0.1 | I70: 0 | J70: =-'App.2-BA_Fixed Asset Cont'!K77 -> 0 | K70: 0
A71: 1955 | B71: Communications Equipment | C71: ='App.2-BA_Fixed Asset Cont'!D78 -> 96717 | D71: 24980.05 | E71: ='App.2-BA_Fixed Asset Cont'!E78 -> 104813 | F71: 124143.45 | G71: 5 | H71: 0.2 | I71: 24828.69 | J71: =-'App.2-BA_Fixed Asset Cont'!K78 -> 25709 | K71: 880.31
A72: 1955 | B72: Communication Equipment (Smart Meters) | C72: ='App.2-BA_Fixed Asset Cont'!D79 -> 0 | E72: ='App.2-BA_Fixed Asset Cont'!E79 -> 0 | F72: 0 | H72: 0 | I72: 0 | J72: =-'App.2-BA_Fixed Asset Cont'!K79 -> 0 | K72: 0
A73: 1960 | B73: Miscellaneous Equipment | C73: ='App.2-BA_Fixed Asset Cont'!D80 -> 0 | E73: ='App.2-BA_Fixed Asset Cont'!E80 -> 0 | F73: 0 | H73: 0 | I73: 0 | J73: =-'App.2-BA_Fixed Asset Cont'!K80 -> 0 | K73: 0
A74: 1970 | B74: Load Management Controls Customer Premises | C74: ='App.2-BA_Fixed Asset Cont'!D81 -> 0 | E74: ='App.2-BA_Fixed Asset Cont'!E81 -> 0 | F74: 0 | H74: 0 | I74: 0 | J74: =-'App.2-BA_Fixed Asset Cont'!K81 -> 0 | K74: 0
A75: 1975 | B75: Load Management Controls Utility Premises | C75: ='App.2-BA_Fixed Asset Cont'!D82 -> 0 | E75: ='App.2-BA_Fixed Asset Cont'!E82 -> 0 | F75: 0 | H75: 0 | I75: 0 | J75: =-'App.2-BA_Fixed Asset Cont'!K82 -> 0 | K75: 0
A76: 1980 | B76: System Supervisor Equipment | C76: ='App.2-BA_Fixed Asset Cont'!D83 -> 820498 | D76: 0 | E76: ='App.2-BA_Fixed Asset Cont'!E83 -> 18418 | F76: 829707 | G76: 20 | H76: 0.05 | I76: 41485.35 | J76: =-'App.2-BA_Fixed Asset Cont'!K83 -> 62756 | K76: 21270.65 | L76: 542 | M76: ICM Adjustments filing EB-2015-0083
A77: 1985 | B77: Miscellaneous Fixed Assets | C77: ='App.2-BA_Fixed Asset Cont'!D84 -> 0 | E77: ='App.2-BA_Fixed Asset Cont'!E84 -> 0 | F77: 0 | H77: 0 | I77: 0 | J77: =-'App.2-BA_Fixed Asset Cont'!K84 -> 0 | K77: 0
A78: 1990 | B78: Other Tangible Property | C78: ='App.2-BA_Fixed Asset Cont'!D85 -> 0 | E78: ='App.2-BA_Fixed Asset Cont'!E85 -> 0 | F78: 0 | H78: 0 | I78: 0 | J78: =-'App.2-BA_Fixed Asset Cont'!K85 -> 0 | K78: 0
A79: 1995 | B79: Contributions & Grants - 240200 - 15 yr | C79: -38202 | D79: 0 | F79: =C79-D79+E79*0.5 -> -38202 | G79: 15 | H79: =IF(G79=0,0,1/G79) -> 0.06666666667 | I79: =IF(G79=0,0,+F79/G79) -> -2546.8 | J79: -3252 | K79: -705.2
A80: 1995 | B80: Contributions & Grants - 240200 - 40 yr | C80: -130983 | D80: 0 | F80: -130983 | G80: 40 | H80: 0.025 | I80: -3274.575 | J80: -3724 | K80: -449.425
A81: 1995 | B81: Contributions & Grants - 204207 - 15 yr | C81: -13373 | D81: 0 | F81: -13373 | G81: 15 | H81: 0.06666666667 | I81: -891.5333333 | J81: -985 | K81: -93.46666667
A82: 1995 | B82: Contributions & Grants - 240202 - 40 yr | C82: -532092 | D82: 0 | F82: -532092 | G82: 40 | H82: 0.025 | I82: -13302.3 | J82: -14038 | K82: -735.7
A83: 1995 | B83: Contributions & Grants - 240201 - 45 yr | C83: -384483 | D83: 0 | F83: -384483 | G83: 45 | H83: 0.02222222222 | I83: -8544.066667 | J83: -9519 | K83: -974.9333333
A84: 1995 | B84: Contributions & Grants - 240201 - 60 yr | C84: -110760 | D84: 0 | F84: -110760 | G84: 60 | H84: =IF(G84=0,0,1/G84) -> 0.01666666667 | I84: =IF(G84=0,0,+F84/G84) -> -1846 | J84: -2002 | K84: -156
A85: 1995 | B85: Contributions & Grants - 240201 - 45 yr | C85: -50980 | D85: 0 | F85: -50980 | G85: 45 | H85: 0.02222222222 | I85: -1132.888889 | J85: -1265 | K85: -132.1111111
A86: 1995 | B86: Contributions & Grants - 240205 - 60 yr | C86: -423796 | D86: 0 | F86: -423796 | G86: 60 | H86: 0.01666666667 | I86: -7063.266667 | J86: -7134 | K86: -70.73333333
A87: 1995 | B87: Contributions & Grants - 240205 - 40 yr | C87: -3463 | D87: 0 | F87: -3463 | G87: 40 | H87: 0.025 | I87: -86.575 | J87: -90 | K87: -3.425
A88: 1995 | B88: Contributions & Grants - 240205 - 35 yr | C88: -145 | D88: 0 | F88: -145 | G88: 35 | H88: 0.02857142857 | I88: -4.142857143 | J88: -5 | K88: -0.8571428571
A89: 1995 | B89: Contributions & Grants - 240206 - 50 yr | C89: -148198 | D89: 0 | F89: -148198 | G89: 50 | H89: 0.02 | I89: -2963.96 | J89: -3008 | K89: -44.04
A90: 1995 | B90: Contributions & Grants - 240203 - 60 yr | C90: -48831 | D90: 0 | F90: -48831 | G90: 60 | H90: 0.01666666667 | I90: -813.85 | J90: -887 | K90: -73.15
A91: 1995 | B91: Contributions & Grants - 240203 - 50 yr | C91: -470515 | D91: 0 | F91: -470515 | G91: 50 | H91: 0.02 | I91: -9410.3 | J91: -10444 | K91: -1033.7
A92: 1995 | B92: Contributions & Grants - 240203 - 20 yr | C92: -54668 | D92: 0 | F92: -54668 | G92: 20 | H92: 0.05 | I92: -2733.4 | J92: -3646 | K92: -912.6
A93: 1995 | B93: Contributions & Grants - 240203 - 30 yr | C93: -7879 | D93: 0 | F93: -7879 | G93: 30 | H93: 0.03333333333 | I93: -262.6333333 | J93: -315 | K93: -52.36666667
A94: 1995 | B94: Contributions & Grants | C94: ='App.2-BA_Fixed Asset Cont'!D86 -> -2418367 | E94: ='App.2-BA_Fixed Asset Cont'!E86 -> 0 | F94: -2418367 | H94: 0 | I94: 0 | J94: =-'App.2-BA_Fixed Asset Cont'!K86 -> -60312
A95: 2440 | B95: Deferred Revenue - 240211 - 15 yr | C95: -36492 | D95: 0 | E95: -7219 | F95: =C95-D95+E95*0.5 -> -40101.5 | G95: 15 | H95: =IF(G95=0,0,1/G95) -> 0.06666666667 | I95: =IF(G95=0,0,+F95/G95) -> -2673.433333 | J95: -2673 | K95: 0.4333333333
A96: 2440 | B96: Deferred Revenue - 240211 - 40 yr | C96: -17831 | D96: 0 | E96: -895 | F96: -18278.5 | G96: 40 | H96: 0.025 | I96: -456.9625 | J96: -457 | K96: -0.0375
A97: 2440 | B97: Deferred Revenue - 240212 - 45 yr | D97: 0 | F97: 0 | G97: 45 | H97: 0.02222222222 | I97: 0 | K97: 0
A98: 2440 | B98: Deferred Revenue - 240212 - 60 yr | D98: 0 | F98: 0 | G98: 60 | H98: 0.01666666667 | I98: 0 | K98: 0
A99: 2440 | B99: Deferred Revenue - 240213 - 40 yr | C99: -170066 | D99: 0 | E99: -147505 | F99: -243818.5 | G99: 40 | H99: =IF(G99=0,0,1/G99) -> 0.025 | I99: =IF(G99=0,0,+F99/G99) -> -6095.4625 | J99: -6095 | K99: 0.4625
A100: 2440 | B100: Deferred Revenue - 240215 - 45 yr | D100: 0 | E100: -435557 | F100: -217778.5 | G100: 45 | H100: 0.02222222222 | I100: -4839.522222 | J100: -4840 | K100: -0.4777777778
A101: 2440 | B101: Deferred Revenue - 240218 - 15 yr | C101: -6818 | D101: 0 | E101: -1497 | F101: -7566.5 | G101: 15 | H101: 0.06666666667 | I101: -504.4333333 | J101: -505 | K101: -0.5666666667
A102: 2440 | B102: Deferred Revenue - 240219 - 60 yr | D102: 0 | F102: 0 | G102: 60 | H102: 0.01666666667 | I102: 0 | K102: 0
A103: 2440 | B103: Deferred Revenue - 240220 - 60 yr | D103: 0 | F103: 0 | G103: 60 | H103: 0.01666666667 | I103: 0 | K103: 0
A104: 2440 | B104: Deferred Revenue - 240217 - 50 yr | D104: 0 | F104: 0 | G104: 50 | H104: 0.02 | I104: 0 | K104: 0
A105: 2440 | B105: Deferred Revenue | C105: ='App.2-BA_Fixed Asset Cont'!D87 -> -231206 | E105: ='App.2-BA_Fixed Asset Cont'!E87 -> -592673 | F105: =C105-D105+E105*0.5 -> -527542.5 | H105: =IF(G105=0,0,1/G105) -> 0 | I105: =IF(G105=0,0,+F105/G105) -> 0 | J105: =-'App.2-BA_Fixed Asset Cont'!K87 -> -14570
A106: 2005 | B106: Property Under Finance Lease | C106: ='App.2-BA_Fixed Asset Cont'!D88 -> 0 | E106: ='App.2-BA_Fixed Asset Cont'!E88 -> 0 | F106: 0 | H106: 0 | I106: 0 | J106: =-'App.2-BA_Fixed Asset Cont'!K88 -> 0 | K106: 0
B107: Total | C107: =SUM(C105:C106,C94,C66:C78,C50:C63,C46,C41:C43,C35:C37,C28:C32) -> 44614239 | D107: =SUM(D28:D106) -> 131809.56 | E107: =SUM(E105:E106,E94,E66:E78,E50:E63,E46,E41:E43,E35:E37,E28:E32) -> 8123750 | F107: 48553956.04 | I107: =SUM(I28:I106) -> 1444165.157 | J107: =SUM(J105:J106,J94,J66:J78,J50:J63,J46,J41:J43,J35:J37,J28:J32) -> 1988547 | K107: =SUM(K28:K106) -> 544378.8432 | L107: =SUM(L28:L106) -> 237978
L108: =K107-L107 -> 306400.8432 | M108: Actual Difference
A110: In 2014 Kingston Hydro adjusted the EUL of assets to match the rates stated in the COS Rate Application EB-2015-0083. This change accounts for and explains the difference that appears in Appendix 2-C when comparing estimates vs actuals.
A111: Kingston Hydro's depreciation expense will appear higher until these adjusted years work themselves off the depreciation schedule.
E113: Year | F113: =F23+1 -> 2017
C115: Book Values | G115: Service Lives | I115: Depreciation Expense
A116: Account | B116: Description | C116: Opening Book Value of Assets | D116: Less Fully Depreciated 1 | E116: Current Year Additions | F116: Net Amount of Assets to be Depreciated | G116: Remaining Life of Assets Existing 2 | H116: Depreciation Rate Assets | I116: Depreciation Expense on Assets 3 | J116: Depreciation Expense per Appendix 2-BA Fixed Assets, Column J | K116: Variance 4
C117: a | D117: b | E117: c | F117: d = a-b+0.5*c | G117: e | H117: f = 1/e | I117: g = d/e | J117: h | K117: q = h-g
A118: 1609 | B118: Capital Contributions Paid | C118: ='App.2-BA_Fixed Asset Cont'!D109 -> 0 | E118: ='App.2-BA_Fixed Asset Cont'!E109 -> 0 | F118: =C118-D118+E118*0.5 -> 0 | H118: =IF(G118=0,0,1/G118) -> 0 | I118: =IF(G118=0,0,+F118/G118) -> 0 | J118: =-'App.2-BA_Fixed Asset Cont'!K109 -> 0 | K118: =IF(ISERROR(+J118-I118), 0, +J118-I118) -> 0
A119: 1610 | B119: Misc. Intangilble Plant | C119: ='App.2-BA_Fixed Asset Cont'!D110 -> 208725 | D119: 0 | E119: ='App.2-BA_Fixed Asset Cont'!E110 -> 0 | F119: =C119-D119+E119*0.5 -> 208725 | G119: 40 | H119: =IF(G119=0,0,1/G119) -> 0.025 | I119: =IF(G119=0,0,+F119/G119) -> 5218.125 | J119: =-'App.2-BA_Fixed Asset Cont'!K110 -> 0 | K119: =IF(ISERROR(+J119-I119), 0, +J119-I119) -> -5218.125
A120: 1611 | B120: Computer Software (Formally known as Account 1925) | C120: ='App.2-BA_Fixed Asset Cont'!D111 -> 61915 | D120: 48242.48 | E120: ='App.2-BA_Fixed Asset Cont'!E111 -> 2852 | F120: =C120-D120+E120*0.5 -> 15098.52 | G120: 5 | H120: =IF(G120=0,0,1/G120) -> 0.2 | I120: 3019.704 | J120: =-'App.2-BA_Fixed Asset Cont'!K111 -> 2238 | K120: =IF(ISERROR(+J120-I120), 0, +J120-I120) -> -781.704
A121: 1612 | B121: Land Rights (Formally known as Account 1906) | C121: ='App.2-BA_Fixed Asset Cont'!D112 -> 0 | E121: ='App.2-BA_Fixed Asset Cont'!E112 -> 0 | F121: =C121-D121+E121*0.5 -> 0 | H121: =IF(G121=0,0,1/G121) -> 0 | I121: 0 | J121: =-'App.2-BA_Fixed Asset Cont'!K112 -> 0 | K121: =IF(ISERROR(+J121-I121), 0, +J121-I121) -> 0
A122: 1805 | B122: Land | C122: ='App.2-BA_Fixed Asset Cont'!D113 -> 197343 | D122: 0 | E122: ='App.2-BA_Fixed Asset Cont'!E113 -> 0 | F122: 197343 | H122: 0 | I122: 0 | J122: =-'App.2-BA_Fixed Asset Cont'!K113 -> 0 | K122: 0
A123: 1808 | B123: Buildings | C123: 583093 | D123: 0 | E123: 62356 | F123: 614271 | G123: 60 | H123: 0.01666666667 | I123: 10237.85 | J123: 12937 | K123: 2699.15
A124: 1808 | B124: Buildings | C124: 252989 | D124: 0 | F124: 252989 | G124: 30 | H124: 0.03333333333 | I124: 8432.966667 | J124: 10169 | K124: 1736.033333
A125: 1808 | B125: Buildings | C125: ='App.2-BA_Fixed Asset Cont'!D114 -> 836082 | E125: ='App.2-BA_Fixed Asset Cont'!E114 -> 62356 | F125: 867260 | H125: 0 | I125: 0 | J125: =-'App.2-BA_Fixed Asset Cont'!K114 -> 23106
A126: 1810 | B126: Leasehold Improvements | C126: ='App.2-BA_Fixed Asset Cont'!D115 -> 0 | E126: ='App.2-BA_Fixed Asset Cont'!E115 -> 0 | F126: 0 | H126: 0 | I126: 0 | J126: =-'App.2-BA_Fixed Asset Cont'!K115 -> 0 | K126: 0
A127: 1815 | B127: Transformer Station Equipment >50 kV | C127: ='App.2-BA_Fixed Asset Cont'!D116 -> 0 | E127: ='App.2-BA_Fixed Asset Cont'!E116 -> 0 | F127: 0 | H127: 0 | I127: 0 | J127: =-'App.2-BA_Fixed Asset Cont'!K116 -> 0 | K127: 0
A128: 1820 | B128: Distribution Station Equipment <50 kV | C128: 189550 | D128: 0 | F128: 189550 | G128: 60 | H128: 0.01666666667 | I128: 3159.166667 | J128: 3503 | K128: 343.8333333
A129: 1820 | B129: Distribution Station Equipment <50 kV | C129: 6312937 | D129: 0 | E129: 3797 | F129: 6314835.5 | G129: 50 | H129: 0.02 | I129: 126296.71 | J129: 141585 | K129: 15288.29
A130: 1820 | B130: Distribution Station Equipment <50 kV | C130: 1309591 | D130: 0 | E130: 319688 | F130: 1469435 | G130: 20 | H130: 0.05 | I130: 73471.75 | J130: 91185 | K130: 17713.25
A131: 1820 | B131: Distribution Station Equipment <50 kV | C131: ='App.2-BA_Fixed Asset Cont'!D117 -> 7812079 | E131: ='App.2-BA_Fixed Asset Cont'!E117 -> 323485 | F131: 7973821.5 | H131: 0 | I131: 0 | J131: =-'App.2-BA_Fixed Asset Cont'!K117 -> 236273
A132: 1825 | B132: Storage Battery Equipment | C132: ='App.2-BA_Fixed Asset Cont'!D118 -> 0 | E132: ='App.2-BA_Fixed Asset Cont'!E118 -> 0 | F132: 0 | H132: 0 | I132: 0 | J132: =-'App.2-BA_Fixed Asset Cont'!K118 -> 0 | K132: 0
A133: 1830 | B133: Poles, Towers & Fixtures | C133: ='App.2-BA_Fixed Asset Cont'!D119 -> 11781750 | D133: 0 | E133: ='App.2-BA_Fixed Asset Cont'!E119 -> 4561687 | F133: 14062593.5 | G133: 45 | H133: 0.02222222222 | I133: 312502.0778 | J133: =-'App.2-BA_Fixed Asset Cont'!K119 -> 450349 | K133: 137846.9222
A134: 1835 | B134: Overhead Conductors & Devices | C134: 1908191 | D134: 0 | E134: 671382 | F134: 2243882 | G134: 60 | H134: 0.01666666667 | I134: 37398.03333 | J134: 54511 | K134: 17112.96667
A135: 1835 | B135: Overhead Conductors & Devices | C135: 1825961 | D135: 0 | E135: 217241 | F135: 1934581.5 | G135: 45 | H135: 0.02222222222 | I135: 42990.7 | J135: 54427 | K135: 11436.3
A136: 1835 | B136: Overhead Conductors & Devices | C136: ='App.2-BA_Fixed Asset Cont'!D120 -> 3734153 | E136: ='App.2-BA_Fixed Asset Cont'!E120 -> 888623 | F136: 4178464.5 | H136: 0 | I136: 0 | J136: =-'App.2-BA_Fixed Asset Cont'!K120 -> 108938
A137: 1840 | B137: Underground Conduit | C137: 10421959 | D137: 0 | E137: 267494 | F137: 10555706 | G137: 60 | H137: 0.01666666667 | I137: 175928.4333 | J137: 189900 | K137: 13971.56667
A138: 1840 | B138: Underground Conduit | C138: 375644 | D138: 0 | F138: 375644 | G138: 40 | H138: 0.025 | I138: 9391.1 | J138: 12417 | K138: 3025.9
A139: 1840 | B139: Underground Conduit | C139: 434443 | D139: 239.42 | E139: 49547 | F139: 458977.08 | G139: 35 | H139: 0.02857142857 | I139: 13113.63086 | J139: 13684 | K139: 570.3691429
A140: 1840 | B140: Underground Conduit | C140: ='App.2-BA_Fixed Asset Cont'!D121 -> 11232047 | E140: ='App.2-BA_Fixed Asset Cont'!E121 -> 317041 | F140: 11390567.5 | H140: 0 | I140: 0 | J140: =-'App.2-BA_Fixed Asset Cont'!K121 -> 216001
A141: 1845 | B141: Underground Conductors & Devices | C141: ='App.2-BA_Fixed Asset Cont'!D122 -> 7257615 | D141: 0 | E141: ='App.2-BA_Fixed Asset Cont'!E122 -> 267068 | F141: 7391149 | G141: 50 | H141: 0.02 | I141: 147822.98 | J141: =-'App.2-BA_Fixed Asset Cont'!K122 -> 163074 | K141: 15251.02
A142: 1850 | B142: Line Transformers | C142: ='App.2-BA_Fixed Asset Cont'!D123 -> 3223597 | D142: 0 | E142: ='App.2-BA_Fixed Asset Cont'!E123 -> 348173 | F142: 3397683.5 | G142: 40 | H142: 0.025 | I142: 84942.0875 | J142: =-'App.2-BA_Fixed Asset Cont'!K123 -> 102633 | K142: 17690.9125
A143: 1855 | B143: Services (Overhead & Underground) | C143: ='App.2-BA_Fixed Asset Cont'!D124 -> 1104877 | D143: 0 | E143: ='App.2-BA_Fixed Asset Cont'!E124 -> 392668 | F143: 1301211 | G143: 60 | H143: 0.01666666667 | I143: 21686.85 | J143: =-'App.2-BA_Fixed Asset Cont'!K124 -> 23914 | K143: 2227.15
A144: 1860 | B144: Meters | C144: ='App.2-BA_Fixed Asset Cont'!D125 -> 666557 | D144: 0 | E144: ='App.2-BA_Fixed Asset Cont'!E125 -> 17021 | F144: 675067.5 | G144: 40 | H144: 0.025 | I144: 16876.6875 | J144: =-'App.2-BA_Fixed Asset Cont'!K125 -> 19536 | K144: 2659.3125
A145: 1860 | B145: Meters (Smart Meters) | C145: ='App.2-BA_Fixed Asset Cont'!D126 -> 4309899 | D145: 1242.22 | E145: ='App.2-BA_Fixed Asset Cont'!E126 -> 293564 | F145: 4455438.78 | G145: 15 | H145: 0.06666666667 | I145: 297029.252 | J145: =-'App.2-BA_Fixed Asset Cont'!K126 -> 369604 | K145: 72574.748
A146: 1905 | B146: Land | C146: ='App.2-BA_Fixed Asset Cont'!D127 -> 0 | E146: ='App.2-BA_Fixed Asset Cont'!E127 -> 0 | F146: 0 | H146: 0 | I146: 0 | J146: =-'App.2-BA_Fixed Asset Cont'!K127 -> 0 | K146: 0
A147: 1908 | B147: Buildings & Fixtures | C147: ='App.2-BA_Fixed Asset Cont'!D128 -> 0 | E147: ='App.2-BA_Fixed Asset Cont'!E128 -> 0 | F147: 0 | H147: 0 | I147: 0 | J147: =-'App.2-BA_Fixed Asset Cont'!K128 -> 0 | K147: 0
A148: 1910 | B148: Leasehold Improvements | C148: ='App.2-BA_Fixed Asset Cont'!D129 -> 108995 | D148: 0 | E148: ='App.2-BA_Fixed Asset Cont'!E129 -> 0 | F148: 108995 | G148: 20 | H148: 0.05 | I148: 5449.75 | J148: =-'App.2-BA_Fixed Asset Cont'!K129 -> 8114 | K148: 2664.25
A149: 1915 | B149: Office Furniture & Equipment (10 years) | C149: ='App.2-BA_Fixed Asset Cont'!D130 -> 21481 | D149: 0 | E149: ='App.2-BA_Fixed Asset Cont'!E130 -> 0 | F149: 21481 | G149: 10 | H149: 0.1 | I149: 2148.1 | J149: =-'App.2-BA_Fixed Asset Cont'!K130 -> 2729 | K149: 580.9
A150: 1915 | B150: Office Furniture & Equipment (5 years) | C150: ='App.2-BA_Fixed Asset Cont'!D131 -> 0 | E150: ='App.2-BA_Fixed Asset Cont'!E131 -> 0 | F150: 0 | H150: 0 | I150: 0 | J150: =-'App.2-BA_Fixed Asset Cont'!K131 -> 0 | K150: 0
A151: 1920 | B151: Computer Equipment - Hardware | C151: ='App.2-BA_Fixed Asset Cont'!D132 -> 178233 | D151: 46076.15 | E151: ='App.2-BA_Fixed Asset Cont'!E132 -> 211487 | F151: 237900.35 | G151: 5 | H151: 0.2 | I151: 47580.07 | J151: =-'App.2-BA_Fixed Asset Cont'!K132 -> 49286 | K151: 1705.93
A152: 1920 | B152: Computer Equip.-Hardware(Post Mar. 22/04) | C152: ='App.2-BA_Fixed Asset Cont'!D133 -> 0 | E152: ='App.2-BA_Fixed Asset Cont'!E133 -> 0 | F152: 0 | H152: 0 | I152: 0 | J152: =-'App.2-BA_Fixed Asset Cont'!K133 -> 0 | K152: 0
A153: 1920 | B153: Computer Equip.-Hardware(Post Mar. 19/07) | C153: ='App.2-BA_Fixed Asset Cont'!D134 -> 0 | E153: ='App.2-BA_Fixed Asset Cont'!E134 -> 0 | F153: 0 | H153: 0 | I153: 0 | J153: =-'App.2-BA_Fixed Asset Cont'!K134 -> 0 | K153: 0
A154: 1930 | B154: Transportation Equipment | C154: 1031084 | D154: 44430.44 | E154: 440994 | F154: 1207150.56 | G154: 12 | H154: 0.08333333333 | I154: 100595.88 | J154: 120929 | K154: 20333.12
A155: 1930 | B155: Transportation Equipment | C155: 566504 | D155: 10697.5 | F155: 555806.5 | G155: 8 | H155: 0.125 | I155: 69475.8125 | J155: 85000 | K155: 15524.1875
A156: 1930 | B156: Transportation Equipment | C156: ='App.2-BA_Fixed Asset Cont'!D135 -> 1597587 | E156: ='App.2-BA_Fixed Asset Cont'!E135 -> 440994 | F156: 1818084 | H156: 0 | I156: 0 | J156: =-'App.2-BA_Fixed Asset Cont'!K135 -> 205929
A157: 1935 | B157: Stores Equipment | C157: ='App.2-BA_Fixed Asset Cont'!D136 -> 76776 | D157: 0 | E157: ='App.2-BA_Fixed Asset Cont'!E136 -> 0 | F157: 76776 | G157: 10 | H157: 0.1 | I157: 7677.6 | J157: =-'App.2-BA_Fixed Asset Cont'!K136 -> 10610 | K157: 2932.4
A158: 1940 | B158: Tools, Shop & Garage Equipment | C158: ='App.2-BA_Fixed Asset Cont'!D137 -> 458722 | D158: 30194.73 | E158: ='App.2-BA_Fixed Asset Cont'!E137 -> 1938 | F158: 429496.27 | G158: 10 | H158: 0.1 | I158: 42949.627 | J158: =-'App.2-BA_Fixed Asset Cont'!K137 -> 53441 | K158: 10491.373
A159: 1945 | B159: Measurement & Testing Equipment | C159: ='App.2-BA_Fixed Asset Cont'!D138 -> 71356 | D159: 0 | E159: ='App.2-BA_Fixed Asset Cont'!E138 -> 0 | F159: 71356 | G159: 10 | H159: 0.1 | I159: 7135.6 | J159: =-'App.2-BA_Fixed Asset Cont'!K138 -> 9825 | K159: 2689.4
A160: 1950 | B160: Power Operated Equipment | C160: ='App.2-BA_Fixed Asset Cont'!D139 -> 0 | D160: 0 | E160: ='App.2-BA_Fixed Asset Cont'!E139 -> 0 | F160: 0 | G160: 10 | H160: 0.1 | I160: 0 | J160: =-'App.2-BA_Fixed Asset Cont'!K139 -> 0 | K160: 0
A161: 1955 | B161: Communications Equipment | C161: ='App.2-BA_Fixed Asset Cont'!D140 -> 201530 | D161: 30657.56 | E161: ='App.2-BA_Fixed Asset Cont'!E140 -> 20572 | F161: 181158.44 | G161: 5 | H161: 0.2 | I161: 36231.688 | J161: =-'App.2-BA_Fixed Asset Cont'!K140 -> 36355 | K161: 123.312
A162: 1955 | B162: Communication Equipment (Smart Meters) | C162: ='App.2-BA_Fixed Asset Cont'!D141 -> 0 | E162: ='App.2-BA_Fixed Asset Cont'!E141 -> 0 | F162: 0 | H162: 0 | I162: 0 | J162: =-'App.2-BA_Fixed Asset Cont'!K141 -> 0 | K162: 0
A163: 1960 | B163: Miscellaneous Equipment | C163: ='App.2-BA_Fixed Asset Cont'!D142 -> 0 | E163: ='App.2-BA_Fixed Asset Cont'!E142 -> 0 | F163: 0 | H163: 0 | I163: 0 | J163: =-'App.2-BA_Fixed Asset Cont'!K142 -> 0 | K163: 0
A164: 1970 | B164: Load Management Controls Customer Premises | C164: ='App.2-BA_Fixed Asset Cont'!D143 -> 0 | E164: ='App.2-BA_Fixed Asset Cont'!E143 -> 0 | F164: 0 | H164: 0 | I164: 0 | J164: =-'App.2-BA_Fixed Asset Cont'!K143 -> 0 | K164: 0
A165: 1975 | B165: Load Management Controls Utility Premises | C165: ='App.2-BA_Fixed Asset Cont'!D144 -> 0 | E165: ='App.2-BA_Fixed Asset Cont'!E144 -> 0 | F165: 0 | H165: 0 | I165: 0 | J165: =-'App.2-BA_Fixed Asset Cont'!K144 -> 0 | K165: 0
A166: 1980 | B166: System Supervisor Equipment | C166: ='App.2-BA_Fixed Asset Cont'!D145 -> 838916 | D166: 0 | E166: ='App.2-BA_Fixed Asset Cont'!E145 -> 22497 | F166: 850164.5 | G166: 20 | H166: 0.05 | I166: 42508.225 | J166: =-'App.2-BA_Fixed Asset Cont'!K145 -> 63238 | K166: 20729.775
A167: 1985 | B167: Miscellaneous Fixed Assets | C167: ='App.2-BA_Fixed Asset Cont'!D146 -> 0 | E167: ='App.2-BA_Fixed Asset Cont'!E146 -> 0 | F167: 0 | H167: 0 | I167: 0 | J167: =-'App.2-BA_Fixed Asset Cont'!K146 -> 0 | K167: 0
A168: 1990 | B168: Other Tangible Property | C168: ='App.2-BA_Fixed Asset Cont'!D147 -> 0 | E168: ='App.2-BA_Fixed Asset Cont'!E147 -> 0 | F168: 0 | H168: 0 | I168: 0 | J168: =-'App.2-BA_Fixed Asset Cont'!K147 -> 0 | K168: 0
A169: 1995 | B169: Contributions & Grants - 240200 - 15 yr | C169: -38202 | D169: -1235.47 | F169: =C169-D169+E169*0.5 -> -36966.53 | G169: 15 | H169: 0.06666666667 | I169: -2464.435333 | J169: -2840 | K169: -375.5646667
A170: 1995 | B170: Contributions & Grants - 240200 - 40 yr | C170: -130983 | D170: 0 | F170: -130983 | G170: 40 | H170: 0.025 | I170: -3274.575 | J170: -3724 | K170: -449.425
A171: 1995 | B171: Contributions & Grants - 204207 - 15 yr | C171: -13373 | D171: 0 | F171: -13373 | G171: 15 | H171: 0.06666666667 | I171: -891.5333333 | J171: -985 | K171: -93.46666667
A172: 1995 | B172: Contributions & Grants - 240202 - 40 yr | C172: -532092 | D172: 0 | F172: -532092 | G172: 40 | H172: 0.025 | I172: -13302.3 | J172: -14038 | K172: -735.7
A173: 1995 | B173: Contributions & Grants - 240201 - 45 yr | C173: -384483 | D173: 0 | F173: -384483 | G173: 45 | H173: 0.02222222222 | I173: -8544.066667 | J173: -9519 | K173: -974.9333333
A174: 1995 | B174: Contributions & Grants - 240201 - 60 yr | C174: -110760 | D174: 0 | F174: -110760 | G174: 60 | H174: 0.01666666667 | I174: -1846 | J174: -2002 | K174: -156
A175: 1995 | B175: Contributions & Grants - 240201 - 45 yr | C175: -50980 | D175: 0 | F175: -50980 | G175: 45 | H175: 0.02222222222 | I175: -1132.888889 | J175: -1265 | K175: -132.1111111
A176: 1995 | B176: Contributions & Grants - 240205 - 60 yr | C176: -423796 | D176: 0 | F176: -423796 | G176: 60 | H176: 0.01666666667 | I176: -7063.266667 | J176: -7134 | K176: -70.73333333
A177: 1995 | B177: Contributions & Grants - 240205 - 40 yr | C177: -3463 | D177: 0 | F177: -3463 | G177: 40 | H177: 0.025 | I177: -86.575 | J177: -90 | K177: -3.425
A178: 1995 | B178: Contributions & Grants - 240205 - 35 yr | C178: -145 | D178: 0 | F178: -145 | G178: 35 | H178: 0.02857142857 | I178: -4.142857143 | J178: -5 | K178: -0.8571428571
A179: 1995 | B179: Contributions & Grants - 240206 - 50 yr | C179: -148198 | D179: 0 | F179: -148198 | G179: 50 | H179: 0.02 | I179: -2963.96 | J179: -3008 | K179: -44.04
A180: 1995 | B180: Contributions & Grants - 240203 - 60 yr | C180: -48831 | D180: 0 | F180: -48831 | G180: 60 | H180: 0.01666666667 | I180: -813.85 | J180: -887 | K180: -73.15
A181: 1995 | B181: Contributions & Grants - 240203 - 50 yr | C181: -470515 | D181: 0 | F181: -470515 | G181: 50 | H181: 0.02 | I181: -9410.3 | J181: -10444 | K181: -1033.7
A182: 1995 | B182: Contributions & Grants - 240203 - 20 yr | C182: -54668 | D182: 0 | F182: -54668 | G182: 20 | H182: 0.05 | I182: -2733.4 | J182: -3646 | K182: -912.6
A183: 1995 | B183: Contributions & Grants - 240203 - 30 yr | C183: -7879 | D183: 0 | F183: -7879 | G183: 30 | H183: 0.03333333333 | I183: -262.6333333 | J183: -315 | K183: -52.36666667
A184: 1995 | B184: Contributions & Grants | C184: ='App.2-BA_Fixed Asset Cont'!D148 -> -2418367 | E184: ='App.2-BA_Fixed Asset Cont'!E148 -> 0 | F184: -2418367 | H184: 0 | I184: 0 | J184: =-'App.2-BA_Fixed Asset Cont'!K148 -> -59900
A185: 2440 | B185: Deferred Revenue - 240211 - 15 yr | C185: -43711 | D185: 0 | E185: -15884 | F185: -51653 | G185: 15 | H185: 0.06666666667 | I185: -3443.533333 | J185: -3444 | K185: -0.4666666667
A186: 2440 | B186: Deferred Revenue - 240211 - 40 yr | C186: -18726 | D186: 0 | E186: -7390 | F186: -22421 | G186: 40 | H186: 0.025 | I186: -560.525 | J186: -561 | K186: -0.475
A187: 2440 | B187: Deferred Revenue - 240212 - 45 yr | D187: 0 | E187: -192122 | F187: -96061 | G187: 45 | H187: 0.02222222222 | I187: -2134.688889 | J187: -9383 | K187: -7248.311111
A188: 2440 | B188: Deferred Revenue - 240212 - 60 yr | D188: 0 | E188: -583588 | F188: -291794 | G188: 60 | H188: 0.01666666667 | I188: -4863.233333 | J188: -19749 | K188: -14885.76667
A189: 2440 | B189: Deferred Revenue - 240213 - 40 yr | C189: -317571 | D189: 0 | E189: -140613 | F189: -387877.5 | G189: 40 | H189: 0.025 | I189: -9696.9375 | J189: -9697 | K189: -0.0625
A190: 2440 | B190: Deferred Revenue - 240215 - 45 yr | C190: -435557 | D190: 0 | E190: -3798606 | F190: -2334860 | G190: 45 | H190: 0.02222222222 | I190: -51885.77778 | J190: -143209 | K190: -91323.22222
A191: 2440 | B191: Deferred Revenue - 240218 - 15 yr | C191: -8315 | D191: 0 | E191: -4312 | F191: -10471 | G191: 15 | H191: 0.06666666667 | I191: -698.0666667 | J191: -699 | K191: -0.9333333333
A192: 2440 | B192: Deferred Revenue - 240219 - 60 yr | D192: 0 | F192: 0 | G192: 60 | H192: 0.01666666667 | I192: 0 | K192: 0
A193: 2440 | B193: Deferred Revenue - 240220 - 60 yr | D193: 0 | F193: 0 | G193: 60 | H193: 0.01666666667 | I193: 0 | K193: 0
A194: 2440 | B194: Deferred Revenue - 240217 - 50 yr | D194: 0 | F194: 0 | G194: 50 | H194: 0.02 | I194: 0 | K194: 0
A195: 2440 | B195: Deferred Revenue | C195: ='App.2-BA_Fixed Asset Cont'!D149 -> -823879 | E195: ='App.2-BA_Fixed Asset Cont'!E149 -> -4742516 | F195: -3195137 | H195: 0 | I195: 0 | J195: =-'App.2-BA_Fixed Asset Cont'!K149 -> -186741
A196: 2005 | B196: Property Under Finance Lease | C196: ='App.2-BA_Fixed Asset Cont'!D150 -> 0 | E196: ='App.2-BA_Fixed Asset Cont'!E150 -> 0 | F196: 0 | H196: 0 | I196: 0 | J196: =-'App.2-BA_Fixed Asset Cont'!K150 -> 0 | K196: 0
B197: Total | C197: =SUM(C195:C196,C184,C156:C168,C140:C153,C136,C131:C133,C125:C127,C118:C122) -> 52737989 | D197: =SUM(D118:D196) -> 210545.03 | E197: =SUM(E195:E196,E184,E156:E168,E140:E153,E136,E131:E133,E125:E127,E118:E122) -> 3429510 | F197: =SUM(F195:F196,F184,F156:F168,F140:F153,F136,F131:F133,F125:F127,F118:F122) -> 54296330.86 | I197: =SUM(I118:I196) -> 1623193.768 | J197: =SUM(J195:J196,J184,J156:J168,J140:J153,J136,J131:J133,J125:J127,J118:J122) -> 1908552 | K197: =SUM(K118:K196) -> 285355.2324
A199: In 2014 Kingston Hydro adjusted the EUL of assets to match the rates stated in the COS Rate Application EB-2015-0083. This change accounts for and explains the difference that appears in Appendix 2-C when comparing estimates vs actuals.
A200: Kingston Hydro's depreciation expense will appear higher until these adjusted years work themselves off the depreciation schedule.
E202: Year | F202: =F113+1 -> 2018
C204: Book Values | G204: Service Lives | I204: Depreciation Expense
A205: Account | B205: Description | C205: Opening Book Value of Assets | D205: Less Fully Depreciated 1 | E205: Current Year Additions | F205: Net Amount of Assets to be Depreciated | G205: Remaining Life of Assets Existing 2 | H205: Depreciation Rate Assets | I205: Depreciation Expense on Assets 3 | J205: Depreciation Expense per Appendix 2-BA Fixed Assets, Column J | K205: Variance 4
C206: a | D206: b | E206: c | F206: d = a-b+0.5*c | G206: e | H206: f = 1/e | I206: g = d/e | J206: h | K206: q = h-g
A207: 1609 | B207: Capital Contributions Paid | C207: ='App.2-BA_Fixed Asset Cont'!D171 -> 0 | E207: ='App.2-BA_Fixed Asset Cont'!E171 -> 0 | F207: =C207-D207+E207*0.5 -> 0 | H207: =IF(G207=0,0,1/G207) -> 0 | I207: =IF(G207=0,0,+F207/G207) -> 0 | J207: =-'App.2-BA_Fixed Asset Cont'!K171 -> 0 | K207: =IF(ISERROR(+J207-I207), 0, +J207-I207) -> 0
A208: 1610 | B208: Misc. Intangilble Plant | C208: ='App.2-BA_Fixed Asset Cont'!D172 -> 0 | E208: ='App.2-BA_Fixed Asset Cont'!E172 -> 0 | F208: =C208-D208+E208*0.5 -> 0 | G208: 40 | H208: =IF(G208=0,0,1/G208) -> 0.025 | I208: =IF(G208=0,0,+F208/G208) -> 0 | J208: =-'App.2-BA_Fixed Asset Cont'!K172 -> 0 | K208: =IF(ISERROR(+J208-I208), 0, +J208-I208) -> 0
A209: 1611 | B209: Computer Software (Formally known as Account 1925) | C209: ='App.2-BA_Fixed Asset Cont'!D173 -> 64767 | D209: 61915.48 | E209: ='App.2-BA_Fixed Asset Cont'!E173 -> 281511 | F209: =C209-D209+E209*0.5 -> 143607.02 | G209: 5 | H209: =IF(G209=0,0,1/G209) -> 0.2 | I209: 28721.404 | J209: =-'App.2-BA_Fixed Asset Cont'!K173 -> 28721 | K209: =IF(ISERROR(+J209-I209), 0, +J209-I209) -> -0.404
A210: 1612 | B210: Land Rights (Formally known as Account 1906) | C210: ='App.2-BA_Fixed Asset Cont'!D174 -> 0 | E210: ='App.2-BA_Fixed Asset Cont'!E174 -> 0 | F210: =C210-D210+E210*0.5 -> 0 | H210: =IF(G210=0,0,1/G210) -> 0 | I210: 0 | J210: =-'App.2-BA_Fixed Asset Cont'!K174 -> 0 | K210: =IF(ISERROR(+J210-I210), 0, +J210-I210) -> 0
A211: 1805 | B211: Land | C211: ='App.2-BA_Fixed Asset Cont'!D175 -> 197343 | D211: 0 | E211: ='App.2-BA_Fixed Asset Cont'!E175 -> 0 | F211: 197343 | H211: 0 | I211: 0 | J211: =-'App.2-BA_Fixed Asset Cont'!K175 -> 0 | K211: 0
A212: 1808 | B212: Buildings | C212: 645449 | D212: 0 | F212: 645449 | G212: 60 | H212: 0.01666666667 | I212: 10757.48333 | J212: 13456 | K212: 2698.516667
A213: 1808 | B213: Buildings | C213: 252989 | D213: 0 | F213: 252989 | G213: 30 | H213: 0.03333333333 | I213: 8432.966667 | J213: 10169 | K213: 1736.033333
... 597 more rows

Sheet App.2-D_Overhead
K1: File Number: | L1: =EBNUMBER -> EB-2022-0044
K2: Exhibit: | L2: 4
K3: Tab: | L3: 2
K4: Schedule: | L4: 1
K5: Page:
K7: Date: | L7: ='App.2-A_Requested_Approvals'!H7 -> 2022-Oct-28
A9: Appendix 2-D
A10: Overhead Expense
A12: Applicants are to provide a breakdown of OM&A before capitalization in the below table. OM&A before capitalization may be broken down by cost center, program, drivers or another format best suited to focus on capitalized vs. uncapitalized OM&A.
A14: OM&A Before Capitalization
B15: =F15-4 -> 2013 | C15: 2014 | D15: 2015 | E15: 2016 | F15: 2017 | G15: 2018 | H15: 2019 | I15: =L15-3 -> 2020 | J15: =L15-2 -> 2021 | K15: =L15-1 -> 2022 | L15: =TestYear -> 2023
B16: Historical Year | C16: Historical Year | D16: Historical Year | E16: Historical Year | F16: Historical Year | G16: Historical Year | H16: Historical Year | I16: Historical Year | J16: Historical Year | K16: Bridge Year | L16: Test Year
A17: Total OM&A Before Capitalization | E17: 7371374.68 | F17: 7181986.78 | G17: 7841747.92 | H17: 7415586.24 | I17: 7508529.68 | J17: 7116657.3 | K17: 8075094.62 | L17: =8590464.62-165000 -> 8425464.62
A27: Total OM&A Before Capitalization (B) | B27: =SUM(B17:B26) -> 0 | C27: 0 | D27: 0 | E27: 7371374.68 | F27: 7181986.78 | G27: 7841747.92 | H27: 7415586.24 | I27: 7508529.68 | J27: 7116657.3 | K27: 8075094.62 | L27: 8425464.62
A29: Applicants are to provide a breakdown of capitalized OM&A in the below table. Capitalized OM&A may be broken down using the categories listed in the table below if possible. Otherwise, applicants are to provide its own break down of capitalized OM&A.
A31: Capitalized OM&A | M31: Directly | N31: Explanation for Any Change in Treatment of Capitalized Overhead
B32: =F32-4 -> 2013 | C32: 2014 | D32: 2015 | E32: 2016 | F32: 2017 | G32: 2018 | H32: 2019 | I32: =L32-3 -> 2020 | J32: =L32-2 -> 2021 | K32: =L32-1 -> 2022 | L32: =TestYear -> 2023 | M32: Attributable?
B33: Historical Year | C33: Historical Year | D33: Historical Year | E33: Historical Year | F33: Historical Year | G33: Historical Year | H33: Historical Year | I33: Historical Year | J33: Historical Year | K33: Bridge Year | L33: Test Year | M33: (Yes/No)
A34: employee benefits | E34: 332685.68 | F34: 175564.78 | G34: 278912.92 | H34: 315092.25 | I34: 225703.68 | J34: 241052.3 | K34: 387107.62 | L34: 397545.62 | M34: Yes
A35: costs of site preparation
A36: initial delivery and handling costs
A37: costs of testing whether the asset is functioning properly
A38: professional fees
A39: Other post employment benefits | I39: 34417 | J39: -28917 | K39: 17384 | L39: 17387 | M39: No | N39: 2020 was the first year of capitalization
A47: Total Capitalized OM&A (A) | B47: =SUM(B34:B46) -> 0 | C47: 0 | D47: 0 | E47: 332685.68 | F47: 175564.78 | G47: 278912.92 | H47: 315092.25 | I47: 260120.68 | J47: 212135.3 | K47: 404491.62 | L47: 414932.62
A49: % of Capitalized OM&A (=A/B) | B49: =IF(ISERROR(B47/B27),"0%",B47/B27) -> 0% | C49: 0% | D49: 0% | E49: 0.04513210825 | F49: 0.02444515499 | G49: 0.03556769777 | H49: 0.04249053815 | I49: 0.03464335777 | J49: 0.02980827811 | K49: 0.05009125453 | L49: 0.04924744672

Sheet App.2-EA_Account 1575 (2015) (hidden)
H1: File Number: | I1: =EBNUMBER -> EB-2022-0044
H2: Exhibit:
H3: Tab:
H4: Schedule:
H5: Page:
H7: Date:
A9: Appendix 2-EA
A10: Account 1575 - IFRS-CGAAP Transitional PP&E Amounts
A11: 2015 Adopters of IFRS for Financial Reporting Purposes
A13: For applicants that adopted IFRS on January 1, 2015 for financial reporting purposes
B17: 2014 | C17: =TestYear-3 -> 2020 | D17: =TestYear-2 -> 2021 | E17: =CONCATENATE(TestYear-1," Bridge Year") -> 2022 Bridge Year | F17: =CONCATENATE(TestYear," Rebasing Year") -> 2023 Rebasing Year
A18: Reporting Basis | B18: CGAAP | C18: CGAAP | D18: CGAAP | E18: MIFRS | F18: MIFRS
B19: Actual | C19: Actual | D19: Actual | E19: Forecast | F19: Forecast
D20: $ | E20: $
A21: PP&E Values under CGAAP
A22: Opening net PP&E - Note 1 | C22: =+B25 -> 0 | D22: =+C25 -> 0 | E22: =+D25 -> 0
A23: Net Additions - Note 4
A24: Net Depreciation (amounts should be negative) - Note 4
A25: Closing net PP&E (1) | B25: =SUM(B22:B24) -> 0 | C25: =SUM(C22:C24) -> 0 | D25: =SUM(D22:D24) -> 0 | E25: =SUM(E22:E24) -> 0
A27: PP&E Values under MIFRS (Starts from 2014, the transition year)
A28: Opening net PP&E - Note 1 | C28: =+B31 -> 0 | D28: =+C31 -> 0 | E28: =+D31 -> 0
A29: Net Additions - Note 4
A30: Net Depreciation (amounts should be negative) - Note 4
A31: Closing net PP&E (2) | B31: =SUM(B28:B30) -> 0 | C31: =SUM(C28:C30) -> 0 | D31: =SUM(D28:D30) -> 0 | E31: =SUM(E28:E30) -> 0
A33: Difference in Closing net PP&E, former CGAAP vs. revised CGAAP | B33: =B25-B31 -> 0 | C33: =C25-C31 -> 0 | D33: =D25-D31 -> 0 | E33: =E25-E31 -> 0
A36: Effect on Deferral and Variance Account Rate Riders
A37: Closing balance in Account 1575 | F37: =IF(ISERROR(E33), 0, E33) -> 0 | H37: WACC
A38: Return on Rate Base Associated with Account 1575 balance at WACC - Note 2 | F38: =E33*I37*I38 -> 0 | G38: # of years of rate rider disposition period
A39: Amount included in Deferral and Variance Account Rate Rider Calculation | F39: =F37+F38 -> 0
A41: Notes:
A42: 1 For an applicant that adopted IFRS on January 1, 2015, the PP&E values as of January 1, 2014 under both CGAAP and MIFRS should be the same.
A43: 2 Return on rate base associated with deferred balance is calculated as:
A44: the deferral account closing balance as of 2017 x WACC X # of years of rate rider disposition period
A45: * Please note that the calculation should be adjusted once WACC is updated and finalized in the rate application.
A46: 3 The PP&E deferral account is cleared by including the total balance in the deferral and variance account rate rider calculation.
A47: 4 Net additions are additions net of disposals; Net depreciation is additions to depreciation net of disposals.

Sheet App.2-EB_Account 1576 (2012) (hidden)
K1: File Number: | L1: =EBNUMBER -> EB-2022-0044
K2: Exhibit:
K3: Tab:
K4: Schedule:
K5: Page:
K7: Date:
A9: Appendix 2-EB
A10: Account 1576 - Accounting Changes under CGAAP
A11: 2012 Changes in Accounting Policies under CGAAP
A13: For applicants with a balance in Account 1576 and made capitalization and depreciation expense accounting policy changes under CGAAP effective January 1, 2012. This is the first time the applicant is rebasing with changes in these accounting policies.
B17: Prior Years Rebasing | C17: 2012 | D17: 2013 | E17: 2014 | F17: 2015 | G17: 2016 | H17: 2017 | I17: 2018 Rebasing Year
A18: Reporting Basis | B18: CGAAP | C18: CGAAP | D18: CGAAP | E18: CGAAP | F18: MIFRS - Note 5 | G18: MIFRS | H18: MIFRS | I18: MIFRS
B19: Forecast | C19: Actual | D19: Actual | E19: Actual | F19: Actual | G19: Actual | H19: Forecast | I19: Forecast
C20: $ | D20: $ | E20: $ | F20: $ | G20: $ | H20: $
A21: PP&E Values under former CGAAP
A22: Opening net PP&E - Note 1 | D22: =+C25 -> 0 | E22: =+D25 -> 0 | F22: =+E25 -> 0 | G22: =+F25 -> 0 | H22: =+G25 -> 0
A23: Net Additions - Note 4
A24: Net Depreciation (amounts should be negative) - Note 4
A25: Closing net PP&E (1) | C25: =C22+C23+C24 -> 0 | D25: 0 | E25: 0 | F25: 0 | G25: 0 | H25: 0
A27: PP&E Values under revised CGAAP (Starts from 2012)
A28: Opening net PP&E - Note 1 | D28: =+C31 -> 0 | E28: =+D31 -> 0 | F28: =+E31 -> 0 | G28: =+F31 -> 0 | H28: =+G31 -> 0
A29: Net Additions - Note 4
A30: Net Depreciation (amounts should be negative) - Note 4
A31: Closing net PP&E (2) | C31: =SUM(C28:C30) -> 0 | D31: 0 | E31: 0 | F31: 0 | G31: 0 | H31: 0
A33: Difference in Closing net PP&E, former CGAAP vs. revised CGAAP | C33: =C25-C31 -> 0 | D33: 0 | E33: 0 | F33: 0 | G33: 0 | H33: 0
A36: Effect on Deferral and Variance Account Rate Riders
A37: Closing balance in Account 1576 | I37: =IF(ISERROR(H33), 0, H33) -> 0 | K37: WACC
A38: Return on Rate Base Associated with Account 1576 balance at WACC - Note 2 | I38: =H33*L37*L38 -> 0 | J38: # of years of rate rider disposition period
A39: Amount included in Deferral and Variance Account Rate Rider Calculation | I39: =I37+I38 -> 0
A41: Notes:
A42: 1 For an applicant that made the capitalization and depreciation expense accounting policy changes on January 1, 2012, the PP&E values as of January 1, 2012 under both former CGAAP and revised CGAAP should be the same.
A43: 2 Return on rate base associated with Account 1576 balance is calculated as:
A44: the variance account ending balance as of 2017 x WACC X # of years of rate rider disposition period
A45: * Please note that the calculation should be adjusted once WACC is updated and finalized in the rate application.
A46: 3 Account 1576 is cleared by including the total balance in the deferral and variance account rate rider calculation.
A47: 4 Net additions are additions net of disposals; Net depreciation is additions to depreciation net of disposals.
A48: 5 Differences due to the adoption of MIFRS are to be shown separately in Account 1575 in Appendix 2-EA as Accounts 1575 and 1576 cannot be used interchangably.

Sheet App.2-EC_Account 1576 (2013) (hidden)
J1: File Number: | K1: =EBNUMBER -> EB-2022-0044
J2: Exhibit:
J3: Tab:
J4: Schedule:
J5: Page:
J7: Date:
A9: Appendix 2-EC
A10: Account 1576 - Accounting Changes under CGAAP
A11: 2013 Changes in Accounting Policies under CGAAP
A13: For applicants with a balance in Account 1576 and made capitalization and depreciation expense accounting policy changes under CGAAP effective January 1, 2013. This is the first time the applicant is rebasing with changes in these accounting policies.
B17: Prior Years Rebasing | C17: 2013 | D17: 2014 | E17: 2015 | F17: 2016 | G17: 2017 | H17: 2018 Rebasing Year
A18: Reporting Basis | B18: CGAAP | C18: CGAAP | D18: CGAAP | E18: MIFRS - Note 5 | F18: MIFRS | G18: MIFRS | H18: MIFRS
B19: Actual | C19: Actual | D19: Actual | E19: Actual | F19: Actual | G19: Forecast | H19: Forecast
C20: $ | D20: $ | F20: $
A21: PP&E Values under former CGAAP
A22: Opening net PP&E - Note 1 | D22: =+C25 -> 0 | E22: =+D25 -> 0 | F22: =+E25 -> 0 | G22: =+F25 -> 0
A23: Net Additions - Note 4
A24: Net Depreciation (amounts should be negative) - Note 4
A25: Closing net PP&E (1) | C25: =C22+C23+C24 -> 0 | D25: =D22+D23+D24 -> 0 | E25: =E22+E23+E24 -> 0 | F25: =F22+F23+F24 -> 0 | G25: =G22+G23+G24 -> 0
A27: PP&E Values under revised CGAAP (Starts from 2012)
A28: Opening net PP&E - Note 1 | D28: =+C31 -> 0 | E28: =+D31 -> 0 | F28: =+E31 -> 0 | G28: =+F31 -> 0
A29: Net Additions - Note 4
A30: Net Depreciation (amounts should be negative) - Note 4
A31: Closing net PP&E (2) | C31: =SUM(C28:C30) -> 0 | D31: =SUM(D28:D30) -> 0 | E31: =SUM(E28:E30) -> 0 | F31: =SUM(F28:F30) -> 0 | G31: =SUM(G28:G30) -> 0
A33: Difference in Closing net PP&E, former CGAAP vs. revised CGAAP | C33: =C25-C31 -> 0 | D33: =D25-D31 -> 0 | E33: =E25-E31 -> 0 | F33: =F25-F31 -> 0 | G33: =G25-G31 -> 0
A36: Effect on Deferral and Variance Account Rate Riders
A37: Closing balance in Account 1576 | H37: =IF(ISERROR(G33), 0, G33) -> 0 | J37: WACC
A38: Return on Rate Base Associated with Account 1576 balance at WACC - Note 2 | H38: =G33*K37*K38 -> 0 | I38: # of years of rate rider disposition period
A39: Amount included in Deferral and Variance Account Rate Rider Calculation | H39: =H37+H38 -> 0
A41: Notes:
A42: 1 For an applicant that made the capitalization and depreciation expense accounting policy changes on January 1, 2013, the PP&E values as of January 1, 2013 under both former CGAAP and revised CGAAP should be the same.
A43: 2 Return on rate base associated with Account 1576 balance is calculated as:
A44: the variance account ending balance as of 2017 x WACC X # of years of rate rider disposition period
A45: * Please note that the calculation should be adjusted once WACC is updated and finalized in the rate application.
A46: 3 Account 1576 is cleared by including the total balance in the deferral and variance account rate rider calculation.
A47: 4 Net additions are additions net of disposals; Net depreciation is additions to depreciation net of disposals.
A48: 5 Differences due to the adoption of MIFRS are to be shown separately in Account 1575 in Appendix 2-EA as Accounts 1575 and 1576 cannot be used interchangably.

Sheet Hidden_REG Invest. (hidden)
A1: Utility Name | B1: EB Number | C1: Test Year | D1: Bridge Year | E1: Last Rebasing Year | F1: Renewable Generation Connection Investment Summary | G1: Year | H1: Amount
A2: ='LDC Info'!$E$14 -> Kingston Hydro Corporation | B2: =EBNUMBER -> EB-2022-0044 | C2: =TestYear -> 2023 | D2: =BridgeYear -> 2022 | E2: =RebaseYear -> 2016 | F2: REI Investments_A_Total Capital Costs | G2: ='App.2-FA Proposed REG Invest.'!$C$31 -> 2018 | H2: ='App.2-FA Proposed REG Invest.'!C62 -> 0
A3: ='LDC Info'!$E$14 -> Kingston Hydro Corporation | B3: EB-2022-0044 | C3: 2023 | D3: 2022 | E3: 2016 | F3: REI Investments_A_Total OM&A Start-Up | G3: ='App.2-FA Proposed REG Invest.'!$C$31 -> 2018 | H3: ='App.2-FA Proposed REG Invest.'!$C63 -> 0
A4: ='LDC Info'!$E$14 -> Kingston Hydro Corporation | B4: EB-2022-0044 | C4: 2023 | D4: 2022 | E4: 2016 | F4: REI Investments_A_Total OM&A Ongoing | G4: ='App.2-FA Proposed REG Invest.'!$C$31 -> 2018 | H4: ='App.2-FA Proposed REG Invest.'!$C64 -> 0
A5: ='LDC Info'!$E$14 -> Kingston Hydro Corporation | B5: EB-2022-0044 | C5: 2023 | D5: 2022 | E5: 2016 | F5: REI Investments_A_Total Capital Costs | G5: ='App.2-FA Proposed REG Invest.'!$D$31 -> 2019 | H5: ='App.2-FA Proposed REG Invest.'!D62 -> 0
A6: ='LDC Info'!$E$14 -> Kingston Hydro Corporation | B6: EB-2022-0044 | C6: 2023 | D6: 2022 | E6: 2016 | F6: REI Investments_A_Total OM&A Start-Up | G6: ='App.2-FA Proposed REG Invest.'!$D$31 -> 2019 | H6: ='App.2-FA Proposed REG Invest.'!D63 -> 0
A7: ='LDC Info'!$E$14 -> Kingston Hydro Corporation | B7: EB-2022-0044 | C7: 2023 | D7: 2022 | E7: 2016 | F7: REI Investments_A_Total OM&A Ongoing | G7: ='App.2-FA Proposed REG Invest.'!$D$31 -> 2019 | H7: ='App.2-FA Proposed REG Invest.'!D64 -> 0
A8: ='LDC Info'!$E$14 -> Kingston Hydro Corporation | B8: EB-2022-0044 | C8: 2023 | D8: 2022 | E8: 2016 | F8: REI Investments_A_Total Capital Costs | G8: ='App.2-FA Proposed REG Invest.'!$E$31 -> 2020 | H8: ='App.2-FA Proposed REG Invest.'!E62 -> 0
A9: ='LDC Info'!$E$14 -> Kingston Hydro Corporation | B9: EB-2022-0044 | C9: 2023 | D9: 2022 | E9: 2016 | F9: REI Investments_A_Total OM&A Start-Up | G9: ='App.2-FA Proposed REG Invest.'!$E$31 -> 2020 | H9: ='App.2-FA Proposed REG Invest.'!E63 -> 0
A10: ='LDC Info'!$E$14 -> Kingston Hydro Corporation | B10: EB-2022-0044 | C10: 2023 | D10: 2022 | E10: 2016 | F10: REI Investments_A_Total OM&A Ongoing | G10: ='App.2-FA Proposed REG Invest.'!$E$31 -> 2020 | H10: ='App.2-FA Proposed REG Invest.'!E64 -> 0
A11: ='LDC Info'!$E$14 -> Kingston Hydro Corporation | B11: EB-2022-0044 | C11: 2023 | D11: 2022 | E11: 2016 | F11: REI Investments_A_Total Capital Costs | G11: ='App.2-FA Proposed REG Invest.'!$F$31 -> 2021 | H11: ='App.2-FA Proposed REG Invest.'!F62 -> 0
A12: ='LDC Info'!$E$14 -> Kingston Hydro Corporation | B12: EB-2022-0044 | C12: 2023 | D12: 2022 | E12: 2016 | F12: REI Investments_A_Total OM&A Start-Up | G12: ='App.2-FA Proposed REG Invest.'!$F$31 -> 2021 | H12: ='App.2-FA Proposed REG Invest.'!F63 -> 0
A13: ='LDC Info'!$E$14 -> Kingston Hydro Corporation | B13: EB-2022-0044 | C13: 2023 | D13: 2022 | E13: 2016 | F13: REI Investments_A_Total OM&A Ongoing | G13: ='App.2-FA Proposed REG Invest.'!$F$31 -> 2021 | H13: ='App.2-FA Proposed REG Invest.'!F64 -> 0
A14: ='LDC Info'!$E$14 -> Kingston Hydro Corporation | B14: EB-2022-0044 | C14: 2023 | D14: 2022 | E14: 2016 | F14: REI Investments_A_Total Capital Costs | G14: ='App.2-FA Proposed REG Invest.'!$G$31 -> 2022 | H14: ='App.2-FA Proposed REG Invest.'!G62 -> 0
A15: ='LDC Info'!$E$14 -> Kingston Hydro Corporation | B15: EB-2022-0044 | C15: 2023 | D15: 2022 | E15: 2016 | F15: REI Investments_A_Total OM&A Start-Up | G15: ='App.2-FA Proposed REG Invest.'!$G$31 -> 2022 | H15: ='App.2-FA Proposed REG Invest.'!G63 -> 0
A16: ='LDC Info'!$E$14 -> Kingston Hydro Corporation | B16: EB-2022-0044 | C16: 2023 | D16: 2022 | E16: 2016 | F16: REI Investments_A_Total OM&A Ongoing | G16: ='App.2-FA Proposed REG Invest.'!$G$31 -> 2022 | H16: ='App.2-FA Proposed REG Invest.'!G64 -> 0
A17: ='LDC Info'!$E$14 -> Kingston Hydro Corporation | B17: EB-2022-0044 | C17: 2023 | D17: 2022 | E17: 2016 | F17: REI Investments_A_Total Capital Costs | G17: ='App.2-FA Proposed REG Invest.'!$H$31 -> 2023 | H17: ='App.2-FA Proposed REG Invest.'!H62 -> 0
A18: ='LDC Info'!$E$14 -> Kingston Hydro Corporation | B18: EB-2022-0044 | C18: 2023 | D18: 2022 | E18: 2016 | F18: REI Investments_A_Total OM&A Start-Up | G18: ='App.2-FA Proposed REG Invest.'!$H$31 -> 2023 | H18: ='App.2-FA Proposed REG Invest.'!H63 -> 0
A19: ='LDC Info'!$E$14 -> Kingston Hydro Corporation | B19: EB-2022-0044 | C19: 2023 | D19: 2022 | E19: 2016 | F19: REI Investments_A_Total OM&A Ongoing | G19: ='App.2-FA Proposed REG Invest.'!$H$31 -> 2023 | H19: ='App.2-FA Proposed REG Invest.'!H64 -> 0
A20: ='LDC Info'!$E$14 -> Kingston Hydro Corporation | B20: EB-2022-0044 | C20: 2023 | D20: 2022 | E20: 2016 | F20: REI Investments_A_Total Capital Costs | G20: ='App.2-FA Proposed REG Invest.'!$I$31 -> 2024 | H20: ='App.2-FA Proposed REG Invest.'!I62 -> 0
A21: ='LDC Info'!$E$14 -> Kingston Hydro Corporation | B21: EB-2022-0044 | C21: 2023 | D21: 2022 | E21: 2016 | F21: REI Investments_A_Total OM&A Start-Up | G21: ='App.2-FA Proposed REG Invest.'!$I$31 -> 2024 | H21: ='App.2-FA Proposed REG Invest.'!I63 -> 0
A22: ='LDC Info'!$E$14 -> Kingston Hydro Corporation | B22: EB-2022-0044 | C22: 2023 | D22: 2022 | E22: 2016 | F22: REI Investments_A_Total OM&A Ongoing | G22: ='App.2-FA Proposed REG Invest.'!$I$31 -> 2024 | H22: ='App.2-FA Proposed REG Invest.'!I64 -> 0
A23: ='LDC Info'!$E$14 -> Kingston Hydro Corporation | B23: EB-2022-0044 | C23: 2023 | D23: 2022 | E23: 2016 | F23: REI Investments_A_Total Capital Costs | G23: ='App.2-FA Proposed REG Invest.'!$J$31 -> 2025 | H23: ='App.2-FA Proposed REG Invest.'!J62 -> 0
A24: ='LDC Info'!$E$14 -> Kingston Hydro Corporation | B24: EB-2022-0044 | C24: 2023 | D24: 2022 | E24: 2016 | F24: REI Investments_A_Total OM&A Start-Up | G24: ='App.2-FA Proposed REG Invest.'!$J$31 -> 2025 | H24: ='App.2-FA Proposed REG Invest.'!J63 -> 0
A25: ='LDC Info'!$E$14 -> Kingston Hydro Corporation | B25: EB-2022-0044 | C25: 2023 | D25: 2022 | E25: 2016 | F25: REI Investments_A_Total OM&A Ongoing | G25: ='App.2-FA Proposed REG Invest.'!$J$31 -> 2025 | H25: ='App.2-FA Proposed REG Invest.'!J64 -> 0
A26: ='LDC Info'!$E$14 -> Kingston Hydro Corporation | B26: EB-2022-0044 | C26: 2023 | D26: 2022 | E26: 2016 | F26: REI Investments_A_Total Capital Costs | G26: ='App.2-FA Proposed REG Invest.'!$K$31 -> 2026 | H26: ='App.2-FA Proposed REG Invest.'!K62 -> 0
A27: ='LDC Info'!$E$14 -> Kingston Hydro Corporation | B27: EB-2022-0044 | C27: 2023 | D27: 2022 | E27: 2016 | F27: REI Investments_A_Total OM&A Start-Up | G27: ='App.2-FA Proposed REG Invest.'!$K$31 -> 2026 | H27: ='App.2-FA Proposed REG Invest.'!K63 -> 0
A28: ='LDC Info'!$E$14 -> Kingston Hydro Corporation | B28: EB-2022-0044 | C28: 2023 | D28: 2022 | E28: 2016 | F28: REI Investments_A_Total OM&A Ongoing | G28: ='App.2-FA Proposed REG Invest.'!$K$31 -> 2026 | H28: ='App.2-FA Proposed REG Invest.'!K64 -> 0
A29: ='LDC Info'!$E$14 -> Kingston Hydro Corporation | B29: EB-2022-0044 | C29: 2023 | D29: 2022 | E29: 2016 | F29: REI Investments_A_Total Capital Costs | G29: ='App.2-FA Proposed REG Invest.'!$L$31 -> 2027 | H29: ='App.2-FA Proposed REG Invest.'!L62 -> 0
A30: ='LDC Info'!$E$14 -> Kingston Hydro Corporation | B30: EB-2022-0044 | C30: 2023 | D30: 2022 | E30: 2016 | F30: REI Investments_A_Total OM&A Start-Up | G30: ='App.2-FA Proposed REG Invest.'!$L$31 -> 2027 | H30: ='App.2-FA Proposed REG Invest.'!L63 -> 0
A31: ='LDC Info'!$E$14 -> Kingston Hydro Corporation | B31: EB-2022-0044 | C31: 2023 | D31: 2022 | E31: 2016 | F31: REI Investments_A_Total OM&A Ongoing | G31: ='App.2-FA Proposed REG Invest.'!$L$31 -> 2027 | H31: ='App.2-FA Proposed REG Invest.'!L64 -> 0
A32: ='LDC Info'!$E$14 -> Kingston Hydro Corporation | B32: EB-2022-0044 | C32: 2023 | D32: 2022 | E32: 2016 | F32: Expansion Investments_B_Total Capital Costs | G32: ='App.2-FA Proposed REG Invest.'!$C$31 -> 2018 | H32: ='App.2-FA Proposed REG Invest.'!C99 -> 0
A33: ='LDC Info'!$E$14 -> Kingston Hydro Corporation | B33: EB-2022-0044 | C33: 2023 | D33: 2022 | E33: 2016 | F33: Expansion Investments_B_Total OM&A Start-Up | G33: ='App.2-FA Proposed REG Invest.'!$C$31 -> 2018 | H33: ='App.2-FA Proposed REG Invest.'!C100 -> 0
A34: ='LDC Info'!$E$14 -> Kingston Hydro Corporation | B34: EB-2022-0044 | C34: 2023 | D34: 2022 | E34: 2016 | F34: Expansion Investments_B_Total OM&A Ongoing | G34: ='App.2-FA Proposed REG Invest.'!$C$31 -> 2018 | H34: ='App.2-FA Proposed REG Invest.'!C101 -> 0
A35: ='LDC Info'!$E$14 -> Kingston Hydro Corporation | B35: EB-2022-0044 | C35: 2023 | D35: 2022 | E35: 2016 | F35: Expansion Investments_B_Total Capital Costs | G35: ='App.2-FA Proposed REG Invest.'!$D$31 -> 2019 | H35: ='App.2-FA Proposed REG Invest.'!D99 -> 0
A36: ='LDC Info'!$E$14 -> Kingston Hydro Corporation | B36: EB-2022-0044 | C36: 2023 | D36: 2022 | E36: 2016 | F36: Expansion Investments_B_Total OM&A Start-Up | G36: ='App.2-FA Proposed REG Invest.'!$D$31 -> 2019 | H36: ='App.2-FA Proposed REG Invest.'!D100 -> 0
A37: ='LDC Info'!$E$14 -> Kingston Hydro Corporation | B37: EB-2022-0044 | C37: 2023 | D37: 2022 | E37: 2016 | F37: Expansion Investments_B_Total OM&A Ongoing | G37: ='App.2-FA Proposed REG Invest.'!$D$31 -> 2019 | H37: ='App.2-FA Proposed REG Invest.'!D101 -> 0
A38: ='LDC Info'!$E$14 -> Kingston Hydro Corporation | B38: EB-2022-0044 | C38: 2023 | D38: 2022 | E38: 2016 | F38: Expansion Investments_B_Total Capital Costs | G38: ='App.2-FA Proposed REG Invest.'!$E$31 -> 2020 | H38: ='App.2-FA Proposed REG Invest.'!E99 -> 0
A39: ='LDC Info'!$E$14 -> Kingston Hydro Corporation | B39: EB-2022-0044 | C39: 2023 | D39: 2022 | E39: 2016 | F39: Expansion Investments_B_Total OM&A Start-Up | G39: ='App.2-FA Proposed REG Invest.'!$E$31 -> 2020 | H39: ='App.2-FA Proposed REG Invest.'!E100 -> 0
A40: ='LDC Info'!$E$14 -> Kingston Hydro Corporation | B40: EB-2022-0044 | C40: 2023 | D40: 2022 | E40: 2016 | F40: Expansion Investments_B_Total OM&A Ongoing | G40: ='App.2-FA Proposed REG Invest.'!$E$31 -> 2020 | H40: ='App.2-FA Proposed REG Invest.'!E101 -> 0
A41: ='LDC Info'!$E$14 -> Kingston Hydro Corporation | B41: EB-2022-0044 | C41: 2023 | D41: 2022 | E41: 2016 | F41: Expansion Investments_B_Total Capital Costs | G41: ='App.2-FA Proposed REG Invest.'!$F$31 -> 2021 | H41: ='App.2-FA Proposed REG Invest.'!F99 -> 0
A42: ='LDC Info'!$E$14 -> Kingston Hydro Corporation | B42: EB-2022-0044 | C42: 2023 | D42: 2022 | E42: 2016 | F42: Expansion Investments_B_Total OM&A Start-Up | G42: ='App.2-FA Proposed REG Invest.'!$F$31 -> 2021 | H42: ='App.2-FA Proposed REG Invest.'!F100 -> 0
A43: ='LDC Info'!$E$14 -> Kingston Hydro Corporation | B43: EB-2022-0044 | C43: 2023 | D43: 2022 | E43: 2016 | F43: Expansion Investments_B_Total OM&A Ongoing | G43: ='App.2-FA Proposed REG Invest.'!$F$31 -> 2021 | H43: ='App.2-FA Proposed REG Invest.'!F101 -> 0
A44: ='LDC Info'!$E$14 -> Kingston Hydro Corporation | B44: EB-2022-0044 | C44: 2023 | D44: 2022 | E44: 2016 | F44: Expansion Investments_B_Total Capital Costs | G44: ='App.2-FA Proposed REG Invest.'!$G$31 -> 2022 | H44: ='App.2-FA Proposed REG Invest.'!G99 -> 0
A45: ='LDC Info'!$E$14 -> Kingston Hydro Corporation | B45: EB-2022-0044 | C45: 2023 | D45: 2022 | E45: 2016 | F45: Expansion Investments_B_Total OM&A Start-Up | G45: ='App.2-FA Proposed REG Invest.'!$G$31 -> 2022 | H45: ='App.2-FA Proposed REG Invest.'!G100 -> 0
A46: ='LDC Info'!$E$14 -> Kingston Hydro Corporation | B46: EB-2022-0044 | C46: 2023 | D46: 2022 | E46: 2016 | F46: Expansion Investments_B_Total OM&A Ongoing | G46: ='App.2-FA Proposed REG Invest.'!$G$31 -> 2022 | H46: ='App.2-FA Proposed REG Invest.'!G101 -> 0
A47: ='LDC Info'!$E$14 -> Kingston Hydro Corporation | B47: EB-2022-0044 | C47: 2023 | D47: 2022 | E47: 2016 | F47: Expansion Investments_B_Total Capital Costs | G47: ='App.2-FA Proposed REG Invest.'!$H$31 -> 2023 | H47: ='App.2-FA Proposed REG Invest.'!H99 -> 0
A48: ='LDC Info'!$E$14 -> Kingston Hydro Corporation | B48: EB-2022-0044 | C48: 2023 | D48: 2022 | E48: 2016 | F48: Expansion Investments_B_Total OM&A Start-Up | G48: ='App.2-FA Proposed REG Invest.'!$H$31 -> 2023 | H48: ='App.2-FA Proposed REG Invest.'!H100 -> 0
A49: ='LDC Info'!$E$14 -> Kingston Hydro Corporation | B49: EB-2022-0044 | C49: 2023 | D49: 2022 | E49: 2016 | F49: Expansion Investments_B_Total OM&A Ongoing | G49: ='App.2-FA Proposed REG Invest.'!$H$31 -> 2023 | H49: ='App.2-FA Proposed REG Invest.'!H101 -> 0
A50: ='LDC Info'!$E$14 -> Kingston Hydro Corporation | B50: EB-2022-0044 | C50: 2023 | D50: 2022 | E50: 2016 | F50: Expansion Investments_B_Total Capital Costs | G50: ='App.2-FA Proposed REG Invest.'!$I$31 -> 2024 | H50: ='App.2-FA Proposed REG Invest.'!I99 -> 0
A51: ='LDC Info'!$E$14 -> Kingston Hydro Corporation | B51: EB-2022-0044 | C51: 2023 | D51: 2022 | E51: 2016 | F51: Expansion Investments_B_Total OM&A Start-Up | G51: ='App.2-FA Proposed REG Invest.'!$I$31 -> 2024 | H51: ='App.2-FA Proposed REG Invest.'!I100 -> 0
A52: ='LDC Info'!$E$14 -> Kingston Hydro Corporation | B52: EB-2022-0044 | C52: 2023 | D52: 2022 | E52: 2016 | F52: Expansion Investments_B_Total OM&A Ongoing | G52: ='App.2-FA Proposed REG Invest.'!$I$31 -> 2024 | H52: ='App.2-FA Proposed REG Invest.'!I101 -> 0
A53: ='LDC Info'!$E$14 -> Kingston Hydro Corporation | B53: EB-2022-0044 | C53: 2023 | D53: 2022 | E53: 2016 | F53: Expansion Investments_B_Total Capital Costs | G53: ='App.2-FA Proposed REG Invest.'!$J$31 -> 2025 | H53: ='App.2-FA Proposed REG Invest.'!J99 -> 0
A54: ='LDC Info'!$E$14 -> Kingston Hydro Corporation | B54: EB-2022-0044 | C54: 2023 | D54: 2022 | E54: 2016 | F54: Expansion Investments_B_Total OM&A Start-Up | G54: ='App.2-FA Proposed REG Invest.'!$J$31 -> 2025 | H54: ='App.2-FA Proposed REG Invest.'!J100 -> 0
A55: ='LDC Info'!$E$14 -> Kingston Hydro Corporation | B55: EB-2022-0044 | C55: 2023 | D55: 2022 | E55: 2016 | F55: Expansion Investments_B_Total OM&A Ongoing | G55: ='App.2-FA Proposed REG Invest.'!$J$31 -> 2025 | H55: ='App.2-FA Proposed REG Invest.'!J101 -> 0
A56: ='LDC Info'!$E$14 -> Kingston Hydro Corporation | B56: EB-2022-0044 | C56: 2023 | D56: 2022 | E56: 2016 | F56: Expansion Investments_B_Total Capital Costs | G56: ='App.2-FA Proposed REG Invest.'!$K$31 -> 2026 | H56: ='App.2-FA Proposed REG Invest.'!K99 -> 0
A57: ='LDC Info'!$E$14 -> Kingston Hydro Corporation | B57: EB-2022-0044 | C57: 2023 | D57: 2022 | E57: 2016 | F57: Expansion Investments_B_Total OM&A Start-Up | G57: ='App.2-FA Proposed REG Invest.'!$K$31 -> 2026 | H57: ='App.2-FA Proposed REG Invest.'!K100 -> 0
A58: ='LDC Info'!$E$14 -> Kingston Hydro Corporation | B58: EB-2022-0044 | C58: 2023 | D58: 2022 | E58: 2016 | F58: Expansion Investments_B_Total OM&A Ongoing | G58: ='App.2-FA Proposed REG Invest.'!$K$31 -> 2026 | H58: ='App.2-FA Proposed REG Invest.'!K101 -> 0
A59: ='LDC Info'!$E$14 -> Kingston Hydro Corporation | B59: EB-2022-0044 | C59: 2023 | D59: 2022 | E59: 2016 | F59: Expansion Investments_B_Total Capital Costs | G59: ='App.2-FA Proposed REG Invest.'!$L$31 -> 2027 | H59: ='App.2-FA Proposed REG Invest.'!L99 -> 0
A60: ='LDC Info'!$E$14 -> Kingston Hydro Corporation | B60: EB-2022-0044 | C60: 2023 | D60: 2022 | E60: 2016 | F60: Expansion Investments_B_Total OM&A Start-Up | G60: ='App.2-FA Proposed REG Invest.'!$L$31 -> 2027 | H60: ='App.2-FA Proposed REG Invest.'!L100 -> 0
A61: ='LDC Info'!$E$14 -> Kingston Hydro Corporation | B61: EB-2022-0044 | C61: 2023 | D61: 2022 | E61: 2016 | F61: Expansion Investments_B_Total OM&A Ongoing | G61: ='App.2-FA Proposed REG Invest.'!$L$31 -> 2027 | H61: ='App.2-FA Proposed REG Invest.'!L101 -> 0

Sheet Hidden_REG Improvement (hidden)
A1: Utility Name | B1: EB Number | C1: Test Year | D1: Bridge Year | E1: Last Rebasing Year | F1: Renewable Generation Connection Direct Benefits/Provincial Amount Renewable Enabling Improvement Investments | G1: Year | H1: Amount
A2: ='LDC Info'!$E$14 -> Kingston Hydro Corporation | B2: =EBNUMBER -> EB-2022-0044 | C2: =TestYear -> 2023 | D2: =BridgeYear -> 2022 | E2: =RebaseYear -> 2016 | F2: Provincial Rate Protection | G2: ='App.2-FB Calc of REG Improvemnt'!D17 -> 2018 | H2: ='App.2-FB Calc of REG Improvemnt'!F$44 -> 0
A3: ='LDC Info'!$E$14 -> Kingston Hydro Corporation | B3: EB-2022-0044 | C3: 2023 | D3: 2022 | E3: 2016 | F3: Provincial Rate Protection | G3: ='App.2-FB Calc of REG Improvemnt'!G17 -> 2019 | H3: ='App.2-FB Calc of REG Improvemnt'!I$44 -> 0
A4: ='LDC Info'!$E$14 -> Kingston Hydro Corporation | B4: EB-2022-0044 | C4: 2023 | D4: 2022 | E4: 2016 | F4: Provincial Rate Protection | G4: ='App.2-FB Calc of REG Improvemnt'!J17 -> 2020 | H4: ='App.2-FB Calc of REG Improvemnt'!L$44 -> 0
A5: ='LDC Info'!$E$14 -> Kingston Hydro Corporation | B5: EB-2022-0044 | C5: 2023 | D5: 2022 | E5: 2016 | F5: Provincial Rate Protection | G5: ='App.2-FB Calc of REG Improvemnt'!M17 -> 2021 | H5: ='App.2-FB Calc of REG Improvemnt'!O$44 -> 0
A6: ='LDC Info'!$E$14 -> Kingston Hydro Corporation | B6: EB-2022-0044 | C6: 2023 | D6: 2022 | E6: 2016 | F6: Provincial Rate Protection | G6: ='App.2-FB Calc of REG Improvemnt'!P17 -> 2022 | H6: ='App.2-FB Calc of REG Improvemnt'!R$44 -> 0
A7: ='LDC Info'!$E$14 -> Kingston Hydro Corporation | B7: EB-2022-0044 | C7: 2023 | D7: 2022 | E7: 2016 | F7: Provincial Rate Protection | G7: ='App.2-FB Calc of REG Improvemnt'!S17 -> 2023 | H7: ='App.2-FB Calc of REG Improvemnt'!U$44 -> 0
A8: ='LDC Info'!$E$14 -> Kingston Hydro Corporation | B8: EB-2022-0044 | C8: 2023 | D8: 2022 | E8: 2016 | F8: Provincial Rate Protection | G8: ='App.2-FB Calc of REG Improvemnt'!V17 -> 2024 | H8: ='App.2-FB Calc of REG Improvemnt'!X$44 -> 0
A9: ='LDC Info'!$E$14 -> Kingston Hydro Corporation | B9: EB-2022-0044 | C9: 2023 | D9: 2022 | E9: 2016 | F9: Provincial Rate Protection | G9: ='App.2-FB Calc of REG Improvemnt'!Y17 -> 2025 | H9: ='App.2-FB Calc of REG Improvemnt'!AA$44 -> 0
A10: ='LDC Info'!$E$14 -> Kingston Hydro Corporation | B10: EB-2022-0044 | C10: 2023 | D10: 2022 | E10: 2016 | F10: Provincial Rate Protection | G10: ='App.2-FB Calc of REG Improvemnt'!AB17 -> 2026 | H10: ='App.2-FB Calc of REG Improvemnt'!AD$44 -> 0
A11: ='LDC Info'!$E$14 -> Kingston Hydro Corporation | B11: EB-2022-0044 | C11: 2023 | D11: 2022 | E11: 2016 | F11: Provincial Rate Protection | G11: ='App.2-FB Calc of REG Improvemnt'!AE17 -> 2027 | H11: ='App.2-FB Calc of REG Improvemnt'!AG$44 -> 0

Sheet Hidden_REG Expansion (hidden)
A1: Utility Name | B1: EB Number | C1: Test Year | D1: Bridge Year | E1: Last Rebasing Year | F1: Calculation of Renewable Generation Connection Direct Benefits/Provincial Amount Renewable Expansion Investments | G1: Year | H1: Amount
A2: ='LDC Info'!$E$14 -> Kingston Hydro Corporation | B2: =EBNUMBER -> EB-2022-0044 | C2: =TestYear -> 2023 | D2: =BridgeYear -> 2022 | E2: =RebaseYear -> 2016 | F2: Provincial Rate Protection | G2: ='App.2-FC Calc of REG Expansion'!D$17 -> 2018 | H2: ='App.2-FC Calc of REG Expansion'!F$44 -> 0
A3: ='LDC Info'!$E$14 -> Kingston Hydro Corporation | B3: EB-2022-0044 | C3: 2023 | D3: 2022 | E3: 2016 | F3: Provincial Rate Protection | G3: ='App.2-FC Calc of REG Expansion'!G$17 -> 2019 | H3: ='App.2-FC Calc of REG Expansion'!I$44 -> 0
A4: ='LDC Info'!$E$14 -> Kingston Hydro Corporation | B4: EB-2022-0044 | C4: 2023 | D4: 2022 | E4: 2016 | F4: Provincial Rate Protection | G4: ='App.2-FC Calc of REG Expansion'!J$17 -> 2020 | H4: ='App.2-FC Calc of REG Expansion'!L$44 -> 0
A5: ='LDC Info'!$E$14 -> Kingston Hydro Corporation | B5: EB-2022-0044 | C5: 2023 | D5: 2022 | E5: 2016 | F5: Provincial Rate Protection | G5: ='App.2-FC Calc of REG Expansion'!M$17 -> 2021 | H5: ='App.2-FC Calc of REG Expansion'!O$44 -> 0
A6: ='LDC Info'!$E$14 -> Kingston Hydro Corporation | B6: EB-2022-0044 | C6: 2023 | D6: 2022 | E6: 2016 | F6: Provincial Rate Protection | G6: ='App.2-FC Calc of REG Expansion'!P$17 -> 2022 | H6: ='App.2-FC Calc of REG Expansion'!R$44 -> 0
A7: ='LDC Info'!$E$14 -> Kingston Hydro Corporation | B7: EB-2022-0044 | C7: 2023 | D7: 2022 | E7: 2016 | F7: Provincial Rate Protection | G7: ='App.2-FC Calc of REG Expansion'!S$17 -> 2023 | H7: ='App.2-FC Calc of REG Expansion'!U$44 -> 0
A8: ='LDC Info'!$E$14 -> Kingston Hydro Corporation | B8: EB-2022-0044 | C8: 2023 | D8: 2022 | E8: 2016 | F8: Provincial Rate Protection | G8: ='App.2-FC Calc of REG Expansion'!V$17 -> 2024 | H8: ='App.2-FC Calc of REG Expansion'!X$44 -> 0
A9: ='LDC Info'!$E$14 -> Kingston Hydro Corporation | B9: EB-2022-0044 | C9: 2023 | D9: 2022 | E9: 2016 | F9: Provincial Rate Protection | G9: ='App.2-FC Calc of REG Expansion'!Y$17 -> 2025 | H9: ='App.2-FC Calc of REG Expansion'!AA$44 -> 0
A10: ='LDC Info'!$E$14 -> Kingston Hydro Corporation | B10: EB-2022-0044 | C10: 2023 | D10: 2022 | E10: 2016 | F10: Provincial Rate Protection | G10: ='App.2-FC Calc of REG Expansion'!AB$17 -> 2026 | H10: ='App.2-FC Calc of REG Expansion'!AD$44 -> 0
A11: ='LDC Info'!$E$14 -> Kingston Hydro Corporation | B11: EB-2022-0044 | C11: 2023 | D11: 2022 | E11: 2016 | F11: Provincial Rate Protection | G11: ='App.2-FC Calc of REG Expansion'!AE$17 -> 2027 | H11: ='App.2-FC Calc of REG Expansion'!AG$44 -> 0

Sheet App.2-FA Proposed REG Invest.
K1: File Number: | L1: 0
K2: Exhibit: | L2: NOT APPLICABLE
K3: Tab:
A4: TO BE UPDATED AT DRAFT RATE ORDER STAGE | K4: Schedule:
K5: Page:
K7: Date:
A9: Appendix 2-FA
A10: Renewable Generation Connection Investment Summary (past investments or over the future rate setting period)
A12: Enter the details of the Renewable Generation Connection projects as described in the appropriate section of the Filing Requirements.
A13: All costs entered on this page will be transferred to the appropriate cells in the appendices that follow.
A14: For Part A, Renewable Enabling Improvements (REI), these amounts will be transferred to Appendix 2 - FB
A15: For Part B, Expansions, these amounts will be transferred to Appendix 2 - FC
A17: If there are more than five projects proposed to be in-service in a certain year, please amend the tables below and ensure that the formulae for the Total Amounts in any given rate year are updated.
A18: Based on the current methodology and allocation, amounts allocated represent 6% for REI Connection Investments and 17% for Expansion Investments. (EB-2009-0349, 6-10-2010, p. 15, note 9)
A19: Ensure that OM&A costs below are not included in Recoverable OM&A (App. 2-JA)
A20: There are two scenarios described below. Separate sets of spreadsheets (2-FA, 2-FB, 2-FC) should be submited for each scenario as required.
A21: Scenario 1: | B21: Past Investments with No Recovery. The distributor has made investments in the past (during the IRM Years), but has not received approval for these projects and therefore did not receive
B22: revenue from the IESO under Regulation 330/09 and did not receive ratepayer revenue for the direct benefit portion of the investment.
B23: The WCA percentage, debt percentages, interest rates, kWh, tax rates, amortization period, CCA Class and percentage should correspond to the distributor's last Cost of Service approval.
B24: The Direct Benefit portion of the calculated Revenue Requirement for each year should be summed and can be applied for recovery from the distributor's ratepayers through a rate rider.
B25: The Provincial Recovery portion of the calculated Revenue Requirement for each year should be summed and can be applied for recovery from the IESO through a separate order.
A27: Scenario 2: | B27: Investments in the Test Year and Beyond. Distributor plans to make investments in the Test Year and/or beyond. These investments should be added to 2-FA in the appropriate year.
B28: The WCA percentage, debt percentages, interest rates, kWh, tax rates, amortization period, CCA Class and percentage should correspond to the distributor's current application.
A30: Part A | H30: Test Year
A31: REI Investments (Direct Benefit at 6%) | C31: =D31-1 -> 2018 | D31: =E31-1 -> 2019 | E31: =F31-1 -> 2020 | F31: =G31-1 -> 2021 | G31: =H31-1 -> 2022 | H31: ='LDC Info'!$E$24 -> 2023 | I31: =H31+1 -> 2024 | J31: =I31+1 -> 2025 | K31: =J31+1 -> 2026 | L31: =K31+1 -> 2027
A32: Project 1
A33: Name: REI Connection Project
A34: Capital Costs | C34: 0 | D34: 0 | E34: 0 | F34: 0 | G34: 0 | H34: 0 | I34: 0 | J34: 0 | K34: 0 | L34: 0
A35: Incremental OM&A (Start-Up) | C35: 0 | D35: 0 | E35: 0 | F35: 0 | G35: 0 | H35: 0 | I35: 0 | J35: 0 | K35: 0 | L35: 0
A36: Incremental OM&A (Ongoing) | C36: 0 | D36: 0 | E36: 0 | F36: 0 | G36: 0 | H36: 0 | I36: 0 | J36: 0 | K36: 0 | L36: 0
A38: Project 2
A39: Name: REI Connection Project
A40: Capital Costs | C40: 0 | D40: 0 | E40: 0 | F40: 0 | G40: 0 | H40: 0 | I40: 0 | J40: 0 | K40: 0 | L40: 0
A41: Incremental OM&A (Start-Up) | C41: 0 | D41: 0 | E41: 0 | F41: 0 | G41: 0 | H41: 0 | I41: 0 | J41: 0 | K41: 0 | L41: 0
A42: Incremental OM&A (Ongoing) | C42: 0 | D42: 0 | E42: 0 | F42: 0 | G42: 0 | H42: 0 | I42: 0 | J42: 0 | K42: 0 | L42: 0
A44: Project 3
A45: Name: REI Connection Project
A46: Capital Costs | C46: 0 | D46: 0 | E46: 0 | F46: 0 | G46: 0 | H46: 0 | I46: 0 | J46: 0 | K46: 0 | L46: 0
A47: Incremental OM&A (Start-Up) | C47: 0 | D47: 0 | E47: 0 | F47: 0 | G47: 0 | H47: 0 | I47: 0 | J47: 0 | K47: 0 | L47: 0
A48: Incremental OM&A (Ongoing) | C48: 0 | D48: 0 | E48: 0 | F48: 0 | G48: 0 | H48: 0 | I48: 0 | J48: 0 | K48: 0 | L48: 0
A50: Project 4
A51: Name: REI Connection Project
A52: Capital Costs | C52: 0 | D52: 0 | E52: 0 | F52: 0 | G52: 0 | H52: 0 | I52: 0 | J52: 0 | K52: 0 | L52: 0
A53: Incremental OM&A (Start-Up) | C53: 0 | D53: 0 | E53: 0 | F53: 0 | G53: 0 | H53: 0 | I53: 0 | J53: 0 | K53: 0 | L53: 0
A54: Incremental OM&A (Ongoing) | C54: 0 | D54: 0 | E54: 0 | F54: 0 | G54: 0 | H54: 0 | I54: 0 | J54: 0 | K54: 0 | L54: 0
A56: Project 5
A57: Name: REI Connection Project
A58: Capital Costs | C58: 0 | D58: 0 | E58: 0 | F58: 0 | G58: 0 | H58: 0 | I58: 0 | J58: 0 | K58: 0 | L58: 0
A59: Incremental OM&A (Start-Up) | C59: 0 | D59: 0 | E59: 0 | F59: 0 | G59: 0 | H59: 0 | I59: 0 | J59: 0 | K59: 0 | L59: 0
A60: Incremental OM&A (Ongoing) | C60: 0 | D60: 0 | E60: 0 | F60: 0 | G60: 0 | H60: 0 | I60: 0 | J60: 0 | K60: 0 | L60: 0
A62: Total Capital Costs | C62: =SUM(C58,C52,C46,C40,C34) -> 0 | D62: 0 | E62: 0 | F62: 0 | G62: 0 | H62: 0 | I62: 0 | J62: 0 | K62: 0 | L62: 0
A63: Total Incremental OM&A (Start-Up) | C63: 0 | D63: 0 | E63: 0 | F63: 0 | G63: 0 | H63: 0 | I63: 0 | J63: 0 | K63: 0 | L63: 0
A64: Total Incremental OM&A (Ongoing) | C64: 0 | D64: 0 | E64: 0 | F64: 0 | G64: 0 | H64: 0 | I64: 0 | J64: 0 | K64: 0 | L64: 0
A67: Part B | H67: Test Year
A68: Expansion Investments (Direct Benefit at 17%) | C68: =D68-1 -> 2018 | D68: =E68-1 -> 2019 | E68: =F68-1 -> 2020 | F68: =G68-1 -> 2021 | G68: =H68-1 -> 2022 | H68: =H31 -> 2023 | I68: =H68+1 -> 2024 | J68: =I68+1 -> 2025 | K68: =J68+1 -> 2026 | L68: =K68+1 -> 2027
A69: Project 1
A70: Name: Expansion Connection Project
A71: Capital Costs | C71: 0 | D71: 0 | E71: 0 | F71: 0 | G71: 0 | H71: 0 | I71: 0 | J71: 0 | K71: 0 | L71: 0
A72: Incremental OM&A (Start-Up) | C72: 0 | D72: 0 | E72: 0 | F72: 0 | G72: 0 | H72: 0 | I72: 0 | J72: 0 | K72: 0 | L72: 0
A73: Incremental OM&A (Ongoing) | C73: 0 | D73: 0 | E73: 0 | F73: 0 | G73: 0 | H73: 0 | I73: 0 | J73: 0 | K73: 0 | L73: 0
A75: Project 2
A76: Name: Expansion Connection Project
A77: Capital Costs | C77: 0 | D77: 0 | E77: 0 | F77: 0 | G77: 0 | H77: 0 | I77: 0 | J77: 0 | K77: 0 | L77: 0
A78: Incremental OM&A (Start-Up) | C78: 0 | D78: 0 | E78: 0 | F78: 0 | G78: 0 | H78: 0 | I78: 0 | J78: 0 | K78: 0 | L78: 0
A79: Incremental OM&A (Ongoing) | C79: 0 | D79: 0 | E79: 0 | F79: 0 | G79: 0 | H79: 0 | I79: 0 | J79: 0 | K79: 0 | L79: 0
A81: Project 3
A82: Name: Expansion Connection Project
A83: Capital Costs | C83: 0 | D83: 0 | E83: 0 | F83: 0 | G83: 0 | H83: 0 | I83: 0 | J83: 0 | K83: 0 | L83: 0
A84: Incremental OM&A (Start-Up) | C84: 0 | D84: 0 | E84: 0 | F84: 0 | G84: 0 | H84: 0 | I84: 0 | J84: 0 | K84: 0 | L84: 0
A85: Incremental OM&A (Ongoing) | C85: 0 | D85: 0 | E85: 0 | F85: 0 | G85: 0 | H85: 0 | I85: 0 | J85: 0 | K85: 0 | L85: 0
A87: Project 4
A88: Name: Expansion Connection Project
A89: Capital Costs | C89: 0 | D89: 0 | E89: 0 | F89: 0 | G89: 0 | H89: 0 | I89: 0 | J89: 0 | K89: 0 | L89: 0
A90: Incremental OM&A (Start-Up) | C90: 0 | D90: 0 | E90: 0 | F90: 0 | G90: 0 | H90: 0 | I90: 0 | J90: 0 | K90: 0 | L90: 0
A91: Incremental OM&A (Ongoing) | C91: 0 | D91: 0 | E91: 0 | F91: 0 | G91: 0 | H91: 0 | I91: 0 | J91: 0 | K91: 0 | L91: 0
A93: Project 5
A94: Name: Expansion Connection Project
A95: Capital Costs | C95: 0 | D95: 0 | E95: 0 | F95: 0 | G95: 0 | H95: 0 | I95: 0 | J95: 0 | K95: 0 | L95: 0
A96: Incremental OM&A (Start-Up) | C96: 0 | D96: 0 | E96: 0 | F96: 0 | G96: 0 | H96: 0 | I96: 0 | J96: 0 | K96: 0 | L96: 0
A97: Incremental OM&A (Ongoing) | C97: 0 | D97: 0 | E97: 0 | F97: 0 | G97: 0 | H97: 0 | I97: 0 | J97: 0 | K97: 0 | L97: 0
A99: Total Capital Costs | C99: =SUM(C95,C89,C83,C77,C71) -> 0 | D99: 0 | E99: 0 | F99: 0 | G99: 0 | H99: 0 | I99: 0 | J99: 0 | K99: 0 | L99: 0
A100: Total Incremental OM&A (Start-Up) | C100: 0 | D100: 0 | E100: 0 | F100: 0 | G100: 0 | H100: 0 | I100: 0 | J100: 0 | K100: 0 | L100: 0
A101: Total Incremental OM&A (Ongoing) | C101: 0 | D101: 0 | E101: 0 | F101: 0 | G101: 0 | H101: 0 | I101: 0 | J101: 0 | K101: 0 | L101: 0

Sheet App.2-FB Calc of REG Improvemnt
R1: File Number: | S1: 0
R2: Exhibit: | S2: NOT APPLICABLE
R3: Tab:
A4: TO BE UPDATED AT DRAFT RATE ORDER STAGE | R4: Schedule:
R5: Page:
R7: Date:
A9: Appendix 2-FB
A10: Calculation of Renewable Generation Connection Direct Benefits/Provincial Amount: Renewable Enabling Improvement Investments
A12: This table will calculate the distributor/provincial shares of the investments entered in Part A of Appendix 2-FA.
A13: Enter values in green shaded cells: WCA percentage, debt percentages, interest rates, kWh, tax rates, amortization period, CCA Class and percentage.
A14: For historical investments, enter these variables that were approved in your last cost of service test year. For test year and beyond, enter variables as in the application.
A15: Rate Riders related to the direct benefit portion of the renewable investments are not calculated for the Test Year as these assets and costs are already in the distributor's rate base/revenue requirement.
S16: Test Year
B17: ='LDC Info'!E14 &B23 -> Kingston Hydro Corporation2016 | D17: =G17-1 -> 2018 | G17: =J17-1 -> 2019 | J17: =M17-1 -> 2020 | M17: =P17-1 -> 2021 | P17: =S17-1 -> 2022 | S17: ='LDC Info'!$E$24 -> 2023 | V17: =S17+1 -> 2024 | Y17: =V17+1 -> 2025 | Z17: 2016 | AB17: =Y17+1 -> 2026 | AE17: =AB17+1 -> 2027 | AH17: =AE17+1 -> 2028
E18: Direct Benefit | F18: Provincial | H18: Direct Benefit | I18: Provincial | K18: Direct Benefit | L18: Provincial | N18: Direct Benefit | O18: Provincial | Q18: Direct Benefit | R18: Provincial | T18: Direct Benefit | U18: Provincial | W18: Direct Benefit | X18: Provincial | Z18: Direct Benefit | AA18: Provincial | AC18: Direct Benefit | AD18: Provincial | AF18: Direct Benefit | AG18: Provincial | AI18: Direct Benefit | AJ18: Provincial
D19: Total | E19: 0.06 | F19: 0.94 | G19: Total | H19: 0.06 | I19: 0.94 | J19: Total | K19: 0.06 | L19: 0.94 | M19: Total | N19: 0.06 | O19: 0.94 | P19: Total | Q19: 0.06 | R19: 0.94 | S19: Total | T19: 0.06 | U19: 0.94 | V19: Total | W19: 0.06 | X19: 0.94 | Y19: Total | Z19: 0.06 | AA19: 0.94 | AB19: Total | AC19: 0.06 | AD19: 0.94 | AE19: Total | AF19: 0.06 | AG19: 0.94 | AH19: Total | AI19: 0.06 | AJ19: 0.94
A20: Net Fixed Assets (average) | D20: =E83 -> 0 | E20: =D20*E19 -> 0 | F20: =D20*F19 -> 0 | G20: =F83 -> 0 | H20: =G20*H19 -> 0 | I20: =G20*I19 -> 0 | J20: =G83 -> 0 | K20: =J20*K19 -> 0 | L20: =J20*L19 -> 0 | M20: =H83 -> 0 | N20: =M20*N19 -> 0 | O20: =M20*O19 -> 0 | P20: =I83 -> 0 | Q20: =P20*Q19 -> 0 | R20: =P20*R19 -> 0 | S20: =J83 -> 0 | T20: =S20*T19 -> 0 | U20: =S20*U19 -> 0 | V20: =K83 -> 0 | W20: =V20*W19 -> 0 | X20: =V20*X19 -> 0 | Y20: =L83 -> 0 | Z20: =Y20*Z19 -> 0 | AA20: =Y20*AA19 -> 0 | AB20: =M83 -> 0 | AC20: =AB20*AC19 -> 0 | AD20: =AB20*AD19 -> 0 | AE20: =N83 -> 0 | AF20: =AE20*AF19 -> 0 | AG20: =AE20*AG19 -> 0 | AH20: =O83 -> 0 | AI20: =AH20*AI19 -> 0 | AJ20: =AH20*AJ19 -> 0
A21: Incremental OM&A (on-going, N/A for Provincial Recovery) | D21: 0 | E21: =D21*E19 -> 0 | F21: =D21*F19 -> 0 | G21: 0 | H21: =G21*H19 -> 0 | I21: =G21*I19 -> 0 | J21: 0 | K21: =J21*K19 -> 0 | L21: =J21*L19 -> 0 | M21: 0 | N21: =M21*N19 -> 0 | O21: =M21*O19 -> 0 | P21: 0 | Q21: =P21*Q19 -> 0 | R21: =P21*R19 -> 0 | S21: 0 | T21: =S21*T19 -> 0 | U21: =S21*U19 -> 0 | V21: 0 | W21: =V21*W19 -> 0 | X21: =V21*X19 -> 0 | Y21: 0 | Z21: =Y21*Z19 -> 0 | AA21: =Y21*AA19 -> 0 | AB21: 0 | AC21: =AB21*AC19 -> 0 | AD21: =AB21*AD19 -> 0 | AE21: 0 | AF21: =AE21*AF19 -> 0 | AG21: =AE21*AG19 -> 0 | AH21: 0 | AI21: =AH21*AI19 -> 0 | AJ21: =AH21*AJ19 -> 0
A22: Incremental OM&A (start-up, applicable for Provincial Recovery) | D22: 0 | E22: =D22*E19 -> 0 | F22: =D22*F19 -> 0 | G22: 0 | H22: =G22*H19 -> 0 | I22: =G22*I19 -> 0 | J22: 0 | K22: =J22*K19 -> 0 | L22: =J22*L19 -> 0 | M22: 0 | N22: =M22*N19 -> 0 | O22: =M22*O19 -> 0 | P22: 0 | Q22: =P22*Q19 -> 0 | R22: =P22*R19 -> 0 | S22: 0 | T22: =S22*T19 -> 0 | U22: =S22*U19 -> 0 | V22: 0 | W22: =V22*W19 -> 0 | X22: =V22*X19 -> 0 | Y22: 0 | Z22: =Y22*Z19 -> 0 | AA22: =Y22*AA19 -> 0 | AB22: 0 | AC22: =AB22*AC19 -> 0 | AD22: =AB22*AD19 -> 0 | AE22: 0 | AF22: =AE22*AF19 -> 0 | AG22: =AE22*AG19 -> 0 | AH22: 0 | AI22: =AH22*AI19 -> 0 | AJ22: =AH22*AJ19 -> 0
A23: Rebasing Year vs. Test Year | B23: ='LDC Info'!E28 -> 2016 | C23: ='LDC Info'!E24 -> 2023
A24: Allowance for Working Capital (enter rate) | B24: =IFERROR(VLOOKUP($B$17,'2.1.5.6'!$D:$J,2,FALSE)/100,) -> 0.075 | E24: =IF(AND(D$17>=$B$23, D$17<$C$23),(E21+E22)*$B$24,(E21+E22)*$C$24) -> 0 | F24: =IF(AND(D$17>=$B$23, D$17<$C$23),(F22)*$B$24,(F22)*$C$24) -> 0 | H24: =IF(AND(G$17>=$B$23, G$17<$C$23),(H21+H22)*$B$24,(H21+H22)*$C$24) -> 0 | I24: =IF(AND(G$17>=$B$23, G$17<$C$23),(I22)*$B$24,(I22)*$C$24) -> 0 | K24: =IF(AND(J$17>=$B$23, J$17<$C$23),(K21+K22)*$B$24,(K21+K22)*$C$24) -> 0 | L24: =IF(AND(J$17>=$B$23, J$17<$C$23),(L22)*$B$24,(L22)*$C$24) -> 0 | N24: =IF(AND(M$17>=$B$23, M$17<$C$23),(N21+N22)*$B$24,(N21+N22)*$C$24) -> 0 | O24: =IF(AND(M$17>=$B$23, M$17<$C$23),(O22)*$B$24,(O22)*$C$24) -> 0 | Q24: =IF(AND(P$17>=$B$23, P$17<$C$23),(Q21+Q22)*$B$24,(Q21+Q22)*$C$24) -> 0 | R24: =IF(AND(P$17>=$B$23, P$17<$C$23),(R22)*$B$24,(R22)*$C$24) -> 0 | T24: =IF(AND(S$17>=$B$23, S$17<$C$23),(T21+T22)*$B$24,(T21+T22)*$C$24) -> 0 | U24: =IF(AND(S$17>=$B$23, S$17<$C$23),(U22)*$B$24,(U22)*$C$24) -> 0 | W24: =IF(AND(V$17>=$B$23, V$17<$C$23),(W21+W22)*$B$24,(W21+W22)*$C$24) -> 0 | X24: =IF(AND(V$17>=$B$23, V$17<$C$23),(X22)*$B$24,(X22)*$C$24) -> 0 | Z24: =IF(AND(Y$17>=$B$23, Y$17<$C$23),(Z21+Z22)*$B$24,(Z21+Z22)*$C$24) -> 0 | AA24: =IF(AND(Y$17>=$B$23, Y$17<$C$23),(AA22)*$B$24,(AA22)*$C$24) -> 0 | AC24: =IF(AND(AB$17>=$B$23, AB$17<$C$23),(AC21+AC22)*$B$24,(AC21+AC22)*$C$24) -> 0 | AD24: =IF(AND(AB$17>=$B$23, AB$17<$C$23),(AD22)*$B$24,(AD22)*$C$24) -> 0 | AF24: =IF(AND(AE$17>=$B$23, AE$17<$C$23),(AF21+AF22)*$B$24,(AF21+AF22)*$C$24) -> 0 | AG24: =IF(AND(AE$17>=$B$23, AE$17<$C$23),(AG22)*$B$24,(AG22)*$C$24) -> 0 | AI24: =IF(AND(AH$17>=$B$23, AH$17<$C$23),(AI21+AI22)*$B$24,(AI21+AI22)*$C$24) -> 0 | AJ24: =IF(AND(AH$17>=$B$23, AH$17<$C$23),(AJ22)*$B$24,(AJ22)*$C$24) -> 0
A25: Rate Base | E25: =SUM(E20+E24) -> 0 | F25: =SUM(F20+F24) -> 0 | H25: =SUM(H20+H24) -> 0 | I25: =SUM(I20+I24) -> 0 | K25: =SUM(K20+K24) -> 0 | L25: =SUM(L20+L24) -> 0 | N25: =SUM(N20+N24) -> 0 | O25: =SUM(O20+O24) -> 0 | Q25: =SUM(Q20+Q24) -> 0 | R25: =SUM(R20+R24) -> 0 | T25: =SUM(T20+T24) -> 0 | U25: =SUM(U20+U24) -> 0 | W25: =SUM(W20+W24) -> 0 | X25: =SUM(X20+X24) -> 0 | Z25: =SUM(Z20+Z24) -> 0 | AA25: =SUM(AA20+AA24) -> 0 | AC25: =SUM(AC20+AC24) -> 0 | AD25: =SUM(AD20+AD24) -> 0 | AF25: =SUM(AF20+AF24) -> 0 | AG25: =SUM(AG20+AG24) -> 0 | AI25: =SUM(AI20+AI24) -> 0 | AJ25: =SUM(AJ20+AJ24) -> 0
A27: Rebasing Year vs. Test Year | B27: =B23 -> 2016 | C27: =C23 -> 2023
A28: Deemed ST Debt | B28: 0.04 | C28: 0.04 | E28: =E25*$B$28 -> 0 | F28: =F25*$B$28 -> 0 | H28: =H25*$B$28 -> 0 | I28: =I25*$B$28 -> 0 | K28: =K25*$B$28 -> 0 | L28: =L25*$B$28 -> 0 | N28: =N25*$B$28 -> 0 | O28: =O25*$B$28 -> 0 | Q28: =Q25*$B$28 -> 0 | R28: =R25*$B$28 -> 0 | T28: =T25*$C$28 -> 0 | U28: =U25*$C$28 -> 0 | W28: =W25*$C$28 -> 0 | X28: =X25*$C$28 -> 0 | Z28: =Z25*$C$28 -> 0 | AA28: =AA25*$C$28 -> 0 | AC28: =AC25*$C$28 -> 0 | AD28: =AD25*$C$28 -> 0 | AF28: =AF25*$C$28 -> 0 | AG28: =AG25*$C$28 -> 0 | AI28: =AI25*$C$28 -> 0 | AJ28: =AJ25*$C$28 -> 0
A29: Deemed LT Debt | B29: 0.56 | C29: 0.56 | E29: =E25*$B$29 -> 0 | F29: =F25*$B$29 -> 0 | H29: =H25*$B$29 -> 0 | I29: =I25*$B$29 -> 0 | K29: =K25*$B$29 -> 0 | L29: =L25*$B$29 -> 0 | N29: =N25*$B$29 -> 0 | O29: =O25*$B$29 -> 0 | Q29: =Q25*$B$29 -> 0 | R29: =R25*$B$29 -> 0 | T29: =T25*$C$29 -> 0 | U29: =U25*$C$29 -> 0 | W29: =W25*$C$29 -> 0 | X29: =X25*$C$29 -> 0 | Z29: =Z25*$C$29 -> 0 | AA29: =AA25*$C$29 -> 0 | AC29: =AC25*$C$29 -> 0 | AD29: =AD25*$C$29 -> 0 | AF29: =AF25*$C$29 -> 0 | AG29: =AG25*$C$29 -> 0 | AI29: =AI25*$C$29 -> 0 | AJ29: =AJ25*$C$29 -> 0
A30: Deemed Equity | B30: 0.4 | C30: 0.4 | E30: =E25*$B$30 -> 0 | F30: =F25*$B$30 -> 0 | H30: =H25*$B$30 -> 0 | I30: =I25*$B$30 -> 0 | K30: =K25*$B$30 -> 0 | L30: =L25*$B$30 -> 0 | N30: =N25*$B$30 -> 0 | O30: =O25*$B$30 -> 0 | Q30: =Q25*$B$30 -> 0 | R30: =R25*$B$30 -> 0 | T30: =T25*$C$30 -> 0 | U30: =U25*$C$30 -> 0 | W30: =W25*$C$30 -> 0 | X30: =X25*$C$30 -> 0 | Z30: =Z25*$C$30 -> 0 | AA30: =AA25*$C$30 -> 0 | AC30: =AC25*$C$30 -> 0 | AD30: =AD25*$C$30 -> 0 | AF30: =AF25*$C$30 -> 0 | AG30: =AG25*$C$30 -> 0 | AI30: =AI25*$C$30 -> 0 | AJ30: =AJ25*$C$30 -> 0
A32: ST Interest (enter rate) | E32: =E28*$B32 -> 0 | F32: 0 | H32: 0 | I32: 0 | K32: 0 | L32: 0 | N32: 0 | O32: 0 | Q32: 0 | R32: 0 | T32: =T28*$C32 -> 0 | U32: 0 | W32: =W28*$C32 -> 0 | X32: 0 | Z32: =Z28*$C32 -> 0 | AA32: 0 | AC32: =AC28*$C32 -> 0 | AD32: 0 | AF32: =AF28*$C32 -> 0 | AG32: 0 | AI32: =AI28*$C32 -> 0 | AJ32: 0
A33: LT Interest (enter rate) | E33: 0 | F33: 0 | H33: 0 | I33: 0 | K33: 0 | L33: 0 | N33: 0 | O33: 0 | Q33: 0 | R33: 0 | T33: 0 | U33: 0 | W33: 0 | X33: 0 | Z33: 0 | AA33: 0 | AC33: 0 | AD33: 0 | AF33: 0 | AG33: 0 | AI33: 0 | AJ33: 0
A34: Return on Equity (enter rate) | B34: =IFERROR(VLOOKUP($B$17,'2.1.5.6'!$D:$J,7,FALSE)/100,) -> 0.0919 | C34: 0.0936 | E34: 0 | F34: 0 | H34: 0 | I34: 0 | K34: 0 | L34: 0 | N34: 0 | O34: 0 | Q34: 0 | R34: 0 | T34: 0 | U34: 0 | W34: 0 | X34: 0 | Z34: 0 | AA34: 0 | AC34: 0 | AD34: 0 | AF34: 0 | AG34: 0 | AI34: 0 | AJ34: 0
A35: Cost of Capital Total | E35: =SUM(E32:E34) -> 0 | F35: =SUM(F32:F34) -> 0 | H35: =SUM(H32:H34) -> 0 | I35: =SUM(I32:I34) -> 0 | K35: =SUM(K32:K34) -> 0 | L35: =SUM(L32:L34) -> 0 | N35: =SUM(N32:N34) -> 0 | O35: =SUM(O32:O34) -> 0 | Q35: =SUM(Q32:Q34) -> 0 | R35: =SUM(R32:R34) -> 0 | T35: =SUM(T32:T34) -> 0 | U35: =SUM(U32:U34) -> 0 | W35: =SUM(W32:W34) -> 0 | X35: =SUM(X32:X34) -> 0 | Z35: =SUM(Z32:Z34) -> 0 | AA35: =SUM(AA32:AA34) -> 0 | AC35: =SUM(AC32:AC34) -> 0 | AD35: =SUM(AD32:AD34) -> 0 | AF35: =SUM(AF32:AF34) -> 0 | AG35: =SUM(AG32:AG34) -> 0 | AI35: =SUM(AI32:AI34) -> 0 | AJ35: =SUM(AJ32:AJ34) -> 0
A37: OM&A | E37: =E21+E22 -> 0 | F37: =F22 -> 0 | H37: =H21+H22 -> 0 | I37: =I22 -> 0 | K37: =K21+K22 -> 0 | L37: =L22 -> 0 | N37: =N21+N22 -> 0 | O37: =O22 -> 0 | Q37: =Q21+Q22 -> 0 | R37: =R22 -> 0 | T37: =T21+T22 -> 0 | U37: =U22 -> 0 | W37: =W21+W22 -> 0 | X37: =X22 -> 0 | Z37: =Z21+Z22 -> 0 | AA37: =AA22 -> 0 | AC37: =AC21+AC22 -> 0 | AD37: =AD22 -> 0 | AF37: =AF21+AF22 -> 0 | AG37: =AG22 -> 0 | AI37: =AI21+AI22 -> 0 | AJ37: =AJ22 -> 0
A38: Amortization | D38: =+E77+E78 -> 0 | E38: =D38*E$19 -> 0 | F38: =D38*F$19 -> 0 | G38: =+F77+F78 -> 0 | H38: =G38*H$19 -> 0 | I38: =G38*I$19 -> 0 | J38: =+G77+G78 -> 0 | K38: =J38*K$19 -> 0 | L38: =J38*L$19 -> 0 | M38: =+H77+H78 -> 0 | N38: =M38*N$19 -> 0 | O38: =M38*O$19 -> 0 | P38: =+I77+I78 -> 0 | Q38: =P38*Q$19 -> 0 | R38: =P38*R$19 -> 0 | S38: =+J77+J78 -> 0 | T38: =S38*T$19 -> 0 | U38: =S38*U$19 -> 0 | V38: =+K77+K78 -> 0 | W38: =V38*W$19 -> 0 | X38: =V38*X$19 -> 0 | Y38: =+L77+L78 -> 0 | Z38: =Y38*Z$19 -> 0 | AA38: =Y38*AA$19 -> 0 | AB38: =+M77+M78 -> 0 | AC38: =AB38*AC$19 -> 0 | AD38: =AB38*AD$19 -> 0 | AE38: =+N77+N78 -> 0 | AF38: =AE38*AF$19 -> 0 | AG38: =AE38*AG$19 -> 0 | AH38: =+O77+O78 -> 0 | AI38: =AH38*AI$19 -> 0 | AJ38: =AH38*AJ$19 -> 0
A39: Grossed-up PILs | E39: =+E66 -> 0 | F39: =+F66 -> 0 | H39: =+H66 -> 0 | I39: =+I66 -> 0 | K39: =+K66 -> 0 | L39: =+L66 -> 0 | N39: =+N66 -> 0 | O39: =+O66 -> 0 | Q39: =+Q66 -> 0 | R39: =+R66 -> 0 | T39: =+T66 -> 0 | U39: =+U66 -> 0 | W39: =+W66 -> 0 | X39: =+X66 -> 0 | Z39: =+Z66 -> 0 | AA39: =+AA66 -> 0 | AC39: =+AC66 -> 0 | AD39: =+AD66 -> 0 | AF39: =+AF66 -> 0 | AG39: =+AG66 -> 0 | AI39: =+AI66 -> 0 | AJ39: =+AJ66 -> 0
A41: Revenue Requirement | E41: =SUM(E35:E39) -> 0 | F41: =SUM(F35:F39) -> 0 | H41: =SUM(H35:H39) -> 0 | I41: =SUM(I35:I39) -> 0 | K41: =SUM(K35:K39) -> 0 | L41: =SUM(L35:L39) -> 0 | N41: =SUM(N35:N39) -> 0 | O41: =SUM(O35:O39) -> 0 | Q41: =SUM(Q35:Q39) -> 0 | R41: =SUM(R35:R39) -> 0 | T41: =SUM(T35:T39) -> 0 | U41: =SUM(U35:U39) -> 0 | W41: =SUM(W35:W39) -> 0 | X41: =SUM(X35:X39) -> 0 | Z41: =SUM(Z35:Z39) -> 0 | AA41: =SUM(AA35:AA39) -> 0 | AC41: =SUM(AC35:AC39) -> 0 | AD41: =SUM(AD35:AD39) -> 0 | AF41: =SUM(AF35:AF39) -> 0 | AG41: =SUM(AG35:AG39) -> 0 | AI41: =SUM(AI35:AI39) -> 0 | AJ41: =SUM(AJ35:AJ39) -> 0
A44: Provincial Rate Protection | F44: =F41 -> 0 | I44: =I41 -> 0 | L44: =L41 -> 0 | O44: =O41 -> 0 | R44: =R41 -> 0 | U44: =U41 -> 0 | X44: =X41 -> 0 | AA44: =AA41 -> 0 | AD44: =AD41 -> 0 | AG44: =AG41 -> 0 | AJ44: =AJ41 -> 0
A46: Monthly Amount Paid by IESO | F46: =F44/12 -> 0 | I46: =I44/12 -> 0 | L46: =L44/12 -> 0 | O46: =O44/12 -> 0 | R46: =R44/12 -> 0 | U46: =U44/12 -> 0 | X46: =X44/12 -> 0 | AA46: =AA44/12 -> 0 | AD46: =AD44/12 -> 0 | AG46: =AG44/12 -> 0 | AJ46: =AJ44/12 -> 0
A48: Note 1: The distributor should follow the regulatory accounting set out in the Accounting Procedure Handbook Guidance FAQs issued in March 2015. Q10 of the APH FAQs states that: “For approved eligible investments as defined under O.Reg. 330/09 under the OEB Act, a variance account will continue to be used for the purpose of recording variances between the revenue requirement based on actual costs of approved eligible investments and the revenue received from the IESO.” The answer for Q10 provides the accounting guidance for this variance account: “Distributors that have included eligible investments to connect qualifying facilities in their DS plans are to establish the variance Account 1533 Renewable Generation Connection Funding Adder Deferral Account, Sub-account Provincial Rate Protection Payment Variances following OEB approval for investments forecast to enter service beyond the test year for purposes of implementing rate protection pursuant to O.Reg. 330/09. The purpose of this variance account is to track the variance between the distributor’s revenue requirement associated with the portion of the actual capital and/or operating costs that are eligible for rate protection, as incurred by the distributor for eligible renewable enabling and expansion investments, and the rate protection payments collected from the IESO.” The answer further provides the journal entries to record the variances. Distributors should follow the instructions in the answer for recording the journal entries in the variance account 1533.
A50: Note 2: For the Test Year, Costs and Revenues of the Direct Benefit are to be included in the test year applicant Rate Base and Revenues.
A52: PILs Calculation | T52: Test Year
E53: =G17-1 -> 2018 | H53: =G17 -> 2019 | K53: =J17 -> 2020 | N53: =M17 -> 2021 | Q53: =P17 -> 2022 | T53: =S17 -> 2023 | W53: =V17 -> 2024 | Z53: =Y17 -> 2025 | AC53: =AB17 -> 2026 | AF53: =AE17 -> 2027 | AI53: =AH17 -> 2028
A54: Income Tax | E54: Direct Benefit | F54: Provincial | H54: Direct Benefit | I54: Provincial | K54: Direct Benefit | L54: Provincial | N54: Direct Benefit | O54: Provincial | Q54: Direct Benefit | R54: Provincial | T54: Direct Benefit | U54: Provincial | W54: Direct Benefit | X54: Provincial | Z54: Direct Benefit | AA54: Provincial | AC54: Direct Benefit | AD54: Provincial | AF54: Direct Benefit | AG54: Provincial | AI54: Direct Benefit | AJ54: Provincial
AB55: Total | AE55: Total | AH55: Total
A56: Net Income - ROE on Rate Base | E56: =E34 -> 0 | F56: =F34 -> 0 | H56: =H34 -> 0 | I56: =I34 -> 0 | K56: =K34 -> 0 | L56: =L34 -> 0 | N56: =N34 -> 0 | O56: =O34 -> 0 | Q56: =Q34 -> 0 | R56: =R34 -> 0 | T56: =T34 -> 0 | U56: =U34 -> 0 | W56: =W34 -> 0 | X56: =X34 -> 0 | Z56: =Z34 -> 0 | AA56: =AA34 -> 0 | AC56: =AC34 -> 0 | AD56: =AD34 -> 0 | AF56: =AF34 -> 0 | AG56: =AG34 -> 0 | AI56: =AI34 -> 0 | AJ56: =AJ34 -> 0
A57: Amortization (6% DB and 94% P) | E57: =E38 -> 0 | F57: =F38 -> 0 | H57: =H38 -> 0 | I57: =I38 -> 0 | K57: =K38 -> 0 | L57: =L38 -> 0 | N57: =N38 -> 0 | O57: =O38 -> 0 | Q57: =Q38 -> 0 | R57: =R38 -> 0 | T57: =T38 -> 0 | U57: =U38 -> 0 | W57: =W38 -> 0 | X57: =X38 -> 0 | Z57: =Z38 -> 0 | AA57: =AA38 -> 0 | AC57: =AC38 -> 0 | AD57: =AD38 -> 0 | AF57: =AF38 -> 0 | AG57: =AG38 -> 0 | AI57: =AI38 -> 0 | AJ57: =AJ38 -> 0
A58: CCA (6% DB and 94% P) | E58: =-E95*$E$19 -> 0 | F58: =-E95*$F$19 -> 0 | H58: =-F95*$E$19 -> 0 | I58: =-F95*$F$19 -> 0 | K58: =-G95*$E$19 -> 0 | L58: =-G95*$F$19 -> 0 | N58: =-H95*$E$19 -> 0 | O58: =-H95*$F$19 -> 0 | Q58: =-I95*$E$19 -> 0 | R58: =-I95*$F$19 -> 0 | T58: =-J95*$E$19 -> 0 | U58: =-J95*$F$19 -> 0 | W58: =-K95*$E$19 -> 0 | X58: =-K95*$F$19 -> 0 | Z58: =-L95*$E$19 -> 0 | AA58: =-L95*$F$19 -> 0 | AC58: =-M95*$E$19 -> 0 | AD58: =-M95*$F$19 -> 0 | AF58: =-N95*$E$19 -> 0 | AG58: =-N95*$F$19 -> 0 | AI58: =-Q95*$E$19 -> 0 | AJ58: =-Q95*$F$19 -> 0
A59: Taxable income | E59: =SUM(E56:E58) -> 0 | F59: =SUM(F56:F58) -> 0 | H59: =SUM(H56:H58) -> 0 | I59: =SUM(I56:I58) -> 0 | K59: =SUM(K56:K58) -> 0 | L59: =SUM(L56:L58) -> 0 | N59: =SUM(N56:N58) -> 0 | O59: =SUM(O56:O58) -> 0 | Q59: =SUM(Q56:Q58) -> 0 | R59: =SUM(R56:R58) -> 0 | T59: =SUM(T56:T58) -> 0 | U59: =SUM(U56:U58) -> 0 | W59: =SUM(W56:W58) -> 0 | X59: =SUM(X56:X58) -> 0 | Z59: =SUM(Z56:Z58) -> 0 | AA59: =SUM(AA56:AA58) -> 0 | AC59: =SUM(AC56:AC58) -> 0 | AD59: =SUM(AD56:AD58) -> 0 | AF59: =SUM(AF56:AF58) -> 0 | AG59: =SUM(AG56:AG58) -> 0 | AI59: =SUM(AI56:AI58) -> 0 | AJ59: =SUM(AJ56:AJ58) -> 0
B60: =B27 -> 2016 | C60: =C27 -> 2023
A61: Tax Rate (to be entered) | E61: =IF(AND(E$53>=$B$60, E$53<$C$60),$B$61,$C$61) -> 0 | F61: =IF(AND(E$53>=$B$60, E$53<$C$60),$B$61,$C$61) -> 0 | H61: =IF(AND(H$53>=$B$60, H$53<$C$60),$B$61,$C$61) -> 0 | I61: =IF(AND(H$53>=$B$60, H$53<$C$60),$B$61,$C$61) -> 0 | K61: =IF(AND(K$53>=$B$60, K$53<$C$60),$B$61,$C$61) -> 0 | L61: =IF(AND(K$53>=$B$60, K$53<$C$60),$B$61,$C$61) -> 0 | N61: =IF(AND(N$53>=$B$60, N$53<$C$60),$B$61,$C$61) -> 0 | O61: =IF(AND(N$53>=$B$60, N$53<$C$60),$B$61,$C$61) -> 0 | Q61: =IF(AND(Q$53>=$B$60, Q$53<$C$60),$B$61,$C$61) -> 0 | R61: =IF(AND(Q$53>=$B$60, Q$53<$C$60),$B$61,$C$61) -> 0 | T61: =IF(AND(T$53>=$B$60, T$53<$C$60),$B$61,$C$61) -> 0 | U61: =IF(AND(T$53>=$B$60, T$53<$C$60),$B$61,$C$61) -> 0 | W61: =IF(AND(W$53>=$B$60, W$53<$C$60),$B$61,$C$61) -> 0 | X61: =IF(AND(W$53>=$B$60, W$53<$C$60),$B$61,$C$61) -> 0 | Z61: =IF(AND(Z$53>=$B$60, Z$53<$C$60),$B$61,$C$61) -> 0 | AA61: =IF(AND(Z$53>=$B$60, Z$53<$C$60),$B$61,$C$61) -> 0 | AC61: =IF(AND(AC$53>=$B$60, AC$53<$C$60),$B$61,$C$61) -> 0 | AD61: =IF(AND(AC$53>=$B$60, AC$53<$C$60),$B$61,$C$61) -> 0 | AF61: =IF(AND(AF$53>=$B$60, AF$53<$C$60),$B$61,$C$61) -> 0 | AG61: =IF(AND(AF$53>=$B$60, AF$53<$C$60),$B$61,$C$61) -> 0 | AI61: =IF(AND(AI$53>=$B$60, AI$53<$C$60),$B$61,$C$61) -> 0 | AJ61: =IF(AND(AI$53>=$B$60, AI$53<$C$60),$B$61,$C$61) -> 0
A63: Income Taxes Payable | E63: =E59*E61 -> 0 | F63: =F59*F61 -> 0 | H63: =H59*H61 -> 0 | I63: =I59*I61 -> 0 | K63: =K59*K61 -> 0 | L63: =L59*L61 -> 0 | N63: =N59*N61 -> 0 | O63: =O59*O61 -> 0 | Q63: =Q59*Q61 -> 0 | R63: =R59*R61 -> 0 | T63: =T59*T61 -> 0 | U63: =U59*U61 -> 0 | W63: =W59*W61 -> 0 | X63: =X59*X61 -> 0 | Z63: =Z59*Z61 -> 0 | AA63: =AA59*AA61 -> 0 | AC63: =AC59*AC61 -> 0 | AD63: =AD59*AD61 -> 0 | AF63: =AF59*AF61 -> 0 | AG63: =AG59*AG61 -> 0 | AI63: =AI59*AI61 -> 0 | AJ63: =AJ59*AJ61 -> 0
A64: Gross Up
A65: Income Taxes Payable | E65: =E63/(1-E61) -> 0 | F65: =F63/(1-F61) -> 0 | H65: =H63/(1-H61) -> 0 | I65: =I63/(1-I61) -> 0 | K65: =K63/(1-K61) -> 0 | L65: =L63/(1-L61) -> 0 | N65: =N63/(1-N61) -> 0 | O65: =O63/(1-O61) -> 0 | Q65: =Q63/(1-Q61) -> 0 | R65: =R63/(1-R61) -> 0 | T65: =T63/(1-T61) -> 0 | U65: =U63/(1-U61) -> 0 | W65: =W63/(1-W61) -> 0 | X65: =X63/(1-X61) -> 0 | Z65: =Z63/(1-Z61) -> 0 | AA65: =AA63/(1-AA61) -> 0 | AC65: =AC63/(1-AC61) -> 0 | AD65: =AD63/(1-AD61) -> 0 | AF65: =AF63/(1-AF61) -> 0 | AG65: =AG63/(1-AG61) -> 0 | AI65: =AI63/(1-AI61) -> 0 | AJ65: =AJ63/(1-AJ61) -> 0
A66: Grossed Up PILs | E66: =+E65 -> 0 | F66: =+F65 -> 0 | H66: =+H65 -> 0 | I66: =+I65 -> 0 | K66: =+K65 -> 0 | L66: =+L65 -> 0 | N66: =+N65 -> 0 | O66: =+O65 -> 0 | Q66: =+Q65 -> 0 | R66: =+R65 -> 0 | T66: =+T65 -> 0 | U66: =+U65 -> 0 | W66: =+W65 -> 0 | X66: =+X65 -> 0 | Z66: =+Z65 -> 0 | AA66: =+AA65 -> 0 | AC66: =+AC65 -> 0 | AD66: =+AD65 -> 0 | AF66: =+AF65 -> 0 | AG66: =+AG65 -> 0 | AI66: =+AI65 -> 0 | AJ66: =+AJ65 -> 0
J68: Test Year
